{"text_format":"1","workbook":"xlsx","n_sheets":18,"sheets":["Instructions","Preferences","Scores","Results","Itinerary Chart","Program Chart","Itinerary Details","Itinerary Xref Chart","Tables","Detail Informaton","itineraryCamps","Itinerary Programs","Descriptions","Calculator","Itineraries","Programs","Camp Programs","Camp Elevations"],"not_rendered":{"charts":7,"images":4,"macros":1,"external_links":0,"defined_names":135,"comments":2,"pivot_tables":0},"unopened":[{"sheet":"Itinerary Chart","index":4,"reason":"not_a_worksheet"},{"sheet":"Program Chart","index":5,"reason":"not_a_worksheet"}],"bounds":{"document_bytes":16777216,"sheet_cells":100000,"rows_first":2000,"rows_last":500,"rows_between":2000,"halvings":0,"cell_chars":16384,"cell_head_chars":4096},"cells_cut":0,"cells_raw":0,"read":"whole","date_system":"1900"}

{"sheet":"Instructions","index":0,"n_rows":8,"n_cols":6,"rows_kept":8,"cut":false,"hidden":false,"merged":[[5,1,5,16],[0,2,0,15],[3,1,3,15]]}
[null,null,"Philmont 2024 Itineraries - Cavalcades"]
[]
[]
[null,"Questions or suggestions regarding this spreadsheet may be e-mailed to the author Sid Covington at sid_c@swbell.net"]
[]
[null,{"$f":"\"Updated \"&getlastsavedate()&\" - Revision \" & getSpreadsheetProperty(\"Revision\")","v":"Updated 1/7/2024 9:57PM - Revision 2023_1-0"}]
[null,"     Revision History:",null,null,null,"Note:  Use Ctrl-F1 to show/hide the Excel ribbon"]
[null,null,"2024_1-0","Original 2024 Update"]

{"sheet":"Preferences","index":1,"n_rows":16,"n_cols":6,"rows_kept":16,"cut":false,"hidden":false,"merged":[[15,0,15,2],[8,0,8,2],[10,4,11,7],[0,0,0,7],[2,4,6,7]]}
["Set Crew preferences below"]
[]
["Cavalcades are either North or South.  Is it important to you",null,null,null,"How much more important are programs than the other factors such as distance, country, altitude, Tooth of Time, etc. in your selection of an itinerary?  Enter y if programs are more important, n if should be treated as lower priority than other factors."]
["which you go on?","n",{"$f":"IF(UPPER(B4)=\"Y\",\"\",IF(UPPER(B4)=\"N\",\"\",\"ERROR-Must be Y or N\"))","v":""}]
["If it is important, rank your preference in 1, 2 order with"]
["  1 being the most preferred, 2 being least."]
["    South",1,{"$f":"IF(B7<1,\"ERROR-Must be in 1-4 range\",IF(B7>4,\"ERROR-Must be in 1-4 range\",\"\"))","v":""}]
["    North",2,{"$f":"IF(B8<1,\"ERROR-Must be in 1-4 range\",IF(B8>4,\"ERROR-Must be in 1-4 range\",\"\"))","v":""},null,"  Programs more important?","y"]
[{"$f":"IF(LOWER(areaImportant)=\"y\",(IF(validAreaRanking(),\"\",\"ERROR—rank preferences 1 or 2\")),\"\")","v":""}]
[]
["Rate the capability of your crew on a scale of 1 to 10 with",null,null,null,"A key part of a Philmont Trek is climbing peaks.  Is it important to you to climb the following peaks?"]
["1 indicating a young crew with little backpacking experience"]
["and 10 indicating an older crew with a lot of experience.",null,null,null,"Baldy Peak","y"]
[null,null,null,null,"Trail Peak","y"]
["    Capability",5,null,null,"Other Peaks","y"]
[{"$f":"IF(B15>0,IF(B15<11,\"\",\"ERROR-must be less than 10\"),\"ERROR-must be greater than 0\")","v":""}]

{"sheet":"Scores","index":2,"n_rows":30,"n_cols":16,"rows_kept":30,"cut":false,"hidden":false,"merged":[]}
["Program:","Crewmember 1","Crewmember 2","Crewmember 3","Crewmember 4","Crewmember 5","Crewmember 6","Crewmember 7","Crewmember 8","Crewmember 9","Crewmember 10","Crewmember 11","Crewmember 12","Crewmember 13","Crewmember 14","Crewmember 15"]
[{"$f":"INDEX(program_table,ROW()-1)","v":"Archaeology"},15,15,15,15,15,15,15,2,15,15,15,15,15,2,0]
[{"$f":"INDEX(program_table,ROW()-1)","v":"Baldy Mountain"},20,20,20,20,20,20,19,16,20,20,19,18,17,16,15]
[{"$f":"INDEX(program_table,ROW()-1)","v":"Blacksmithing"},2,13,10,2,0,13,10,7,7,13,10,2,0,7,10]
[{"$f":"INDEX(program_table,ROW()-1)","v":"Campfire (evening)"},18,18,18,18,18,18,18,5,18,18,18,18,18,5,3]
[{"$f":"INDEX(program_table,ROW()-1)","v":"Cantina"},2,0,15,0,18,0,15,20,20,0,15,0,18,20,0]
[{"$f":"INDEX(program_table,ROW()-1)","v":"Challenge Events"},2,20,0,14,6,20,0,10,10,20,0,14,6,10,9]
[{"$f":"INDEX(program_table,ROW()-1)","v":"Chuckwagon Dinner"},2,20,0,14,6,20,0,10,10,20,0,14,6,10,9]
[{"$f":"INDEX(program_table,ROW()-1)","v":"Demonstration Forest"},2,19,0,0,9,19,0,9,9,19,0,0,9,9,11]
[{"$f":"INDEX(program_table,ROW()-1)","v":"Fishing"},2,10,5,0,0,10,5,7,7,10,5,0,null,7,15]
[{"$f":"INDEX(program_table,ROW()-1)","v":"Fly Tying"},2,20,5,0,0,20,5,5,5,20,5,0,null,5,11]
[{"$f":"INDEX(program_table,ROW()-1)","v":"Fur Trapper Rendezvous"},2,11,null,13,null,11,null,null,4,10,null,15,0,null,18]
[{"$f":"INDEX(program_table,ROW()-1)","v":"Gold Mining & Panning"},2,13,10,2,null,13,10,7,7,13,10,2,0,7,10]
[{"$f":"INDEX(program_table,ROW()-1)","v":"Homesteading"},2,12,5,3,null,12,5,10,10,12,5,3,0,10,20]
[{"$f":"INDEX(program_table,ROW()-1)","v":"Lodge/Cabin Tours"},2,8,0,16,5,8,8,3,8,0,8,16,8,3,10]
[{"$f":"INDEX(program_table,ROW()-1)","v":"Low Impact Camping"},2,1,1,17,6,1,1,4,4,1,1,17,6,4,11]
[{"$f":"INDEX(program_table,ROW()-1)","v":"Mexican Dinner"},2,10,6,15,10,10,0,20,5,10,0,null,1,20,18]
[{"$f":"INDEX(program_table,ROW()-1)","v":"Mountaineering"},2,3,5,0,0,3,5,7,5,20,5,0,0,7,15]
[{"$f":"INDEX(program_table,ROW()-1)","v":"Muzzle Loading Rifle"},2,2,15,18,0,2,15,10,10,2,15,18,0,10,12]
[{"$f":"INDEX(program_table,ROW()-1)","v":"New Mexico Homestead"},2,19,0,6,0,19,0,12,12,19,0,6,0,12,0]
[{"$f":"INDEX(program_table,ROW()-1)","v":"Petroglyph Tour"},2,2,0,5,0,2,0,12,12,2,0,5,0,12,0]
[{"$f":"INDEX(program_table,ROW()-1)","v":"Post Civil War Encampment"},2,null,15,null,18,null,15,20,20,0,15,0,18,20]
[{"$f":"INDEX(program_table,ROW()-1)","v":"Railroading"},2,16,10,15,0,16,10,20,20,16,10,15,0,20,10]
[{"$f":"INDEX(program_table,ROW()-1)","v":"Rock Climbing & Rappelling"},2,8,0,16,5,8,8,3,8,0,8,16,8,3,10]
[{"$f":"INDEX(program_table,ROW()-1)","v":"Shotgun Shooting/Reloading - 12 Gauge"},2,1,1,17,6,1,1,4,4,1,1,17,6,4,11]
[{"$f":"INDEX(program_table,ROW()-1)","v":"Spar Pole Climbing"},2,20,5,0,0,20,5,5,5,20,5,0,null,5,11]
[{"$f":"INDEX(program_table,ROW()-1)","v":"Tie Making & Crosscut Saws"},2,13,10,2,0,13,10,7,7,13,10,2,0,7,10]
[{"$f":"INDEX(program_table,ROW()-1)","v":"Tomahawk Throwing"},2,2,15,18,0,2,15,10,10,2,15,18,0,10,12]
[{"$f":"INDEX(program_table,ROW()-1)","v":"Trail Peak"},2,null,10,5,10,null,20,2,null,10,20,5,15,2,18]
[{"$f":"INDEX(program_table,ROW()-1)","v":"Western Lore/Branding"},15,10," ",10,8,10," ",5,5,8," ",14,8,5,10]

{"sheet":"Results","index":3,"n_rows":40,"n_cols":16,"rows_kept":40,"cut":false,"hidden":false,"merged":[[32,6,32,7],[1,10,1,15],[0,0,0,15],[1,8,2,8],[1,9,2,9],[1,4,2,4],[1,5,2,5],[16,4,16,5]]}
["Philmont Trek Itinerary Selection"]
[null,null,null,null,"Choice",null,null,null,"# X's","Pgm Index","Top Itinerary/Program Cross Reference"]
["Itinerary","Classification","Distance",{"$f":"IF(meanMedian=\"Mean\",\"Average\",meanMedian) & \" Score\"","v":"Total Score"},null,null,"Program","Value",null,null,"5A-S","3A-N","1B-N","2B-S","4A-S","3B-N"]
["5A-S","Challenging",56,8835.5,"#1",null,"Baldy Mountain",280,{"$f":"COUNTIF(K4:P4,\"X\")","v":3},2,{"$f":"IF($G4=0,\"\",cavIncludeProgram($G4,cavItinIndex(K$3)))","v":""},{"$f":"IF($G4=0,\"\",cavIncludeProgram($G4,cavItinIndex(L$3)))","v":"X"},{"$f":"IF($G4=0,\"\",cavIncludeProgram($G4,cavItinIndex(M$3)))","v":"X"},{"$f":"IF($G4=0,\"\",cavIncludeProgram($G4,cavItinIndex(N$3)))","v":""},{"$f":"IF($G4=0,\"\",cavIncludeProgram($G4,cavItinIndex(O$3)))","v":""},{"$f":"IF($G4=0,\"\",cavIncludeProgram($G4,cavItinIndex(P$3)))","v":"X"}]
["3A-N","Challenging",41,8117,"#2",null,"Campfire (evening)",229,{"$f":"COUNTIF(K5:P5,\"X\")","v":6},4,{"$f":"IF($G5=0,\"\",cavIncludeProgram($G5,cavItinIndex(K$3)))","v":"X"},{"$f":"IF($G5=0,\"\",cavIncludeProgram($G5,cavItinIndex(L$3)))","v":"X"},{"$f":"IF($G5=0,\"\",cavIncludeProgram($G5,cavItinIndex(M$3)))","v":"X"},{"$f":"IF($G5=0,\"\",cavIncludeProgram($G5,cavItinIndex(N$3)))","v":"X"},{"$f":"IF($G5=0,\"\",cavIncludeProgram($G5,cavItinIndex(O$3)))","v":"X"},{"$f":"IF($G5=0,\"\",cavIncludeProgram($G5,cavItinIndex(P$3)))","v":"X"}]
["1B-N","Challenging",44,7873,"#3",null,"Archaeology",184,{"$f":"COUNTIF(K6:P6,\"X\")","v":0},1,{"$f":"IF($G6=0,\"\",cavIncludeProgram($G6,cavItinIndex(K$3)))","v":""},{"$f":"IF($G6=0,\"\",cavIncludeProgram($G6,cavItinIndex(L$3)))","v":""},{"$f":"IF($G6=0,\"\",cavIncludeProgram($G6,cavItinIndex(M$3)))","v":""},{"$f":"IF($G6=0,\"\",cavIncludeProgram($G6,cavItinIndex(N$3)))","v":""},{"$f":"IF($G6=0,\"\",cavIncludeProgram($G6,cavItinIndex(O$3)))","v":""},{"$f":"IF($G6=0,\"\",cavIncludeProgram($G6,cavItinIndex(P$3)))","v":""}]
["2B-S","Challenging",46,7867.5,"#4",null,"Railroading",180,{"$f":"COUNTIF(K7:P7,\"X\")","v":0},22,{"$f":"IF($G7=0,\"\",cavIncludeProgram($G7,cavItinIndex(K$3)))","v":""},{"$f":"IF($G7=0,\"\",cavIncludeProgram($G7,cavItinIndex(L$3)))","v":""},{"$f":"IF($G7=0,\"\",cavIncludeProgram($G7,cavItinIndex(M$3)))","v":""},{"$f":"IF($G7=0,\"\",cavIncludeProgram($G7,cavItinIndex(N$3)))","v":""},{"$f":"IF($G7=0,\"\",cavIncludeProgram($G7,cavItinIndex(O$3)))","v":""},{"$f":"IF($G7=0,\"\",cavIncludeProgram($G7,cavItinIndex(P$3)))","v":""}]
["4A-S","Challenging",52,7806,"#5",null,"Post Civil War Encampment",143,null,21]
["3B-N","Challenging",39,7758,"#6",null,"Cantina",143,null,5]
["6B-S","Challenging",48,7733,null,null,"Challenge Events",141,{"$f":"COUNTIF(K10:P10,\"X\")","v":3},6,{"$f":"IF($G10=0,\"\",cavIncludeProgram($G10,cavItinIndex(K$3)))","v":""},{"$f":"IF($G10=0,\"\",cavIncludeProgram($G10,cavItinIndex(L$3)))","v":"X"},{"$f":"IF($G10=0,\"\",cavIncludeProgram($G10,cavItinIndex(M$3)))","v":"X"},{"$f":"IF($G10=0,\"\",cavIncludeProgram($G10,cavItinIndex(N$3)))","v":""},{"$f":"IF($G10=0,\"\",cavIncludeProgram($G10,cavItinIndex(O$3)))","v":""},{"$f":"IF($G10=0,\"\",cavIncludeProgram($G10,cavItinIndex(P$3)))","v":"X"}]
["2B-N","Challenging",36,7592,null,null,"Chuckwagon Dinner",141,{"$f":"COUNTIF(K11:P11,\"X\")","v":3},7,{"$f":"IF($G11=0,\"\",cavIncludeProgram($G11,cavItinIndex(K$3)))","v":"X"},{"$f":"IF($G11=0,\"\",cavIncludeProgram($G11,cavItinIndex(L$3)))","v":""},{"$f":"IF($G11=0,\"\",cavIncludeProgram($G11,cavItinIndex(M$3)))","v":""},{"$f":"IF($G11=0,\"\",cavIncludeProgram($G11,cavItinIndex(N$3)))","v":"X"},{"$f":"IF($G11=0,\"\",cavIncludeProgram($G11,cavItinIndex(O$3)))","v":"X"},{"$f":"IF($G11=0,\"\",cavIncludeProgram($G11,cavItinIndex(P$3)))","v":""}]
["2A-N","Challenging",36,7592,null,null,"Muzzle Loading Rifle",131,null,18]
["4A-N","Challenging",49,7571,null,null,"Tomahawk Throwing",131,{"$f":"COUNTIF(K13:P13,\"X\")","v":2},27,{"$f":"IF($G13=0,\"\",cavIncludeProgram($G13,cavItinIndex(K$3)))","v":""},{"$f":"IF($G13=0,\"\",cavIncludeProgram($G13,cavItinIndex(L$3)))","v":"X"},{"$f":"IF($G13=0,\"\",cavIncludeProgram($G13,cavItinIndex(M$3)))","v":""},{"$f":"IF($G13=0,\"\",cavIncludeProgram($G13,cavItinIndex(N$3)))","v":""},{"$f":"IF($G13=0,\"\",cavIncludeProgram($G13,cavItinIndex(O$3)))","v":""},{"$f":"IF($G13=0,\"\",cavIncludeProgram($G13,cavItinIndex(P$3)))","v":"X"}]
["6A-S","Challenging",46,7543,null,null,"Mexican Dinner",127,1,16,{"$f":"IF($G14=0,\"\",cavIncludeProgram($G14,cavItinIndex(K$3)))","v":""},{"$f":"IF($G14=0,\"\",cavIncludeProgram($G14,cavItinIndex(L$3)))","v":""},{"$f":"IF($G14=0,\"\",cavIncludeProgram($G14,cavItinIndex(M$3)))","v":""},{"$f":"IF($G14=0,\"\",cavIncludeProgram($G14,cavItinIndex(N$3)))","v":"X"},{"$f":"IF($G14=0,\"\",cavIncludeProgram($G14,cavItinIndex(O$3)))","v":""},{"$f":"IF($G14=0,\"\",cavIncludeProgram($G14,cavItinIndex(P$3)))","v":""}]
["1A-N","Challenging",38,7399,null,null,"Trail Peak",119,2,28,{"$f":"IF($G15=0,\"\",cavIncludeProgram($G15,cavItinIndex(K$3)))","v":"X"},{"$f":"IF($G15=0,\"\",cavIncludeProgram($G15,cavItinIndex(L$3)))","v":""},{"$f":"IF($G15=0,\"\",cavIncludeProgram($G15,cavItinIndex(M$3)))","v":""},{"$f":"IF($G15=0,\"\",cavIncludeProgram($G15,cavItinIndex(N$3)))","v":"X"},{"$f":"IF($G15=0,\"\",cavIncludeProgram($G15,cavItinIndex(O$3)))","v":""},{"$f":"IF($G15=0,\"\",cavIncludeProgram($G15,cavItinIndex(P$3)))","v":""}]
["7B-S","Challenging",50,7123,null,null,"Demonstration Forest",115,0,8,{"$f":"IF($G16=0,\"\",cavIncludeProgram($G16,cavItinIndex(K$3)))","v":""},{"$f":"IF($G16=0,\"\",cavIncludeProgram($G16,cavItinIndex(L$3)))","v":""},{"$f":"IF($G16=0,\"\",cavIncludeProgram($G16,cavItinIndex(M$3)))","v":""},{"$f":"IF($G16=0,\"\",cavIncludeProgram($G16,cavItinIndex(N$3)))","v":""},{"$f":"IF($G16=0,\"\",cavIncludeProgram($G16,cavItinIndex(O$3)))","v":""},{"$f":"IF($G16=0,\"\",cavIncludeProgram($G16,cavItinIndex(P$3)))","v":""}]
["1A-S","Challenging",43,7082.5,{"$f":"meanMedian & \" Score Selected\"","v":"Total Score Selected"},null,"Homesteading",109,1,13,{"$f":"IF($G17=0,\"\",cavIncludeProgram($G17,cavItinIndex(K$3)))","v":""},{"$f":"IF($G17=0,\"\",cavIncludeProgram($G17,cavItinIndex(L$3)))","v":""},{"$f":"IF($G17=0,\"\",cavIncludeProgram($G17,cavItinIndex(M$3)))","v":""},{"$f":"IF($G17=0,\"\",cavIncludeProgram($G17,cavItinIndex(N$3)))","v":""},{"$f":"IF($G17=0,\"\",cavIncludeProgram($G17,cavItinIndex(O$3)))","v":"X"},{"$f":"IF($G17=0,\"\",cavIncludeProgram($G17,cavItinIndex(P$3)))","v":""}]
["1B-S","Challenging",43,6948,null,null,"Western Lore/Branding",108,6,29,{"$f":"IF($G18=0,\"\",cavIncludeProgram($G18,cavItinIndex(K$3)))","v":"X"},{"$f":"IF($G18=0,\"\",cavIncludeProgram($G18,cavItinIndex(L$3)))","v":"X"},{"$f":"IF($G18=0,\"\",cavIncludeProgram($G18,cavItinIndex(M$3)))","v":"X"},{"$f":"IF($G18=0,\"\",cavIncludeProgram($G18,cavItinIndex(N$3)))","v":"X"},{"$f":"IF($G18=0,\"\",cavIncludeProgram($G18,cavItinIndex(O$3)))","v":"X"},{"$f":"IF($G18=0,\"\",cavIncludeProgram($G18,cavItinIndex(P$3)))","v":"X"}]
["2A-S","Challenging",40,6896,null,null,"New Mexico Homestead",107,1,19,{"$f":"IF($G19=0,\"\",cavIncludeProgram($G19,cavItinIndex(K$3)))","v":""},{"$f":"IF($G19=0,\"\",cavIncludeProgram($G19,cavItinIndex(L$3)))","v":""},{"$f":"IF($G19=0,\"\",cavIncludeProgram($G19,cavItinIndex(M$3)))","v":""},{"$f":"IF($G19=0,\"\",cavIncludeProgram($G19,cavItinIndex(N$3)))","v":"X"},{"$f":"IF($G19=0,\"\",cavIncludeProgram($G19,cavItinIndex(O$3)))","v":""},{"$f":"IF($G19=0,\"\",cavIncludeProgram($G19,cavItinIndex(P$3)))","v":""}]
["3B-S","Challenging",36,5883.5,null,null,"Blacksmithing",106,4,3,{"$f":"IF($G20=0,\"\",cavIncludeProgram($G20,cavItinIndex(K$3)))","v":""},{"$f":"IF($G20=0,\"\",cavIncludeProgram($G20,cavItinIndex(L$3)))","v":"X"},{"$f":"IF($G20=0,\"\",cavIncludeProgram($G20,cavItinIndex(M$3)))","v":"X"},{"$f":"IF($G20=0,\"\",cavIncludeProgram($G20,cavItinIndex(N$3)))","v":"X"},{"$f":"IF($G20=0,\"\",cavIncludeProgram($G20,cavItinIndex(O$3)))","v":""},{"$f":"IF($G20=0,\"\",cavIncludeProgram($G20,cavItinIndex(P$3)))","v":"X"}]
["7A-S","Challenging",36,5723,null,null,"Gold Mining & Panning",106,5,12,{"$f":"IF($G21=0,\"\",cavIncludeProgram($G21,cavItinIndex(K$3)))","v":"X"},{"$f":"IF($G21=0,\"\",cavIncludeProgram($G21,cavItinIndex(L$3)))","v":"X"},{"$f":"IF($G21=0,\"\",cavIncludeProgram($G21,cavItinIndex(M$3)))","v":"X"},{"$f":"IF($G21=0,\"\",cavIncludeProgram($G21,cavItinIndex(N$3)))","v":""},{"$f":"IF($G21=0,\"\",cavIncludeProgram($G21,cavItinIndex(O$3)))","v":"X"},{"$f":"IF($G21=0,\"\",cavIncludeProgram($G21,cavItinIndex(P$3)))","v":"X"}]
["3A-S","Challenging",32,5473.5,null,null,"Tie Making & Crosscut Saws",106,null,26]
[null,null,null,null,null,null,"Lodge/Cabin Tours",103,null,14]
["PREFERENCES:",null,null,null,null,null,"Fly Tying",103,{"$f":"COUNTIF(K24:P24,\"X\")","v":2},10,{"$f":"IF($G24=0,\"\",cavIncludeProgram($G24,cavItinIndex(K$3)))","v":"X"},{"$f":"IF($G24=0,\"\",cavIncludeProgram($G24,cavItinIndex(L$3)))","v":""},{"$f":"IF($G24=0,\"\",cavIncludeProgram($G24,cavItinIndex(M$3)))","v":""},{"$f":"IF($G24=0,\"\",cavIncludeProgram($G24,cavItinIndex(N$3)))","v":""},{"$f":"IF($G24=0,\"\",cavIncludeProgram($G24,cavItinIndex(O$3)))","v":"X"},{"$f":"IF($G24=0,\"\",cavIncludeProgram($G24,cavItinIndex(P$3)))","v":""}]
["Area Important?",{"$f":"UPPER(areaImportant)","v":"N"},null,null,null,null,"Rock Climbing & Rappelling",103,3,23,{"$f":"IF($G25=0,\"\",cavIncludeProgram($G25,cavItinIndex(K$3)))","v":"X"},{"$f":"IF($G25=0,\"\",cavIncludeProgram($G25,cavItinIndex(L$3)))","v":""},{"$f":"IF($G25=0,\"\",cavIncludeProgram($G25,cavItinIndex(M$3)))","v":""},{"$f":"IF($G25=0,\"\",cavIncludeProgram($G25,cavItinIndex(N$3)))","v":"X"},{"$f":"IF($G25=0,\"\",cavIncludeProgram($G25,cavItinIndex(O$3)))","v":"X"},{"$f":"IF($G25=0,\"\",cavIncludeProgram($G25,cavItinIndex(P$3)))","v":""}]
["      South:",{"$f":"IF(UPPER(areaImportant)=\"Y\",Preferences!B7,\"\")","v":""},null,null,null,null,"Spar Pole Climbing",103,6,25,{"$f":"IF($G26=0,\"\",cavIncludeProgram($G26,cavItinIndex(K$3)))","v":"X"},{"$f":"IF($G26=0,\"\",cavIncludeProgram($G26,cavItinIndex(L$3)))","v":"X"},{"$f":"IF($G26=0,\"\",cavIncludeProgram($G26,cavItinIndex(M$3)))","v":"X"},{"$f":"IF($G26=0,\"\",cavIncludeProgram($G26,cavItinIndex(N$3)))","v":"X"},{"$f":"IF($G26=0,\"\",cavIncludeProgram($G26,cavItinIndex(O$3)))","v":"X"},{"$f":"IF($G26=0,\"\",cavIncludeProgram($G26,cavItinIndex(P$3)))","v":"X"}]
["      North:",{"$f":"IF(UPPER(areaImportant)=\"Y\",Preferences!B8,\"\")","v":""},null,null,null,null,"Fur Trapper Rendezvous",84,2,11,{"$f":"IF($G27=0,\"\",cavIncludeProgram($G27,cavItinIndex(K$3)))","v":""},{"$f":"IF($G27=0,\"\",cavIncludeProgram($G27,cavItinIndex(L$3)))","v":"X"},{"$f":"IF($G27=0,\"\",cavIncludeProgram($G27,cavItinIndex(M$3)))","v":""},{"$f":"IF($G27=0,\"\",cavIncludeProgram($G27,cavItinIndex(N$3)))","v":""},{"$f":"IF($G27=0,\"\",cavIncludeProgram($G27,cavItinIndex(O$3)))","v":""},{"$f":"IF($G27=0,\"\",cavIncludeProgram($G27,cavItinIndex(P$3)))","v":"X"}]
["Capability:",{"$f":"skillLevel","v":5},null,null,null,null,"Fishing",83,2,9,{"$f":"IF($G28=0,\"\",cavIncludeProgram($G28,cavItinIndex(K$3)))","v":"X"},{"$f":"IF($G28=0,\"\",cavIncludeProgram($G28,cavItinIndex(L$3)))","v":""},{"$f":"IF($G28=0,\"\",cavIncludeProgram($G28,cavItinIndex(M$3)))","v":""},{"$f":"IF($G28=0,\"\",cavIncludeProgram($G28,cavItinIndex(N$3)))","v":""},{"$f":"IF($G28=0,\"\",cavIncludeProgram($G28,cavItinIndex(O$3)))","v":"X"},{"$f":"IF($G28=0,\"\",cavIncludeProgram($G28,cavItinIndex(P$3)))","v":""}]
["Programs?",{"$f":"UPPER(programsImportant)","v":"Y"},null,null,null,null,"Shotgun Shooting/Reloading - 12 Gauge",77,0,24,{"$f":"IF($G29=0,\"\",cavIncludeProgram($G29,cavItinIndex(K$3)))","v":""},{"$f":"IF($G29=0,\"\",cavIncludeProgram($G29,cavItinIndex(L$3)))","v":""},{"$f":"IF($G29=0,\"\",cavIncludeProgram($G29,cavItinIndex(M$3)))","v":""},{"$f":"IF($G29=0,\"\",cavIncludeProgram($G29,cavItinIndex(N$3)))","v":""},{"$f":"IF($G29=0,\"\",cavIncludeProgram($G29,cavItinIndex(O$3)))","v":""},{"$f":"IF($G29=0,\"\",cavIncludeProgram($G29,cavItinIndex(P$3)))","v":""}]
[null,null,null,null,null,null,"Mountaineering",77,1,17,{"$f":"IF($G30=0,\"\",cavIncludeProgram($G30,cavItinIndex(K$3)))","v":"X"},{"$f":"IF($G30=0,\"\",cavIncludeProgram($G30,cavItinIndex(L$3)))","v":""},{"$f":"IF($G30=0,\"\",cavIncludeProgram($G30,cavItinIndex(M$3)))","v":""},{"$f":"IF($G30=0,\"\",cavIncludeProgram($G30,cavItinIndex(N$3)))","v":""},{"$f":"IF($G30=0,\"\",cavIncludeProgram($G30,cavItinIndex(O$3)))","v":""},{"$f":"IF($G30=0,\"\",cavIncludeProgram($G30,cavItinIndex(P$3)))","v":""}]
[null,null,null,null,null,null,"Low Impact Camping",77,1,15,{"$f":"IF($G31=0,\"\",cavIncludeProgram($G31,cavItinIndex(K$3)))","v":"X"},{"$f":"IF($G31=0,\"\",cavIncludeProgram($G31,cavItinIndex(L$3)))","v":""},{"$f":"IF($G31=0,\"\",cavIncludeProgram($G31,cavItinIndex(M$3)))","v":""},{"$f":"IF($G31=0,\"\",cavIncludeProgram($G31,cavItinIndex(N$3)))","v":""},{"$f":"IF($G31=0,\"\",cavIncludeProgram($G31,cavItinIndex(O$3)))","v":""},{"$f":"IF($G31=0,\"\",cavIncludeProgram($G31,cavItinIndex(P$3)))","v":""}]
[null,null,null,null,null,null,"Petroglyph Tour",54,0,20,{"$f":"IF($G32=0,\"\",cavIncludeProgram($G32,cavItinIndex(K$3)))","v":""},{"$f":"IF($G32=0,\"\",cavIncludeProgram($G32,cavItinIndex(L$3)))","v":""},{"$f":"IF($G32=0,\"\",cavIncludeProgram($G32,cavItinIndex(M$3)))","v":""},{"$f":"IF($G32=0,\"\",cavIncludeProgram($G32,cavItinIndex(N$3)))","v":""},{"$f":"IF($G32=0,\"\",cavIncludeProgram($G32,cavItinIndex(O$3)))","v":""},{"$f":"IF($G32=0,\"\",cavIncludeProgram($G32,cavItinIndex(P$3)))","v":""}]
[null,null,null,null,null,null,"# Programs in Top 6 Itineraries:",null,null,null,{"$f":"COUNTIF(K4:K32,\"X\")","v":11},9,7,9,9,9]
[null,null,null,null,null,null,null,{"$f":"MIN(H4:H32)","v":54},"Min"]
[null,null,null,null,null,null,null,{"$f":"MAX(H4:H32)","v":280},"Max"]
[]
[]
[]
[null,null,null,{"$f":"MIN(rankedScore)","v":5473.5}]
[null,null,null,{"$f":"MAX(rankedScore)","v":8835.5}]

{"sheet":"Itinerary Details","index":6,"n_rows":25,"n_cols":35,"rows_kept":25,"cut":false,"hidden":false,"merged":[[23,11,23,13],[22,12,22,13],[22,4,22,9],[22,15,22,17],[4,10,4,11],[4,14,4,16],[5,10,5,11],[5,14,5,16],[11,1,11,18],[12,1,12,18],[7,4,7,5],[8,4,8,5],[13,10,13,13],[7,10,7,14],[14,12,14,13],[21,12,21,13],[15,15,15,17],[21,15,21,17],[19,12,19,13],[21,1,21,2],[21,4,21,9],[17,15,17,17],[18,15,18,17],[20,15,20,17],[19,15,19,17],[19,4,19,9],[16,15,16,17],[14,15,14,17],[0,0,0,18],[15,4,15,9],[16,4,16,9],[5,0,5,1],[6,0,6,1],[7,0,7,1],[8,0,8,1],[9,0,9,1],[4,4,4,5],[5,4,5,5],[14,4,14,8],[1,3,1,18],[6,4,6,5],[2,3,2,18],[15,1,15,2],[22,1,22,2],[15,12,15,13],[17,1,17,2],[17,4,17,9],[17,12,17,13],[18,1,18,2],[18,4,18,9],[18,12,18,13],[20,1,20,2],[20,4,20,9],[20,12,20,13],[19,1,19,2],[16,1,16,2],[16,12,16,13]]}
["Itinerary Information"]
["Itinerary Number:",null,"1A-N"]
["Expedition Number:",null,"625-CV"]
[null,null," "]
["Classification:",null,{"$f":"VLOOKUP(INDEX(classification,MATCH(itineraryNumber,itineraries)),difficultyTable,2)","v":"Challenging"},null,"Staffed Camps:",null,{"$f":"INDEX(nCamps,MATCH(itineraryNumber,itineraries),1)","v":6},null,null,"Area(s):",{"$f":"getCountry(MATCH(itineraryNumber,itineraries))","v":"North"},null,null,"Starting:",{"$f":"AB24","v":"Ponil Gate"}]
["Distance:",null,{"$f":"INDEX(distance,MATCH(itineraryNumber,itineraries))","v":38},null,"Trail Camps:",null,{"$f":"INDEX(nCamps,MATCH(itineraryNumber,itineraries),2)","v":0},null,null,"Map(s):",{"$f":"getMaps(MATCH(itineraryNumber,itineraries))","v":"North"},null,null,"Ending:",{"$f":"AC24","v":"Ponil Gate"}]
["Initial/Max Days Food:",null,{"$f":"getFoodDays(MATCH(itineraryNumber,itineraries))","v":"4/4"},null,"Layovers:",null,{"$f":"INDEX(nCamps,MATCH(itineraryNumber,itineraries),3)","v":1}]
["Min/Max Altitude:",null,{"$f":"getAltitude(\"Min\",MATCH(itineraryNumber,itineraries)) & \"/\" & getAltitude(\"Max\",MATCH(itineraryNumber,itineraries))","v":"7,150/9,851"},null,"Dry Camps",null,{"$f":"INDEX(nCamps,MATCH(itineraryNumber,itineraries),5)","v":0},null,null,"Peaks:",{"$f":"getPeakS(MATCH(itineraryNumber,itineraries))","v":"Baldy Mountain"}]
["Total Altitude Change:",null,{"$f":"getAltitude(\"Chg\",MATCH(itineraryNumber,itineraries))","v":"2,701"},null,"Showers",null,{"$f":"INDEX(nCamps,MATCH(itineraryNumber,itineraries),6)","v":3}]
["Daily Altitude Change:",null,{"$f":"getAltitude(\"Avg\",MATCH(itineraryNumber,itineraries))","v":"760"}]
[]
["Description:",{"$f":"INDEX(descriptions,MATCH(itineraryNumber,itineraries))","v":"On the morning of day 3, your crew will leave Ponil and ride 5.6 miles to Dan Beard. This is a medium long ride up Horse Canyon and along Ridge Trail. Dan Beard borders the Valle Vidal Unit of the Carson National Forest and offers challenge course a Leave No Trace camping. Day 4, you will ride 7.4 miles from Dan Beard to Pueblano through the Elliot Barker Wildlife area. This ride traverses Wilson Mesa, a beautiful and removed area bordering Philmont. Once at Pueblano there is spar pole climbing, lumberjack skills, and a celebrated evening campfire. Day 5 takes you 5.4 miles from Pueblano to Baldy Town through more wooded areas. At Baldy Town, the crew will get commissary items for the second half of the trek, learn about mining history in the Sangre De Cristos, and will have a layover day with the option to summit Baldy Mountain. Day 7 takes you 7.7 miles from Baldy Town to Head of Dean, with the option to pass through Miranda and stop for Fur Trapper rendezvous. You can also participate in the Challenge Course at Head of Dean. On Day 8, the trek finishes with a ride from Head of Dean back to Ponil in time to participate in the afternoon Gymkhana."}]
["Programs:",{"$f":"getPrograms(MATCH(itineraryNumber,itineraries))","v":"Baldy Mountain, Blacksmithing, Campfire (evening), Cantina, Challenge Events, Fur Trapper Rendezvous, Gold Mining & Panning, Spar Pole Climbing, Tie Making & Crosscut Saws, Western Lore/Branding"}]
[null,null,null,null,null,null,null,null,null,null,"UTM Coordinates"]
[null,"Date:",null,"Day","Campsite",null,null,null,null,null,"Elevation","Easting","Northing",null,"Food Pickup",null,null,null,null,null,null,null,null,"Trail Day #","Elevation","Change","Date","Day","CAMP","Type","Dry","Showers","Commissary","Trading Post","Map"]
[null,{"$f":"AB16 & \" (\" & TEXT(AA16,\"m/d/yyyy\") & \")\"","v":"Sunday (6/25/2023)"},null,1,"Camping HQ",null,null,null,null,null,{"$f":"TEXT(INDEX(campLocation,MATCH(AC16,camps,0),5),\"##,##0\")","v":"6,696"},{"$f":"INDEX(campInfo,MATCH(AC16,camps),3)","v":503848},{"$f":"INDEX(campInfo,MATCH(AC16,camps),4)","v":4034364},null,null,null,null,null,null,null,null,null,null,null,{"$f":"INT(K16)","v":6696},0,{"$f":"expeditionStartDate(itinExpeditionNo)","v":"2023-06-25"},{"$f":"INDEX({\"Sunday\",\"Monday\",\"Tuesday\",\"Wednesday\",\"Thursday\",\"Friday\",\"Saturday\"},WEEKDAY(AA16))","v":"Sunday"},"Camping HQ",null,{"$f":"INDEX(campInfo,MATCH($AC16,camps),10)","v":""},{"$f":"INDEX(campInfo,MATCH($AC16,camps),11)","v":""},{"$f":"INDEX(campInfo,MATCH($AC16,camps),6)","v":""},{"$f":"INDEX(campInfo,MATCH($AC16,camps),7)","v":""},{"$f":"VLOOKUP($AC16,campInfo,12)","v":"South"}]
[null,{"$f":"AB17 & \" (\" & TEXT(AA17,\"m/d/yyyy\") & \")\"","v":"Monday (6/26/2023)"},null,{"$f":"D16+1","v":2},{"$f":"getCampWithInfo(AC17,AD17,AE17,AF17,AG17,AH17)","v":"PONIL (Showers, Commissary, Trading Post)"},null,null,null,null,null,"7,150",496696.54700000002,4053001.2755,null,{"$f":"INDEX(foodPickups,MATCH(itineraryNumber,itineraries,0),D17-1)","v":"Ponil"},null,null,null,null,null,null,null,null,1,7150,{"$f":"Y17-Y16","v":454},{"$f":"AA16+1","v":"2023-06-26"},{"$f":"INDEX({\"Sunday\",\"Monday\",\"Tuesday\",\"Wednesday\",\"Thursday\",\"Friday\",\"Saturday\"},WEEKDAY(AA17))","v":"Monday"},"Ponil",{"$f":"IF(VLOOKUP($AC17,campInfo,8)=\"Y\",\"Staff\",\"Trail\")","v":"Staff"},{"$f":"VLOOKUP($AC17,campInfo,10)","v":""},{"$f":"VLOOKUP($AC17,campInfo,11)","v":"Y"},{"$f":"VLOOKUP($AC17,campInfo,6)","v":"Y"},{"$f":"VLOOKUP($AC17,campInfo,7)","v":"Y"},"North"]
[null,{"$f":"AB18 & \" (\" & TEXT(AA18,\"m/d/yyyy\") & \")\"","v":"Tuesday (6/27/2023)"},null,{"$f":"D17+1","v":3},{"$f":"getCampWithInfo(AC18,AD18,AE18,AF18,AG18,AH18)","v":"DAN BEARD"},null,null,null,null,null,{"$f":"TEXT(INDEX(campLocation,MATCH(AC18,camps,0),5),\"##,##0\")","v":"7,896"},492056,4059215,null,{"$f":"INDEX(foodPickups,MATCH(itineraryNumber,itineraries,0),D18-1)","v":0},null,null,null,null,null,null,null,null,{"$f":"X17+1","v":2},7896,{"$f":"Y18-Y17","v":746},{"$f":"AA17+1","v":"2023-06-27"},{"$f":"INDEX({\"Sunday\",\"Monday\",\"Tuesday\",\"Wednesday\",\"Thursday\",\"Friday\",\"Saturday\"},WEEKDAY(AA18))","v":"Tuesday"},"Dan Beard","Staff","","","","","North"]
[null,{"$f":"AB19 & \" (\" & TEXT(AA19,\"m/d/yyyy\") & \")\"","v":"Wednesday (6/28/2023)"},null,4,{"$f":"getCampWithInfo(AC19,AD19,AE19,AF19,AG19,AH19)","v":"PUEBLANO"},null,null,null,null,null,{"$f":"TEXT(INDEX(campLocation,MATCH(AC19,camps,0),5),\"##,##0\")","v":"8,069"},489738,4053274,null,{"$f":"INDEX(foodPickups,MATCH(itineraryNumber,itineraries,0),D19-1)","v":0},null,null,null,null,null,null,null,null,{"$f":"X18+1","v":3},8069,173,"2023-06-28",{"$f":"INDEX({\"Sunday\",\"Monday\",\"Tuesday\",\"Wednesday\",\"Thursday\",\"Friday\",\"Saturday\"},WEEKDAY(AA19))","v":"Wednesday"},"Pueblano","Staff","","","","","North"]
[null,{"$f":"AB20 & \" (\" & TEXT(AA20,\"m/d/yyyy\") & \")\"","v":"Thursday (6/29/2023)"},null,5,{"$f":"getCampWithInfo(AC20,AD20,AE20,AF20,AG20,AH20)","v":"BALDY TOWN (Showers, Commissary, Trading Post)"},null,null,null,null,null,{"$f":"TEXT(INDEX(campLocation,MATCH(AC20,camps,0),5),\"##,##0\")","v":"9,851"},482894,4053456,null,{"$f":"INDEX(foodPickups,MATCH(itineraryNumber,itineraries,0),D20-1)","v":0},null,null,null,null,null,null,null,null,4,9851,1782,"2023-06-29",{"$f":"INDEX({\"Sunday\",\"Monday\",\"Tuesday\",\"Wednesday\",\"Thursday\",\"Friday\",\"Saturday\"},WEEKDAY(AA20))","v":"Thursday"},"Baldy Town","Staff","","Y","Y","Y","North"]
[null,{"$f":"AB21 & \" (\" & TEXT(AA21,\"m/d/yyyy\") & \")\"","v":"Friday (6/30/2023)"},null,6,{"$f":"getCampWithInfo(AC21,AD21,AE21,AF21,AG21,AH21)","v":"BALDY TOWN (Showers, Commissary, Trading Post)"},null,null,null,null,null,{"$f":"TEXT(INDEX(campLocation,MATCH(AC21,camps,0),5),\"##,##0\")","v":"9,851"},482894,4053456,null,{"$f":"INDEX(foodPickups,MATCH(itineraryNumber,itineraries,0),D21-1)","v":"Baldy Town"},null,null,null,null,null,null,null,null,5,9851,0,"2023-06-30",{"$f":"INDEX({\"Sunday\",\"Monday\",\"Tuesday\",\"Wednesday\",\"Thursday\",\"Friday\",\"Saturday\"},WEEKDAY(AA21))","v":"Friday"},"Baldy Town","Staff","","Y","Y","Y","North"]
[null,{"$f":"AB22 & \" (\" & TEXT(AA22,\"m/d/yyyy\") & \")\"","v":"Saturday (7/1/2023)"},null,7,{"$f":"getCampWithInfo(AC22,AD22,AE22,AF22,AG22,AH22)","v":"HEAD OF DEAN"},null,null,null,null,null,{"$f":"TEXT(INDEX(campLocation,MATCH(AC22,camps,0),5),\"##,##0\")","v":"8,754"},489268,4051641,null,{"$f":"INDEX(foodPickups,MATCH(itineraryNumber,itineraries,0),D22-1)","v":0},null,null,null,null,null,null,null,null,6,8754,-1097,"2023-07-01",{"$f":"INDEX({\"Sunday\",\"Monday\",\"Tuesday\",\"Wednesday\",\"Thursday\",\"Friday\",\"Saturday\"},WEEKDAY(AA22))","v":"Saturday"},"Head of Dean","Staff","","","","","North"]
[null,"Sunday (7/2/2023)",null,8,"Camping HQ",null,null,null,null,null,{"$f":"TEXT(INDEX(campLocation,MATCH(AC23,camps,0),5),\"##,##0\")","v":"6,696"},{"$f":"INDEX(campInfo,MATCH(AC23,camps),3)","v":503848},{"$f":"INDEX(campInfo,MATCH(AC23,camps),4)","v":4034364},null,{"$f":"INDEX(foodPickups,MATCH(itineraryNumber,itineraries),D23-1)","v":0},null,null,null,null,null,null,null,null,7,6696,-2058,"2023-07-02",{"$f":"INDEX({\"Sunday\",\"Monday\",\"Tuesday\",\"Wednesday\",\"Thursday\",\"Friday\",\"Saturday\"},WEEKDAY(AA23))","v":"Sunday"},"Camping HQ",null,null,null,null,null,"South"]
[null,null,null,null,null,null,null,null,null,null,null,"NAD 3/Zone 13\n* Estimated coordinates",null,null,null,null,null,null,null,null,null,null,null,null,null,null,null,{"$f":"getstartendinfo(\"S\",itineraryNumber)","v":"Ponil Gate"},{"$f":"getstartendinfo(\"E\",itineraryNumber)","v":"Ponil Gate"}]
[null,null,null,null,null,null,null,null,null,null,null,null,null,null,null,null,null,null,null,null,null,null,null,null,null,null,null,"BASE"]

{"sheet":"Itinerary Xref Chart","index":7,"n_rows":38,"n_cols":23,"rows_kept":38,"cut":false,"hidden":false,"merged":[[0,1,4,1],[34,0,34,1]]}
["ITINERARY NUMBERS:","# times \nappears in # of Itineraries",{"$f":"itineraryCamps!A4","v":"1A-N"},{"$f":"itineraryCamps!A5","v":"1B-N"},{"$f":"itineraryCamps!A6","v":"2A-N"},{"$f":"itineraryCamps!A7","v":"2B-N"},{"$f":"itineraryCamps!A8","v":"3A-N"},{"$f":"itineraryCamps!A9","v":"3B-N"},{"$f":"itineraryCamps!A10","v":"4A-N"},{"$f":"itineraryCamps!A11","v":"1A-S"},{"$f":"itineraryCamps!A12","v":"1B-S"},{"$f":"itineraryCamps!A13","v":"2A-S"},{"$f":"itineraryCamps!A14","v":"2B-S"},{"$f":"itineraryCamps!A15","v":"3A-S"},{"$f":"itineraryCamps!A16","v":"3B-S"},{"$f":"itineraryCamps!A17","v":"4A-S"},{"$f":"itineraryCamps!A18","v":"5A-S"},{"$f":"itineraryCamps!A19","v":"6A-S"},{"$f":"itineraryCamps!A20","v":"6B-S"},{"$f":"itineraryCamps!A21","v":"7A-S"},{"$f":"itineraryCamps!A22","v":"7B-S"},null,"Check"]
["Hiking Difficulty",null,{"$f":"INDEX(classification,cavItinIndex(C$1))","v":"C"},{"$f":"INDEX(classification,cavItinIndex(D$1))","v":"C"},{"$f":"INDEX(classification,cavItinIndex(E$1))","v":"C"},{"$f":"INDEX(classification,cavItinIndex(F$1))","v":"C"},{"$f":"INDEX(classification,cavItinIndex(G$1))","v":"C"},{"$f":"INDEX(classification,cavItinIndex(H$1))","v":"C"},{"$f":"INDEX(classification,cavItinIndex(I$1))","v":"C"},{"$f":"INDEX(classification,cavItinIndex(J$1))","v":"C"},{"$f":"INDEX(classification,cavItinIndex(K$1))","v":"C"},{"$f":"INDEX(classification,cavItinIndex(L$1))","v":"C"},{"$f":"INDEX(classification,cavItinIndex(M$1))","v":"C"},{"$f":"INDEX(classification,cavItinIndex(N$1))","v":"C"},{"$f":"INDEX(classification,cavItinIndex(O$1))","v":"C"},{"$f":"INDEX(classification,cavItinIndex(P$1))","v":"C"},{"$f":"INDEX(classification,cavItinIndex(Q$1))","v":"C"},{"$f":"INDEX(classification,cavItinIndex(R$1))","v":"C"},{"$f":"INDEX(classification,cavItinIndex(S$1))","v":"C"},{"$f":"INDEX(classification,cavItinIndex(T$1))","v":"C"},{"$f":"INDEX(classification,cavItinIndex(U$1))","v":"C"}]
["Distance (Approximately)",null,{"$f":"INDEX(distance,cavItinIndex(C$1))","v":38},{"$f":"INDEX(distance,cavItinIndex(D$1))","v":44},{"$f":"INDEX(distance,cavItinIndex(E$1))","v":36},{"$f":"INDEX(distance,cavItinIndex(F$1))","v":36},{"$f":"INDEX(distance,cavItinIndex(G$1))","v":41},{"$f":"INDEX(distance,cavItinIndex(H$1))","v":39},{"$f":"INDEX(distance,cavItinIndex(I$1))","v":49},{"$f":"INDEX(distance,cavItinIndex(J$1))","v":43},{"$f":"INDEX(distance,cavItinIndex(K$1))","v":43},{"$f":"INDEX(distance,cavItinIndex(L$1))","v":40},{"$f":"INDEX(distance,cavItinIndex(M$1))","v":46},{"$f":"INDEX(distance,cavItinIndex(N$1))","v":32},{"$f":"INDEX(distance,cavItinIndex(O$1))","v":36},{"$f":"INDEX(distance,cavItinIndex(P$1))","v":52},{"$f":"INDEX(distance,cavItinIndex(Q$1))","v":56},{"$f":"INDEX(distance,cavItinIndex(R$1))","v":46},{"$f":"INDEX(distance,cavItinIndex(S$1))","v":48},{"$f":"INDEX(distance,cavItinIndex(T$1))","v":36},{"$f":"INDEX(distance,cavItinIndex(U$1))","v":50},null,{"$f":"SUM(C3:U3)","v":811}]
["Trail Camps",null,{"$f":"countcamps(itineraryTrail,cavItinIndex(C$1))","v":0},{"$f":"countcamps(itineraryTrail,cavItinIndex(D$1))","v":0},{"$f":"countcamps(itineraryTrail,cavItinIndex(E$1))","v":0},{"$f":"countcamps(itineraryTrail,cavItinIndex(F$1))","v":0},{"$f":"countcamps(itineraryTrail,cavItinIndex(G$1))","v":0},{"$f":"countcamps(itineraryTrail,cavItinIndex(H$1))","v":0},{"$f":"countcamps(itineraryTrail,cavItinIndex(I$1))","v":0},{"$f":"countcamps(itineraryTrail,cavItinIndex(J$1))","v":1},{"$f":"countcamps(itineraryTrail,cavItinIndex(K$1))","v":1},{"$f":"countcamps(itineraryTrail,cavItinIndex(L$1))","v":0},{"$f":"countcamps(itineraryTrail,cavItinIndex(M$1))","v":0},{"$f":"countcamps(itineraryTrail,cavItinIndex(N$1))","v":0},{"$f":"countcamps(itineraryTrail,cavItinIndex(O$1))","v":0},{"$f":"countcamps(itineraryTrail,cavItinIndex(P$1))","v":0},{"$f":"countcamps(itineraryTrail,cavItinIndex(Q$1))","v":1},{"$f":"countcamps(itineraryTrail,cavItinIndex(R$1))","v":0},{"$f":"countcamps(itineraryTrail,cavItinIndex(S$1))","v":0},{"$f":"countcamps(itineraryTrail,cavItinIndex(T$1))","v":0},{"$f":"countcamps(itineraryTrail,cavItinIndex(U$1))","v":0},null,{"$f":"SUM(C4:U4)","v":3}]
["Dry Camps",null,{"$f":"countcamps(itineraryStaff,cavItinIndex(C$1))","v":6},{"$f":"countcamps(itineraryStaff,cavItinIndex(D$1))","v":6},{"$f":"countcamps(itineraryStaff,cavItinIndex(E$1))","v":6},{"$f":"countcamps(itineraryStaff,cavItinIndex(F$1))","v":6},{"$f":"countcamps(itineraryStaff,cavItinIndex(G$1))","v":6},{"$f":"countcamps(itineraryStaff,cavItinIndex(H$1))","v":6},{"$f":"countcamps(itineraryStaff,cavItinIndex(I$1))","v":6},{"$f":"countcamps(itineraryStaff,cavItinIndex(J$1))","v":5},{"$f":"countcamps(itineraryStaff,cavItinIndex(K$1))","v":5},{"$f":"countcamps(itineraryStaff,cavItinIndex(L$1))","v":6},{"$f":"countcamps(itineraryStaff,cavItinIndex(M$1))","v":6},{"$f":"countcamps(itineraryStaff,cavItinIndex(N$1))","v":6},{"$f":"countcamps(itineraryStaff,cavItinIndex(O$1))","v":6},{"$f":"countcamps(itineraryStaff,cavItinIndex(P$1))","v":6},{"$f":"countcamps(itineraryStaff,cavItinIndex(Q$1))","v":5},{"$f":"countcamps(itineraryStaff,cavItinIndex(R$1))","v":6},{"$f":"countcamps(itineraryStaff,cavItinIndex(S$1))","v":6},{"$f":"countcamps(itineraryStaff,cavItinIndex(T$1))","v":6},{"$f":"countcamps(itineraryStaff,cavItinIndex(U$1))","v":6},null,{"$f":"SUM(C5:U5)","v":111}]
[{"$f":"INDEX(program_table,ROW()-5)","v":"Archaeology"},{"$f":"COUNTIF(C6:U6,\"X\")","v":1},{"$f":"getProgramXref($A6,cavItinIndex(C$1))","v":""},{"$f":"getProgramXref($A6,cavItinIndex(D$1))","v":""},{"$f":"getProgramXref($A6,cavItinIndex(E$1))","v":""},{"$f":"getProgramXref($A6,cavItinIndex(F$1))","v":""},{"$f":"getProgramXref($A6,cavItinIndex(G$1))","v":""},{"$f":"getProgramXref($A6,cavItinIndex(H$1))","v":""},{"$f":"getProgramXref($A6,cavItinIndex(I$1))","v":"x"},{"$f":"getProgramXref($A6,cavItinIndex(J$1))","v":""},{"$f":"getProgramXref($A6,cavItinIndex(K$1))","v":""},{"$f":"getProgramXref($A6,cavItinIndex(L$1))","v":""},{"$f":"getProgramXref($A6,cavItinIndex(M$1))","v":""},{"$f":"getProgramXref($A6,cavItinIndex(N$1))","v":""},{"$f":"getProgramXref($A6,cavItinIndex(O$1))","v":""},{"$f":"getProgramXref($A6,cavItinIndex(P$1))","v":""},{"$f":"getProgramXref($A6,cavItinIndex(Q$1))","v":""},{"$f":"getProgramXref($A6,cavItinIndex(R$1))","v":""},{"$f":"getProgramXref($A6,cavItinIndex(S$1))","v":""},{"$f":"getProgramXref($A6,cavItinIndex(T$1))","v":""},{"$f":"getProgramXref($A6,cavItinIndex(U$1))","v":""},null,{"$f":"COUNTIF(C6:U6,\"X\")","v":1}]
[{"$f":"INDEX(program_table,ROW()-5)","v":"Baldy Mountain"},{"$f":"COUNTIF(C7:U7,\"X\")","v":6},{"$f":"getProgramXref($A7,cavItinIndex(C$1))","v":"x"},{"$f":"getProgramXref($A7,cavItinIndex(D$1))","v":"x"},{"$f":"getProgramXref($A7,cavItinIndex(E$1))","v":"x"},{"$f":"getProgramXref($A7,cavItinIndex(F$1))","v":"x"},{"$f":"getProgramXref($A7,cavItinIndex(G$1))","v":"x"},{"$f":"getProgramXref($A7,cavItinIndex(H$1))","v":"x"},{"$f":"getProgramXref($A7,cavItinIndex(I$1))","v":""},{"$f":"getProgramXref($A7,cavItinIndex(J$1))","v":""},{"$f":"getProgramXref($A7,cavItinIndex(K$1))","v":""},{"$f":"getProgramXref($A7,cavItinIndex(L$1))","v":""},{"$f":"getProgramXref($A7,cavItinIndex(M$1))","v":""},{"$f":"getProgramXref($A7,cavItinIndex(N$1))","v":""},{"$f":"getProgramXref($A7,cavItinIndex(O$1))","v":""},{"$f":"getProgramXref($A7,cavItinIndex(P$1))","v":""},{"$f":"getProgramXref($A7,cavItinIndex(Q$1))","v":""},{"$f":"getProgramXref($A7,cavItinIndex(R$1))","v":""},{"$f":"getProgramXref($A7,cavItinIndex(S$1))","v":""},{"$f":"getProgramXref($A7,cavItinIndex(T$1))","v":""},{"$f":"getProgramXref($A7,cavItinIndex(U$1))","v":""},null,6]
[{"$f":"INDEX(program_table,ROW()-5)","v":"Blacksmithing"},10,{"$f":"getProgramXref($A8,cavItinIndex(C$1))","v":"x"},{"$f":"getProgramXref($A8,cavItinIndex(D$1))","v":"x"},{"$f":"getProgramXref($A8,cavItinIndex(E$1))","v":"x"},{"$f":"getProgramXref($A8,cavItinIndex(F$1))","v":"x"},{"$f":"getProgramXref($A8,cavItinIndex(G$1))","v":"x"},{"$f":"getProgramXref($A8,cavItinIndex(H$1))","v":"x"},{"$f":"getProgramXref($A8,cavItinIndex(I$1))","v":"x"},{"$f":"getProgramXref($A8,cavItinIndex(J$1))","v":""},{"$f":"getProgramXref($A8,cavItinIndex(K$1))","v":""},{"$f":"getProgramXref($A8,cavItinIndex(L$1))","v":""},{"$f":"getProgramXref($A8,cavItinIndex(M$1))","v":"x"},{"$f":"getProgramXref($A8,cavItinIndex(N$1))","v":""},{"$f":"getProgramXref($A8,cavItinIndex(O$1))","v":""},{"$f":"getProgramXref($A8,cavItinIndex(P$1))","v":""},{"$f":"getProgramXref($A8,cavItinIndex(Q$1))","v":""},{"$f":"getProgramXref($A8,cavItinIndex(R$1))","v":"x"},{"$f":"getProgramXref($A8,cavItinIndex(S$1))","v":"x"},{"$f":"getProgramXref($A8,cavItinIndex(T$1))","v":""},{"$f":"getProgramXref($A8,cavItinIndex(U$1))","v":""},null,10]
[{"$f":"INDEX(program_table,ROW()-5)","v":"Campfire (evening)"},19,{"$f":"getProgramXref($A9,cavItinIndex(C$1))","v":"x"},{"$f":"getProgramXref($A9,cavItinIndex(D$1))","v":"x"},{"$f":"getProgramXref($A9,cavItinIndex(E$1))","v":"x"},{"$f":"getProgramXref($A9,cavItinIndex(F$1))","v":"x"},{"$f":"getProgramXref($A9,cavItinIndex(G$1))","v":"x"},{"$f":"getProgramXref($A9,cavItinIndex(H$1))","v":"x"},{"$f":"getProgramXref($A9,cavItinIndex(I$1))","v":"x"},{"$f":"getProgramXref($A9,cavItinIndex(J$1))","v":"x"},{"$f":"getProgramXref($A9,cavItinIndex(K$1))","v":"x"},{"$f":"getProgramXref($A9,cavItinIndex(L$1))","v":"x"},{"$f":"getProgramXref($A9,cavItinIndex(M$1))","v":"x"},{"$f":"getProgramXref($A9,cavItinIndex(N$1))","v":"x"},{"$f":"getProgramXref($A9,cavItinIndex(O$1))","v":"x"},{"$f":"getProgramXref($A9,cavItinIndex(P$1))","v":"x"},{"$f":"getProgramXref($A9,cavItinIndex(Q$1))","v":"x"},{"$f":"getProgramXref($A9,cavItinIndex(R$1))","v":"x"},{"$f":"getProgramXref($A9,cavItinIndex(S$1))","v":"x"},{"$f":"getProgramXref($A9,cavItinIndex(T$1))","v":"x"},{"$f":"getProgramXref($A9,cavItinIndex(U$1))","v":"x"},null,19]
[{"$f":"INDEX(program_table,ROW()-5)","v":"Cantina"},10,{"$f":"getProgramXref($A10,cavItinIndex(C$1))","v":"x"},{"$f":"getProgramXref($A10,cavItinIndex(D$1))","v":"x"},{"$f":"getProgramXref($A10,cavItinIndex(E$1))","v":"x"},{"$f":"getProgramXref($A10,cavItinIndex(F$1))","v":"x"},{"$f":"getProgramXref($A10,cavItinIndex(G$1))","v":"x"},{"$f":"getProgramXref($A10,cavItinIndex(H$1))","v":"x"},{"$f":"getProgramXref($A10,cavItinIndex(I$1))","v":""},{"$f":"getProgramXref($A10,cavItinIndex(J$1))","v":"x"},{"$f":"getProgramXref($A10,cavItinIndex(K$1))","v":"x"},{"$f":"getProgramXref($A10,cavItinIndex(L$1))","v":"x"},{"$f":"getProgramXref($A10,cavItinIndex(M$1))","v":"x"},{"$f":"getProgramXref($A10,cavItinIndex(N$1))","v":""},{"$f":"getProgramXref($A10,cavItinIndex(O$1))","v":""},{"$f":"getProgramXref($A10,cavItinIndex(P$1))","v":""},{"$f":"getProgramXref($A10,cavItinIndex(Q$1))","v":""},{"$f":"getProgramXref($A10,cavItinIndex(R$1))","v":""},{"$f":"getProgramXref($A10,cavItinIndex(S$1))","v":""},{"$f":"getProgramXref($A10,cavItinIndex(T$1))","v":""},{"$f":"getProgramXref($A10,cavItinIndex(U$1))","v":""},null,10]
[{"$f":"INDEX(program_table,ROW()-5)","v":"Challenge Events"},7,{"$f":"getProgramXref($A11,cavItinIndex(C$1))","v":"x"},{"$f":"getProgramXref($A11,cavItinIndex(D$1))","v":"x"},{"$f":"getProgramXref($A11,cavItinIndex(E$1))","v":"x"},{"$f":"getProgramXref($A11,cavItinIndex(F$1))","v":"x"},{"$f":"getProgramXref($A11,cavItinIndex(G$1))","v":"x"},{"$f":"getProgramXref($A11,cavItinIndex(H$1))","v":"x"},{"$f":"getProgramXref($A11,cavItinIndex(I$1))","v":"x"},{"$f":"getProgramXref($A11,cavItinIndex(J$1))","v":""},{"$f":"getProgramXref($A11,cavItinIndex(K$1))","v":""},{"$f":"getProgramXref($A11,cavItinIndex(L$1))","v":""},{"$f":"getProgramXref($A11,cavItinIndex(M$1))","v":""},{"$f":"getProgramXref($A11,cavItinIndex(N$1))","v":""},{"$f":"getProgramXref($A11,cavItinIndex(O$1))","v":""},{"$f":"getProgramXref($A11,cavItinIndex(P$1))","v":""},{"$f":"getProgramXref($A11,cavItinIndex(Q$1))","v":""},{"$f":"getProgramXref($A11,cavItinIndex(R$1))","v":""},{"$f":"getProgramXref($A11,cavItinIndex(S$1))","v":""},{"$f":"getProgramXref($A11,cavItinIndex(T$1))","v":""},{"$f":"getProgramXref($A11,cavItinIndex(U$1))","v":""},null,7]
[{"$f":"INDEX(program_table,ROW()-5)","v":"Chuckwagon Dinner"},12,{"$f":"getProgramXref($A12,cavItinIndex(C$1))","v":""},{"$f":"getProgramXref($A12,cavItinIndex(D$1))","v":""},{"$f":"getProgramXref($A12,cavItinIndex(E$1))","v":""},{"$f":"getProgramXref($A12,cavItinIndex(F$1))","v":""},{"$f":"getProgramXref($A12,cavItinIndex(G$1))","v":""},{"$f":"getProgramXref($A12,cavItinIndex(H$1))","v":""},{"$f":"getProgramXref($A12,cavItinIndex(I$1))","v":""},{"$f":"getProgramXref($A12,cavItinIndex(J$1))","v":"x"},{"$f":"getProgramXref($A12,cavItinIndex(K$1))","v":"x"},{"$f":"getProgramXref($A12,cavItinIndex(L$1))","v":"x"},{"$f":"getProgramXref($A12,cavItinIndex(M$1))","v":"x"},{"$f":"getProgramXref($A12,cavItinIndex(N$1))","v":"x"},{"$f":"getProgramXref($A12,cavItinIndex(O$1))","v":"x"},{"$f":"getProgramXref($A12,cavItinIndex(P$1))","v":"x"},{"$f":"getProgramXref($A12,cavItinIndex(Q$1))","v":"x"},{"$f":"getProgramXref($A12,cavItinIndex(R$1))","v":"x"},{"$f":"getProgramXref($A12,cavItinIndex(S$1))","v":"x"},{"$f":"getProgramXref($A12,cavItinIndex(T$1))","v":"x"},{"$f":"getProgramXref($A12,cavItinIndex(U$1))","v":"x"},null,12]
[{"$f":"INDEX(program_table,ROW()-5)","v":"Demonstration Forest"},2,{"$f":"getProgramXref($A13,cavItinIndex(C$1))","v":""},{"$f":"getProgramXref($A13,cavItinIndex(D$1))","v":""},{"$f":"getProgramXref($A13,cavItinIndex(E$1))","v":""},{"$f":"getProgramXref($A13,cavItinIndex(F$1))","v":""},{"$f":"getProgramXref($A13,cavItinIndex(G$1))","v":""},{"$f":"getProgramXref($A13,cavItinIndex(H$1))","v":""},{"$f":"getProgramXref($A13,cavItinIndex(I$1))","v":""},{"$f":"getProgramXref($A13,cavItinIndex(J$1))","v":""},{"$f":"getProgramXref($A13,cavItinIndex(K$1))","v":""},{"$f":"getProgramXref($A13,cavItinIndex(L$1))","v":""},{"$f":"getProgramXref($A13,cavItinIndex(M$1))","v":""},{"$f":"getProgramXref($A13,cavItinIndex(N$1))","v":""},{"$f":"getProgramXref($A13,cavItinIndex(O$1))","v":""},{"$f":"getProgramXref($A13,cavItinIndex(P$1))","v":""},{"$f":"getProgramXref($A13,cavItinIndex(Q$1))","v":""},{"$f":"getProgramXref($A13,cavItinIndex(R$1))","v":""},{"$f":"getProgramXref($A13,cavItinIndex(S$1))","v":""},{"$f":"getProgramXref($A13,cavItinIndex(T$1))","v":"x"},{"$f":"getProgramXref($A13,cavItinIndex(U$1))","v":"x"},null,2]
[{"$f":"INDEX(program_table,ROW()-5)","v":"Fishing"},5,{"$f":"getProgramXref($A14,cavItinIndex(C$1))","v":""},{"$f":"getProgramXref($A14,cavItinIndex(D$1))","v":""},{"$f":"getProgramXref($A14,cavItinIndex(E$1))","v":""},{"$f":"getProgramXref($A14,cavItinIndex(F$1))","v":""},{"$f":"getProgramXref($A14,cavItinIndex(G$1))","v":""},{"$f":"getProgramXref($A14,cavItinIndex(H$1))","v":""},{"$f":"getProgramXref($A14,cavItinIndex(I$1))","v":""},{"$f":"getProgramXref($A14,cavItinIndex(J$1))","v":"x"},{"$f":"getProgramXref($A14,cavItinIndex(K$1))","v":""},{"$f":"getProgramXref($A14,cavItinIndex(L$1))","v":""},{"$f":"getProgramXref($A14,cavItinIndex(M$1))","v":""},{"$f":"getProgramXref($A14,cavItinIndex(N$1))","v":"x"},{"$f":"getProgramXref($A14,cavItinIndex(O$1))","v":"x"},{"$f":"getProgramXref($A14,cavItinIndex(P$1))","v":"x"},{"$f":"getProgramXref($A14,cavItinIndex(Q$1))","v":"x"},{"$f":"getProgramXref($A14,cavItinIndex(R$1))","v":""},{"$f":"getProgramXref($A14,cavItinIndex(S$1))","v":""},{"$f":"getProgramXref($A14,cavItinIndex(T$1))","v":""},{"$f":"getProgramXref($A14,cavItinIndex(U$1))","v":""},null,5]
[{"$f":"INDEX(program_table,ROW()-5)","v":"Fly Tying"},4,{"$f":"getProgramXref($A15,cavItinIndex(C$1))","v":""},{"$f":"getProgramXref($A15,cavItinIndex(D$1))","v":""},{"$f":"getProgramXref($A15,cavItinIndex(E$1))","v":""},{"$f":"getProgramXref($A15,cavItinIndex(F$1))","v":""},{"$f":"getProgramXref($A15,cavItinIndex(G$1))","v":""},{"$f":"getProgramXref($A15,cavItinIndex(H$1))","v":""},{"$f":"getProgramXref($A15,cavItinIndex(I$1))","v":""},{"$f":"getProgramXref($A15,cavItinIndex(J$1))","v":""},{"$f":"getProgramXref($A15,cavItinIndex(K$1))","v":""},{"$f":"getProgramXref($A15,cavItinIndex(L$1))","v":""},{"$f":"getProgramXref($A15,cavItinIndex(M$1))","v":""},{"$f":"getProgramXref($A15,cavItinIndex(N$1))","v":"x"},{"$f":"getProgramXref($A15,cavItinIndex(O$1))","v":"x"},{"$f":"getProgramXref($A15,cavItinIndex(P$1))","v":"x"},{"$f":"getProgramXref($A15,cavItinIndex(Q$1))","v":"x"},{"$f":"getProgramXref($A15,cavItinIndex(R$1))","v":""},{"$f":"getProgramXref($A15,cavItinIndex(S$1))","v":""},{"$f":"getProgramXref($A15,cavItinIndex(T$1))","v":""},{"$f":"getProgramXref($A15,cavItinIndex(U$1))","v":""},null,4]
[{"$f":"INDEX(program_table,ROW()-5)","v":"Fur Trapper Rendezvous"},5,{"$f":"getProgramXref($A16,cavItinIndex(C$1))","v":"x"},{"$f":"getProgramXref($A16,cavItinIndex(D$1))","v":""},{"$f":"getProgramXref($A16,cavItinIndex(E$1))","v":"x"},{"$f":"getProgramXref($A16,cavItinIndex(F$1))","v":"x"},{"$f":"getProgramXref($A16,cavItinIndex(G$1))","v":"x"},{"$f":"getProgramXref($A16,cavItinIndex(H$1))","v":"x"},{"$f":"getProgramXref($A16,cavItinIndex(I$1))","v":""},{"$f":"getProgramXref($A16,cavItinIndex(J$1))","v":""},{"$f":"getProgramXref($A16,cavItinIndex(K$1))","v":""},{"$f":"getProgramXref($A16,cavItinIndex(L$1))","v":""},{"$f":"getProgramXref($A16,cavItinIndex(M$1))","v":""},{"$f":"getProgramXref($A16,cavItinIndex(N$1))","v":""},{"$f":"getProgramXref($A16,cavItinIndex(O$1))","v":""},{"$f":"getProgramXref($A16,cavItinIndex(P$1))","v":""},{"$f":"getProgramXref($A16,cavItinIndex(Q$1))","v":""},{"$f":"getProgramXref($A16,cavItinIndex(R$1))","v":""},{"$f":"getProgramXref($A16,cavItinIndex(S$1))","v":""},{"$f":"getProgramXref($A16,cavItinIndex(T$1))","v":""},{"$f":"getProgramXref($A16,cavItinIndex(U$1))","v":""},null,5]
[{"$f":"INDEX(program_table,ROW()-5)","v":"Gold Mining & Panning"},8,{"$f":"getProgramXref($A17,cavItinIndex(C$1))","v":"x"},{"$f":"getProgramXref($A17,cavItinIndex(D$1))","v":"x"},{"$f":"getProgramXref($A17,cavItinIndex(E$1))","v":"x"},{"$f":"getProgramXref($A17,cavItinIndex(F$1))","v":"x"},{"$f":"getProgramXref($A17,cavItinIndex(G$1))","v":"x"},{"$f":"getProgramXref($A17,cavItinIndex(H$1))","v":"x"},{"$f":"getProgramXref($A17,cavItinIndex(I$1))","v":""},{"$f":"getProgramXref($A17,cavItinIndex(J$1))","v":""},{"$f":"getProgramXref($A17,cavItinIndex(K$1))","v":""},{"$f":"getProgramXref($A17,cavItinIndex(L$1))","v":""},{"$f":"getProgramXref($A17,cavItinIndex(M$1))","v":""},{"$f":"getProgramXref($A17,cavItinIndex(N$1))","v":""},{"$f":"getProgramXref($A17,cavItinIndex(O$1))","v":""},{"$f":"getProgramXref($A17,cavItinIndex(P$1))","v":"x"},{"$f":"getProgramXref($A17,cavItinIndex(Q$1))","v":"x"},{"$f":"getProgramXref($A17,cavItinIndex(R$1))","v":""},{"$f":"getProgramXref($A17,cavItinIndex(S$1))","v":""},{"$f":"getProgramXref($A17,cavItinIndex(T$1))","v":""},{"$f":"getProgramXref($A17,cavItinIndex(U$1))","v":""},null,8]
[{"$f":"INDEX(program_table,ROW()-5)","v":"Homesteading"},1,{"$f":"getProgramXref($A18,cavItinIndex(C$1))","v":""},{"$f":"getProgramXref($A18,cavItinIndex(D$1))","v":""},{"$f":"getProgramXref($A18,cavItinIndex(E$1))","v":""},{"$f":"getProgramXref($A18,cavItinIndex(F$1))","v":""},{"$f":"getProgramXref($A18,cavItinIndex(G$1))","v":""},{"$f":"getProgramXref($A18,cavItinIndex(H$1))","v":""},{"$f":"getProgramXref($A18,cavItinIndex(I$1))","v":""},{"$f":"getProgramXref($A18,cavItinIndex(J$1))","v":""},{"$f":"getProgramXref($A18,cavItinIndex(K$1))","v":""},{"$f":"getProgramXref($A18,cavItinIndex(L$1))","v":""},{"$f":"getProgramXref($A18,cavItinIndex(M$1))","v":""},{"$f":"getProgramXref($A18,cavItinIndex(N$1))","v":""},{"$f":"getProgramXref($A18,cavItinIndex(O$1))","v":""},{"$f":"getProgramXref($A18,cavItinIndex(P$1))","v":"x"},{"$f":"getProgramXref($A18,cavItinIndex(Q$1))","v":""},{"$f":"getProgramXref($A18,cavItinIndex(R$1))","v":""},{"$f":"getProgramXref($A18,cavItinIndex(S$1))","v":""},{"$f":"getProgramXref($A18,cavItinIndex(T$1))","v":""},{"$f":"getProgramXref($A18,cavItinIndex(U$1))","v":""},null,1]
[{"$f":"INDEX(program_table,ROW()-5)","v":"Lodge/Cabin Tours"},8,{"$f":"getProgramXref($A19,cavItinIndex(C$1))","v":""},{"$f":"getProgramXref($A19,cavItinIndex(D$1))","v":""},{"$f":"getProgramXref($A19,cavItinIndex(E$1))","v":""},{"$f":"getProgramXref($A19,cavItinIndex(F$1))","v":""},{"$f":"getProgramXref($A19,cavItinIndex(G$1))","v":""},{"$f":"getProgramXref($A19,cavItinIndex(H$1))","v":""},{"$f":"getProgramXref($A19,cavItinIndex(I$1))","v":"x"},{"$f":"getProgramXref($A19,cavItinIndex(J$1))","v":"x"},{"$f":"getProgramXref($A19,cavItinIndex(K$1))","v":"x"},{"$f":"getProgramXref($A19,cavItinIndex(L$1))","v":"x"},{"$f":"getProgramXref($A19,cavItinIndex(M$1))","v":""},{"$f":"getProgramXref($A19,cavItinIndex(N$1))","v":"x"},{"$f":"getProgramXref($A19,cavItinIndex(O$1))","v":"x"},{"$f":"getProgramXref($A19,cavItinIndex(P$1))","v":"x"},{"$f":"getProgramXref($A19,cavItinIndex(Q$1))","v":"x"},{"$f":"getProgramXref($A19,cavItinIndex(R$1))","v":""},{"$f":"getProgramXref($A19,cavItinIndex(S$1))","v":""},{"$f":"getProgramXref($A19,cavItinIndex(T$1))","v":""},{"$f":"getProgramXref($A19,cavItinIndex(U$1))","v":""},null,8]
[{"$f":"INDEX(program_table,ROW()-5)","v":"Low Impact Camping"},3,{"$f":"getProgramXref($A20,cavItinIndex(C$1))","v":""},{"$f":"getProgramXref($A20,cavItinIndex(D$1))","v":""},{"$f":"getProgramXref($A20,cavItinIndex(E$1))","v":""},{"$f":"getProgramXref($A20,cavItinIndex(F$1))","v":""},{"$f":"getProgramXref($A20,cavItinIndex(G$1))","v":""},{"$f":"getProgramXref($A20,cavItinIndex(H$1))","v":""},{"$f":"getProgramXref($A20,cavItinIndex(I$1))","v":""},{"$f":"getProgramXref($A20,cavItinIndex(J$1))","v":"x"},{"$f":"getProgramXref($A20,cavItinIndex(K$1))","v":"x"},{"$f":"getProgramXref($A20,cavItinIndex(L$1))","v":""},{"$f":"getProgramXref($A20,cavItinIndex(M$1))","v":""},{"$f":"getProgramXref($A20,cavItinIndex(N$1))","v":""},{"$f":"getProgramXref($A20,cavItinIndex(O$1))","v":""},{"$f":"getProgramXref($A20,cavItinIndex(P$1))","v":""},{"$f":"getProgramXref($A20,cavItinIndex(Q$1))","v":"x"},{"$f":"getProgramXref($A20,cavItinIndex(R$1))","v":""},{"$f":"getProgramXref($A20,cavItinIndex(S$1))","v":""},{"$f":"getProgramXref($A20,cavItinIndex(T$1))","v":""},{"$f":"getProgramXref($A20,cavItinIndex(U$1))","v":""},null,3]
[{"$f":"INDEX(program_table,ROW()-5)","v":"Mexican Dinner"},4,{"$f":"getProgramXref($A21,cavItinIndex(C$1))","v":""},{"$f":"getProgramXref($A21,cavItinIndex(D$1))","v":""},{"$f":"getProgramXref($A21,cavItinIndex(E$1))","v":""},{"$f":"getProgramXref($A21,cavItinIndex(F$1))","v":""},{"$f":"getProgramXref($A21,cavItinIndex(G$1))","v":""},{"$f":"getProgramXref($A21,cavItinIndex(H$1))","v":""},{"$f":"getProgramXref($A21,cavItinIndex(I$1))","v":""},{"$f":"getProgramXref($A21,cavItinIndex(J$1))","v":"x"},{"$f":"getProgramXref($A21,cavItinIndex(K$1))","v":"x"},{"$f":"getProgramXref($A21,cavItinIndex(L$1))","v":"x"},{"$f":"getProgramXref($A21,cavItinIndex(M$1))","v":"x"},{"$f":"getProgramXref($A21,cavItinIndex(N$1))","v":""},{"$f":"getProgramXref($A21,cavItinIndex(O$1))","v":""},{"$f":"getProgramXref($A21,cavItinIndex(P$1))","v":""},{"$f":"getProgramXref($A21,cavItinIndex(Q$1))","v":""},{"$f":"getProgramXref($A21,cavItinIndex(R$1))","v":""},{"$f":"getProgramXref($A21,cavItinIndex(S$1))","v":""},{"$f":"getProgramXref($A21,cavItinIndex(T$1))","v":""},{"$f":"getProgramXref($A21,cavItinIndex(U$1))","v":""},null,4]
[{"$f":"INDEX(program_table,ROW()-5)","v":"Mountaineering"},3,{"$f":"getProgramXref($A22,cavItinIndex(C$1))","v":""},{"$f":"getProgramXref($A22,cavItinIndex(D$1))","v":""},{"$f":"getProgramXref($A22,cavItinIndex(E$1))","v":""},{"$f":"getProgramXref($A22,cavItinIndex(F$1))","v":""},{"$f":"getProgramXref($A22,cavItinIndex(G$1))","v":""},{"$f":"getProgramXref($A22,cavItinIndex(H$1))","v":""},{"$f":"getProgramXref($A22,cavItinIndex(I$1))","v":""},{"$f":"getProgramXref($A22,cavItinIndex(J$1))","v":""},{"$f":"getProgramXref($A22,cavItinIndex(K$1))","v":""},{"$f":"getProgramXref($A22,cavItinIndex(L$1))","v":""},{"$f":"getProgramXref($A22,cavItinIndex(M$1))","v":""},{"$f":"getProgramXref($A22,cavItinIndex(N$1))","v":""},{"$f":"getProgramXref($A22,cavItinIndex(O$1))","v":""},{"$f":"getProgramXref($A22,cavItinIndex(P$1))","v":""},{"$f":"getProgramXref($A22,cavItinIndex(Q$1))","v":"x"},{"$f":"getProgramXref($A22,cavItinIndex(R$1))","v":"x"},{"$f":"getProgramXref($A22,cavItinIndex(S$1))","v":"x"},{"$f":"getProgramXref($A22,cavItinIndex(T$1))","v":""},{"$f":"getProgramXref($A22,cavItinIndex(U$1))","v":""},null,3]
[{"$f":"INDEX(program_table,ROW()-5)","v":"Muzzle Loading Rifle"},10,{"$f":"getProgramXref($A23,cavItinIndex(C$1))","v":""},{"$f":"getProgramXref($A23,cavItinIndex(D$1))","v":""},{"$f":"getProgramXref($A23,cavItinIndex(E$1))","v":"x"},{"$f":"getProgramXref($A23,cavItinIndex(F$1))","v":"x"},{"$f":"getProgramXref($A23,cavItinIndex(G$1))","v":"x"},{"$f":"getProgramXref($A23,cavItinIndex(H$1))","v":"x"},{"$f":"getProgramXref($A23,cavItinIndex(I$1))","v":""},{"$f":"getProgramXref($A23,cavItinIndex(J$1))","v":"x"},{"$f":"getProgramXref($A23,cavItinIndex(K$1))","v":"x"},{"$f":"getProgramXref($A23,cavItinIndex(L$1))","v":"x"},{"$f":"getProgramXref($A23,cavItinIndex(M$1))","v":"x"},{"$f":"getProgramXref($A23,cavItinIndex(N$1))","v":""},{"$f":"getProgramXref($A23,cavItinIndex(O$1))","v":""},{"$f":"getProgramXref($A23,cavItinIndex(P$1))","v":""},{"$f":"getProgramXref($A23,cavItinIndex(Q$1))","v":""},{"$f":"getProgramXref($A23,cavItinIndex(R$1))","v":"x"},{"$f":"getProgramXref($A23,cavItinIndex(S$1))","v":"x"},{"$f":"getProgramXref($A23,cavItinIndex(T$1))","v":""},{"$f":"getProgramXref($A23,cavItinIndex(U$1))","v":""},null,10]
[{"$f":"INDEX(program_table,ROW()-5)","v":"New Mexico Homestead"},4,{"$f":"getProgramXref($A24,cavItinIndex(C$1))","v":""},{"$f":"getProgramXref($A24,cavItinIndex(D$1))","v":""},{"$f":"getProgramXref($A24,cavItinIndex(E$1))","v":""},{"$f":"getProgramXref($A24,cavItinIndex(F$1))","v":""},{"$f":"getProgramXref($A24,cavItinIndex(G$1))","v":""},{"$f":"getProgramXref($A24,cavItinIndex(H$1))","v":""},{"$f":"getProgramXref($A24,cavItinIndex(I$1))","v":""},{"$f":"getProgramXref($A24,cavItinIndex(J$1))","v":"x"},{"$f":"getProgramXref($A24,cavItinIndex(K$1))","v":"x"},{"$f":"getProgramXref($A24,cavItinIndex(L$1))","v":"x"},{"$f":"getProgramXref($A24,cavItinIndex(M$1))","v":"x"},{"$f":"getProgramXref($A24,cavItinIndex(N$1))","v":""},{"$f":"getProgramXref($A24,cavItinIndex(O$1))","v":""},{"$f":"getProgramXref($A24,cavItinIndex(P$1))","v":""},{"$f":"getProgramXref($A24,cavItinIndex(Q$1))","v":""},{"$f":"getProgramXref($A24,cavItinIndex(R$1))","v":""},{"$f":"getProgramXref($A24,cavItinIndex(S$1))","v":""},{"$f":"getProgramXref($A24,cavItinIndex(T$1))","v":""},{"$f":"getProgramXref($A24,cavItinIndex(U$1))","v":""},null,4]
[{"$f":"INDEX(program_table,ROW()-5)","v":"Petroglyph Tour"},1,{"$f":"getProgramXref($A25,cavItinIndex(C$1))","v":""},{"$f":"getProgramXref($A25,cavItinIndex(D$1))","v":""},{"$f":"getProgramXref($A25,cavItinIndex(E$1))","v":""},{"$f":"getProgramXref($A25,cavItinIndex(F$1))","v":""},{"$f":"getProgramXref($A25,cavItinIndex(G$1))","v":""},{"$f":"getProgramXref($A25,cavItinIndex(H$1))","v":""},{"$f":"getProgramXref($A25,cavItinIndex(I$1))","v":"x"},{"$f":"getProgramXref($A25,cavItinIndex(J$1))","v":""},{"$f":"getProgramXref($A25,cavItinIndex(K$1))","v":""},{"$f":"getProgramXref($A25,cavItinIndex(L$1))","v":""},{"$f":"getProgramXref($A25,cavItinIndex(M$1))","v":""},{"$f":"getProgramXref($A25,cavItinIndex(N$1))","v":""},{"$f":"getProgramXref($A25,cavItinIndex(O$1))","v":""},{"$f":"getProgramXref($A25,cavItinIndex(P$1))","v":""},{"$f":"getProgramXref($A25,cavItinIndex(Q$1))","v":""},{"$f":"getProgramXref($A25,cavItinIndex(R$1))","v":""},{"$f":"getProgramXref($A25,cavItinIndex(S$1))","v":""},{"$f":"getProgramXref($A25,cavItinIndex(T$1))","v":""},{"$f":"getProgramXref($A25,cavItinIndex(U$1))","v":""},null,1]
[{"$f":"INDEX(program_table,ROW()-5)","v":"Post Civil War Encampment"},7,{"$f":"getProgramXref($A26,cavItinIndex(C$1))","v":""},{"$f":"getProgramXref($A26,cavItinIndex(D$1))","v":""},{"$f":"getProgramXref($A26,cavItinIndex(E$1))","v":""},{"$f":"getProgramXref($A26,cavItinIndex(F$1))","v":""},{"$f":"getProgramXref($A26,cavItinIndex(G$1))","v":""},{"$f":"getProgramXref($A26,cavItinIndex(H$1))","v":""},{"$f":"getProgramXref($A26,cavItinIndex(I$1))","v":""},{"$f":"getProgramXref($A26,cavItinIndex(J$1))","v":"x"},{"$f":"getProgramXref($A26,cavItinIndex(K$1))","v":"x"},{"$f":"getProgramXref($A26,cavItinIndex(L$1))","v":"x"},{"$f":"getProgramXref($A26,cavItinIndex(M$1))","v":"x"},{"$f":"getProgramXref($A26,cavItinIndex(N$1))","v":""},{"$f":"getProgramXref($A26,cavItinIndex(O$1))","v":""},{"$f":"getProgramXref($A26,cavItinIndex(P$1))","v":""},{"$f":"getProgramXref($A26,cavItinIndex(Q$1))","v":"x"},{"$f":"getProgramXref($A26,cavItinIndex(R$1))","v":"x"},{"$f":"getProgramXref($A26,cavItinIndex(S$1))","v":"x"},{"$f":"getProgramXref($A26,cavItinIndex(T$1))","v":""},{"$f":"getProgramXref($A26,cavItinIndex(U$1))","v":""},null,7]
[{"$f":"INDEX(program_table,ROW()-5)","v":"Railroading"},1,{"$f":"getProgramXref($A27,cavItinIndex(C$1))","v":""},{"$f":"getProgramXref($A27,cavItinIndex(D$1))","v":""},{"$f":"getProgramXref($A27,cavItinIndex(E$1))","v":""},{"$f":"getProgramXref($A27,cavItinIndex(F$1))","v":""},{"$f":"getProgramXref($A27,cavItinIndex(G$1))","v":""},{"$f":"getProgramXref($A27,cavItinIndex(H$1))","v":""},{"$f":"getProgramXref($A27,cavItinIndex(I$1))","v":"x"},{"$f":"getProgramXref($A27,cavItinIndex(J$1))","v":""},{"$f":"getProgramXref($A27,cavItinIndex(K$1))","v":""},{"$f":"getProgramXref($A27,cavItinIndex(L$1))","v":""},{"$f":"getProgramXref($A27,cavItinIndex(M$1))","v":""},{"$f":"getProgramXref($A27,cavItinIndex(N$1))","v":""},{"$f":"getProgramXref($A27,cavItinIndex(O$1))","v":""},{"$f":"getProgramXref($A27,cavItinIndex(P$1))","v":""},{"$f":"getProgramXref($A27,cavItinIndex(Q$1))","v":""},{"$f":"getProgramXref($A27,cavItinIndex(R$1))","v":""},{"$f":"getProgramXref($A27,cavItinIndex(S$1))","v":""},{"$f":"getProgramXref($A27,cavItinIndex(T$1))","v":""},{"$f":"getProgramXref($A27,cavItinIndex(U$1))","v":""},null,1]
[{"$f":"INDEX(program_table,ROW()-5)","v":"Rock Climbing & Rappelling"},12,{"$f":"getProgramXref($A28,cavItinIndex(C$1))","v":""},{"$f":"getProgramXref($A28,cavItinIndex(D$1))","v":""},{"$f":"getProgramXref($A28,cavItinIndex(E$1))","v":""},{"$f":"getProgramXref($A28,cavItinIndex(F$1))","v":""},{"$f":"getProgramXref($A28,cavItinIndex(G$1))","v":""},{"$f":"getProgramXref($A28,cavItinIndex(H$1))","v":""},{"$f":"getProgramXref($A28,cavItinIndex(I$1))","v":""},{"$f":"getProgramXref($A28,cavItinIndex(J$1))","v":"x"},{"$f":"getProgramXref($A28,cavItinIndex(K$1))","v":"x"},{"$f":"getProgramXref($A28,cavItinIndex(L$1))","v":"x"},{"$f":"getProgramXref($A28,cavItinIndex(M$1))","v":"x"},{"$f":"getProgramXref($A28,cavItinIndex(N$1))","v":"x"},{"$f":"getProgramXref($A28,cavItinIndex(O$1))","v":"x"},{"$f":"getProgramXref($A28,cavItinIndex(P$1))","v":"x"},{"$f":"getProgramXref($A28,cavItinIndex(Q$1))","v":"x"},{"$f":"getProgramXref($A28,cavItinIndex(R$1))","v":"x"},{"$f":"getProgramXref($A28,cavItinIndex(S$1))","v":"x"},{"$f":"getProgramXref($A28,cavItinIndex(T$1))","v":"x"},{"$f":"getProgramXref($A28,cavItinIndex(U$1))","v":"x"},null,12]
[{"$f":"INDEX(program_table,ROW()-5)","v":"Shotgun Shooting/Reloading - 12 Gauge"},2,{"$f":"getProgramXref($A29,cavItinIndex(C$1))","v":""},{"$f":"getProgramXref($A29,cavItinIndex(D$1))","v":""},{"$f":"getProgramXref($A29,cavItinIndex(E$1))","v":""},{"$f":"getProgramXref($A29,cavItinIndex(F$1))","v":""},{"$f":"getProgramXref($A29,cavItinIndex(G$1))","v":""},{"$f":"getProgramXref($A29,cavItinIndex(H$1))","v":""},{"$f":"getProgramXref($A29,cavItinIndex(I$1))","v":""},{"$f":"getProgramXref($A29,cavItinIndex(J$1))","v":""},{"$f":"getProgramXref($A29,cavItinIndex(K$1))","v":""},{"$f":"getProgramXref($A29,cavItinIndex(L$1))","v":""},{"$f":"getProgramXref($A29,cavItinIndex(M$1))","v":""},{"$f":"getProgramXref($A29,cavItinIndex(N$1))","v":""},{"$f":"getProgramXref($A29,cavItinIndex(O$1))","v":""},{"$f":"getProgramXref($A29,cavItinIndex(P$1))","v":""},{"$f":"getProgramXref($A29,cavItinIndex(Q$1))","v":""},{"$f":"getProgramXref($A29,cavItinIndex(R$1))","v":""},{"$f":"getProgramXref($A29,cavItinIndex(S$1))","v":""},{"$f":"getProgramXref($A29,cavItinIndex(T$1))","v":"x"},{"$f":"getProgramXref($A29,cavItinIndex(U$1))","v":"x"},null,2]
[{"$f":"INDEX(program_table,ROW()-5)","v":"Spar Pole Climbing"},17,{"$f":"getProgramXref($A30,cavItinIndex(C$1))","v":"x"},{"$f":"getProgramXref($A30,cavItinIndex(D$1))","v":"x"},{"$f":"getProgramXref($A30,cavItinIndex(E$1))","v":"x"},{"$f":"getProgramXref($A30,cavItinIndex(F$1))","v":"x"},{"$f":"getProgramXref($A30,cavItinIndex(G$1))","v":"x"},{"$f":"getProgramXref($A30,cavItinIndex(H$1))","v":"x"},{"$f":"getProgramXref($A30,cavItinIndex(I$1))","v":"x"},{"$f":"getProgramXref($A30,cavItinIndex(J$1))","v":""},{"$f":"getProgramXref($A30,cavItinIndex(K$1))","v":""},{"$f":"getProgramXref($A30,cavItinIndex(L$1))","v":"x"},{"$f":"getProgramXref($A30,cavItinIndex(M$1))","v":"x"},{"$f":"getProgramXref($A30,cavItinIndex(N$1))","v":"x"},{"$f":"getProgramXref($A30,cavItinIndex(O$1))","v":"x"},{"$f":"getProgramXref($A30,cavItinIndex(P$1))","v":"x"},{"$f":"getProgramXref($A30,cavItinIndex(Q$1))","v":"x"},{"$f":"getProgramXref($A30,cavItinIndex(R$1))","v":"x"},{"$f":"getProgramXref($A30,cavItinIndex(S$1))","v":"x"},{"$f":"getProgramXref($A30,cavItinIndex(T$1))","v":"x"},{"$f":"getProgramXref($A30,cavItinIndex(U$1))","v":"x"}]
[{"$f":"INDEX(program_table,ROW()-5)","v":"Tie Making & Crosscut Saws"},16,{"$f":"getProgramXref($A31,cavItinIndex(C$1))","v":"x"},{"$f":"getProgramXref($A31,cavItinIndex(D$1))","v":"x"},{"$f":"getProgramXref($A31,cavItinIndex(E$1))","v":"x"},{"$f":"getProgramXref($A31,cavItinIndex(F$1))","v":"x"},{"$f":"getProgramXref($A31,cavItinIndex(G$1))","v":"x"},{"$f":"getProgramXref($A31,cavItinIndex(H$1))","v":""},{"$f":"getProgramXref($A31,cavItinIndex(I$1))","v":"x"},{"$f":"getProgramXref($A31,cavItinIndex(J$1))","v":""},{"$f":"getProgramXref($A31,cavItinIndex(K$1))","v":""},{"$f":"getProgramXref($A31,cavItinIndex(L$1))","v":"x"},{"$f":"getProgramXref($A31,cavItinIndex(M$1))","v":"x"},{"$f":"getProgramXref($A31,cavItinIndex(N$1))","v":"x"},{"$f":"getProgramXref($A31,cavItinIndex(O$1))","v":"x"},{"$f":"getProgramXref($A31,cavItinIndex(P$1))","v":"x"},{"$f":"getProgramXref($A31,cavItinIndex(Q$1))","v":"x"},{"$f":"getProgramXref($A31,cavItinIndex(R$1))","v":"x"},{"$f":"getProgramXref($A31,cavItinIndex(S$1))","v":"x"},{"$f":"getProgramXref($A31,cavItinIndex(T$1))","v":"x"},{"$f":"getProgramXref($A31,cavItinIndex(U$1))","v":"x"}]
[{"$f":"INDEX(program_table,ROW()-5)","v":"Tomahawk Throwing"},4,{"$f":"getProgramXref($A32,cavItinIndex(C$1))","v":""},{"$f":"getProgramXref($A32,cavItinIndex(D$1))","v":""},{"$f":"getProgramXref($A32,cavItinIndex(E$1))","v":"x"},{"$f":"getProgramXref($A32,cavItinIndex(F$1))","v":"x"},{"$f":"getProgramXref($A32,cavItinIndex(G$1))","v":"x"},{"$f":"getProgramXref($A32,cavItinIndex(H$1))","v":"x"},{"$f":"getProgramXref($A32,cavItinIndex(I$1))","v":""},{"$f":"getProgramXref($A32,cavItinIndex(J$1))","v":""},{"$f":"getProgramXref($A32,cavItinIndex(K$1))","v":""},{"$f":"getProgramXref($A32,cavItinIndex(L$1))","v":""},{"$f":"getProgramXref($A32,cavItinIndex(M$1))","v":""},{"$f":"getProgramXref($A32,cavItinIndex(N$1))","v":""},{"$f":"getProgramXref($A32,cavItinIndex(O$1))","v":""},{"$f":"getProgramXref($A32,cavItinIndex(P$1))","v":""},{"$f":"getProgramXref($A32,cavItinIndex(Q$1))","v":""},{"$f":"getProgramXref($A32,cavItinIndex(R$1))","v":""},{"$f":"getProgramXref($A32,cavItinIndex(S$1))","v":""},{"$f":"getProgramXref($A32,cavItinIndex(T$1))","v":""},{"$f":"getProgramXref($A32,cavItinIndex(U$1))","v":""},null,4]
[{"$f":"INDEX(program_table,ROW()-5)","v":"Trail Peak"},4,{"$f":"getProgramXref($A33,cavItinIndex(C$1))","v":""},{"$f":"getProgramXref($A33,cavItinIndex(D$1))","v":""},{"$f":"getProgramXref($A33,cavItinIndex(E$1))","v":""},{"$f":"getProgramXref($A33,cavItinIndex(F$1))","v":""},{"$f":"getProgramXref($A33,cavItinIndex(G$1))","v":""},{"$f":"getProgramXref($A33,cavItinIndex(H$1))","v":""},{"$f":"getProgramXref($A33,cavItinIndex(I$1))","v":""},{"$f":"getProgramXref($A33,cavItinIndex(J$1))","v":""},{"$f":"getProgramXref($A33,cavItinIndex(K$1))","v":""},{"$f":"getProgramXref($A33,cavItinIndex(L$1))","v":""},{"$f":"getProgramXref($A33,cavItinIndex(M$1))","v":"x"},{"$f":"getProgramXref($A33,cavItinIndex(N$1))","v":""},{"$f":"getProgramXref($A33,cavItinIndex(O$1))","v":""},{"$f":"getProgramXref($A33,cavItinIndex(P$1))","v":""},{"$f":"getProgramXref($A33,cavItinIndex(Q$1))","v":"x"},{"$f":"getProgramXref($A33,cavItinIndex(R$1))","v":"x"},{"$f":"getProgramXref($A33,cavItinIndex(S$1))","v":"x"},{"$f":"getProgramXref($A33,cavItinIndex(T$1))","v":""},{"$f":"getProgramXref($A33,cavItinIndex(U$1))","v":""},null,4]
[{"$f":"INDEX(program_table,ROW()-5)","v":"Western Lore/Branding"},19,{"$f":"getProgramXref($A34,cavItinIndex(C$1))","v":"x"},{"$f":"getProgramXref($A34,cavItinIndex(D$1))","v":"x"},{"$f":"getProgramXref($A34,cavItinIndex(E$1))","v":"x"},{"$f":"getProgramXref($A34,cavItinIndex(F$1))","v":"x"},{"$f":"getProgramXref($A34,cavItinIndex(G$1))","v":"x"},{"$f":"getProgramXref($A34,cavItinIndex(H$1))","v":"x"},{"$f":"getProgramXref($A34,cavItinIndex(I$1))","v":"x"},{"$f":"getProgramXref($A34,cavItinIndex(J$1))","v":"x"},{"$f":"getProgramXref($A34,cavItinIndex(K$1))","v":"x"},{"$f":"getProgramXref($A34,cavItinIndex(L$1))","v":"x"},{"$f":"getProgramXref($A34,cavItinIndex(M$1))","v":"x"},{"$f":"getProgramXref($A34,cavItinIndex(N$1))","v":"x"},{"$f":"getProgramXref($A34,cavItinIndex(O$1))","v":"x"},{"$f":"getProgramXref($A34,cavItinIndex(P$1))","v":"x"},{"$f":"getProgramXref($A34,cavItinIndex(Q$1))","v":"x"},{"$f":"getProgramXref($A34,cavItinIndex(R$1))","v":"x"},{"$f":"getProgramXref($A34,cavItinIndex(S$1))","v":"x"},{"$f":"getProgramXref($A34,cavItinIndex(T$1))","v":"x"},{"$f":"getProgramXref($A34,cavItinIndex(U$1))","v":"x"},null,19]
["# programs in itinerary:  ",null,{"$f":"COUNTIF(C6:C34,\"X\")","v":10},9,12,12,12,11,10,12,11,12,13,9,9,11,14,11,11,8,8,null,{"$f":"COUNTIF(#REF!,\"X\")","v":{"$error":"#REF!"}}]
[null,null,null,null,null,null,null,null,null,null,null,null,null,null,null,null,null,null,null,null,null,null,{"$f":"COUNTIF(#REF!,\"X\")","v":{"$error":"#REF!"}}]
[null,null,null,null,null,null,null,null,null,null,null,null,null,null,null,null,null,null,null,null,null,null,{"$f":"COUNTIF(#REF!,\"X\")","v":{"$error":"#REF!"}}]
[null,null,null,null,null,null,null,null,null,null,null,null,null,null,null,null,null,null,null,null,null,null,{"$f":"COUNTIF(#REF!,\"X\")","v":{"$error":"#REF!"}}]

{"sheet":"Tables","index":8,"n_rows":84,"n_cols":16,"rows_kept":84,"cut":false,"hidden":false,"merged":[[1,4,1,10],[1,11,30,11],[76,0,83,0]]}
["Row","Category","Code","Value",null,"Total","Score Selected",null,null,null,"n","Index"]
[null,"programFactor","Multiply X Activity score for value to use",1.5,"This is applied to each score in the calculation. Use to make activities more/less important.",null,null,null,null,null,null,"These are the results of the \"Scores\" worksheet — from the scores entered from the Preference Survey worksheets.","Total","Average","Median","Mode"]
[{"$f":"ROW()-2","v":1},"Program",{"$f":" INDEX(program_table,A3,1)","v":"Archaeology"},{"$f":"SUM(Scores!B2:P2)","v":184},null,null,null,null,null,null,1,null,{"$f":"SUM(Scores!$B2:P2)*programFactor","v":276},{"$f":"IF(COUNT(Scores!$B2:P2)>0,AVERAGE(Scores!$B2:P2)*programFactor,0)","v":18.400000000000002},{"$f":"IF(COUNT(Scores!$B2:P2)>0,MEDIAN(Scores!$B2:P2)*programFactor,0)","v":22.5},{"$f":"IF(getmode(Scores!$B2:P2)=\"\",\"\",getmode(Scores!$B2:P2)*programFactor)","v":22.5}]
[{"$f":"ROW()-2","v":2},"Program",{"$f":" INDEX(program_table,A4,1)","v":"Baldy Mountain"},{"$f":"SUM(Scores!B3:P3)","v":280},null,null,null,null,null,null,2,null,{"$f":"SUM(Scores!$B3:P3)*programFactor","v":420},{"$f":"IF(COUNT(Scores!$B3:P3)>0,AVERAGE(Scores!$B3:P3)*programFactor,0)","v":28},{"$f":"IF(COUNT(Scores!$B3:P3)>0,MEDIAN(Scores!$B3:P3)*programFactor,0)","v":30},{"$f":"IF(getmode(Scores!$B3:P3)=\"\",\"\",getmode(Scores!$B3:P3)*programFactor)","v":30}]
[3,"Program",{"$f":" INDEX(program_table,A5,1)","v":"Blacksmithing"},{"$f":"SUM(Scores!B4:P4)","v":106},null,null,null,null,null,null,3,null,{"$f":"SUM(Scores!$B4:P4)*programFactor","v":159},{"$f":"IF(COUNT(Scores!$B4:P4)>0,AVERAGE(Scores!$B4:P4)*programFactor,0)","v":10.6},{"$f":"IF(COUNT(Scores!$B4:P4)>0,MEDIAN(Scores!$B4:P4)*programFactor,0)","v":10.5},{"$f":"IF(getmode(Scores!$B4:P4)=\"\",\"\",getmode(Scores!$B4:P4)*programFactor)","v":15}]
[4,"Program",{"$f":" INDEX(program_table,A6,1)","v":"Campfire (evening)"},{"$f":"SUM(Scores!B5:P5)","v":229},null,null,null,null,null,null,4,null,{"$f":"SUM(Scores!$B5:P5)*programFactor","v":343.5},{"$f":"IF(COUNT(Scores!$B5:P5)>0,AVERAGE(Scores!$B5:P5)*programFactor,0)","v":22.900000000000002},{"$f":"IF(COUNT(Scores!$B5:P5)>0,MEDIAN(Scores!$B5:P5)*programFactor,0)","v":27},{"$f":"IF(getmode(Scores!$B5:P5)=\"\",\"\",getmode(Scores!$B5:P5)*programFactor)","v":27}]
[5,"Program",{"$f":" INDEX(program_table,A7,1)","v":"Cantina"},{"$f":"SUM(Scores!B6:P6)","v":143},null,null,null,null,null,null,5,null,{"$f":"SUM(Scores!$B6:P6)*programFactor","v":214.5},{"$f":"IF(COUNT(Scores!$B6:P6)>0,AVERAGE(Scores!$B6:P6)*programFactor,0)","v":14.3},{"$f":"IF(COUNT(Scores!$B6:P6)>0,MEDIAN(Scores!$B6:P6)*programFactor,0)","v":22.5},{"$f":"IF(getmode(Scores!$B6:P6)=\"\",\"\",getmode(Scores!$B6:P6)*programFactor)","v":0}]
[6,"Program",{"$f":" INDEX(program_table,A8,1)","v":"Challenge Events"},{"$f":"SUM(Scores!B7:P7)","v":141},null,null,null,null,null,null,6,null,{"$f":"SUM(Scores!$B7:P7)*programFactor","v":211.5},{"$f":"IF(COUNT(Scores!$B7:P7)>0,AVERAGE(Scores!$B7:P7)*programFactor,0)","v":14.100000000000001},{"$f":"IF(COUNT(Scores!$B7:P7)>0,MEDIAN(Scores!$B7:P7)*programFactor,0)","v":15},{"$f":"IF(getmode(Scores!$B7:P7)=\"\",\"\",getmode(Scores!$B7:P7)*programFactor)","v":0}]
[7,"Program",{"$f":" INDEX(program_table,A9,1)","v":"Chuckwagon Dinner"},{"$f":"SUM(Scores!B8:P8)","v":141},null,null,null,null,null,null,6,null,{"$f":"SUM(Scores!$B8:P8)*programFactor","v":211.5},{"$f":"IF(COUNT(Scores!$B8:P8)>0,AVERAGE(Scores!$B8:P8)*programFactor,0)","v":14.100000000000001},{"$f":"IF(COUNT(Scores!$B8:P8)>0,MEDIAN(Scores!$B8:P8)*programFactor,0)","v":15},{"$f":"IF(getmode(Scores!$B8:P8)=\"\",\"\",getmode(Scores!$B8:P8)*programFactor)","v":0}]
[8,"Program",{"$f":" INDEX(program_table,A10,1)","v":"Demonstration Forest"},{"$f":"SUM(Scores!B9:P9)","v":115},null,null,null,null,null,null,6,null,{"$f":"SUM(Scores!$B9:P9)*programFactor","v":172.5},{"$f":"IF(COUNT(Scores!$B9:P9)>0,AVERAGE(Scores!$B9:P9)*programFactor,0)","v":11.5},{"$f":"IF(COUNT(Scores!$B9:P9)>0,MEDIAN(Scores!$B9:P9)*programFactor,0)","v":13.5},{"$f":"IF(getmode(Scores!$B9:P9)=\"\",\"\",getmode(Scores!$B9:P9)*programFactor)","v":0}]
[9,"Program",{"$f":" INDEX(program_table,A11,1)","v":"Fishing"},{"$f":"SUM(Scores!B10:P10)","v":83},null,null,null,null,null,null,6,null,{"$f":"SUM(Scores!$B10:P10)*programFactor","v":124.5},{"$f":"IF(COUNT(Scores!$B10:P10)>0,AVERAGE(Scores!$B10:P10)*programFactor,0)","v":8.8928571428571423},{"$f":"IF(COUNT(Scores!$B10:P10)>0,MEDIAN(Scores!$B10:P10)*programFactor,0)","v":9},{"$f":"IF(getmode(Scores!$B10:P10)=\"\",\"\",getmode(Scores!$B10:P10)*programFactor)","v":0}]
[10,"Program",{"$f":" INDEX(program_table,A12,1)","v":"Fly Tying"},{"$f":"SUM(Scores!B11:P11)","v":103},null,null,null,null,null,null,6,null,{"$f":"SUM(Scores!$B11:P11)*programFactor","v":154.5},{"$f":"IF(COUNT(Scores!$B11:P11)>0,AVERAGE(Scores!$B11:P11)*programFactor,0)","v":11.035714285714285},{"$f":"IF(COUNT(Scores!$B11:P11)>0,MEDIAN(Scores!$B11:P11)*programFactor,0)","v":7.5},{"$f":"IF(getmode(Scores!$B11:P11)=\"\",\"\",getmode(Scores!$B11:P11)*programFactor)","v":7.5}]
[11,"Program",{"$f":" INDEX(program_table,A13,1)","v":"Fur Trapper Rendezvous"},{"$f":"SUM(Scores!B12:P12)","v":84},null,null,null,null,null,null,6,null,{"$f":"SUM(Scores!$B12:P12)*programFactor","v":126},{"$f":"IF(COUNT(Scores!$B12:P12)>0,AVERAGE(Scores!$B12:P12)*programFactor,0)","v":14},{"$f":"IF(COUNT(Scores!$B12:P12)>0,MEDIAN(Scores!$B12:P12)*programFactor,0)","v":16.5},{"$f":"IF(getmode(Scores!$B12:P12)=\"\",\"\",getmode(Scores!$B12:P12)*programFactor)","v":16.5}]
[12,"Program",{"$f":" INDEX(program_table,A14,1)","v":"Gold Mining & Panning"},{"$f":"SUM(Scores!B13:P13)","v":106},null,null,null,null,null,null,6,null,{"$f":"SUM(Scores!$B13:P13)*programFactor","v":159},{"$f":"IF(COUNT(Scores!$B13:P13)>0,AVERAGE(Scores!$B13:P13)*programFactor,0)","v":11.357142857142858},{"$f":"IF(COUNT(Scores!$B13:P13)>0,MEDIAN(Scores!$B13:P13)*programFactor,0)","v":12.75},{"$f":"IF(getmode(Scores!$B13:P13)=\"\",\"\",getmode(Scores!$B13:P13)*programFactor)","v":15}]
[13,"Program",{"$f":" INDEX(program_table,A15,1)","v":"Homesteading"},{"$f":"SUM(Scores!B14:P14)","v":109},null,null,null,null,null,null,6,null,{"$f":"SUM(Scores!$B14:P14)*programFactor","v":163.5},{"$f":"IF(COUNT(Scores!$B14:P14)>0,AVERAGE(Scores!$B14:P14)*programFactor,0)","v":11.678571428571429},{"$f":"IF(COUNT(Scores!$B14:P14)>0,MEDIAN(Scores!$B14:P14)*programFactor,0)","v":11.25},{"$f":"IF(getmode(Scores!$B14:P14)=\"\",\"\",getmode(Scores!$B14:P14)*programFactor)","v":7.5}]
[14,"Program",{"$f":" INDEX(program_table,A16,1)","v":"Lodge/Cabin Tours"},{"$f":"SUM(Scores!B15:P15)","v":103},null,null,null,null,null,null,6,null,{"$f":"SUM(Scores!$B15:P15)*programFactor","v":154.5},{"$f":"IF(COUNT(Scores!$B15:P15)>0,AVERAGE(Scores!$B15:P15)*programFactor,0)","v":10.299999999999999},{"$f":"IF(COUNT(Scores!$B15:P15)>0,MEDIAN(Scores!$B15:P15)*programFactor,0)","v":12},{"$f":"IF(getmode(Scores!$B15:P15)=\"\",\"\",getmode(Scores!$B15:P15)*programFactor)","v":12}]
[15,"Program",{"$f":" INDEX(program_table,A17,1)","v":"Low Impact Camping"},{"$f":"SUM(Scores!B16:P16)","v":77},null,null,null,null,null,null,6,null,{"$f":"SUM(Scores!$B16:P16)*programFactor","v":115.5},{"$f":"IF(COUNT(Scores!$B16:P16)>0,AVERAGE(Scores!$B16:P16)*programFactor,0)","v":7.7000000000000011},{"$f":"IF(COUNT(Scores!$B16:P16)>0,MEDIAN(Scores!$B16:P16)*programFactor,0)","v":6},{"$f":"IF(getmode(Scores!$B16:P16)=\"\",\"\",getmode(Scores!$B16:P16)*programFactor)","v":1.5}]
[16,"Program",{"$f":" INDEX(program_table,A18,1)","v":"Mexican Dinner"},{"$f":"SUM(Scores!B17:P17)","v":127},null,null,null,null,null,null,6,null,{"$f":"SUM(Scores!$B17:P17)*programFactor","v":190.5},{"$f":"IF(COUNT(Scores!$B17:P17)>0,AVERAGE(Scores!$B17:P17)*programFactor,0)","v":13.607142857142858},{"$f":"IF(COUNT(Scores!$B17:P17)>0,MEDIAN(Scores!$B17:P17)*programFactor,0)","v":15},{"$f":"IF(getmode(Scores!$B17:P17)=\"\",\"\",getmode(Scores!$B17:P17)*programFactor)","v":15}]
[17,"Program",{"$f":" INDEX(program_table,A19,1)","v":"Mountaineering"},{"$f":"SUM(Scores!B18:P18)","v":77},null,null,null,null,null,null,6,null,{"$f":"SUM(Scores!$B18:P18)*programFactor","v":115.5},{"$f":"IF(COUNT(Scores!$B18:P18)>0,AVERAGE(Scores!$B18:P18)*programFactor,0)","v":7.7000000000000011},{"$f":"IF(COUNT(Scores!$B18:P18)>0,MEDIAN(Scores!$B18:P18)*programFactor,0)","v":7.5},{"$f":"IF(getmode(Scores!$B18:P18)=\"\",\"\",getmode(Scores!$B18:P18)*programFactor)","v":0}]
[18,"Program",{"$f":" INDEX(program_table,A20,1)","v":"Muzzle Loading Rifle"},{"$f":"SUM(Scores!B19:P19)","v":131},null,null,null,null,null,null,6,null,{"$f":"SUM(Scores!$B19:P19)*programFactor","v":196.5},{"$f":"IF(COUNT(Scores!$B19:P19)>0,AVERAGE(Scores!$B19:P19)*programFactor,0)","v":13.099999999999998},{"$f":"IF(COUNT(Scores!$B19:P19)>0,MEDIAN(Scores!$B19:P19)*programFactor,0)","v":15},{"$f":"IF(getmode(Scores!$B19:P19)=\"\",\"\",getmode(Scores!$B19:P19)*programFactor)","v":3}]
[19,"Program",{"$f":" INDEX(program_table,A21,1)","v":"New Mexico Homestead"},{"$f":"SUM(Scores!B20:P20)","v":107},null,null,null,null,null,null,6,null,{"$f":"SUM(Scores!$B20:P20)*programFactor","v":160.5},{"$f":"IF(COUNT(Scores!$B20:P20)>0,AVERAGE(Scores!$B20:P20)*programFactor,0)","v":10.700000000000001},{"$f":"IF(COUNT(Scores!$B20:P20)>0,MEDIAN(Scores!$B20:P20)*programFactor,0)","v":9},{"$f":"IF(getmode(Scores!$B20:P20)=\"\",\"\",getmode(Scores!$B20:P20)*programFactor)","v":0}]
[20,"Program",{"$f":" INDEX(program_table,A22,1)","v":"Petroglyph Tour"},{"$f":"SUM(Scores!B21:P21)","v":54},null,null,null,null,null,null,6,null,{"$f":"SUM(Scores!$B21:P21)*programFactor","v":81},{"$f":"IF(COUNT(Scores!$B21:P21)>0,AVERAGE(Scores!$B21:P21)*programFactor,0)","v":5.4},{"$f":"IF(COUNT(Scores!$B21:P21)>0,MEDIAN(Scores!$B21:P21)*programFactor,0)","v":3},{"$f":"IF(getmode(Scores!$B21:P21)=\"\",\"\",getmode(Scores!$B21:P21)*programFactor)","v":0}]
[21,"Program",{"$f":" INDEX(program_table,A23,1)","v":"Post Civil War Encampment"},{"$f":"SUM(Scores!B22:P22)","v":143},null,null,null,null,null,null,6,null,{"$f":"SUM(Scores!$B22:P22)*programFactor","v":214.5},{"$f":"IF(COUNT(Scores!$B22:P22)>0,AVERAGE(Scores!$B22:P22)*programFactor,0)","v":19.5},{"$f":"IF(COUNT(Scores!$B22:P22)>0,MEDIAN(Scores!$B22:P22)*programFactor,0)","v":22.5},{"$f":"IF(getmode(Scores!$B22:P22)=\"\",\"\",getmode(Scores!$B22:P22)*programFactor)","v":22.5}]
[22,"Program",{"$f":" INDEX(program_table,A24,1)","v":"Railroading"},{"$f":"SUM(Scores!B23:P23)","v":180},null,null,null,null,null,null,6,null,{"$f":"SUM(Scores!$B23:P23)*programFactor","v":270},{"$f":"IF(COUNT(Scores!$B23:P23)>0,AVERAGE(Scores!$B23:P23)*programFactor,0)","v":18},{"$f":"IF(COUNT(Scores!$B23:P23)>0,MEDIAN(Scores!$B23:P23)*programFactor,0)","v":22.5},{"$f":"IF(getmode(Scores!$B23:P23)=\"\",\"\",getmode(Scores!$B23:P23)*programFactor)","v":15}]
[23,"Program",{"$f":" INDEX(program_table,A25,1)","v":"Rock Climbing & Rappelling"},{"$f":"SUM(Scores!B24:P24)","v":103},null,null,null,null,null,null,6,null,{"$f":"SUM(Scores!$B24:P24)*programFactor","v":154.5},{"$f":"IF(COUNT(Scores!$B24:P24)>0,AVERAGE(Scores!$B24:P24)*programFactor,0)","v":10.299999999999999},{"$f":"IF(COUNT(Scores!$B24:P24)>0,MEDIAN(Scores!$B24:P24)*programFactor,0)","v":12},{"$f":"IF(getmode(Scores!$B24:P24)=\"\",\"\",getmode(Scores!$B24:P24)*programFactor)","v":12}]
[24,"Program",{"$f":" INDEX(program_table,A26,1)","v":"Shotgun Shooting/Reloading - 12 Gauge"},{"$f":"SUM(Scores!B25:P25)","v":77},null,null,null,null,null,null,6,null,{"$f":"SUM(Scores!$B25:P25)*programFactor","v":115.5},{"$f":"IF(COUNT(Scores!$B25:P25)>0,AVERAGE(Scores!$B25:P25)*programFactor,0)","v":7.7000000000000011},{"$f":"IF(COUNT(Scores!$B25:P25)>0,MEDIAN(Scores!$B25:P25)*programFactor,0)","v":6},{"$f":"IF(getmode(Scores!$B25:P25)=\"\",\"\",getmode(Scores!$B25:P25)*programFactor)","v":1.5}]
[25,"Program",{"$f":" INDEX(program_table,A27,1)","v":"Spar Pole Climbing"},{"$f":"SUM(Scores!B26:P26)","v":103},null,null,null,null,null,null,6,null,{"$f":"SUM(Scores!$B26:P26)*programFactor","v":154.5},{"$f":"IF(COUNT(Scores!$B26:P26)>0,AVERAGE(Scores!$B26:P26)*programFactor,0)","v":11.035714285714285},{"$f":"IF(COUNT(Scores!$B26:P26)>0,MEDIAN(Scores!$B26:P26)*programFactor,0)","v":7.5},{"$f":"IF(getmode(Scores!$B26:P26)=\"\",\"\",getmode(Scores!$B26:P26)*programFactor)","v":7.5}]
[26,"Program",{"$f":" INDEX(program_table,A28,1)","v":"Tie Making & Crosscut Saws"},{"$f":"SUM(Scores!B27:P27)","v":106},null,null,null,null,null,null,6,null,{"$f":"SUM(Scores!$B27:P27)*programFactor","v":159},{"$f":"IF(COUNT(Scores!$B27:P27)>0,AVERAGE(Scores!$B27:P27)*programFactor,0)","v":10.6},{"$f":"IF(COUNT(Scores!$B27:P27)>0,MEDIAN(Scores!$B27:P27)*programFactor,0)","v":10.5},{"$f":"IF(getmode(Scores!$B27:P27)=\"\",\"\",getmode(Scores!$B27:P27)*programFactor)","v":15}]
[27,"Program",{"$f":" INDEX(program_table,A29,1)","v":"Tomahawk Throwing"},{"$f":"SUM(Scores!B28:P28)","v":131},null,null,null,null,null,null,6,null,{"$f":"SUM(Scores!$B28:P28)*programFactor","v":196.5},{"$f":"IF(COUNT(Scores!$B28:P28)>0,AVERAGE(Scores!$B28:P28)*programFactor,0)","v":13.099999999999998},{"$f":"IF(COUNT(Scores!$B28:P28)>0,MEDIAN(Scores!$B28:P28)*programFactor,0)","v":15},{"$f":"IF(getmode(Scores!$B28:P28)=\"\",\"\",getmode(Scores!$B28:P28)*programFactor)","v":3}]
[28,"Program",{"$f":" INDEX(program_table,A30,1)","v":"Trail Peak"},{"$f":"SUM(Scores!B29:P29)","v":119},null,null,null,null,null,null,6,null,{"$f":"SUM(Scores!$B29:P29)*programFactor","v":178.5},{"$f":"IF(COUNT(Scores!$B29:P29)>0,AVERAGE(Scores!$B29:P29)*programFactor,0)","v":14.875},{"$f":"IF(COUNT(Scores!$B29:P29)>0,MEDIAN(Scores!$B29:P29)*programFactor,0)","v":15},{"$f":"IF(getmode(Scores!$B29:P29)=\"\",\"\",getmode(Scores!$B29:P29)*programFactor)","v":3}]
[29,"Program",{"$f":" INDEX(program_table,A31,1)","v":"Western Lore/Branding"},{"$f":"SUM(Scores!B30:P30)","v":108},null,null,null,null,null,null,6,null,{"$f":"SUM(Scores!$B30:P30)*programFactor","v":162},{"$f":"IF(COUNT(Scores!$B30:P30)>0,AVERAGE(Scores!$B30:P30)*programFactor,0)","v":13.5},{"$f":"IF(COUNT(Scores!$B30:P30)>0,MEDIAN(Scores!$B30:P30)*programFactor,0)","v":13.5},{"$f":"IF(getmode(Scores!$B30:P30)=\"\",\"\",getmode(Scores!$B30:P30)*programFactor)","v":15}]
[{"$f":"A31+1","v":30},"Peaks","Baldy Mountain",2]
[31,"Peaks","Trail Peak",1]
[32,"Area","Rank 1",{"$f":"IF(UPPER(areaImportant)=\"Y\",INDEX(areaDefaults,Preferences!B7),0)","v":0},null,null,null,null,1,1000,{"$f":"IF(areaImportant=\"y\",\"Preferences setting is that area is important\", \"Preferences setting is that area is not important\")","v":"Preferences setting is that area is not important"}]
[33,"Area","Rank 2",{"$f":"IF(UPPER(areaImportant)=\"Y\",INDEX(areaDefaults,Preferences!B8),0)","v":0},null,null,null,null,2,150,{"$f":"IF(areaImportant=\"y\",\"These are the default values — MAKE CHANGES HERE\", \"\")","v":""}]
[34,"Days Food",1,100]
[35,"Days Food",2,90]
[36,"Days Food",3,80]
[37,"Days Food",4,70]
[38,"Days Food",5,60]
[39,"Days Food",6,50]
[40,"Food from HQ",1,20]
[41,"Food from HQ",2,30]
[42,"Food from HQ",3,40]
[43,"Food from HQ",4,50]
[44,"Food from HQ",5,60]
[45,"Food from HQ",6,70]
[46,"Food from HQ",7,80]
[47,"Food from HQ",8,90]
[48,"Food from HQ",9,100]
[49,"Trail Camps",0,250]
[50,"Trail Camps",1,200]
[51,"Trail Camps",2,175]
[{"$f":"A53+1","v":52},"Trail Camps",3,150]
[{"$f":"A54+1","v":53},"Trail Camps",4,125]
[{"$f":"A55+1","v":54},"Trail Camps",5,100]
[{"$f":"A56+1","v":55},"Trail Camps",6,75]
[{"$f":"A57+1","v":56},"Trail Camps",7,50]
[57,"Trail Camps",8,25]
[58,"Dry Camps",0,300]
[59,"Dry Camps",1,250]
[60,"Dry Camps",2,225]
[61,"Dry Camps",3,200]
[62,"Dry Camps",4,150]
[63,"Dry Camps",5,100]
[64,"Dry Camps",6,50]
[65,"Dry Camps",7,20]
[66,"Total Camps",3,60]
[67,"Total Camps",4,70]
[68,"Total Camps",5,80]
[69,"Total Camps",6,90]
[70,"Total Camps",7,100]
[71,"Total Camps",8,75]
[72,"Total Camps",9,60]
[73,"Total Camps",10,50]
[74,"Distance","Miles",100]
["These are used for code lookup puposes only.","Difficulty","C","Challenging"]
[null,"Difficulty","R","Rugged"]
[null,"Difficulty","S","Strenuous"]
[null,"Difficulty","SS","Super Strenuous"]
[null,"campType","D","Dry"]
[null,"campType","S","Staffed"]
[null,"campType","T","Trail"]
[null,"campType","X","No  Camping"]

{"sheet":"Detail Informaton","index":9,"n_rows":37,"n_cols":2,"rows_kept":37,"cut":false,"hidden":false,"merged":[[1,0,1,1],[2,0,2,1]]}
["This sheet provides more detailed information about this spreadsheet and may be useful for anyone wishing to modify it."]
["This spreadsheet makes extensive use of \"Protected\" and \"Hidden\" cells and \"Hidden\"  worksheets.  To \"unprotect\" or \"unhide\" any of these, put the cursor on a worksheet tab and right click it.  Click \"Unprotect Sheet...\" and select the worksheet to display.  There are no passwords locking any of the \"hidden\" or \"protected\" areas."]
["There are buttons that may be pressed to select the scoring to be used in the calculation.  These are \"Total\" for the total score, \"Average\" to select the average (or Mean) score, \"Median\" to select the most common score, or \"Mode\" (most frequently used score).  These control the actual score values used in calculation  Try all and see what the difference in the results is."]
[]
["There are a number of \"tabs\" or \"worksheets\".  The use of these is as follows:"]
["Visible:"]
["  Instructions","General use instructions for the user that does not want to make any changes to the spreadsheet."]
["  Preferences","A set of \"preferences\" that may be used to adjust the calculations based on information specific to the crew."]
["  Scores","The \"scores\" for each crewmember from the program survey form.  These are on the basis of 0 to 20."]
["  Results","The calculated \"result\" from fitting the \"scores\" to the itinerary information."]
["  Itinerary Chart","Graph of sorted itineraries — shows relative differences between selections"]
["  Program Chart","This is a graph showing what programs the crewmembers wish to participate in."]
["  Itinerary Details","This provides a snapshot of individual itineraries.  Enter the itinerary the snapship is desired for."]
["  Itinerary Xref Chart","This is the same chart that's in the in the TREKS book"]
["  Tables","This is the set of \"factors\" for each of the various metrics.  These may be modified by the user."]
["  Detail Information","This worksheet."]
["Hidden:  (Note that there are no passwords on these, the user may \"unhide\" them by right-clicking in the tab area)"]
["  Itinerary Camps","Much information updated annually by hand from the TREKS Book.  Information relating to itineraries is calculated from these entries."]
["  ItineraryPrograms","Programs available at camps.  This can be created automatically but must be checked & updated manually.  Can verify with the Itinerary Xref Chart.  This takes a lot of detailed work!"]
["  Descriptions","This is the textual description of each itinerary.  This is manually copied from the TREKS Book each year."]
["  Calculator","This brings the preferences, scores, factors from \"Tables\", and itinerary information together to calculate detailed preference values for each itinerary.  The sum of these is the \"Result\" for each itinerary."]
["  Itineraries","This is information relative to the current year's itineraries.  All is derived from tables in other worksheets."]
["  Programs","Table of Philmont's available programs.  These are specific to 12-Day (all), 9-Day (subset) and 7-Day (subset) treks."]
["  Camp Programs","This is a table of programs available at each staffed camp. Verified manually, used to develop basic info for ItineraryPrograms worksheet.  Does not often change from year to year."]
["  Camp Elevations","This is information relative to Philmont's camps.  It is used in the calculations and in the Itinerary Details printout.  Is a good source of camp names & UTM Coordinates/elevations."]
[]
["Information in the Visible tabs is generally either documented in the worksheet or is self-evident.  Information about the worksheets that may be useful is below."]
["  Scores","Clicking the \"Clear Scores\" button erases all scores for all 12 participants.  User should enter the participant names in row 1."]
["  Results","The left side shows the itineraries that best \"fit\" the crew's desires.  On the right is a table showing the programs the crew desired in preference order.  It indicates which programs are included in each of the top 6 itineraries. "]
["  Itinerary Details","Enter the itinerary number and expedition number to get information about the itinerary including daily information."]
["  Tables","If some of the areas are more important to your crew, you can change the factors used in the calculations here.  The factors are highlighted where arbitrary values were set based on the author's preferences, they may be modified to meet your crew.   Only make changes in the unlocked cells in the Value column or the Green boxes for Area or Skill/Difficulty.  You may navigate between these with the TAB key."]
["  Itineraries","This sheet has information about the current year's itineraries.  Key information is manually updated from the TREKS books (daily campsites, first food pickup day number, method of return to base, peaks hiked, etc.)  Row 1 has the columns that must be updated annually highlighted in red."]
["  itineraryXrefChart","This conforms to the Cross Reference chart in the TREKS book showing itineraries that have programs.  It is based on information in the Itinerary Programs worksheet."]
["  Calculator","This calculates a preference value for each of the metrics.  There is nothing to modify here — the value calculated will be based on values from other worksheets and any modification desired to any metric should be made in those underlying sheets, not in this one."]
["  Camp Elevations","This worksheet is a list of all the camps with details about the camp.  Note that some of the camps are not used and the information may not be complete for them.  It doesn't matter because only the camps included in the current year's itineraries is ever referenced.  All are shown here for completeness.   It is a good source of camp names & UTM Coordinates/elevations."]
["  Descriptions","These descriptions are copied from the TREKS Book and are displayed on the Itinerary Details display."]
["  Camp Programs","This is a table of staffed camps with flags for the programs offered at each.  It is used to provide much of the program inclusion information in the Itineries worksheet."]

{"sheet":"itineraryCamps","index":10,"n_rows":25,"n_cols":128,"rows_kept":25,"cut":false,"hidden":true,"merged":[[1,24,1,26],[23,32,23,36],[1,32,1,36],[1,1,1,3],[0,0,2,0],[1,4,1,13],[1,14,1,23],[1,37,1,46],[1,27,1,31],[1,126,1,127],[1,86,1,95],[1,47,1,55],[1,56,1,65],[1,66,1,75],[1,76,1,85],[1,106,1,115],[1,116,1,125],[1,96,1,105]]}
["(Enter Red columns manually)\n\n\nItinerary",1,{"$f":"B1+1","v":2},3,4,5,{"$f":"F1+1","v":6},{"$f":"G1+1","v":7},{"$f":"H1+1","v":8},{"$f":"I1+1","v":9},10,11,12,13,14,15,16,{"$f":"Q1+1","v":17},18,19,20,21,22,23,24,25,26,27,28,29,30,31,32,33,34,35,36,{"$f":"X1+1","v":24},{"$f":"AL1+1","v":25},26,27,28,29,30,31,32,33,34,35,36,37,38,39,40,41,42,43,44,45,46,47,48,49,50,51,52,53,54,55,56,57,58,59,60,61,62,63,64,65,66,67,68,69,70,71,72,{"$f":"CH1+1","v":73},{"$f":"CI1+1","v":74},{"$f":"CJ1+1","v":75},{"$f":"CK1+1","v":76},{"$f":"CL1+1","v":77},{"$f":"CM1+1","v":78},{"$f":"CN1+1","v":79},{"$f":"CO1+1","v":80},{"$f":"CP1+1","v":81},{"$f":"CQ1+1","v":82},{"$f":"CR1+1","v":83},{"$f":"CS1+1","v":84},{"$f":"CT1+1","v":85},{"$f":"CU1+1","v":86},{"$f":"CV1+1","v":87},{"$f":"CW1+1","v":88},{"$f":"CX1+1","v":89},{"$f":"CY1+1","v":90},{"$f":"CZ1+1","v":91},{"$f":"DA1+1","v":92},{"$f":"DB1+1","v":93},{"$f":"DC1+1","v":94},95,96,97,98,99,100,101,102,103,104,105,106,107,108,109,110,111,112,113,114]
[null,"Itinerary Information",null,null,"Backcountry Camps by Itinerary Day",null,null,null,null,null,null,null,null,null,"Food Pickup's",null,null,null,null,null,null,null,null,null,"Start/End",null,null,"Cross US-64 (Enter Manually)",null,null,null,null,"Peaks (Enter Manually)",null,null,null,null,"Camp Elevation",null,null,null,null,null,null,null,null,null,"Daily Elevation Change",null,null,null,null,null,null,null,null,"Staffed Camp",null,null,null,null,null,null,null,null,null,"Trail Camp",null,null,null,null,null,null,null,null,null,"Dry Camp",null,null,null,null,null,null,null,null,null,"Layovers",null,null,null,null,null,null,null,null,null,"Showers",null,null,null,null,null,null,null,null,null,"Country",null,null,null,null,null,null,null,null,null,"Map",null,null,null,null,null,null,null,null,null,"Food Pickup Info"]
[null,"Itinerary #","Difficulty","Distance","Day 2","Day 3","Day 4","Day 5","Day 6","Day 7","Day 8","Day 9","Day 10","Day 11",2,{"$f":"O3+1","v":3},{"$f":"P3+1","v":4},5,6,7,8,9,10,11,"Starting Trailhead","Ending Trailhead","Via Tooth","Itin:Day","Itinerary #","Day","Cross At","Direction","Baldy","Phillips","Tooth","Trail","Mountaineering",{"$f":"O3","v":2},3,4,5,6,7,8,9,10,11,"2 :: 3","3 :: 4","4 :: 5","5 :: 6","6 :: 7","7 :: 8","8 :: 9","9 :: 10","10 :: 11",2,3,4,5,6,7,8,9,10,11,2,3,4,5,6,7,8,9,10,11,2,3,4,5,6,7,8,9,10,11,2,3,4,5,6,7,8,9,10,11,2,3,4,5,6,7,8,9,10,11,2,3,4,5,6,7,8,9,10,11,2,3,4,5,6,7,8,9,10,11,"Days to 1st Food PU","Max Food Days"]
["1A-N",1,"C",38,"Ponil","Dan Beard","Pueblano","Baldy Town","Baldy Town","Head of Dean",null,null,null,null,"Ponil",null,null,null,"Baldy Town",null,null,null,null,null,"Ponil Gate","Ponil Gate",null,{"$f":"AC4 & \":\" & AD4","v":":"},null,null,null,null,"y",null,null,null,null,{"$f":"IF(E4<>\"\",INDEX(Elevations,MATCH(E4,camps,0)),\"\")","v":7150},7896,8069,9851,9851,8754,"","","","",{"$f":"IF(AM4<>\"\",ABS(AL4-AM4),\"\")","v":746},{"$f":"IF(AN4<>\"\",ABS(AM4-AN4),\"\")","v":173},1782,0,1097,"","","","",{"$f":"IF(INDEX(campsByItinerary,$B4,BE$3-1)=\"\",\"\",VLOOKUP(INDEX(campsByItinerary,$B4,BE$3-1),campInfo,8))","v":"Y"},{"$f":"IF(INDEX(campsByItinerary,$B4,BF$3-1)=\"\",\"\",VLOOKUP(INDEX(campsByItinerary,$B4,BF$3-1),campInfo,8))","v":"Y"},{"$f":"IF(INDEX(campsByItinerary,$B4,BG$3-1)=\"\",\"\",VLOOKUP(INDEX(campsByItinerary,$B4,BG$3-1),campInfo,8))","v":"Y"},{"$f":"IF(INDEX(campsByItinerary,$B4,BH$3-1)=\"\",\"\",VLOOKUP(INDEX(campsByItinerary,$B4,BH$3-1),campInfo,8))","v":"Y"},{"$f":"IF(INDEX(campsByItinerary,$B4,BI$3-1)=\"\",\"\",VLOOKUP(INDEX(campsByItinerary,$B4,BI$3-1),campInfo,8))","v":"Y"},{"$f":"IF(INDEX(campsByItinerary,$B4,BJ$3-1)=\"\",\"\",VLOOKUP(INDEX(campsByItinerary,$B4,BJ$3-1),campInfo,8))","v":"Y"},{"$f":"IF(INDEX(campsByItinerary,$B4,BK$3-1)=\"\",\"\",VLOOKUP(INDEX(campsByItinerary,$B4,BK$3-1),campInfo,8))","v":""},{"$f":"IF(INDEX(campsByItinerary,$B4,BL$3-1)=\"\",\"\",VLOOKUP(INDEX(campsByItinerary,$B4,BL$3-1),campInfo,8))","v":""},{"$f":"IF(INDEX(campsByItinerary,$B4,BM$3-1)=\"\",\"\",VLOOKUP(INDEX(campsByItinerary,$B4,BM$3-1),campInfo,8))","v":""},{"$f":"IF(INDEX(campsByItinerary,$B4,BN$3-1)=\"\",\"\",VLOOKUP(INDEX(campsByItinerary,$B4,BN$3-1),campInfo,8))","v":""},{"$f":"IF(BE4=\"Y\",\"\",\"Y\")","v":""},{"$f":"IF(BF4=\"Y\",\"\",\"Y\")","v":""},"","","","",null,null,null,null,{"$f":"IF(INDEX(campsByItinerary,$B4,BE$3-1)=\"\",\"\",VLOOKUP(INDEX(campsByItinerary,$B4,BE$3-1),campInfo,10))","v":""},{"$f":"IF(INDEX(campsByItinerary,$B4,BF$3-1)=\"\",\"\",VLOOKUP(INDEX(campsByItinerary,$B4,BF$3-1),campInfo,10))","v":""},{"$f":"IF(INDEX(campsByItinerary,$B4,BG$3-1)=\"\",\"\",VLOOKUP(INDEX(campsByItinerary,$B4,BG$3-1),campInfo,10))","v":""},{"$f":"IF(INDEX(campsByItinerary,$B4,BH$3-1)=\"\",\"\",VLOOKUP(INDEX(campsByItinerary,$B4,BH$3-1),campInfo,10))","v":""},{"$f":"IF(INDEX(campsByItinerary,$B4,BI$3-1)=\"\",\"\",VLOOKUP(INDEX(campsByItinerary,$B4,BI$3-1),campInfo,10))","v":""},{"$f":"IF(INDEX(campsByItinerary,$B4,BJ$3-1)=\"\",\"\",VLOOKUP(INDEX(campsByItinerary,$B4,BJ$3-1),campInfo,10))","v":""},{"$f":"IF(INDEX(campsByItinerary,$B4,BK$3-1)=\"\",\"\",VLOOKUP(INDEX(campsByItinerary,$B4,BK$3-1),campInfo,10))","v":""},{"$f":"IF(INDEX(campsByItinerary,$B4,BL$3-1)=\"\",\"\",VLOOKUP(INDEX(campsByItinerary,$B4,BL$3-1),campInfo,10))","v":""},{"$f":"IF(INDEX(campsByItinerary,$B4,BM$3-1)=\"\",\"\",VLOOKUP(INDEX(campsByItinerary,$B4,BM$3-1),campInfo,10))","v":""},{"$f":"IF(INDEX(campsByItinerary,$B4,BN$3-1)=\"\",\"\",VLOOKUP(INDEX(campsByItinerary,$B4,BN$3-1),campInfo,10))","v":""},null,{"$f":"IF(E4=F4,\"Y\",\"\")","v":""},"","","Y","","",null,null,null,{"$f":"IF(INDEX(campsByItinerary,$B4,CS$3-1)=\"\",\"\",VLOOKUP(INDEX(campsByItinerary,$B4,CS$3-1),campInfo,11))","v":"Y"},{"$f":"IF(INDEX(campsByItinerary,$B4,CT$3-1)=\"\",\"\",VLOOKUP(INDEX(campsByItinerary,$B4,CT$3-1),campInfo,11))","v":""},{"$f":"IF(INDEX(campsByItinerary,$B4,CU$3-1)=\"\",\"\",VLOOKUP(INDEX(campsByItinerary,$B4,CU$3-1),campInfo,11))","v":""},{"$f":"IF(INDEX(campsByItinerary,$B4,CV$3-1)=\"\",\"\",VLOOKUP(INDEX(campsByItinerary,$B4,CV$3-1),campInfo,11))","v":"Y"},{"$f":"IF(INDEX(campsByItinerary,$B4,CW$3-1)=\"\",\"\",VLOOKUP(INDEX(campsByItinerary,$B4,CW$3-1),campInfo,11))","v":"Y"},{"$f":"IF(INDEX(campsByItinerary,$B4,CX$3-1)=\"\",\"\",VLOOKUP(INDEX(campsByItinerary,$B4,CX$3-1),campInfo,11))","v":""},{"$f":"IF(INDEX(campsByItinerary,$B4,CY$3-1)=\"\",\"\",VLOOKUP(INDEX(campsByItinerary,$B4,CY$3-1),campInfo,11))","v":""},{"$f":"IF(INDEX(campsByItinerary,$B4,CZ$3-1)=\"\",\"\",VLOOKUP(INDEX(campsByItinerary,$B4,CZ$3-1),campInfo,11))","v":""},{"$f":"IF(INDEX(campsByItinerary,$B4,DA$3-1)=\"\",\"\",VLOOKUP(INDEX(campsByItinerary,$B4,DA$3-1),campInfo,11))","v":""},{"$f":"IF(INDEX(campsByItinerary,$B4,DB$3-1)=\"\",\"\",VLOOKUP(INDEX(campsByItinerary,$B4,DB$3-1),campInfo,11))","v":""},{"$f":"IF(INDEX(campsByItinerary,$B4,BE$3-1)=\"\",\"\",VLOOKUP(INDEX(campsByItinerary,$B4,BE$3-1),campInfo,2))","v":"North"},{"$f":"IF(INDEX(campsByItinerary,$B4,BF$3-1)=\"\",\"\",VLOOKUP(INDEX(campsByItinerary,$B4,BF$3-1),campInfo,2))","v":"North"},{"$f":"IF(INDEX(campsByItinerary,$B4,BG$3-1)=\"\",\"\",VLOOKUP(INDEX(campsByItinerary,$B4,BG$3-1),campInfo,2))","v":"North"},{"$f":"IF(INDEX(campsByItinerary,$B4,BH$3-1)=\"\",\"\",VLOOKUP(INDEX(campsByItinerary,$B4,BH$3-1),campInfo,2))","v":"North"},{"$f":"IF(INDEX(campsByItinerary,$B4,BI$3-1)=\"\",\"\",VLOOKUP(INDEX(campsByItinerary,$B4,BI$3-1),campInfo,2))","v":"North"},{"$f":"IF(INDEX(campsByItinerary,$B4,BJ$3-1)=\"\",\"\",VLOOKUP(INDEX(campsByItinerary,$B4,BJ$3-1),campInfo,2))","v":"North"},{"$f":"IF(INDEX(campsByItinerary,$B4,BK$3-1)=\"\",\"\",VLOOKUP(INDEX(campsByItinerary,$B4,BK$3-1),campInfo,2))","v":""},{"$f":"IF(INDEX(campsByItinerary,$B4,BL$3-1)=\"\",\"\",VLOOKUP(INDEX(campsByItinerary,$B4,BL$3-1),campInfo,2))","v":""},{"$f":"IF(INDEX(campsByItinerary,$B4,BM$3-1)=\"\",\"\",VLOOKUP(INDEX(campsByItinerary,$B4,BM$3-1),campInfo,2))","v":""},{"$f":"IF(INDEX(campsByItinerary,$B4,BN$3-1)=\"\",\"\",VLOOKUP(INDEX(campsByItinerary,$B4,BN$3-1),campInfo,2))","v":""},{"$f":"IF(INDEX(campsByItinerary,$B4,BO$3-1)=\"\",\"\",VLOOKUP(INDEX(campsByItinerary,$B4,BO$3-1),campInfo,12))","v":"North"},{"$f":"IF(INDEX(campsByItinerary,$B4,BP$3-1)=\"\",\"\",VLOOKUP(INDEX(campsByItinerary,$B4,BP$3-1),campInfo,12))","v":"North"},{"$f":"IF(INDEX(campsByItinerary,$B4,BQ$3-1)=\"\",\"\",VLOOKUP(INDEX(campsByItinerary,$B4,BQ$3-1),campInfo,12))","v":"North"},{"$f":"IF(INDEX(campsByItinerary,$B4,BR$3-1)=\"\",\"\",VLOOKUP(INDEX(campsByItinerary,$B4,BR$3-1),campInfo,12))","v":"North"},{"$f":"IF(INDEX(campsByItinerary,$B4,BS$3-1)=\"\",\"\",VLOOKUP(INDEX(campsByItinerary,$B4,BS$3-1),campInfo,12))","v":"North"},{"$f":"IF(INDEX(campsByItinerary,$B4,BT$3-1)=\"\",\"\",VLOOKUP(INDEX(campsByItinerary,$B4,BT$3-1),campInfo,12))","v":"North"},{"$f":"IF(INDEX(campsByItinerary,$B4,BU$3-1)=\"\",\"\",VLOOKUP(INDEX(campsByItinerary,$B4,BU$3-1),campInfo,12))","v":""},{"$f":"IF(INDEX(campsByItinerary,$B4,BV$3-1)=\"\",\"\",VLOOKUP(INDEX(campsByItinerary,$B4,BV$3-1),campInfo,12))","v":""},{"$f":"IF(INDEX(campsByItinerary,$B4,BW$3-1)=\"\",\"\",VLOOKUP(INDEX(campsByItinerary,$B4,BW$3-1),campInfo,12))","v":""},{"$f":"IF(INDEX(campsByItinerary,$B4,BX$3-1)=\"\",\"\",VLOOKUP(INDEX(campsByItinerary,$B4,BX$3-1),campInfo,12))","v":""},{"$f":"getfoodPU(\"First\",$B4)","v":4},{"$f":"getfoodPU(\"Max\",$B4)","v":4}]
["1B-N",{"$f":"B4+1","v":2},"C",44,"Ponil","Head of Dean","Baldy Town","Baldy Town","Pueblano","Dan Beard",null,null,null,null,"Ponil",null,null,"Baldy Town",null,null,null,null,null,null,"Ponil Gate","Ponil Gate",null,":",null,null,null,null,"y",null,null,null,null,{"$f":"IF(E5<>\"\",INDEX(Elevations,MATCH(E5,camps,0)),\"\")","v":7150},{"$f":"IF(F5<>\"\",INDEX(Elevations,MATCH(F5,camps,0)),\"\")","v":8754},{"$f":"IF(G5<>\"\",INDEX(Elevations,MATCH(G5,camps,0)),\"\")","v":9851},{"$f":"IF(H5<>\"\",INDEX(Elevations,MATCH(H5,camps,0)),\"\")","v":9851},{"$f":"IF(I5<>\"\",INDEX(Elevations,MATCH(I5,camps,0)),\"\")","v":8069},{"$f":"IF(J5<>\"\",INDEX(Elevations,MATCH(J5,camps,0)),\"\")","v":7896},{"$f":"IF(K5<>\"\",INDEX(Elevations,MATCH(K5,camps,0)),\"\")","v":""},{"$f":"IF(L5<>\"\",INDEX(Elevations,MATCH(L5,camps,0)),\"\")","v":""},{"$f":"IF(M5<>\"\",INDEX(Elevations,MATCH(M5,camps,0)),\"\")","v":""},{"$f":"IF(N5<>\"\",INDEX(Elevations,MATCH(N5,camps,0)),\"\")","v":""},{"$f":"IF(AM5<>\"\",ABS(AL5-AM5),\"\")","v":1604},{"$f":"IF(AN5<>\"\",ABS(AM5-AN5),\"\")","v":1097},{"$f":"IF(AO5<>\"\",ABS(AN5-AO5),\"\")","v":0},{"$f":"IF(AP5<>\"\",ABS(AO5-AP5),\"\")","v":1782},{"$f":"IF(AQ5<>\"\",ABS(AP5-AQ5),\"\")","v":173},{"$f":"IF(AR5<>\"\",ABS(AQ5-AR5),\"\")","v":""},{"$f":"IF(AS5<>\"\",ABS(AR5-AS5),\"\")","v":""},{"$f":"IF(AT5<>\"\",ABS(AS5-AT5),\"\")","v":""},{"$f":"IF(AU5<>\"\",ABS(AT5-AU5),\"\")","v":""},{"$f":"IF(INDEX(campsByItinerary,$B5,BE$3-1)=\"\",\"\",VLOOKUP(INDEX(campsByItinerary,$B5,BE$3-1),campInfo,8))","v":"Y"},{"$f":"IF(INDEX(campsByItinerary,$B5,BF$3-1)=\"\",\"\",VLOOKUP(INDEX(campsByItinerary,$B5,BF$3-1),campInfo,8))","v":"Y"},{"$f":"IF(INDEX(campsByItinerary,$B5,BG$3-1)=\"\",\"\",VLOOKUP(INDEX(campsByItinerary,$B5,BG$3-1),campInfo,8))","v":"Y"},{"$f":"IF(INDEX(campsByItinerary,$B5,BH$3-1)=\"\",\"\",VLOOKUP(INDEX(campsByItinerary,$B5,BH$3-1),campInfo,8))","v":"Y"},{"$f":"IF(INDEX(campsByItinerary,$B5,BI$3-1)=\"\",\"\",VLOOKUP(INDEX(campsByItinerary,$B5,BI$3-1),campInfo,8))","v":"Y"},{"$f":"IF(INDEX(campsByItinerary,$B5,BJ$3-1)=\"\",\"\",VLOOKUP(INDEX(campsByItinerary,$B5,BJ$3-1),campInfo,8))","v":"Y"},{"$f":"IF(INDEX(campsByItinerary,$B5,BK$3-1)=\"\",\"\",VLOOKUP(INDEX(campsByItinerary,$B5,BK$3-1),campInfo,8))","v":""},{"$f":"IF(INDEX(campsByItinerary,$B5,BL$3-1)=\"\",\"\",VLOOKUP(INDEX(campsByItinerary,$B5,BL$3-1),campInfo,8))","v":""},{"$f":"IF(INDEX(campsByItinerary,$B5,BM$3-1)=\"\",\"\",VLOOKUP(INDEX(campsByItinerary,$B5,BM$3-1),campInfo,8))","v":""},{"$f":"IF(INDEX(campsByItinerary,$B5,BN$3-1)=\"\",\"\",VLOOKUP(INDEX(campsByItinerary,$B5,BN$3-1),campInfo,8))","v":""},{"$f":"IF(BE5=\"Y\",\"\",\"Y\")","v":""},{"$f":"IF(BF5=\"Y\",\"\",\"Y\")","v":""},{"$f":"IF(BG5=\"Y\",\"\",\"Y\")","v":""},{"$f":"IF(BH5=\"Y\",\"\",\"Y\")","v":""},{"$f":"IF(BI5=\"Y\",\"\",\"Y\")","v":""},{"$f":"IF(BJ5=\"Y\",\"\",\"Y\")","v":""},null,null,null,null,{"$f":"IF(INDEX(campsByItinerary,$B5,BE$3-1)=\"\",\"\",VLOOKUP(INDEX(campsByItinerary,$B5,BE$3-1),campInfo,10))","v":""},{"$f":"IF(INDEX(campsByItinerary,$B5,BF$3-1)=\"\",\"\",VLOOKUP(INDEX(campsByItinerary,$B5,BF$3-1),campInfo,10))","v":""},{"$f":"IF(INDEX(campsByItinerary,$B5,BG$3-1)=\"\",\"\",VLOOKUP(INDEX(campsByItinerary,$B5,BG$3-1),campInfo,10))","v":""},{"$f":"IF(INDEX(campsByItinerary,$B5,BH$3-1)=\"\",\"\",VLOOKUP(INDEX(campsByItinerary,$B5,BH$3-1),campInfo,10))","v":""},{"$f":"IF(INDEX(campsByItinerary,$B5,BI$3-1)=\"\",\"\",VLOOKUP(INDEX(campsByItinerary,$B5,BI$3-1),campInfo,10))","v":""},{"$f":"IF(INDEX(campsByItinerary,$B5,BJ$3-1)=\"\",\"\",VLOOKUP(INDEX(campsByItinerary,$B5,BJ$3-1),campInfo,10))","v":""},{"$f":"IF(INDEX(campsByItinerary,$B5,BK$3-1)=\"\",\"\",VLOOKUP(INDEX(campsByItinerary,$B5,BK$3-1),campInfo,10))","v":""},{"$f":"IF(INDEX(campsByItinerary,$B5,BL$3-1)=\"\",\"\",VLOOKUP(INDEX(campsByItinerary,$B5,BL$3-1),campInfo,10))","v":""},{"$f":"IF(INDEX(campsByItinerary,$B5,BM$3-1)=\"\",\"\",VLOOKUP(INDEX(campsByItinerary,$B5,BM$3-1),campInfo,10))","v":""},{"$f":"IF(INDEX(campsByItinerary,$B5,BN$3-1)=\"\",\"\",VLOOKUP(INDEX(campsByItinerary,$B5,BN$3-1),campInfo,10))","v":""},null,{"$f":"IF(E5=F5,\"Y\",\"\")","v":""},{"$f":"IF(F5=G5,\"Y\",\"\")","v":""},{"$f":"IF(G5=H5,\"Y\",\"\")","v":"Y"},{"$f":"IF(H5=I5,\"Y\",\"\")","v":""},{"$f":"IF(I5=J5,\"Y\",\"\")","v":""},{"$f":"IF(J5=K5,\"Y\",\"\")","v":""},null,null,null,{"$f":"IF(INDEX(campsByItinerary,$B5,CS$3-1)=\"\",\"\",VLOOKUP(INDEX(campsByItinerary,$B5,CS$3-1),campInfo,11))","v":"Y"},{"$f":"IF(INDEX(campsByItinerary,$B5,CT$3-1)=\"\",\"\",VLOOKUP(INDEX(campsByItinerary,$B5,CT$3-1),campInfo,11))","v":""},{"$f":"IF(INDEX(campsByItinerary,$B5,CU$3-1)=\"\",\"\",VLOOKUP(INDEX(campsByItinerary,$B5,CU$3-1),campInfo,11))","v":"Y"},{"$f":"IF(INDEX(campsByItinerary,$B5,CV$3-1)=\"\",\"\",VLOOKUP(INDEX(campsByItinerary,$B5,CV$3-1),campInfo,11))","v":"Y"},{"$f":"IF(INDEX(campsByItinerary,$B5,CW$3-1)=\"\",\"\",VLOOKUP(INDEX(campsByItinerary,$B5,CW$3-1),campInfo,11))","v":""},{"$f":"IF(INDEX(campsByItinerary,$B5,CX$3-1)=\"\",\"\",VLOOKUP(INDEX(campsByItinerary,$B5,CX$3-1),campInfo,11))","v":""},{"$f":"IF(INDEX(campsByItinerary,$B5,CY$3-1)=\"\",\"\",VLOOKUP(INDEX(campsByItinerary,$B5,CY$3-1),campInfo,11))","v":""},{"$f":"IF(INDEX(campsByItinerary,$B5,CZ$3-1)=\"\",\"\",VLOOKUP(INDEX(campsByItinerary,$B5,CZ$3-1),campInfo,11))","v":""},{"$f":"IF(INDEX(campsByItinerary,$B5,DA$3-1)=\"\",\"\",VLOOKUP(INDEX(campsByItinerary,$B5,DA$3-1),campInfo,11))","v":""},{"$f":"IF(INDEX(campsByItinerary,$B5,DB$3-1)=\"\",\"\",VLOOKUP(INDEX(campsByItinerary,$B5,DB$3-1),campInfo,11))","v":""},{"$f":"IF(INDEX(campsByItinerary,$B5,BE$3-1)=\"\",\"\",VLOOKUP(INDEX(campsByItinerary,$B5,BE$3-1),campInfo,2))","v":"North"},{"$f":"IF(INDEX(campsByItinerary,$B5,BF$3-1)=\"\",\"\",VLOOKUP(INDEX(campsByItinerary,$B5,BF$3-1),campInfo,2))","v":"North"},{"$f":"IF(INDEX(campsByItinerary,$B5,BG$3-1)=\"\",\"\",VLOOKUP(INDEX(campsByItinerary,$B5,BG$3-1),campInfo,2))","v":"North"},{"$f":"IF(INDEX(campsByItinerary,$B5,BH$3-1)=\"\",\"\",VLOOKUP(INDEX(campsByItinerary,$B5,BH$3-1),campInfo,2))","v":"North"},{"$f":"IF(INDEX(campsByItinerary,$B5,BI$3-1)=\"\",\"\",VLOOKUP(INDEX(campsByItinerary,$B5,BI$3-1),campInfo,2))","v":"North"},{"$f":"IF(INDEX(campsByItinerary,$B5,BJ$3-1)=\"\",\"\",VLOOKUP(INDEX(campsByItinerary,$B5,BJ$3-1),campInfo,2))","v":"North"},{"$f":"IF(INDEX(campsByItinerary,$B5,BK$3-1)=\"\",\"\",VLOOKUP(INDEX(campsByItinerary,$B5,BK$3-1),campInfo,2))","v":""},{"$f":"IF(INDEX(campsByItinerary,$B5,BL$3-1)=\"\",\"\",VLOOKUP(INDEX(campsByItinerary,$B5,BL$3-1),campInfo,2))","v":""},{"$f":"IF(INDEX(campsByItinerary,$B5,BM$3-1)=\"\",\"\",VLOOKUP(INDEX(campsByItinerary,$B5,BM$3-1),campInfo,2))","v":""},{"$f":"IF(INDEX(campsByItinerary,$B5,BN$3-1)=\"\",\"\",VLOOKUP(INDEX(campsByItinerary,$B5,BN$3-1),campInfo,2))","v":""},{"$f":"IF(INDEX(campsByItinerary,$B5,BO$3-1)=\"\",\"\",VLOOKUP(INDEX(campsByItinerary,$B5,BO$3-1),campInfo,12))","v":"North"},{"$f":"IF(INDEX(campsByItinerary,$B5,BP$3-1)=\"\",\"\",VLOOKUP(INDEX(campsByItinerary,$B5,BP$3-1),campInfo,12))","v":"North"},{"$f":"IF(INDEX(campsByItinerary,$B5,BQ$3-1)=\"\",\"\",VLOOKUP(INDEX(campsByItinerary,$B5,BQ$3-1),campInfo,12))","v":"North"},{"$f":"IF(INDEX(campsByItinerary,$B5,BR$3-1)=\"\",\"\",VLOOKUP(INDEX(campsByItinerary,$B5,BR$3-1),campInfo,12))","v":"North"},{"$f":"IF(INDEX(campsByItinerary,$B5,BS$3-1)=\"\",\"\",VLOOKUP(INDEX(campsByItinerary,$B5,BS$3-1),campInfo,12))","v":"North"},{"$f":"IF(INDEX(campsByItinerary,$B5,BT$3-1)=\"\",\"\",VLOOKUP(INDEX(campsByItinerary,$B5,BT$3-1),campInfo,12))","v":"North"},{"$f":"IF(INDEX(campsByItinerary,$B5,BU$3-1)=\"\",\"\",VLOOKUP(INDEX(campsByItinerary,$B5,BU$3-1),campInfo,12))","v":""},{"$f":"IF(INDEX(campsByItinerary,$B5,BV$3-1)=\"\",\"\",VLOOKUP(INDEX(campsByItinerary,$B5,BV$3-1),campInfo,12))","v":""},{"$f":"IF(INDEX(campsByItinerary,$B5,BW$3-1)=\"\",\"\",VLOOKUP(INDEX(campsByItinerary,$B5,BW$3-1),campInfo,12))","v":""},{"$f":"IF(INDEX(campsByItinerary,$B5,BX$3-1)=\"\",\"\",VLOOKUP(INDEX(campsByItinerary,$B5,BX$3-1),campInfo,12))","v":""},{"$f":"getfoodPU(\"First\",$B5)","v":3},{"$f":"getfoodPU(\"Max\",$B5)","v":3}]
["2A-N",{"$f":"B5+1","v":3},"C",36,"Ponil","Pueblano","Baldy Town","Baldy Town","Miranda","Head of Dean",null,null,null,null,"Ponil",null,null,"Baldy Town",null,null,null,null,null,null,"Ponil Gate","Ponil Gate",null,{"$f":"AC6 & \":\" & AD6","v":":"},null,null,null,null,"y",null,null,null,null,7150,8069,9851,9851,8898,8754,"","","","",919,1782,0,953,144,"","","","",{"$f":"IF(INDEX(campsByItinerary,$B6,BE$3-1)=\"\",\"\",VLOOKUP(INDEX(campsByItinerary,$B6,BE$3-1),campInfo,8))","v":"Y"},{"$f":"IF(INDEX(campsByItinerary,$B6,BF$3-1)=\"\",\"\",VLOOKUP(INDEX(campsByItinerary,$B6,BF$3-1),campInfo,8))","v":"Y"},{"$f":"IF(INDEX(campsByItinerary,$B6,BG$3-1)=\"\",\"\",VLOOKUP(INDEX(campsByItinerary,$B6,BG$3-1),campInfo,8))","v":"Y"},{"$f":"IF(INDEX(campsByItinerary,$B6,BH$3-1)=\"\",\"\",VLOOKUP(INDEX(campsByItinerary,$B6,BH$3-1),campInfo,8))","v":"Y"},{"$f":"IF(INDEX(campsByItinerary,$B6,BI$3-1)=\"\",\"\",VLOOKUP(INDEX(campsByItinerary,$B6,BI$3-1),campInfo,8))","v":"Y"},{"$f":"IF(INDEX(campsByItinerary,$B6,BJ$3-1)=\"\",\"\",VLOOKUP(INDEX(campsByItinerary,$B6,BJ$3-1),campInfo,8))","v":"Y"},{"$f":"IF(INDEX(campsByItinerary,$B6,BK$3-1)=\"\",\"\",VLOOKUP(INDEX(campsByItinerary,$B6,BK$3-1),campInfo,8))","v":""},{"$f":"IF(INDEX(campsByItinerary,$B6,BL$3-1)=\"\",\"\",VLOOKUP(INDEX(campsByItinerary,$B6,BL$3-1),campInfo,8))","v":""},{"$f":"IF(INDEX(campsByItinerary,$B6,BM$3-1)=\"\",\"\",VLOOKUP(INDEX(campsByItinerary,$B6,BM$3-1),campInfo,8))","v":""},{"$f":"IF(INDEX(campsByItinerary,$B6,BN$3-1)=\"\",\"\",VLOOKUP(INDEX(campsByItinerary,$B6,BN$3-1),campInfo,8))","v":""},"","","","","","",null,null,null,null,{"$f":"IF(INDEX(campsByItinerary,$B6,BE$3-1)=\"\",\"\",VLOOKUP(INDEX(campsByItinerary,$B6,BE$3-1),campInfo,10))","v":""},{"$f":"IF(INDEX(campsByItinerary,$B6,BF$3-1)=\"\",\"\",VLOOKUP(INDEX(campsByItinerary,$B6,BF$3-1),campInfo,10))","v":""},{"$f":"IF(INDEX(campsByItinerary,$B6,BG$3-1)=\"\",\"\",VLOOKUP(INDEX(campsByItinerary,$B6,BG$3-1),campInfo,10))","v":""},{"$f":"IF(INDEX(campsByItinerary,$B6,BH$3-1)=\"\",\"\",VLOOKUP(INDEX(campsByItinerary,$B6,BH$3-1),campInfo,10))","v":""},{"$f":"IF(INDEX(campsByItinerary,$B6,BI$3-1)=\"\",\"\",VLOOKUP(INDEX(campsByItinerary,$B6,BI$3-1),campInfo,10))","v":""},{"$f":"IF(INDEX(campsByItinerary,$B6,BJ$3-1)=\"\",\"\",VLOOKUP(INDEX(campsByItinerary,$B6,BJ$3-1),campInfo,10))","v":""},{"$f":"IF(INDEX(campsByItinerary,$B6,BK$3-1)=\"\",\"\",VLOOKUP(INDEX(campsByItinerary,$B6,BK$3-1),campInfo,10))","v":""},{"$f":"IF(INDEX(campsByItinerary,$B6,BL$3-1)=\"\",\"\",VLOOKUP(INDEX(campsByItinerary,$B6,BL$3-1),campInfo,10))","v":""},{"$f":"IF(INDEX(campsByItinerary,$B6,BM$3-1)=\"\",\"\",VLOOKUP(INDEX(campsByItinerary,$B6,BM$3-1),campInfo,10))","v":""},{"$f":"IF(INDEX(campsByItinerary,$B6,BN$3-1)=\"\",\"\",VLOOKUP(INDEX(campsByItinerary,$B6,BN$3-1),campInfo,10))","v":""},null,"","","Y","","","",null,null,null,{"$f":"IF(INDEX(campsByItinerary,$B6,CS$3-1)=\"\",\"\",VLOOKUP(INDEX(campsByItinerary,$B6,CS$3-1),campInfo,11))","v":"Y"},{"$f":"IF(INDEX(campsByItinerary,$B6,CT$3-1)=\"\",\"\",VLOOKUP(INDEX(campsByItinerary,$B6,CT$3-1),campInfo,11))","v":""},{"$f":"IF(INDEX(campsByItinerary,$B6,CU$3-1)=\"\",\"\",VLOOKUP(INDEX(campsByItinerary,$B6,CU$3-1),campInfo,11))","v":"Y"},{"$f":"IF(INDEX(campsByItinerary,$B6,CV$3-1)=\"\",\"\",VLOOKUP(INDEX(campsByItinerary,$B6,CV$3-1),campInfo,11))","v":"Y"},{"$f":"IF(INDEX(campsByItinerary,$B6,CW$3-1)=\"\",\"\",VLOOKUP(INDEX(campsByItinerary,$B6,CW$3-1),campInfo,11))","v":""},{"$f":"IF(INDEX(campsByItinerary,$B6,CX$3-1)=\"\",\"\",VLOOKUP(INDEX(campsByItinerary,$B6,CX$3-1),campInfo,11))","v":""},{"$f":"IF(INDEX(campsByItinerary,$B6,CY$3-1)=\"\",\"\",VLOOKUP(INDEX(campsByItinerary,$B6,CY$3-1),campInfo,11))","v":""},{"$f":"IF(INDEX(campsByItinerary,$B6,CZ$3-1)=\"\",\"\",VLOOKUP(INDEX(campsByItinerary,$B6,CZ$3-1),campInfo,11))","v":""},{"$f":"IF(INDEX(campsByItinerary,$B6,DA$3-1)=\"\",\"\",VLOOKUP(INDEX(campsByItinerary,$B6,DA$3-1),campInfo,11))","v":""},{"$f":"IF(INDEX(campsByItinerary,$B6,DB$3-1)=\"\",\"\",VLOOKUP(INDEX(campsByItinerary,$B6,DB$3-1),campInfo,11))","v":""},{"$f":"IF(INDEX(campsByItinerary,$B6,BE$3-1)=\"\",\"\",VLOOKUP(INDEX(campsByItinerary,$B6,BE$3-1),campInfo,2))","v":"North"},{"$f":"IF(INDEX(campsByItinerary,$B6,BF$3-1)=\"\",\"\",VLOOKUP(INDEX(campsByItinerary,$B6,BF$3-1),campInfo,2))","v":"North"},{"$f":"IF(INDEX(campsByItinerary,$B6,BG$3-1)=\"\",\"\",VLOOKUP(INDEX(campsByItinerary,$B6,BG$3-1),campInfo,2))","v":"North"},{"$f":"IF(INDEX(campsByItinerary,$B6,BH$3-1)=\"\",\"\",VLOOKUP(INDEX(campsByItinerary,$B6,BH$3-1),campInfo,2))","v":"North"},{"$f":"IF(INDEX(campsByItinerary,$B6,BI$3-1)=\"\",\"\",VLOOKUP(INDEX(campsByItinerary,$B6,BI$3-1),campInfo,2))","v":"North"},{"$f":"IF(INDEX(campsByItinerary,$B6,BJ$3-1)=\"\",\"\",VLOOKUP(INDEX(campsByItinerary,$B6,BJ$3-1),campInfo,2))","v":"North"},{"$f":"IF(INDEX(campsByItinerary,$B6,BK$3-1)=\"\",\"\",VLOOKUP(INDEX(campsByItinerary,$B6,BK$3-1),campInfo,2))","v":""},{"$f":"IF(INDEX(campsByItinerary,$B6,BL$3-1)=\"\",\"\",VLOOKUP(INDEX(campsByItinerary,$B6,BL$3-1),campInfo,2))","v":""},{"$f":"IF(INDEX(campsByItinerary,$B6,BM$3-1)=\"\",\"\",VLOOKUP(INDEX(campsByItinerary,$B6,BM$3-1),campInfo,2))","v":""},{"$f":"IF(INDEX(campsByItinerary,$B6,BN$3-1)=\"\",\"\",VLOOKUP(INDEX(campsByItinerary,$B6,BN$3-1),campInfo,2))","v":""},{"$f":"IF(INDEX(campsByItinerary,$B6,BO$3-1)=\"\",\"\",VLOOKUP(INDEX(campsByItinerary,$B6,BO$3-1),campInfo,12))","v":"North"},{"$f":"IF(INDEX(campsByItinerary,$B6,BP$3-1)=\"\",\"\",VLOOKUP(INDEX(campsByItinerary,$B6,BP$3-1),campInfo,12))","v":"North"},{"$f":"IF(INDEX(campsByItinerary,$B6,BQ$3-1)=\"\",\"\",VLOOKUP(INDEX(campsByItinerary,$B6,BQ$3-1),campInfo,12))","v":"North"},{"$f":"IF(INDEX(campsByItinerary,$B6,BR$3-1)=\"\",\"\",VLOOKUP(INDEX(campsByItinerary,$B6,BR$3-1),campInfo,12))","v":"North"},{"$f":"IF(INDEX(campsByItinerary,$B6,BS$3-1)=\"\",\"\",VLOOKUP(INDEX(campsByItinerary,$B6,BS$3-1),campInfo,12))","v":"North"},{"$f":"IF(INDEX(campsByItinerary,$B6,BT$3-1)=\"\",\"\",VLOOKUP(INDEX(campsByItinerary,$B6,BT$3-1),campInfo,12))","v":"North"},{"$f":"IF(INDEX(campsByItinerary,$B6,BU$3-1)=\"\",\"\",VLOOKUP(INDEX(campsByItinerary,$B6,BU$3-1),campInfo,12))","v":""},{"$f":"IF(INDEX(campsByItinerary,$B6,BV$3-1)=\"\",\"\",VLOOKUP(INDEX(campsByItinerary,$B6,BV$3-1),campInfo,12))","v":""},{"$f":"IF(INDEX(campsByItinerary,$B6,BW$3-1)=\"\",\"\",VLOOKUP(INDEX(campsByItinerary,$B6,BW$3-1),campInfo,12))","v":""},{"$f":"IF(INDEX(campsByItinerary,$B6,BX$3-1)=\"\",\"\",VLOOKUP(INDEX(campsByItinerary,$B6,BX$3-1),campInfo,12))","v":""},{"$f":"getfoodPU(\"First\",$B6)","v":3},{"$f":"getfoodPU(\"Max\",$B6)","v":3}]
["2B-N",4,"C",36,"Ponil","Head of Dean","Miranda","Baldy Town","Baldy Town","Pueblano",null,null,null,null,"Ponil",null,null,null,"Baldy Town",null,null,null,null,null,"Ponil Gate","Ponil Gate",null,":",null,null,null,null,"y",null,null,null,null,7150,8754,8898,9851,9851,8069,"","","","",1604,144,953,0,1782,"","","","",{"$f":"IF(INDEX(campsByItinerary,$B7,BE$3-1)=\"\",\"\",VLOOKUP(INDEX(campsByItinerary,$B7,BE$3-1),campInfo,8))","v":"Y"},{"$f":"IF(INDEX(campsByItinerary,$B7,BF$3-1)=\"\",\"\",VLOOKUP(INDEX(campsByItinerary,$B7,BF$3-1),campInfo,8))","v":"Y"},{"$f":"IF(INDEX(campsByItinerary,$B7,BG$3-1)=\"\",\"\",VLOOKUP(INDEX(campsByItinerary,$B7,BG$3-1),campInfo,8))","v":"Y"},{"$f":"IF(INDEX(campsByItinerary,$B7,BH$3-1)=\"\",\"\",VLOOKUP(INDEX(campsByItinerary,$B7,BH$3-1),campInfo,8))","v":"Y"},{"$f":"IF(INDEX(campsByItinerary,$B7,BI$3-1)=\"\",\"\",VLOOKUP(INDEX(campsByItinerary,$B7,BI$3-1),campInfo,8))","v":"Y"},{"$f":"IF(INDEX(campsByItinerary,$B7,BJ$3-1)=\"\",\"\",VLOOKUP(INDEX(campsByItinerary,$B7,BJ$3-1),campInfo,8))","v":"Y"},{"$f":"IF(INDEX(campsByItinerary,$B7,BK$3-1)=\"\",\"\",VLOOKUP(INDEX(campsByItinerary,$B7,BK$3-1),campInfo,8))","v":""},{"$f":"IF(INDEX(campsByItinerary,$B7,BL$3-1)=\"\",\"\",VLOOKUP(INDEX(campsByItinerary,$B7,BL$3-1),campInfo,8))","v":""},{"$f":"IF(INDEX(campsByItinerary,$B7,BM$3-1)=\"\",\"\",VLOOKUP(INDEX(campsByItinerary,$B7,BM$3-1),campInfo,8))","v":""},{"$f":"IF(INDEX(campsByItinerary,$B7,BN$3-1)=\"\",\"\",VLOOKUP(INDEX(campsByItinerary,$B7,BN$3-1),campInfo,8))","v":""},"","","","","","",null,null,null,null,{"$f":"IF(INDEX(campsByItinerary,$B7,BE$3-1)=\"\",\"\",VLOOKUP(INDEX(campsByItinerary,$B7,BE$3-1),campInfo,10))","v":""},{"$f":"IF(INDEX(campsByItinerary,$B7,BF$3-1)=\"\",\"\",VLOOKUP(INDEX(campsByItinerary,$B7,BF$3-1),campInfo,10))","v":""},{"$f":"IF(INDEX(campsByItinerary,$B7,BG$3-1)=\"\",\"\",VLOOKUP(INDEX(campsByItinerary,$B7,BG$3-1),campInfo,10))","v":""},{"$f":"IF(INDEX(campsByItinerary,$B7,BH$3-1)=\"\",\"\",VLOOKUP(INDEX(campsByItinerary,$B7,BH$3-1),campInfo,10))","v":""},{"$f":"IF(INDEX(campsByItinerary,$B7,BI$3-1)=\"\",\"\",VLOOKUP(INDEX(campsByItinerary,$B7,BI$3-1),campInfo,10))","v":""},{"$f":"IF(INDEX(campsByItinerary,$B7,BJ$3-1)=\"\",\"\",VLOOKUP(INDEX(campsByItinerary,$B7,BJ$3-1),campInfo,10))","v":""},{"$f":"IF(INDEX(campsByItinerary,$B7,BK$3-1)=\"\",\"\",VLOOKUP(INDEX(campsByItinerary,$B7,BK$3-1),campInfo,10))","v":""},{"$f":"IF(INDEX(campsByItinerary,$B7,BL$3-1)=\"\",\"\",VLOOKUP(INDEX(campsByItinerary,$B7,BL$3-1),campInfo,10))","v":""},{"$f":"IF(INDEX(campsByItinerary,$B7,BM$3-1)=\"\",\"\",VLOOKUP(INDEX(campsByItinerary,$B7,BM$3-1),campInfo,10))","v":""},{"$f":"IF(INDEX(campsByItinerary,$B7,BN$3-1)=\"\",\"\",VLOOKUP(INDEX(campsByItinerary,$B7,BN$3-1),campInfo,10))","v":""},null,"","","","Y","","",null,null,null,{"$f":"IF(INDEX(campsByItinerary,$B7,CS$3-1)=\"\",\"\",VLOOKUP(INDEX(campsByItinerary,$B7,CS$3-1),campInfo,11))","v":"Y"},{"$f":"IF(INDEX(campsByItinerary,$B7,CT$3-1)=\"\",\"\",VLOOKUP(INDEX(campsByItinerary,$B7,CT$3-1),campInfo,11))","v":""},{"$f":"IF(INDEX(campsByItinerary,$B7,CU$3-1)=\"\",\"\",VLOOKUP(INDEX(campsByItinerary,$B7,CU$3-1),campInfo,11))","v":""},{"$f":"IF(INDEX(campsByItinerary,$B7,CV$3-1)=\"\",\"\",VLOOKUP(INDEX(campsByItinerary,$B7,CV$3-1),campInfo,11))","v":"Y"},{"$f":"IF(INDEX(campsByItinerary,$B7,CW$3-1)=\"\",\"\",VLOOKUP(INDEX(campsByItinerary,$B7,CW$3-1),campInfo,11))","v":"Y"},{"$f":"IF(INDEX(campsByItinerary,$B7,CX$3-1)=\"\",\"\",VLOOKUP(INDEX(campsByItinerary,$B7,CX$3-1),campInfo,11))","v":""},{"$f":"IF(INDEX(campsByItinerary,$B7,CY$3-1)=\"\",\"\",VLOOKUP(INDEX(campsByItinerary,$B7,CY$3-1),campInfo,11))","v":""},{"$f":"IF(INDEX(campsByItinerary,$B7,CZ$3-1)=\"\",\"\",VLOOKUP(INDEX(campsByItinerary,$B7,CZ$3-1),campInfo,11))","v":""},{"$f":"IF(INDEX(campsByItinerary,$B7,DA$3-1)=\"\",\"\",VLOOKUP(INDEX(campsByItinerary,$B7,DA$3-1),campInfo,11))","v":""},{"$f":"IF(INDEX(campsByItinerary,$B7,DB$3-1)=\"\",\"\",VLOOKUP(INDEX(campsByItinerary,$B7,DB$3-1),campInfo,11))","v":""},{"$f":"IF(INDEX(campsByItinerary,$B7,BE$3-1)=\"\",\"\",VLOOKUP(INDEX(campsByItinerary,$B7,BE$3-1),campInfo,2))","v":"North"},{"$f":"IF(INDEX(campsByItinerary,$B7,BF$3-1)=\"\",\"\",VLOOKUP(INDEX(campsByItinerary,$B7,BF$3-1),campInfo,2))","v":"North"},{"$f":"IF(INDEX(campsByItinerary,$B7,BG$3-1)=\"\",\"\",VLOOKUP(INDEX(campsByItinerary,$B7,BG$3-1),campInfo,2))","v":"North"},{"$f":"IF(INDEX(campsByItinerary,$B7,BH$3-1)=\"\",\"\",VLOOKUP(INDEX(campsByItinerary,$B7,BH$3-1),campInfo,2))","v":"North"},{"$f":"IF(INDEX(campsByItinerary,$B7,BI$3-1)=\"\",\"\",VLOOKUP(INDEX(campsByItinerary,$B7,BI$3-1),campInfo,2))","v":"North"},{"$f":"IF(INDEX(campsByItinerary,$B7,BJ$3-1)=\"\",\"\",VLOOKUP(INDEX(campsByItinerary,$B7,BJ$3-1),campInfo,2))","v":"North"},{"$f":"IF(INDEX(campsByItinerary,$B7,BK$3-1)=\"\",\"\",VLOOKUP(INDEX(campsByItinerary,$B7,BK$3-1),campInfo,2))","v":""},{"$f":"IF(INDEX(campsByItinerary,$B7,BL$3-1)=\"\",\"\",VLOOKUP(INDEX(campsByItinerary,$B7,BL$3-1),campInfo,2))","v":""},{"$f":"IF(INDEX(campsByItinerary,$B7,BM$3-1)=\"\",\"\",VLOOKUP(INDEX(campsByItinerary,$B7,BM$3-1),campInfo,2))","v":""},{"$f":"IF(INDEX(campsByItinerary,$B7,BN$3-1)=\"\",\"\",VLOOKUP(INDEX(campsByItinerary,$B7,BN$3-1),campInfo,2))","v":""},{"$f":"IF(INDEX(campsByItinerary,$B7,BO$3-1)=\"\",\"\",VLOOKUP(INDEX(campsByItinerary,$B7,BO$3-1),campInfo,12))","v":"North"},{"$f":"IF(INDEX(campsByItinerary,$B7,BP$3-1)=\"\",\"\",VLOOKUP(INDEX(campsByItinerary,$B7,BP$3-1),campInfo,12))","v":"North"},{"$f":"IF(INDEX(campsByItinerary,$B7,BQ$3-1)=\"\",\"\",VLOOKUP(INDEX(campsByItinerary,$B7,BQ$3-1),campInfo,12))","v":"North"},{"$f":"IF(INDEX(campsByItinerary,$B7,BR$3-1)=\"\",\"\",VLOOKUP(INDEX(campsByItinerary,$B7,BR$3-1),campInfo,12))","v":"North"},{"$f":"IF(INDEX(campsByItinerary,$B7,BS$3-1)=\"\",\"\",VLOOKUP(INDEX(campsByItinerary,$B7,BS$3-1),campInfo,12))","v":"North"},{"$f":"IF(INDEX(campsByItinerary,$B7,BT$3-1)=\"\",\"\",VLOOKUP(INDEX(campsByItinerary,$B7,BT$3-1),campInfo,12))","v":"North"},{"$f":"IF(INDEX(campsByItinerary,$B7,BU$3-1)=\"\",\"\",VLOOKUP(INDEX(campsByItinerary,$B7,BU$3-1),campInfo,12))","v":""},{"$f":"IF(INDEX(campsByItinerary,$B7,BV$3-1)=\"\",\"\",VLOOKUP(INDEX(campsByItinerary,$B7,BV$3-1),campInfo,12))","v":""},{"$f":"IF(INDEX(campsByItinerary,$B7,BW$3-1)=\"\",\"\",VLOOKUP(INDEX(campsByItinerary,$B7,BW$3-1),campInfo,12))","v":""},{"$f":"IF(INDEX(campsByItinerary,$B7,BX$3-1)=\"\",\"\",VLOOKUP(INDEX(campsByItinerary,$B7,BX$3-1),campInfo,12))","v":""},{"$f":"getfoodPU(\"First\",$B7)","v":4},{"$f":"getfoodPU(\"Max\",$B7)","v":4}]
["3A-N",5,"C",41,"Ponil","Head of Dean","Miranda","Miranda","Baldy Town","Pueblano",null,null,null,null,"Ponil",null,null,"Baldy Town",null,null,null,null,null,null,"Ponil Gate","Ponil Gate",null,":",null,null,null,null,"y",null,null,null,null,7150,8754,8898,8898,9851,8069,"","","","",1604,144,0,953,1782,"","","","",{"$f":"IF(INDEX(campsByItinerary,$B8,BE$3-1)=\"\",\"\",VLOOKUP(INDEX(campsByItinerary,$B8,BE$3-1),campInfo,8))","v":"Y"},{"$f":"IF(INDEX(campsByItinerary,$B8,BF$3-1)=\"\",\"\",VLOOKUP(INDEX(campsByItinerary,$B8,BF$3-1),campInfo,8))","v":"Y"},{"$f":"IF(INDEX(campsByItinerary,$B8,BG$3-1)=\"\",\"\",VLOOKUP(INDEX(campsByItinerary,$B8,BG$3-1),campInfo,8))","v":"Y"},{"$f":"IF(INDEX(campsByItinerary,$B8,BH$3-1)=\"\",\"\",VLOOKUP(INDEX(campsByItinerary,$B8,BH$3-1),campInfo,8))","v":"Y"},{"$f":"IF(INDEX(campsByItinerary,$B8,BI$3-1)=\"\",\"\",VLOOKUP(INDEX(campsByItinerary,$B8,BI$3-1),campInfo,8))","v":"Y"},{"$f":"IF(INDEX(campsByItinerary,$B8,BJ$3-1)=\"\",\"\",VLOOKUP(INDEX(campsByItinerary,$B8,BJ$3-1),campInfo,8))","v":"Y"},{"$f":"IF(INDEX(campsByItinerary,$B8,BK$3-1)=\"\",\"\",VLOOKUP(INDEX(campsByItinerary,$B8,BK$3-1),campInfo,8))","v":""},{"$f":"IF(INDEX(campsByItinerary,$B8,BL$3-1)=\"\",\"\",VLOOKUP(INDEX(campsByItinerary,$B8,BL$3-1),campInfo,8))","v":""},{"$f":"IF(INDEX(campsByItinerary,$B8,BM$3-1)=\"\",\"\",VLOOKUP(INDEX(campsByItinerary,$B8,BM$3-1),campInfo,8))","v":""},{"$f":"IF(INDEX(campsByItinerary,$B8,BN$3-1)=\"\",\"\",VLOOKUP(INDEX(campsByItinerary,$B8,BN$3-1),campInfo,8))","v":""},"","","","","","",null,null,null,null,{"$f":"IF(INDEX(campsByItinerary,$B8,BE$3-1)=\"\",\"\",VLOOKUP(INDEX(campsByItinerary,$B8,BE$3-1),campInfo,10))","v":""},{"$f":"IF(INDEX(campsByItinerary,$B8,BF$3-1)=\"\",\"\",VLOOKUP(INDEX(campsByItinerary,$B8,BF$3-1),campInfo,10))","v":""},{"$f":"IF(INDEX(campsByItinerary,$B8,BG$3-1)=\"\",\"\",VLOOKUP(INDEX(campsByItinerary,$B8,BG$3-1),campInfo,10))","v":""},{"$f":"IF(INDEX(campsByItinerary,$B8,BH$3-1)=\"\",\"\",VLOOKUP(INDEX(campsByItinerary,$B8,BH$3-1),campInfo,10))","v":""},{"$f":"IF(INDEX(campsByItinerary,$B8,BI$3-1)=\"\",\"\",VLOOKUP(INDEX(campsByItinerary,$B8,BI$3-1),campInfo,10))","v":""},{"$f":"IF(INDEX(campsByItinerary,$B8,BJ$3-1)=\"\",\"\",VLOOKUP(INDEX(campsByItinerary,$B8,BJ$3-1),campInfo,10))","v":""},{"$f":"IF(INDEX(campsByItinerary,$B8,BK$3-1)=\"\",\"\",VLOOKUP(INDEX(campsByItinerary,$B8,BK$3-1),campInfo,10))","v":""},{"$f":"IF(INDEX(campsByItinerary,$B8,BL$3-1)=\"\",\"\",VLOOKUP(INDEX(campsByItinerary,$B8,BL$3-1),campInfo,10))","v":""},{"$f":"IF(INDEX(campsByItinerary,$B8,BM$3-1)=\"\",\"\",VLOOKUP(INDEX(campsByItinerary,$B8,BM$3-1),campInfo,10))","v":""},{"$f":"IF(INDEX(campsByItinerary,$B8,BN$3-1)=\"\",\"\",VLOOKUP(INDEX(campsByItinerary,$B8,BN$3-1),campInfo,10))","v":""},null,"","","Y","","","",null,null,null,{"$f":"IF(INDEX(campsByItinerary,$B8,CS$3-1)=\"\",\"\",VLOOKUP(INDEX(campsByItinerary,$B8,CS$3-1),campInfo,11))","v":"Y"},{"$f":"IF(INDEX(campsByItinerary,$B8,CT$3-1)=\"\",\"\",VLOOKUP(INDEX(campsByItinerary,$B8,CT$3-1),campInfo,11))","v":""},{"$f":"IF(INDEX(campsByItinerary,$B8,CU$3-1)=\"\",\"\",VLOOKUP(INDEX(campsByItinerary,$B8,CU$3-1),campInfo,11))","v":""},{"$f":"IF(INDEX(campsByItinerary,$B8,CV$3-1)=\"\",\"\",VLOOKUP(INDEX(campsByItinerary,$B8,CV$3-1),campInfo,11))","v":""},{"$f":"IF(INDEX(campsByItinerary,$B8,CW$3-1)=\"\",\"\",VLOOKUP(INDEX(campsByItinerary,$B8,CW$3-1),campInfo,11))","v":"Y"},{"$f":"IF(INDEX(campsByItinerary,$B8,CX$3-1)=\"\",\"\",VLOOKUP(INDEX(campsByItinerary,$B8,CX$3-1),campInfo,11))","v":""},{"$f":"IF(INDEX(campsByItinerary,$B8,CY$3-1)=\"\",\"\",VLOOKUP(INDEX(campsByItinerary,$B8,CY$3-1),campInfo,11))","v":""},{"$f":"IF(INDEX(campsByItinerary,$B8,CZ$3-1)=\"\",\"\",VLOOKUP(INDEX(campsByItinerary,$B8,CZ$3-1),campInfo,11))","v":""},{"$f":"IF(INDEX(campsByItinerary,$B8,DA$3-1)=\"\",\"\",VLOOKUP(INDEX(campsByItinerary,$B8,DA$3-1),campInfo,11))","v":""},{"$f":"IF(INDEX(campsByItinerary,$B8,DB$3-1)=\"\",\"\",VLOOKUP(INDEX(campsByItinerary,$B8,DB$3-1),campInfo,11))","v":""},{"$f":"IF(INDEX(campsByItinerary,$B8,BE$3-1)=\"\",\"\",VLOOKUP(INDEX(campsByItinerary,$B8,BE$3-1),campInfo,2))","v":"North"},{"$f":"IF(INDEX(campsByItinerary,$B8,BF$3-1)=\"\",\"\",VLOOKUP(INDEX(campsByItinerary,$B8,BF$3-1),campInfo,2))","v":"North"},{"$f":"IF(INDEX(campsByItinerary,$B8,BG$3-1)=\"\",\"\",VLOOKUP(INDEX(campsByItinerary,$B8,BG$3-1),campInfo,2))","v":"North"},{"$f":"IF(INDEX(campsByItinerary,$B8,BH$3-1)=\"\",\"\",VLOOKUP(INDEX(campsByItinerary,$B8,BH$3-1),campInfo,2))","v":"North"},{"$f":"IF(INDEX(campsByItinerary,$B8,BI$3-1)=\"\",\"\",VLOOKUP(INDEX(campsByItinerary,$B8,BI$3-1),campInfo,2))","v":"North"},{"$f":"IF(INDEX(campsByItinerary,$B8,BJ$3-1)=\"\",\"\",VLOOKUP(INDEX(campsByItinerary,$B8,BJ$3-1),campInfo,2))","v":"North"},{"$f":"IF(INDEX(campsByItinerary,$B8,BK$3-1)=\"\",\"\",VLOOKUP(INDEX(campsByItinerary,$B8,BK$3-1),campInfo,2))","v":""},{"$f":"IF(INDEX(campsByItinerary,$B8,BL$3-1)=\"\",\"\",VLOOKUP(INDEX(campsByItinerary,$B8,BL$3-1),campInfo,2))","v":""},{"$f":"IF(INDEX(campsByItinerary,$B8,BM$3-1)=\"\",\"\",VLOOKUP(INDEX(campsByItinerary,$B8,BM$3-1),campInfo,2))","v":""},{"$f":"IF(INDEX(campsByItinerary,$B8,BN$3-1)=\"\",\"\",VLOOKUP(INDEX(campsByItinerary,$B8,BN$3-1),campInfo,2))","v":""},{"$f":"IF(INDEX(campsByItinerary,$B8,BO$3-1)=\"\",\"\",VLOOKUP(INDEX(campsByItinerary,$B8,BO$3-1),campInfo,12))","v":"North"},{"$f":"IF(INDEX(campsByItinerary,$B8,BP$3-1)=\"\",\"\",VLOOKUP(INDEX(campsByItinerary,$B8,BP$3-1),campInfo,12))","v":"North"},{"$f":"IF(INDEX(campsByItinerary,$B8,BQ$3-1)=\"\",\"\",VLOOKUP(INDEX(campsByItinerary,$B8,BQ$3-1),campInfo,12))","v":"North"},{"$f":"IF(INDEX(campsByItinerary,$B8,BR$3-1)=\"\",\"\",VLOOKUP(INDEX(campsByItinerary,$B8,BR$3-1),campInfo,12))","v":"North"},{"$f":"IF(INDEX(campsByItinerary,$B8,BS$3-1)=\"\",\"\",VLOOKUP(INDEX(campsByItinerary,$B8,BS$3-1),campInfo,12))","v":"North"},{"$f":"IF(INDEX(campsByItinerary,$B8,BT$3-1)=\"\",\"\",VLOOKUP(INDEX(campsByItinerary,$B8,BT$3-1),campInfo,12))","v":"North"},{"$f":"IF(INDEX(campsByItinerary,$B8,BU$3-1)=\"\",\"\",VLOOKUP(INDEX(campsByItinerary,$B8,BU$3-1),campInfo,12))","v":""},{"$f":"IF(INDEX(campsByItinerary,$B8,BV$3-1)=\"\",\"\",VLOOKUP(INDEX(campsByItinerary,$B8,BV$3-1),campInfo,12))","v":""},{"$f":"IF(INDEX(campsByItinerary,$B8,BW$3-1)=\"\",\"\",VLOOKUP(INDEX(campsByItinerary,$B8,BW$3-1),campInfo,12))","v":""},{"$f":"IF(INDEX(campsByItinerary,$B8,BX$3-1)=\"\",\"\",VLOOKUP(INDEX(campsByItinerary,$B8,BX$3-1),campInfo,12))","v":""},{"$f":"getfoodPU(\"First\",$B8)","v":3},{"$f":"getfoodPU(\"Max\",$B8)","v":3}]
["3B-N",6,"C",39,"Ponil","Pueblano","Baldy Town","Miranda","Miranda","Head of Dean",null,null,null,null,"Ponil",null,"Baldy Town",null,null,null,null,null,null,null,"Ponil Gate","Ponil Gate",null,":",null,null,null,null,"y",null,null,null,null,7150,8069,9851,8898,8898,8754,"","","","",919,1782,953,0,144,"","","","",{"$f":"IF(INDEX(campsByItinerary,$B9,BE$3-1)=\"\",\"\",VLOOKUP(INDEX(campsByItinerary,$B9,BE$3-1),campInfo,8))","v":"Y"},{"$f":"IF(INDEX(campsByItinerary,$B9,BF$3-1)=\"\",\"\",VLOOKUP(INDEX(campsByItinerary,$B9,BF$3-1),campInfo,8))","v":"Y"},{"$f":"IF(INDEX(campsByItinerary,$B9,BG$3-1)=\"\",\"\",VLOOKUP(INDEX(campsByItinerary,$B9,BG$3-1),campInfo,8))","v":"Y"},{"$f":"IF(INDEX(campsByItinerary,$B9,BH$3-1)=\"\",\"\",VLOOKUP(INDEX(campsByItinerary,$B9,BH$3-1),campInfo,8))","v":"Y"},{"$f":"IF(INDEX(campsByItinerary,$B9,BI$3-1)=\"\",\"\",VLOOKUP(INDEX(campsByItinerary,$B9,BI$3-1),campInfo,8))","v":"Y"},{"$f":"IF(INDEX(campsByItinerary,$B9,BJ$3-1)=\"\",\"\",VLOOKUP(INDEX(campsByItinerary,$B9,BJ$3-1),campInfo,8))","v":"Y"},{"$f":"IF(INDEX(campsByItinerary,$B9,BK$3-1)=\"\",\"\",VLOOKUP(INDEX(campsByItinerary,$B9,BK$3-1),campInfo,8))","v":""},{"$f":"IF(INDEX(campsByItinerary,$B9,BL$3-1)=\"\",\"\",VLOOKUP(INDEX(campsByItinerary,$B9,BL$3-1),campInfo,8))","v":""},{"$f":"IF(INDEX(campsByItinerary,$B9,BM$3-1)=\"\",\"\",VLOOKUP(INDEX(campsByItinerary,$B9,BM$3-1),campInfo,8))","v":""},{"$f":"IF(INDEX(campsByItinerary,$B9,BN$3-1)=\"\",\"\",VLOOKUP(INDEX(campsByItinerary,$B9,BN$3-1),campInfo,8))","v":""},"","","","","","",null,null,null,null,{"$f":"IF(INDEX(campsByItinerary,$B9,BE$3-1)=\"\",\"\",VLOOKUP(INDEX(campsByItinerary,$B9,BE$3-1),campInfo,10))","v":""},{"$f":"IF(INDEX(campsByItinerary,$B9,BF$3-1)=\"\",\"\",VLOOKUP(INDEX(campsByItinerary,$B9,BF$3-1),campInfo,10))","v":""},{"$f":"IF(INDEX(campsByItinerary,$B9,BG$3-1)=\"\",\"\",VLOOKUP(INDEX(campsByItinerary,$B9,BG$3-1),campInfo,10))","v":""},{"$f":"IF(INDEX(campsByItinerary,$B9,BH$3-1)=\"\",\"\",VLOOKUP(INDEX(campsByItinerary,$B9,BH$3-1),campInfo,10))","v":""},{"$f":"IF(INDEX(campsByItinerary,$B9,BI$3-1)=\"\",\"\",VLOOKUP(INDEX(campsByItinerary,$B9,BI$3-1),campInfo,10))","v":""},{"$f":"IF(INDEX(campsByItinerary,$B9,BJ$3-1)=\"\",\"\",VLOOKUP(INDEX(campsByItinerary,$B9,BJ$3-1),campInfo,10))","v":""},{"$f":"IF(INDEX(campsByItinerary,$B9,BK$3-1)=\"\",\"\",VLOOKUP(INDEX(campsByItinerary,$B9,BK$3-1),campInfo,10))","v":""},{"$f":"IF(INDEX(campsByItinerary,$B9,BL$3-1)=\"\",\"\",VLOOKUP(INDEX(campsByItinerary,$B9,BL$3-1),campInfo,10))","v":""},{"$f":"IF(INDEX(campsByItinerary,$B9,BM$3-1)=\"\",\"\",VLOOKUP(INDEX(campsByItinerary,$B9,BM$3-1),campInfo,10))","v":""},{"$f":"IF(INDEX(campsByItinerary,$B9,BN$3-1)=\"\",\"\",VLOOKUP(INDEX(campsByItinerary,$B9,BN$3-1),campInfo,10))","v":""},null,"","","","Y","","",null,null,null,{"$f":"IF(INDEX(campsByItinerary,$B9,CS$3-1)=\"\",\"\",VLOOKUP(INDEX(campsByItinerary,$B9,CS$3-1),campInfo,11))","v":"Y"},{"$f":"IF(INDEX(campsByItinerary,$B9,CT$3-1)=\"\",\"\",VLOOKUP(INDEX(campsByItinerary,$B9,CT$3-1),campInfo,11))","v":""},{"$f":"IF(INDEX(campsByItinerary,$B9,CU$3-1)=\"\",\"\",VLOOKUP(INDEX(campsByItinerary,$B9,CU$3-1),campInfo,11))","v":"Y"},{"$f":"IF(INDEX(campsByItinerary,$B9,CV$3-1)=\"\",\"\",VLOOKUP(INDEX(campsByItinerary,$B9,CV$3-1),campInfo,11))","v":""},{"$f":"IF(INDEX(campsByItinerary,$B9,CW$3-1)=\"\",\"\",VLOOKUP(INDEX(campsByItinerary,$B9,CW$3-1),campInfo,11))","v":""},{"$f":"IF(INDEX(campsByItinerary,$B9,CX$3-1)=\"\",\"\",VLOOKUP(INDEX(campsByItinerary,$B9,CX$3-1),campInfo,11))","v":""},{"$f":"IF(INDEX(campsByItinerary,$B9,CY$3-1)=\"\",\"\",VLOOKUP(INDEX(campsByItinerary,$B9,CY$3-1),campInfo,11))","v":""},{"$f":"IF(INDEX(campsByItinerary,$B9,CZ$3-1)=\"\",\"\",VLOOKUP(INDEX(campsByItinerary,$B9,CZ$3-1),campInfo,11))","v":""},{"$f":"IF(INDEX(campsByItinerary,$B9,DA$3-1)=\"\",\"\",VLOOKUP(INDEX(campsByItinerary,$B9,DA$3-1),campInfo,11))","v":""},{"$f":"IF(INDEX(campsByItinerary,$B9,DB$3-1)=\"\",\"\",VLOOKUP(INDEX(campsByItinerary,$B9,DB$3-1),campInfo,11))","v":""},{"$f":"IF(INDEX(campsByItinerary,$B9,BE$3-1)=\"\",\"\",VLOOKUP(INDEX(campsByItinerary,$B9,BE$3-1),campInfo,2))","v":"North"},{"$f":"IF(INDEX(campsByItinerary,$B9,BF$3-1)=\"\",\"\",VLOOKUP(INDEX(campsByItinerary,$B9,BF$3-1),campInfo,2))","v":"North"},{"$f":"IF(INDEX(campsByItinerary,$B9,BG$3-1)=\"\",\"\",VLOOKUP(INDEX(campsByItinerary,$B9,BG$3-1),campInfo,2))","v":"North"},{"$f":"IF(INDEX(campsByItinerary,$B9,BH$3-1)=\"\",\"\",VLOOKUP(INDEX(campsByItinerary,$B9,BH$3-1),campInfo,2))","v":"North"},{"$f":"IF(INDEX(campsByItinerary,$B9,BI$3-1)=\"\",\"\",VLOOKUP(INDEX(campsByItinerary,$B9,BI$3-1),campInfo,2))","v":"North"},{"$f":"IF(INDEX(campsByItinerary,$B9,BJ$3-1)=\"\",\"\",VLOOKUP(INDEX(campsByItinerary,$B9,BJ$3-1),campInfo,2))","v":"North"},{"$f":"IF(INDEX(campsByItinerary,$B9,BK$3-1)=\"\",\"\",VLOOKUP(INDEX(campsByItinerary,$B9,BK$3-1),campInfo,2))","v":""},{"$f":"IF(INDEX(campsByItinerary,$B9,BL$3-1)=\"\",\"\",VLOOKUP(INDEX(campsByItinerary,$B9,BL$3-1),campInfo,2))","v":""},{"$f":"IF(INDEX(campsByItinerary,$B9,BM$3-1)=\"\",\"\",VLOOKUP(INDEX(campsByItinerary,$B9,BM$3-1),campInfo,2))","v":""},{"$f":"IF(INDEX(campsByItinerary,$B9,BN$3-1)=\"\",\"\",VLOOKUP(INDEX(campsByItinerary,$B9,BN$3-1),campInfo,2))","v":""},{"$f":"IF(INDEX(campsByItinerary,$B9,BO$3-1)=\"\",\"\",VLOOKUP(INDEX(campsByItinerary,$B9,BO$3-1),campInfo,12))","v":"North"},{"$f":"IF(INDEX(campsByItinerary,$B9,BP$3-1)=\"\",\"\",VLOOKUP(INDEX(campsByItinerary,$B9,BP$3-1),campInfo,12))","v":"North"},{"$f":"IF(INDEX(campsByItinerary,$B9,BQ$3-1)=\"\",\"\",VLOOKUP(INDEX(campsByItinerary,$B9,BQ$3-1),campInfo,12))","v":"North"},{"$f":"IF(INDEX(campsByItinerary,$B9,BR$3-1)=\"\",\"\",VLOOKUP(INDEX(campsByItinerary,$B9,BR$3-1),campInfo,12))","v":"North"},{"$f":"IF(INDEX(campsByItinerary,$B9,BS$3-1)=\"\",\"\",VLOOKUP(INDEX(campsByItinerary,$B9,BS$3-1),campInfo,12))","v":"North"},{"$f":"IF(INDEX(campsByItinerary,$B9,BT$3-1)=\"\",\"\",VLOOKUP(INDEX(campsByItinerary,$B9,BT$3-1),campInfo,12))","v":"North"},{"$f":"IF(INDEX(campsByItinerary,$B9,BU$3-1)=\"\",\"\",VLOOKUP(INDEX(campsByItinerary,$B9,BU$3-1),campInfo,12))","v":""},{"$f":"IF(INDEX(campsByItinerary,$B9,BV$3-1)=\"\",\"\",VLOOKUP(INDEX(campsByItinerary,$B9,BV$3-1),campInfo,12))","v":""},{"$f":"IF(INDEX(campsByItinerary,$B9,BW$3-1)=\"\",\"\",VLOOKUP(INDEX(campsByItinerary,$B9,BW$3-1),campInfo,12))","v":""},{"$f":"IF(INDEX(campsByItinerary,$B9,BX$3-1)=\"\",\"\",VLOOKUP(INDEX(campsByItinerary,$B9,BX$3-1),campInfo,12))","v":""},{"$f":"getfoodPU(\"First\",$B9)","v":2},{"$f":"getfoodPU(\"Max\",$B9)","v":2}]
["4A-N",7,"C",49,"Ponil","Chase Cow","Metcalf Station","Metcalf Station","Dan Beard","Pueblano",null,null,null,null,"Camping HQ",null,null,null,null,null,null,null,null,null,"Ponil Gate","Ponil Gate",null,":",null,null,null,null,null,null,null,null,null,7150,7177,7220,7220,7896,8069,"","","","",27,43,0,676,173,"","","","",{"$f":"IF(INDEX(campsByItinerary,$B10,BE$3-1)=\"\",\"\",VLOOKUP(INDEX(campsByItinerary,$B10,BE$3-1),campInfo,8))","v":"Y"},{"$f":"IF(INDEX(campsByItinerary,$B10,BF$3-1)=\"\",\"\",VLOOKUP(INDEX(campsByItinerary,$B10,BF$3-1),campInfo,8))","v":"Y"},{"$f":"IF(INDEX(campsByItinerary,$B10,BG$3-1)=\"\",\"\",VLOOKUP(INDEX(campsByItinerary,$B10,BG$3-1),campInfo,8))","v":"Y"},{"$f":"IF(INDEX(campsByItinerary,$B10,BH$3-1)=\"\",\"\",VLOOKUP(INDEX(campsByItinerary,$B10,BH$3-1),campInfo,8))","v":"Y"},{"$f":"IF(INDEX(campsByItinerary,$B10,BI$3-1)=\"\",\"\",VLOOKUP(INDEX(campsByItinerary,$B10,BI$3-1),campInfo,8))","v":"Y"},{"$f":"IF(INDEX(campsByItinerary,$B10,BJ$3-1)=\"\",\"\",VLOOKUP(INDEX(campsByItinerary,$B10,BJ$3-1),campInfo,8))","v":"Y"},{"$f":"IF(INDEX(campsByItinerary,$B10,BK$3-1)=\"\",\"\",VLOOKUP(INDEX(campsByItinerary,$B10,BK$3-1),campInfo,8))","v":""},{"$f":"IF(INDEX(campsByItinerary,$B10,BL$3-1)=\"\",\"\",VLOOKUP(INDEX(campsByItinerary,$B10,BL$3-1),campInfo,8))","v":""},{"$f":"IF(INDEX(campsByItinerary,$B10,BM$3-1)=\"\",\"\",VLOOKUP(INDEX(campsByItinerary,$B10,BM$3-1),campInfo,8))","v":""},{"$f":"IF(INDEX(campsByItinerary,$B10,BN$3-1)=\"\",\"\",VLOOKUP(INDEX(campsByItinerary,$B10,BN$3-1),campInfo,8))","v":""},"","","","","","",null,null,null,null,{"$f":"IF(INDEX(campsByItinerary,$B10,BE$3-1)=\"\",\"\",VLOOKUP(INDEX(campsByItinerary,$B10,BE$3-1),campInfo,10))","v":""},{"$f":"IF(INDEX(campsByItinerary,$B10,BF$3-1)=\"\",\"\",VLOOKUP(INDEX(campsByItinerary,$B10,BF$3-1),campInfo,10))","v":""},{"$f":"IF(INDEX(campsByItinerary,$B10,BG$3-1)=\"\",\"\",VLOOKUP(INDEX(campsByItinerary,$B10,BG$3-1),campInfo,10))","v":""},{"$f":"IF(INDEX(campsByItinerary,$B10,BH$3-1)=\"\",\"\",VLOOKUP(INDEX(campsByItinerary,$B10,BH$3-1),campInfo,10))","v":""},{"$f":"IF(INDEX(campsByItinerary,$B10,BI$3-1)=\"\",\"\",VLOOKUP(INDEX(campsByItinerary,$B10,BI$3-1),campInfo,10))","v":""},{"$f":"IF(INDEX(campsByItinerary,$B10,BJ$3-1)=\"\",\"\",VLOOKUP(INDEX(campsByItinerary,$B10,BJ$3-1),campInfo,10))","v":""},{"$f":"IF(INDEX(campsByItinerary,$B10,BK$3-1)=\"\",\"\",VLOOKUP(INDEX(campsByItinerary,$B10,BK$3-1),campInfo,10))","v":""},{"$f":"IF(INDEX(campsByItinerary,$B10,BL$3-1)=\"\",\"\",VLOOKUP(INDEX(campsByItinerary,$B10,BL$3-1),campInfo,10))","v":""},{"$f":"IF(INDEX(campsByItinerary,$B10,BM$3-1)=\"\",\"\",VLOOKUP(INDEX(campsByItinerary,$B10,BM$3-1),campInfo,10))","v":""},{"$f":"IF(INDEX(campsByItinerary,$B10,BN$3-1)=\"\",\"\",VLOOKUP(INDEX(campsByItinerary,$B10,BN$3-1),campInfo,10))","v":""},null,"","","Y","","","",null,null,null,{"$f":"IF(INDEX(campsByItinerary,$B10,CS$3-1)=\"\",\"\",VLOOKUP(INDEX(campsByItinerary,$B10,CS$3-1),campInfo,11))","v":"Y"},{"$f":"IF(INDEX(campsByItinerary,$B10,CT$3-1)=\"\",\"\",VLOOKUP(INDEX(campsByItinerary,$B10,CT$3-1),campInfo,11))","v":""},{"$f":"IF(INDEX(campsByItinerary,$B10,CU$3-1)=\"\",\"\",VLOOKUP(INDEX(campsByItinerary,$B10,CU$3-1),campInfo,11))","v":""},{"$f":"IF(INDEX(campsByItinerary,$B10,CV$3-1)=\"\",\"\",VLOOKUP(INDEX(campsByItinerary,$B10,CV$3-1),campInfo,11))","v":""},{"$f":"IF(INDEX(campsByItinerary,$B10,CW$3-1)=\"\",\"\",VLOOKUP(INDEX(campsByItinerary,$B10,CW$3-1),campInfo,11))","v":""},{"$f":"IF(INDEX(campsByItinerary,$B10,CX$3-1)=\"\",\"\",VLOOKUP(INDEX(campsByItinerary,$B10,CX$3-1),campInfo,11))","v":""},{"$f":"IF(INDEX(campsByItinerary,$B10,CY$3-1)=\"\",\"\",VLOOKUP(INDEX(campsByItinerary,$B10,CY$3-1),campInfo,11))","v":""},{"$f":"IF(INDEX(campsByItinerary,$B10,CZ$3-1)=\"\",\"\",VLOOKUP(INDEX(campsByItinerary,$B10,CZ$3-1),campInfo,11))","v":""},{"$f":"IF(INDEX(campsByItinerary,$B10,DA$3-1)=\"\",\"\",VLOOKUP(INDEX(campsByItinerary,$B10,DA$3-1),campInfo,11))","v":""},{"$f":"IF(INDEX(campsByItinerary,$B10,DB$3-1)=\"\",\"\",VLOOKUP(INDEX(campsByItinerary,$B10,DB$3-1),campInfo,11))","v":""},{"$f":"IF(INDEX(campsByItinerary,$B10,BE$3-1)=\"\",\"\",VLOOKUP(INDEX(campsByItinerary,$B10,BE$3-1),campInfo,2))","v":"North"},{"$f":"IF(INDEX(campsByItinerary,$B10,BF$3-1)=\"\",\"\",VLOOKUP(INDEX(campsByItinerary,$B10,BF$3-1),campInfo,2))","v":"North"},{"$f":"IF(INDEX(campsByItinerary,$B10,BG$3-1)=\"\",\"\",VLOOKUP(INDEX(campsByItinerary,$B10,BG$3-1),campInfo,2))","v":"North"},{"$f":"IF(INDEX(campsByItinerary,$B10,BH$3-1)=\"\",\"\",VLOOKUP(INDEX(campsByItinerary,$B10,BH$3-1),campInfo,2))","v":"North"},{"$f":"IF(INDEX(campsByItinerary,$B10,BI$3-1)=\"\",\"\",VLOOKUP(INDEX(campsByItinerary,$B10,BI$3-1),campInfo,2))","v":"North"},{"$f":"IF(INDEX(campsByItinerary,$B10,BJ$3-1)=\"\",\"\",VLOOKUP(INDEX(campsByItinerary,$B10,BJ$3-1),campInfo,2))","v":"North"},{"$f":"IF(INDEX(campsByItinerary,$B10,BK$3-1)=\"\",\"\",VLOOKUP(INDEX(campsByItinerary,$B10,BK$3-1),campInfo,2))","v":""},{"$f":"IF(INDEX(campsByItinerary,$B10,BL$3-1)=\"\",\"\",VLOOKUP(INDEX(campsByItinerary,$B10,BL$3-1),campInfo,2))","v":""},{"$f":"IF(INDEX(campsByItinerary,$B10,BM$3-1)=\"\",\"\",VLOOKUP(INDEX(campsByItinerary,$B10,BM$3-1),campInfo,2))","v":""},{"$f":"IF(INDEX(campsByItinerary,$B10,BN$3-1)=\"\",\"\",VLOOKUP(INDEX(campsByItinerary,$B10,BN$3-1),campInfo,2))","v":""},{"$f":"IF(INDEX(campsByItinerary,$B10,BO$3-1)=\"\",\"\",VLOOKUP(INDEX(campsByItinerary,$B10,BO$3-1),campInfo,12))","v":"North"},{"$f":"IF(INDEX(campsByItinerary,$B10,BP$3-1)=\"\",\"\",VLOOKUP(INDEX(campsByItinerary,$B10,BP$3-1),campInfo,12))","v":"North"},{"$f":"IF(INDEX(campsByItinerary,$B10,BQ$3-1)=\"\",\"\",VLOOKUP(INDEX(campsByItinerary,$B10,BQ$3-1),campInfo,12))","v":"North"},{"$f":"IF(INDEX(campsByItinerary,$B10,BR$3-1)=\"\",\"\",VLOOKUP(INDEX(campsByItinerary,$B10,BR$3-1),campInfo,12))","v":"North"},{"$f":"IF(INDEX(campsByItinerary,$B10,BS$3-1)=\"\",\"\",VLOOKUP(INDEX(campsByItinerary,$B10,BS$3-1),campInfo,12))","v":"North"},{"$f":"IF(INDEX(campsByItinerary,$B10,BT$3-1)=\"\",\"\",VLOOKUP(INDEX(campsByItinerary,$B10,BT$3-1),campInfo,12))","v":"North"},{"$f":"IF(INDEX(campsByItinerary,$B10,BU$3-1)=\"\",\"\",VLOOKUP(INDEX(campsByItinerary,$B10,BU$3-1),campInfo,12))","v":""},{"$f":"IF(INDEX(campsByItinerary,$B10,BV$3-1)=\"\",\"\",VLOOKUP(INDEX(campsByItinerary,$B10,BV$3-1),campInfo,12))","v":""},{"$f":"IF(INDEX(campsByItinerary,$B10,BW$3-1)=\"\",\"\",VLOOKUP(INDEX(campsByItinerary,$B10,BW$3-1),campInfo,12))","v":""},{"$f":"IF(INDEX(campsByItinerary,$B10,BX$3-1)=\"\",\"\",VLOOKUP(INDEX(campsByItinerary,$B10,BX$3-1),campInfo,12))","v":""},{"$f":"getfoodPU(\"First\",$B10)","v":5},{"$f":"getfoodPU(\"Max\",$B10)","v":5}]
["1A-S",8,"C",43,"Camping HQ","Abreu","Beaubien","Beaubien","Bonita Cow","Miners Park",null,null,null,null,"Camping HQ","Camping HQ",null,"Phillips Junction",null,null,null,null,null,null,"Ride Out","Ride In",null,":",null,null,null,null,null,null,null,null,null,6696,7217,9330,9330,9120,7977,"","","","",521,2113,0,210,1143,"","","","",{"$f":"IF(INDEX(campsByItinerary,$B11,BE$3-1)=\"\",\"\",VLOOKUP(INDEX(campsByItinerary,$B11,BE$3-1),campInfo,8))","v":"Y"},{"$f":"IF(INDEX(campsByItinerary,$B11,BF$3-1)=\"\",\"\",VLOOKUP(INDEX(campsByItinerary,$B11,BF$3-1),campInfo,8))","v":"Y"},{"$f":"IF(INDEX(campsByItinerary,$B11,BG$3-1)=\"\",\"\",VLOOKUP(INDEX(campsByItinerary,$B11,BG$3-1),campInfo,8))","v":"Y"},{"$f":"IF(INDEX(campsByItinerary,$B11,BH$3-1)=\"\",\"\",VLOOKUP(INDEX(campsByItinerary,$B11,BH$3-1),campInfo,8))","v":"Y"},{"$f":"IF(INDEX(campsByItinerary,$B11,BI$3-1)=\"\",\"\",VLOOKUP(INDEX(campsByItinerary,$B11,BI$3-1),campInfo,8))","v":""},{"$f":"IF(INDEX(campsByItinerary,$B11,BJ$3-1)=\"\",\"\",VLOOKUP(INDEX(campsByItinerary,$B11,BJ$3-1),campInfo,8))","v":"Y"},{"$f":"IF(INDEX(campsByItinerary,$B11,BK$3-1)=\"\",\"\",VLOOKUP(INDEX(campsByItinerary,$B11,BK$3-1),campInfo,8))","v":""},{"$f":"IF(INDEX(campsByItinerary,$B11,BL$3-1)=\"\",\"\",VLOOKUP(INDEX(campsByItinerary,$B11,BL$3-1),campInfo,8))","v":""},{"$f":"IF(INDEX(campsByItinerary,$B11,BM$3-1)=\"\",\"\",VLOOKUP(INDEX(campsByItinerary,$B11,BM$3-1),campInfo,8))","v":""},{"$f":"IF(INDEX(campsByItinerary,$B11,BN$3-1)=\"\",\"\",VLOOKUP(INDEX(campsByItinerary,$B11,BN$3-1),campInfo,8))","v":""},"","","","","Y","",null,null,null,null,{"$f":"IF(INDEX(campsByItinerary,$B11,BE$3-1)=\"\",\"\",VLOOKUP(INDEX(campsByItinerary,$B11,BE$3-1),campInfo,10))","v":""},{"$f":"IF(INDEX(campsByItinerary,$B11,BF$3-1)=\"\",\"\",VLOOKUP(INDEX(campsByItinerary,$B11,BF$3-1),campInfo,10))","v":""},{"$f":"IF(INDEX(campsByItinerary,$B11,BG$3-1)=\"\",\"\",VLOOKUP(INDEX(campsByItinerary,$B11,BG$3-1),campInfo,10))","v":""},{"$f":"IF(INDEX(campsByItinerary,$B11,BH$3-1)=\"\",\"\",VLOOKUP(INDEX(campsByItinerary,$B11,BH$3-1),campInfo,10))","v":""},{"$f":"IF(INDEX(campsByItinerary,$B11,BI$3-1)=\"\",\"\",VLOOKUP(INDEX(campsByItinerary,$B11,BI$3-1),campInfo,10))","v":""},{"$f":"IF(INDEX(campsByItinerary,$B11,BJ$3-1)=\"\",\"\",VLOOKUP(INDEX(campsByItinerary,$B11,BJ$3-1),campInfo,10))","v":""},{"$f":"IF(INDEX(campsByItinerary,$B11,BK$3-1)=\"\",\"\",VLOOKUP(INDEX(campsByItinerary,$B11,BK$3-1),campInfo,10))","v":""},{"$f":"IF(INDEX(campsByItinerary,$B11,BL$3-1)=\"\",\"\",VLOOKUP(INDEX(campsByItinerary,$B11,BL$3-1),campInfo,10))","v":""},{"$f":"IF(INDEX(campsByItinerary,$B11,BM$3-1)=\"\",\"\",VLOOKUP(INDEX(campsByItinerary,$B11,BM$3-1),campInfo,10))","v":""},{"$f":"IF(INDEX(campsByItinerary,$B11,BN$3-1)=\"\",\"\",VLOOKUP(INDEX(campsByItinerary,$B11,BN$3-1),campInfo,10))","v":""},null,"","","Y","","","",null,null,null,{"$f":"IF(INDEX(campsByItinerary,$B11,CS$3-1)=\"\",\"\",VLOOKUP(INDEX(campsByItinerary,$B11,CS$3-1),campInfo,11))","v":""},{"$f":"IF(INDEX(campsByItinerary,$B11,CT$3-1)=\"\",\"\",VLOOKUP(INDEX(campsByItinerary,$B11,CT$3-1),campInfo,11))","v":"Y"},{"$f":"IF(INDEX(campsByItinerary,$B11,CU$3-1)=\"\",\"\",VLOOKUP(INDEX(campsByItinerary,$B11,CU$3-1),campInfo,11))","v":"Y"},{"$f":"IF(INDEX(campsByItinerary,$B11,CV$3-1)=\"\",\"\",VLOOKUP(INDEX(campsByItinerary,$B11,CV$3-1),campInfo,11))","v":"Y"},{"$f":"IF(INDEX(campsByItinerary,$B11,CW$3-1)=\"\",\"\",VLOOKUP(INDEX(campsByItinerary,$B11,CW$3-1),campInfo,11))","v":""},{"$f":"IF(INDEX(campsByItinerary,$B11,CX$3-1)=\"\",\"\",VLOOKUP(INDEX(campsByItinerary,$B11,CX$3-1),campInfo,11))","v":"Y"},{"$f":"IF(INDEX(campsByItinerary,$B11,CY$3-1)=\"\",\"\",VLOOKUP(INDEX(campsByItinerary,$B11,CY$3-1),campInfo,11))","v":""},{"$f":"IF(INDEX(campsByItinerary,$B11,CZ$3-1)=\"\",\"\",VLOOKUP(INDEX(campsByItinerary,$B11,CZ$3-1),campInfo,11))","v":""},{"$f":"IF(INDEX(campsByItinerary,$B11,DA$3-1)=\"\",\"\",VLOOKUP(INDEX(campsByItinerary,$B11,DA$3-1),campInfo,11))","v":""},{"$f":"IF(INDEX(campsByItinerary,$B11,DB$3-1)=\"\",\"\",VLOOKUP(INDEX(campsByItinerary,$B11,DB$3-1),campInfo,11))","v":""},{"$f":"IF(INDEX(campsByItinerary,$B11,BE$3-1)=\"\",\"\",VLOOKUP(INDEX(campsByItinerary,$B11,BE$3-1),campInfo,2))","v":"Central"},{"$f":"IF(INDEX(campsByItinerary,$B11,BF$3-1)=\"\",\"\",VLOOKUP(INDEX(campsByItinerary,$B11,BF$3-1),campInfo,2))","v":"South"},{"$f":"IF(INDEX(campsByItinerary,$B11,BG$3-1)=\"\",\"\",VLOOKUP(INDEX(campsByItinerary,$B11,BG$3-1),campInfo,2))","v":"South"},{"$f":"IF(INDEX(campsByItinerary,$B11,BH$3-1)=\"\",\"\",VLOOKUP(INDEX(campsByItinerary,$B11,BH$3-1),campInfo,2))","v":"South"},{"$f":"IF(INDEX(campsByItinerary,$B11,BI$3-1)=\"\",\"\",VLOOKUP(INDEX(campsByItinerary,$B11,BI$3-1),campInfo,2))","v":"South"},{"$f":"IF(INDEX(campsByItinerary,$B11,BJ$3-1)=\"\",\"\",VLOOKUP(INDEX(campsByItinerary,$B11,BJ$3-1),campInfo,2))","v":"South"},{"$f":"IF(INDEX(campsByItinerary,$B11,BK$3-1)=\"\",\"\",VLOOKUP(INDEX(campsByItinerary,$B11,BK$3-1),campInfo,2))","v":""},{"$f":"IF(INDEX(campsByItinerary,$B11,BL$3-1)=\"\",\"\",VLOOKUP(INDEX(campsByItinerary,$B11,BL$3-1),campInfo,2))","v":""},{"$f":"IF(INDEX(campsByItinerary,$B11,BM$3-1)=\"\",\"\",VLOOKUP(INDEX(campsByItinerary,$B11,BM$3-1),campInfo,2))","v":""},{"$f":"IF(INDEX(campsByItinerary,$B11,BN$3-1)=\"\",\"\",VLOOKUP(INDEX(campsByItinerary,$B11,BN$3-1),campInfo,2))","v":""},{"$f":"IF(INDEX(campsByItinerary,$B11,BO$3-1)=\"\",\"\",VLOOKUP(INDEX(campsByItinerary,$B11,BO$3-1),campInfo,12))","v":"South"},{"$f":"IF(INDEX(campsByItinerary,$B11,BP$3-1)=\"\",\"\",VLOOKUP(INDEX(campsByItinerary,$B11,BP$3-1),campInfo,12))","v":"South"},{"$f":"IF(INDEX(campsByItinerary,$B11,BQ$3-1)=\"\",\"\",VLOOKUP(INDEX(campsByItinerary,$B11,BQ$3-1),campInfo,12))","v":"South"},{"$f":"IF(INDEX(campsByItinerary,$B11,BR$3-1)=\"\",\"\",VLOOKUP(INDEX(campsByItinerary,$B11,BR$3-1),campInfo,12))","v":"South"},{"$f":"IF(INDEX(campsByItinerary,$B11,BS$3-1)=\"\",\"\",VLOOKUP(INDEX(campsByItinerary,$B11,BS$3-1),campInfo,12))","v":"South"},{"$f":"IF(INDEX(campsByItinerary,$B11,BT$3-1)=\"\",\"\",VLOOKUP(INDEX(campsByItinerary,$B11,BT$3-1),campInfo,12))","v":"South"},{"$f":"IF(INDEX(campsByItinerary,$B11,BU$3-1)=\"\",\"\",VLOOKUP(INDEX(campsByItinerary,$B11,BU$3-1),campInfo,12))","v":""},{"$f":"IF(INDEX(campsByItinerary,$B11,BV$3-1)=\"\",\"\",VLOOKUP(INDEX(campsByItinerary,$B11,BV$3-1),campInfo,12))","v":""},{"$f":"IF(INDEX(campsByItinerary,$B11,BW$3-1)=\"\",\"\",VLOOKUP(INDEX(campsByItinerary,$B11,BW$3-1),campInfo,12))","v":""},{"$f":"IF(INDEX(campsByItinerary,$B11,BX$3-1)=\"\",\"\",VLOOKUP(INDEX(campsByItinerary,$B11,BX$3-1),campInfo,12))","v":""},{"$f":"getfoodPU(\"First\",$B11)","v":1},{"$f":"getfoodPU(\"Max\",$B11)","v":2}]
["1B-S",9,"C",43,"Camping HQ","Miners Park","Bonita Cow","Beaubien","Beaubien","Abreu",null,null,null,null,"Camping HQ","Camping HQ",null,null,"Phillips Junction",null,null,null,null,null,"Ride Out","Ride In",null,":",null,null,null,null,null,null,null,null,null,6696,7977,9120,9330,9330,7217,"","","","",1281,1143,210,0,2113,"","","","",{"$f":"IF(INDEX(campsByItinerary,$B12,BE$3-1)=\"\",\"\",VLOOKUP(INDEX(campsByItinerary,$B12,BE$3-1),campInfo,8))","v":"Y"},{"$f":"IF(INDEX(campsByItinerary,$B12,BF$3-1)=\"\",\"\",VLOOKUP(INDEX(campsByItinerary,$B12,BF$3-1),campInfo,8))","v":"Y"},{"$f":"IF(INDEX(campsByItinerary,$B12,BG$3-1)=\"\",\"\",VLOOKUP(INDEX(campsByItinerary,$B12,BG$3-1),campInfo,8))","v":""},{"$f":"IF(INDEX(campsByItinerary,$B12,BH$3-1)=\"\",\"\",VLOOKUP(INDEX(campsByItinerary,$B12,BH$3-1),campInfo,8))","v":"Y"},{"$f":"IF(INDEX(campsByItinerary,$B12,BI$3-1)=\"\",\"\",VLOOKUP(INDEX(campsByItinerary,$B12,BI$3-1),campInfo,8))","v":"Y"},{"$f":"IF(INDEX(campsByItinerary,$B12,BJ$3-1)=\"\",\"\",VLOOKUP(INDEX(campsByItinerary,$B12,BJ$3-1),campInfo,8))","v":"Y"},{"$f":"IF(INDEX(campsByItinerary,$B12,BK$3-1)=\"\",\"\",VLOOKUP(INDEX(campsByItinerary,$B12,BK$3-1),campInfo,8))","v":""},{"$f":"IF(INDEX(campsByItinerary,$B12,BL$3-1)=\"\",\"\",VLOOKUP(INDEX(campsByItinerary,$B12,BL$3-1),campInfo,8))","v":""},{"$f":"IF(INDEX(campsByItinerary,$B12,BM$3-1)=\"\",\"\",VLOOKUP(INDEX(campsByItinerary,$B12,BM$3-1),campInfo,8))","v":""},{"$f":"IF(INDEX(campsByItinerary,$B12,BN$3-1)=\"\",\"\",VLOOKUP(INDEX(campsByItinerary,$B12,BN$3-1),campInfo,8))","v":""},"","","Y","","","",null,null,null,null,{"$f":"IF(INDEX(campsByItinerary,$B12,BE$3-1)=\"\",\"\",VLOOKUP(INDEX(campsByItinerary,$B12,BE$3-1),campInfo,10))","v":""},{"$f":"IF(INDEX(campsByItinerary,$B12,BF$3-1)=\"\",\"\",VLOOKUP(INDEX(campsByItinerary,$B12,BF$3-1),campInfo,10))","v":""},{"$f":"IF(INDEX(campsByItinerary,$B12,BG$3-1)=\"\",\"\",VLOOKUP(INDEX(campsByItinerary,$B12,BG$3-1),campInfo,10))","v":""},{"$f":"IF(INDEX(campsByItinerary,$B12,BH$3-1)=\"\",\"\",VLOOKUP(INDEX(campsByItinerary,$B12,BH$3-1),campInfo,10))","v":""},{"$f":"IF(INDEX(campsByItinerary,$B12,BI$3-1)=\"\",\"\",VLOOKUP(INDEX(campsByItinerary,$B12,BI$3-1),campInfo,10))","v":""},{"$f":"IF(INDEX(campsByItinerary,$B12,BJ$3-1)=\"\",\"\",VLOOKUP(INDEX(campsByItinerary,$B12,BJ$3-1),campInfo,10))","v":""},{"$f":"IF(INDEX(campsByItinerary,$B12,BK$3-1)=\"\",\"\",VLOOKUP(INDEX(campsByItinerary,$B12,BK$3-1),campInfo,10))","v":""},{"$f":"IF(INDEX(campsByItinerary,$B12,BL$3-1)=\"\",\"\",VLOOKUP(INDEX(campsByItinerary,$B12,BL$3-1),campInfo,10))","v":""},{"$f":"IF(INDEX(campsByItinerary,$B12,BM$3-1)=\"\",\"\",VLOOKUP(INDEX(campsByItinerary,$B12,BM$3-1),campInfo,10))","v":""},{"$f":"IF(INDEX(campsByItinerary,$B12,BN$3-1)=\"\",\"\",VLOOKUP(INDEX(campsByItinerary,$B12,BN$3-1),campInfo,10))","v":""},null,"","","","Y","","",null,null,null,{"$f":"IF(INDEX(campsByItinerary,$B12,CS$3-1)=\"\",\"\",VLOOKUP(INDEX(campsByItinerary,$B12,CS$3-1),campInfo,11))","v":""},{"$f":"IF(INDEX(campsByItinerary,$B12,CT$3-1)=\"\",\"\",VLOOKUP(INDEX(campsByItinerary,$B12,CT$3-1),campInfo,11))","v":"Y"},{"$f":"IF(INDEX(campsByItinerary,$B12,CU$3-1)=\"\",\"\",VLOOKUP(INDEX(campsByItinerary,$B12,CU$3-1),campInfo,11))","v":""},{"$f":"IF(INDEX(campsByItinerary,$B12,CV$3-1)=\"\",\"\",VLOOKUP(INDEX(campsByItinerary,$B12,CV$3-1),campInfo,11))","v":"Y"},{"$f":"IF(INDEX(campsByItinerary,$B12,CW$3-1)=\"\",\"\",VLOOKUP(INDEX(campsByItinerary,$B12,CW$3-1),campInfo,11))","v":"Y"},{"$f":"IF(INDEX(campsByItinerary,$B12,CX$3-1)=\"\",\"\",VLOOKUP(INDEX(campsByItinerary,$B12,CX$3-1),campInfo,11))","v":"Y"},{"$f":"IF(INDEX(campsByItinerary,$B12,CY$3-1)=\"\",\"\",VLOOKUP(INDEX(campsByItinerary,$B12,CY$3-1),campInfo,11))","v":""},{"$f":"IF(INDEX(campsByItinerary,$B12,CZ$3-1)=\"\",\"\",VLOOKUP(INDEX(campsByItinerary,$B12,CZ$3-1),campInfo,11))","v":""},{"$f":"IF(INDEX(campsByItinerary,$B12,DA$3-1)=\"\",\"\",VLOOKUP(INDEX(campsByItinerary,$B12,DA$3-1),campInfo,11))","v":""},{"$f":"IF(INDEX(campsByItinerary,$B12,DB$3-1)=\"\",\"\",VLOOKUP(INDEX(campsByItinerary,$B12,DB$3-1),campInfo,11))","v":""},{"$f":"IF(INDEX(campsByItinerary,$B12,BE$3-1)=\"\",\"\",VLOOKUP(INDEX(campsByItinerary,$B12,BE$3-1),campInfo,2))","v":"Central"},{"$f":"IF(INDEX(campsByItinerary,$B12,BF$3-1)=\"\",\"\",VLOOKUP(INDEX(campsByItinerary,$B12,BF$3-1),campInfo,2))","v":"South"},{"$f":"IF(INDEX(campsByItinerary,$B12,BG$3-1)=\"\",\"\",VLOOKUP(INDEX(campsByItinerary,$B12,BG$3-1),campInfo,2))","v":"South"},{"$f":"IF(INDEX(campsByItinerary,$B12,BH$3-1)=\"\",\"\",VLOOKUP(INDEX(campsByItinerary,$B12,BH$3-1),campInfo,2))","v":"South"},{"$f":"IF(INDEX(campsByItinerary,$B12,BI$3-1)=\"\",\"\",VLOOKUP(INDEX(campsByItinerary,$B12,BI$3-1),campInfo,2))","v":"South"},{"$f":"IF(INDEX(campsByItinerary,$B12,BJ$3-1)=\"\",\"\",VLOOKUP(INDEX(campsByItinerary,$B12,BJ$3-1),campInfo,2))","v":"South"},{"$f":"IF(INDEX(campsByItinerary,$B12,BK$3-1)=\"\",\"\",VLOOKUP(INDEX(campsByItinerary,$B12,BK$3-1),campInfo,2))","v":""},{"$f":"IF(INDEX(campsByItinerary,$B12,BL$3-1)=\"\",\"\",VLOOKUP(INDEX(campsByItinerary,$B12,BL$3-1),campInfo,2))","v":""},{"$f":"IF(INDEX(campsByItinerary,$B12,BM$3-1)=\"\",\"\",VLOOKUP(INDEX(campsByItinerary,$B12,BM$3-1),campInfo,2))","v":""},{"$f":"IF(INDEX(campsByItinerary,$B12,BN$3-1)=\"\",\"\",VLOOKUP(INDEX(campsByItinerary,$B12,BN$3-1),campInfo,2))","v":""},{"$f":"IF(INDEX(campsByItinerary,$B12,BO$3-1)=\"\",\"\",VLOOKUP(INDEX(campsByItinerary,$B12,BO$3-1),campInfo,12))","v":"South"},{"$f":"IF(INDEX(campsByItinerary,$B12,BP$3-1)=\"\",\"\",VLOOKUP(INDEX(campsByItinerary,$B12,BP$3-1),campInfo,12))","v":"South"},{"$f":"IF(INDEX(campsByItinerary,$B12,BQ$3-1)=\"\",\"\",VLOOKUP(INDEX(campsByItinerary,$B12,BQ$3-1),campInfo,12))","v":"South"},{"$f":"IF(INDEX(campsByItinerary,$B12,BR$3-1)=\"\",\"\",VLOOKUP(INDEX(campsByItinerary,$B12,BR$3-1),campInfo,12))","v":"South"},{"$f":"IF(INDEX(campsByItinerary,$B12,BS$3-1)=\"\",\"\",VLOOKUP(INDEX(campsByItinerary,$B12,BS$3-1),campInfo,12))","v":"South"},{"$f":"IF(INDEX(campsByItinerary,$B12,BT$3-1)=\"\",\"\",VLOOKUP(INDEX(campsByItinerary,$B12,BT$3-1),campInfo,12))","v":"South"},{"$f":"IF(INDEX(campsByItinerary,$B12,BU$3-1)=\"\",\"\",VLOOKUP(INDEX(campsByItinerary,$B12,BU$3-1),campInfo,12))","v":""},{"$f":"IF(INDEX(campsByItinerary,$B12,BV$3-1)=\"\",\"\",VLOOKUP(INDEX(campsByItinerary,$B12,BV$3-1),campInfo,12))","v":""},{"$f":"IF(INDEX(campsByItinerary,$B12,BW$3-1)=\"\",\"\",VLOOKUP(INDEX(campsByItinerary,$B12,BW$3-1),campInfo,12))","v":""},{"$f":"IF(INDEX(campsByItinerary,$B12,BX$3-1)=\"\",\"\",VLOOKUP(INDEX(campsByItinerary,$B12,BX$3-1),campInfo,12))","v":""},{"$f":"getfoodPU(\"First\",$B12)","v":1},{"$f":"getfoodPU(\"Max\",$B12)","v":3}]
["2A-S",10,"C",40,"Camping HQ","Abreu","Crater Lake","Beaubien","Beaubien","Miners Park",null,null,null,null,"Camping HQ","Camping HQ",null,null,"Phillips Junction",null,null,null,null,null,"Ride Out","Ride In",null,":",null,null,null,null,null,null,null,null,null,6696,7217,8398,9330,9330,7977,"","","","",521,1181,932,0,1353,"","","","",{"$f":"IF(INDEX(campsByItinerary,$B13,BE$3-1)=\"\",\"\",VLOOKUP(INDEX(campsByItinerary,$B13,BE$3-1),campInfo,8))","v":"Y"},{"$f":"IF(INDEX(campsByItinerary,$B13,BF$3-1)=\"\",\"\",VLOOKUP(INDEX(campsByItinerary,$B13,BF$3-1),campInfo,8))","v":"Y"},{"$f":"IF(INDEX(campsByItinerary,$B13,BG$3-1)=\"\",\"\",VLOOKUP(INDEX(campsByItinerary,$B13,BG$3-1),campInfo,8))","v":"Y"},{"$f":"IF(INDEX(campsByItinerary,$B13,BH$3-1)=\"\",\"\",VLOOKUP(INDEX(campsByItinerary,$B13,BH$3-1),campInfo,8))","v":"Y"},{"$f":"IF(INDEX(campsByItinerary,$B13,BI$3-1)=\"\",\"\",VLOOKUP(INDEX(campsByItinerary,$B13,BI$3-1),campInfo,8))","v":"Y"},{"$f":"IF(INDEX(campsByItinerary,$B13,BJ$3-1)=\"\",\"\",VLOOKUP(INDEX(campsByItinerary,$B13,BJ$3-1),campInfo,8))","v":"Y"},{"$f":"IF(INDEX(campsByItinerary,$B13,BK$3-1)=\"\",\"\",VLOOKUP(INDEX(campsByItinerary,$B13,BK$3-1),campInfo,8))","v":""},{"$f":"IF(INDEX(campsByItinerary,$B13,BL$3-1)=\"\",\"\",VLOOKUP(INDEX(campsByItinerary,$B13,BL$3-1),campInfo,8))","v":""},{"$f":"IF(INDEX(campsByItinerary,$B13,BM$3-1)=\"\",\"\",VLOOKUP(INDEX(campsByItinerary,$B13,BM$3-1),campInfo,8))","v":""},{"$f":"IF(INDEX(campsByItinerary,$B13,BN$3-1)=\"\",\"\",VLOOKUP(INDEX(campsByItinerary,$B13,BN$3-1),campInfo,8))","v":""},"","","","","","",null,null,null,null,{"$f":"IF(INDEX(campsByItinerary,$B13,BE$3-1)=\"\",\"\",VLOOKUP(INDEX(campsByItinerary,$B13,BE$3-1),campInfo,10))","v":""},{"$f":"IF(INDEX(campsByItinerary,$B13,BF$3-1)=\"\",\"\",VLOOKUP(INDEX(campsByItinerary,$B13,BF$3-1),campInfo,10))","v":""},{"$f":"IF(INDEX(campsByItinerary,$B13,BG$3-1)=\"\",\"\",VLOOKUP(INDEX(campsByItinerary,$B13,BG$3-1),campInfo,10))","v":""},{"$f":"IF(INDEX(campsByItinerary,$B13,BH$3-1)=\"\",\"\",VLOOKUP(INDEX(campsByItinerary,$B13,BH$3-1),campInfo,10))","v":""},{"$f":"IF(INDEX(campsByItinerary,$B13,BI$3-1)=\"\",\"\",VLOOKUP(INDEX(campsByItinerary,$B13,BI$3-1),campInfo,10))","v":""},{"$f":"IF(INDEX(campsByItinerary,$B13,BJ$3-1)=\"\",\"\",VLOOKUP(INDEX(campsByItinerary,$B13,BJ$3-1),campInfo,10))","v":""},{"$f":"IF(INDEX(campsByItinerary,$B13,BK$3-1)=\"\",\"\",VLOOKUP(INDEX(campsByItinerary,$B13,BK$3-1),campInfo,10))","v":""},{"$f":"IF(INDEX(campsByItinerary,$B13,BL$3-1)=\"\",\"\",VLOOKUP(INDEX(campsByItinerary,$B13,BL$3-1),campInfo,10))","v":""},{"$f":"IF(INDEX(campsByItinerary,$B13,BM$3-1)=\"\",\"\",VLOOKUP(INDEX(campsByItinerary,$B13,BM$3-1),campInfo,10))","v":""},{"$f":"IF(INDEX(campsByItinerary,$B13,BN$3-1)=\"\",\"\",VLOOKUP(INDEX(campsByItinerary,$B13,BN$3-1),campInfo,10))","v":""},null,"","","","Y","","",null,null,null,{"$f":"IF(INDEX(campsByItinerary,$B13,CS$3-1)=\"\",\"\",VLOOKUP(INDEX(campsByItinerary,$B13,CS$3-1),campInfo,11))","v":""},{"$f":"IF(INDEX(campsByItinerary,$B13,CT$3-1)=\"\",\"\",VLOOKUP(INDEX(campsByItinerary,$B13,CT$3-1),campInfo,11))","v":"Y"},{"$f":"IF(INDEX(campsByItinerary,$B13,CU$3-1)=\"\",\"\",VLOOKUP(INDEX(campsByItinerary,$B13,CU$3-1),campInfo,11))","v":""},{"$f":"IF(INDEX(campsByItinerary,$B13,CV$3-1)=\"\",\"\",VLOOKUP(INDEX(campsByItinerary,$B13,CV$3-1),campInfo,11))","v":"Y"},{"$f":"IF(INDEX(campsByItinerary,$B13,CW$3-1)=\"\",\"\",VLOOKUP(INDEX(campsByItinerary,$B13,CW$3-1),campInfo,11))","v":"Y"},{"$f":"IF(INDEX(campsByItinerary,$B13,CX$3-1)=\"\",\"\",VLOOKUP(INDEX(campsByItinerary,$B13,CX$3-1),campInfo,11))","v":"Y"},{"$f":"IF(INDEX(campsByItinerary,$B13,CY$3-1)=\"\",\"\",VLOOKUP(INDEX(campsByItinerary,$B13,CY$3-1),campInfo,11))","v":""},{"$f":"IF(INDEX(campsByItinerary,$B13,CZ$3-1)=\"\",\"\",VLOOKUP(INDEX(campsByItinerary,$B13,CZ$3-1),campInfo,11))","v":""},{"$f":"IF(INDEX(campsByItinerary,$B13,DA$3-1)=\"\",\"\",VLOOKUP(INDEX(campsByItinerary,$B13,DA$3-1),campInfo,11))","v":""},{"$f":"IF(INDEX(campsByItinerary,$B13,DB$3-1)=\"\",\"\",VLOOKUP(INDEX(campsByItinerary,$B13,DB$3-1),campInfo,11))","v":""},{"$f":"IF(INDEX(campsByItinerary,$B13,BE$3-1)=\"\",\"\",VLOOKUP(INDEX(campsByItinerary,$B13,BE$3-1),campInfo,2))","v":"Central"},{"$f":"IF(INDEX(campsByItinerary,$B13,BF$3-1)=\"\",\"\",VLOOKUP(INDEX(campsByItinerary,$B13,BF$3-1),campInfo,2))","v":"South"},{"$f":"IF(INDEX(campsByItinerary,$B13,BG$3-1)=\"\",\"\",VLOOKUP(INDEX(campsByItinerary,$B13,BG$3-1),campInfo,2))","v":"South"},{"$f":"IF(INDEX(campsByItinerary,$B13,BH$3-1)=\"\",\"\",VLOOKUP(INDEX(campsByItinerary,$B13,BH$3-1),campInfo,2))","v":"South"},{"$f":"IF(INDEX(campsByItinerary,$B13,BI$3-1)=\"\",\"\",VLOOKUP(INDEX(campsByItinerary,$B13,BI$3-1),campInfo,2))","v":"South"},{"$f":"IF(INDEX(campsByItinerary,$B13,BJ$3-1)=\"\",\"\",VLOOKUP(INDEX(campsByItinerary,$B13,BJ$3-1),campInfo,2))","v":"South"},{"$f":"IF(INDEX(campsByItinerary,$B13,BK$3-1)=\"\",\"\",VLOOKUP(INDEX(campsByItinerary,$B13,BK$3-1),campInfo,2))","v":""},{"$f":"IF(INDEX(campsByItinerary,$B13,BL$3-1)=\"\",\"\",VLOOKUP(INDEX(campsByItinerary,$B13,BL$3-1),campInfo,2))","v":""},{"$f":"IF(INDEX(campsByItinerary,$B13,BM$3-1)=\"\",\"\",VLOOKUP(INDEX(campsByItinerary,$B13,BM$3-1),campInfo,2))","v":""},{"$f":"IF(INDEX(campsByItinerary,$B13,BN$3-1)=\"\",\"\",VLOOKUP(INDEX(campsByItinerary,$B13,BN$3-1),campInfo,2))","v":""},{"$f":"IF(INDEX(campsByItinerary,$B13,BO$3-1)=\"\",\"\",VLOOKUP(INDEX(campsByItinerary,$B13,BO$3-1),campInfo,12))","v":"South"},{"$f":"IF(INDEX(campsByItinerary,$B13,BP$3-1)=\"\",\"\",VLOOKUP(INDEX(campsByItinerary,$B13,BP$3-1),campInfo,12))","v":"South"},{"$f":"IF(INDEX(campsByItinerary,$B13,BQ$3-1)=\"\",\"\",VLOOKUP(INDEX(campsByItinerary,$B13,BQ$3-1),campInfo,12))","v":"South"},{"$f":"IF(INDEX(campsByItinerary,$B13,BR$3-1)=\"\",\"\",VLOOKUP(INDEX(campsByItinerary,$B13,BR$3-1),campInfo,12))","v":"South"},{"$f":"IF(INDEX(campsByItinerary,$B13,BS$3-1)=\"\",\"\",VLOOKUP(INDEX(campsByItinerary,$B13,BS$3-1),campInfo,12))","v":"South"},{"$f":"IF(INDEX(campsByItinerary,$B13,BT$3-1)=\"\",\"\",VLOOKUP(INDEX(campsByItinerary,$B13,BT$3-1),campInfo,12))","v":"South"},{"$f":"IF(INDEX(campsByItinerary,$B13,BU$3-1)=\"\",\"\",VLOOKUP(INDEX(campsByItinerary,$B13,BU$3-1),campInfo,12))","v":""},{"$f":"IF(INDEX(campsByItinerary,$B13,BV$3-1)=\"\",\"\",VLOOKUP(INDEX(campsByItinerary,$B13,BV$3-1),campInfo,12))","v":""},{"$f":"IF(INDEX(campsByItinerary,$B13,BW$3-1)=\"\",\"\",VLOOKUP(INDEX(campsByItinerary,$B13,BW$3-1),campInfo,12))","v":""},{"$f":"IF(INDEX(campsByItinerary,$B13,BX$3-1)=\"\",\"\",VLOOKUP(INDEX(campsByItinerary,$B13,BX$3-1),campInfo,12))","v":""},{"$f":"getfoodPU(\"First\",$B13)","v":1},{"$f":"getfoodPU(\"Max\",$B13)","v":3}]
["2B-S",11,"C",46,"Camping HQ","Miners Park","Beaubien","Beaubien","Crater Lake","Abreu",null,null,null,null,"Camping HQ","Camping HQ",null,"Phillips Junction",null,null,null,null,null,null,"Ride Out","Ride In",null,":",null,null,null,null,null,null,null,"y",null,6696,7977,9330,9330,8398,7217,"","","","",1281,1353,0,932,1181,"","","","",{"$f":"IF(INDEX(campsByItinerary,$B14,BE$3-1)=\"\",\"\",VLOOKUP(INDEX(campsByItinerary,$B14,BE$3-1),campInfo,8))","v":"Y"},{"$f":"IF(INDEX(campsByItinerary,$B14,BF$3-1)=\"\",\"\",VLOOKUP(INDEX(campsByItinerary,$B14,BF$3-1),campInfo,8))","v":"Y"},{"$f":"IF(INDEX(campsByItinerary,$B14,BG$3-1)=\"\",\"\",VLOOKUP(INDEX(campsByItinerary,$B14,BG$3-1),campInfo,8))","v":"Y"},{"$f":"IF(INDEX(campsByItinerary,$B14,BH$3-1)=\"\",\"\",VLOOKUP(INDEX(campsByItinerary,$B14,BH$3-1),campInfo,8))","v":"Y"},{"$f":"IF(INDEX(campsByItinerary,$B14,BI$3-1)=\"\",\"\",VLOOKUP(INDEX(campsByItinerary,$B14,BI$3-1),campInfo,8))","v":"Y"},{"$f":"IF(INDEX(campsByItinerary,$B14,BJ$3-1)=\"\",\"\",VLOOKUP(INDEX(campsByItinerary,$B14,BJ$3-1),campInfo,8))","v":"Y"},{"$f":"IF(INDEX(campsByItinerary,$B14,BK$3-1)=\"\",\"\",VLOOKUP(INDEX(campsByItinerary,$B14,BK$3-1),campInfo,8))","v":""},{"$f":"IF(INDEX(campsByItinerary,$B14,BL$3-1)=\"\",\"\",VLOOKUP(INDEX(campsByItinerary,$B14,BL$3-1),campInfo,8))","v":""},{"$f":"IF(INDEX(campsByItinerary,$B14,BM$3-1)=\"\",\"\",VLOOKUP(INDEX(campsByItinerary,$B14,BM$3-1),campInfo,8))","v":""},{"$f":"IF(INDEX(campsByItinerary,$B14,BN$3-1)=\"\",\"\",VLOOKUP(INDEX(campsByItinerary,$B14,BN$3-1),campInfo,8))","v":""},"","","","","","",null,null,null,null,{"$f":"IF(INDEX(campsByItinerary,$B14,BE$3-1)=\"\",\"\",VLOOKUP(INDEX(campsByItinerary,$B14,BE$3-1),campInfo,10))","v":""},{"$f":"IF(INDEX(campsByItinerary,$B14,BF$3-1)=\"\",\"\",VLOOKUP(INDEX(campsByItinerary,$B14,BF$3-1),campInfo,10))","v":""},{"$f":"IF(INDEX(campsByItinerary,$B14,BG$3-1)=\"\",\"\",VLOOKUP(INDEX(campsByItinerary,$B14,BG$3-1),campInfo,10))","v":""},{"$f":"IF(INDEX(campsByItinerary,$B14,BH$3-1)=\"\",\"\",VLOOKUP(INDEX(campsByItinerary,$B14,BH$3-1),campInfo,10))","v":""},{"$f":"IF(INDEX(campsByItinerary,$B14,BI$3-1)=\"\",\"\",VLOOKUP(INDEX(campsByItinerary,$B14,BI$3-1),campInfo,10))","v":""},{"$f":"IF(INDEX(campsByItinerary,$B14,BJ$3-1)=\"\",\"\",VLOOKUP(INDEX(campsByItinerary,$B14,BJ$3-1),campInfo,10))","v":""},{"$f":"IF(INDEX(campsByItinerary,$B14,BK$3-1)=\"\",\"\",VLOOKUP(INDEX(campsByItinerary,$B14,BK$3-1),campInfo,10))","v":""},{"$f":"IF(INDEX(campsByItinerary,$B14,BL$3-1)=\"\",\"\",VLOOKUP(INDEX(campsByItinerary,$B14,BL$3-1),campInfo,10))","v":""},{"$f":"IF(INDEX(campsByItinerary,$B14,BM$3-1)=\"\",\"\",VLOOKUP(INDEX(campsByItinerary,$B14,BM$3-1),campInfo,10))","v":""},{"$f":"IF(INDEX(campsByItinerary,$B14,BN$3-1)=\"\",\"\",VLOOKUP(INDEX(campsByItinerary,$B14,BN$3-1),campInfo,10))","v":""},null,"","","Y","","","",null,null,null,{"$f":"IF(INDEX(campsByItinerary,$B14,CS$3-1)=\"\",\"\",VLOOKUP(INDEX(campsByItinerary,$B14,CS$3-1),campInfo,11))","v":""},{"$f":"IF(INDEX(campsByItinerary,$B14,CT$3-1)=\"\",\"\",VLOOKUP(INDEX(campsByItinerary,$B14,CT$3-1),campInfo,11))","v":"Y"},{"$f":"IF(INDEX(campsByItinerary,$B14,CU$3-1)=\"\",\"\",VLOOKUP(INDEX(campsByItinerary,$B14,CU$3-1),campInfo,11))","v":"Y"},{"$f":"IF(INDEX(campsByItinerary,$B14,CV$3-1)=\"\",\"\",VLOOKUP(INDEX(campsByItinerary,$B14,CV$3-1),campInfo,11))","v":"Y"},{"$f":"IF(INDEX(campsByItinerary,$B14,CW$3-1)=\"\",\"\",VLOOKUP(INDEX(campsByItinerary,$B14,CW$3-1),campInfo,11))","v":""},{"$f":"IF(INDEX(campsByItinerary,$B14,CX$3-1)=\"\",\"\",VLOOKUP(INDEX(campsByItinerary,$B14,CX$3-1),campInfo,11))","v":"Y"},{"$f":"IF(INDEX(campsByItinerary,$B14,CY$3-1)=\"\",\"\",VLOOKUP(INDEX(campsByItinerary,$B14,CY$3-1),campInfo,11))","v":""},{"$f":"IF(INDEX(campsByItinerary,$B14,CZ$3-1)=\"\",\"\",VLOOKUP(INDEX(campsByItinerary,$B14,CZ$3-1),campInfo,11))","v":""},{"$f":"IF(INDEX(campsByItinerary,$B14,DA$3-1)=\"\",\"\",VLOOKUP(INDEX(campsByItinerary,$B14,DA$3-1),campInfo,11))","v":""},{"$f":"IF(INDEX(campsByItinerary,$B14,DB$3-1)=\"\",\"\",VLOOKUP(INDEX(campsByItinerary,$B14,DB$3-1),campInfo,11))","v":""},{"$f":"IF(INDEX(campsByItinerary,$B14,BE$3-1)=\"\",\"\",VLOOKUP(INDEX(campsByItinerary,$B14,BE$3-1),campInfo,2))","v":"Central"},{"$f":"IF(INDEX(campsByItinerary,$B14,BF$3-1)=\"\",\"\",VLOOKUP(INDEX(campsByItinerary,$B14,BF$3-1),campInfo,2))","v":"South"},{"$f":"IF(INDEX(campsByItinerary,$B14,BG$3-1)=\"\",\"\",VLOOKUP(INDEX(campsByItinerary,$B14,BG$3-1),campInfo,2))","v":"South"},{"$f":"IF(INDEX(campsByItinerary,$B14,BH$3-1)=\"\",\"\",VLOOKUP(INDEX(campsByItinerary,$B14,BH$3-1),campInfo,2))","v":"South"},{"$f":"IF(INDEX(campsByItinerary,$B14,BI$3-1)=\"\",\"\",VLOOKUP(INDEX(campsByItinerary,$B14,BI$3-1),campInfo,2))","v":"South"},{"$f":"IF(INDEX(campsByItinerary,$B14,BJ$3-1)=\"\",\"\",VLOOKUP(INDEX(campsByItinerary,$B14,BJ$3-1),campInfo,2))","v":"South"},{"$f":"IF(INDEX(campsByItinerary,$B14,BK$3-1)=\"\",\"\",VLOOKUP(INDEX(campsByItinerary,$B14,BK$3-1),campInfo,2))","v":""},{"$f":"IF(INDEX(campsByItinerary,$B14,BL$3-1)=\"\",\"\",VLOOKUP(INDEX(campsByItinerary,$B14,BL$3-1),campInfo,2))","v":""},{"$f":"IF(INDEX(campsByItinerary,$B14,BM$3-1)=\"\",\"\",VLOOKUP(INDEX(campsByItinerary,$B14,BM$3-1),campInfo,2))","v":""},{"$f":"IF(INDEX(campsByItinerary,$B14,BN$3-1)=\"\",\"\",VLOOKUP(INDEX(campsByItinerary,$B14,BN$3-1),campInfo,2))","v":""},{"$f":"IF(INDEX(campsByItinerary,$B14,BO$3-1)=\"\",\"\",VLOOKUP(INDEX(campsByItinerary,$B14,BO$3-1),campInfo,12))","v":"South"},{"$f":"IF(INDEX(campsByItinerary,$B14,BP$3-1)=\"\",\"\",VLOOKUP(INDEX(campsByItinerary,$B14,BP$3-1),campInfo,12))","v":"South"},{"$f":"IF(INDEX(campsByItinerary,$B14,BQ$3-1)=\"\",\"\",VLOOKUP(INDEX(campsByItinerary,$B14,BQ$3-1),campInfo,12))","v":"South"},{"$f":"IF(INDEX(campsByItinerary,$B14,BR$3-1)=\"\",\"\",VLOOKUP(INDEX(campsByItinerary,$B14,BR$3-1),campInfo,12))","v":"South"},{"$f":"IF(INDEX(campsByItinerary,$B14,BS$3-1)=\"\",\"\",VLOOKUP(INDEX(campsByItinerary,$B14,BS$3-1),campInfo,12))","v":"South"},{"$f":"IF(INDEX(campsByItinerary,$B14,BT$3-1)=\"\",\"\",VLOOKUP(INDEX(campsByItinerary,$B14,BT$3-1),campInfo,12))","v":"South"},{"$f":"IF(INDEX(campsByItinerary,$B14,BU$3-1)=\"\",\"\",VLOOKUP(INDEX(campsByItinerary,$B14,BU$3-1),campInfo,12))","v":""},{"$f":"IF(INDEX(campsByItinerary,$B14,BV$3-1)=\"\",\"\",VLOOKUP(INDEX(campsByItinerary,$B14,BV$3-1),campInfo,12))","v":""},{"$f":"IF(INDEX(campsByItinerary,$B14,BW$3-1)=\"\",\"\",VLOOKUP(INDEX(campsByItinerary,$B14,BW$3-1),campInfo,12))","v":""},{"$f":"IF(INDEX(campsByItinerary,$B14,BX$3-1)=\"\",\"\",VLOOKUP(INDEX(campsByItinerary,$B14,BX$3-1),campInfo,12))","v":""},{"$f":"getfoodPU(\"First\",$B14)","v":1},{"$f":"getfoodPU(\"Max\",$B14)","v":2}]
["3A-S",12,"C",32,"Camping HQ","Crater Lake","Fish Camp","Fish Camp","Beaubien","Miners Park",null,null,null,null,"Camping HQ","Camping HQ",null,null,"Phillips Junction",null,null,null,null,null,"Ride Out","Ride In",null,":",null,null,null,null,null,null,null,null,null,6696,8398,8564,8564,9330,7977,"","","","",1702,166,0,766,1353,"","","","",{"$f":"IF(INDEX(campsByItinerary,$B15,BE$3-1)=\"\",\"\",VLOOKUP(INDEX(campsByItinerary,$B15,BE$3-1),campInfo,8))","v":"Y"},{"$f":"IF(INDEX(campsByItinerary,$B15,BF$3-1)=\"\",\"\",VLOOKUP(INDEX(campsByItinerary,$B15,BF$3-1),campInfo,8))","v":"Y"},{"$f":"IF(INDEX(campsByItinerary,$B15,BG$3-1)=\"\",\"\",VLOOKUP(INDEX(campsByItinerary,$B15,BG$3-1),campInfo,8))","v":"Y"},{"$f":"IF(INDEX(campsByItinerary,$B15,BH$3-1)=\"\",\"\",VLOOKUP(INDEX(campsByItinerary,$B15,BH$3-1),campInfo,8))","v":"Y"},{"$f":"IF(INDEX(campsByItinerary,$B15,BI$3-1)=\"\",\"\",VLOOKUP(INDEX(campsByItinerary,$B15,BI$3-1),campInfo,8))","v":"Y"},{"$f":"IF(INDEX(campsByItinerary,$B15,BJ$3-1)=\"\",\"\",VLOOKUP(INDEX(campsByItinerary,$B15,BJ$3-1),campInfo,8))","v":"Y"},{"$f":"IF(INDEX(campsByItinerary,$B15,BK$3-1)=\"\",\"\",VLOOKUP(INDEX(campsByItinerary,$B15,BK$3-1),campInfo,8))","v":""},{"$f":"IF(INDEX(campsByItinerary,$B15,BL$3-1)=\"\",\"\",VLOOKUP(INDEX(campsByItinerary,$B15,BL$3-1),campInfo,8))","v":""},{"$f":"IF(INDEX(campsByItinerary,$B15,BM$3-1)=\"\",\"\",VLOOKUP(INDEX(campsByItinerary,$B15,BM$3-1),campInfo,8))","v":""},{"$f":"IF(INDEX(campsByItinerary,$B15,BN$3-1)=\"\",\"\",VLOOKUP(INDEX(campsByItinerary,$B15,BN$3-1),campInfo,8))","v":""},"","","","","","",null,null,null,null,{"$f":"IF(INDEX(campsByItinerary,$B15,BE$3-1)=\"\",\"\",VLOOKUP(INDEX(campsByItinerary,$B15,BE$3-1),campInfo,10))","v":""},{"$f":"IF(INDEX(campsByItinerary,$B15,BF$3-1)=\"\",\"\",VLOOKUP(INDEX(campsByItinerary,$B15,BF$3-1),campInfo,10))","v":""},{"$f":"IF(INDEX(campsByItinerary,$B15,BG$3-1)=\"\",\"\",VLOOKUP(INDEX(campsByItinerary,$B15,BG$3-1),campInfo,10))","v":""},{"$f":"IF(INDEX(campsByItinerary,$B15,BH$3-1)=\"\",\"\",VLOOKUP(INDEX(campsByItinerary,$B15,BH$3-1),campInfo,10))","v":""},{"$f":"IF(INDEX(campsByItinerary,$B15,BI$3-1)=\"\",\"\",VLOOKUP(INDEX(campsByItinerary,$B15,BI$3-1),campInfo,10))","v":""},{"$f":"IF(INDEX(campsByItinerary,$B15,BJ$3-1)=\"\",\"\",VLOOKUP(INDEX(campsByItinerary,$B15,BJ$3-1),campInfo,10))","v":""},{"$f":"IF(INDEX(campsByItinerary,$B15,BK$3-1)=\"\",\"\",VLOOKUP(INDEX(campsByItinerary,$B15,BK$3-1),campInfo,10))","v":""},{"$f":"IF(INDEX(campsByItinerary,$B15,BL$3-1)=\"\",\"\",VLOOKUP(INDEX(campsByItinerary,$B15,BL$3-1),campInfo,10))","v":""},{"$f":"IF(INDEX(campsByItinerary,$B15,BM$3-1)=\"\",\"\",VLOOKUP(INDEX(campsByItinerary,$B15,BM$3-1),campInfo,10))","v":""},{"$f":"IF(INDEX(campsByItinerary,$B15,BN$3-1)=\"\",\"\",VLOOKUP(INDEX(campsByItinerary,$B15,BN$3-1),campInfo,10))","v":""},null,"","","Y","","","",null,null,null,{"$f":"IF(INDEX(campsByItinerary,$B15,CS$3-1)=\"\",\"\",VLOOKUP(INDEX(campsByItinerary,$B15,CS$3-1),campInfo,11))","v":""},{"$f":"IF(INDEX(campsByItinerary,$B15,CT$3-1)=\"\",\"\",VLOOKUP(INDEX(campsByItinerary,$B15,CT$3-1),campInfo,11))","v":""},{"$f":"IF(INDEX(campsByItinerary,$B15,CU$3-1)=\"\",\"\",VLOOKUP(INDEX(campsByItinerary,$B15,CU$3-1),campInfo,11))","v":""},{"$f":"IF(INDEX(campsByItinerary,$B15,CV$3-1)=\"\",\"\",VLOOKUP(INDEX(campsByItinerary,$B15,CV$3-1),campInfo,11))","v":""},{"$f":"IF(INDEX(campsByItinerary,$B15,CW$3-1)=\"\",\"\",VLOOKUP(INDEX(campsByItinerary,$B15,CW$3-1),campInfo,11))","v":"Y"},{"$f":"IF(INDEX(campsByItinerary,$B15,CX$3-1)=\"\",\"\",VLOOKUP(INDEX(campsByItinerary,$B15,CX$3-1),campInfo,11))","v":"Y"},{"$f":"IF(INDEX(campsByItinerary,$B15,CY$3-1)=\"\",\"\",VLOOKUP(INDEX(campsByItinerary,$B15,CY$3-1),campInfo,11))","v":""},{"$f":"IF(INDEX(campsByItinerary,$B15,CZ$3-1)=\"\",\"\",VLOOKUP(INDEX(campsByItinerary,$B15,CZ$3-1),campInfo,11))","v":""},{"$f":"IF(INDEX(campsByItinerary,$B15,DA$3-1)=\"\",\"\",VLOOKUP(INDEX(campsByItinerary,$B15,DA$3-1),campInfo,11))","v":""},{"$f":"IF(INDEX(campsByItinerary,$B15,DB$3-1)=\"\",\"\",VLOOKUP(INDEX(campsByItinerary,$B15,DB$3-1),campInfo,11))","v":""},{"$f":"IF(INDEX(campsByItinerary,$B15,BE$3-1)=\"\",\"\",VLOOKUP(INDEX(campsByItinerary,$B15,BE$3-1),campInfo,2))","v":"Central"},{"$f":"IF(INDEX(campsByItinerary,$B15,BF$3-1)=\"\",\"\",VLOOKUP(INDEX(campsByItinerary,$B15,BF$3-1),campInfo,2))","v":"South"},{"$f":"IF(INDEX(campsByItinerary,$B15,BG$3-1)=\"\",\"\",VLOOKUP(INDEX(campsByItinerary,$B15,BG$3-1),campInfo,2))","v":"South"},{"$f":"IF(INDEX(campsByItinerary,$B15,BH$3-1)=\"\",\"\",VLOOKUP(INDEX(campsByItinerary,$B15,BH$3-1),campInfo,2))","v":"South"},{"$f":"IF(INDEX(campsByItinerary,$B15,BI$3-1)=\"\",\"\",VLOOKUP(INDEX(campsByItinerary,$B15,BI$3-1),campInfo,2))","v":"South"},{"$f":"IF(INDEX(campsByItinerary,$B15,BJ$3-1)=\"\",\"\",VLOOKUP(INDEX(campsByItinerary,$B15,BJ$3-1),campInfo,2))","v":"South"},{"$f":"IF(INDEX(campsByItinerary,$B15,BK$3-1)=\"\",\"\",VLOOKUP(INDEX(campsByItinerary,$B15,BK$3-1),campInfo,2))","v":""},{"$f":"IF(INDEX(campsByItinerary,$B15,BL$3-1)=\"\",\"\",VLOOKUP(INDEX(campsByItinerary,$B15,BL$3-1),campInfo,2))","v":""},{"$f":"IF(INDEX(campsByItinerary,$B15,BM$3-1)=\"\",\"\",VLOOKUP(INDEX(campsByItinerary,$B15,BM$3-1),campInfo,2))","v":""},{"$f":"IF(INDEX(campsByItinerary,$B15,BN$3-1)=\"\",\"\",VLOOKUP(INDEX(campsByItinerary,$B15,BN$3-1),campInfo,2))","v":""},{"$f":"IF(INDEX(campsByItinerary,$B15,BO$3-1)=\"\",\"\",VLOOKUP(INDEX(campsByItinerary,$B15,BO$3-1),campInfo,12))","v":"South"},{"$f":"IF(INDEX(campsByItinerary,$B15,BP$3-1)=\"\",\"\",VLOOKUP(INDEX(campsByItinerary,$B15,BP$3-1),campInfo,12))","v":"South"},{"$f":"IF(INDEX(campsByItinerary,$B15,BQ$3-1)=\"\",\"\",VLOOKUP(INDEX(campsByItinerary,$B15,BQ$3-1),campInfo,12))","v":"South"},{"$f":"IF(INDEX(campsByItinerary,$B15,BR$3-1)=\"\",\"\",VLOOKUP(INDEX(campsByItinerary,$B15,BR$3-1),campInfo,12))","v":"South"},{"$f":"IF(INDEX(campsByItinerary,$B15,BS$3-1)=\"\",\"\",VLOOKUP(INDEX(campsByItinerary,$B15,BS$3-1),campInfo,12))","v":"South"},{"$f":"IF(INDEX(campsByItinerary,$B15,BT$3-1)=\"\",\"\",VLOOKUP(INDEX(campsByItinerary,$B15,BT$3-1),campInfo,12))","v":"South"},{"$f":"IF(INDEX(campsByItinerary,$B15,BU$3-1)=\"\",\"\",VLOOKUP(INDEX(campsByItinerary,$B15,BU$3-1),campInfo,12))","v":""},{"$f":"IF(INDEX(campsByItinerary,$B15,BV$3-1)=\"\",\"\",VLOOKUP(INDEX(campsByItinerary,$B15,BV$3-1),campInfo,12))","v":""},{"$f":"IF(INDEX(campsByItinerary,$B15,BW$3-1)=\"\",\"\",VLOOKUP(INDEX(campsByItinerary,$B15,BW$3-1),campInfo,12))","v":""},{"$f":"IF(INDEX(campsByItinerary,$B15,BX$3-1)=\"\",\"\",VLOOKUP(INDEX(campsByItinerary,$B15,BX$3-1),campInfo,12))","v":""},{"$f":"getfoodPU(\"First\",$B15)","v":1},{"$f":"getfoodPU(\"Max\",$B15)","v":3}]
["3B-S",13,"C",36,"Camping HQ","Miners Park","Beaubien","Fish Camp","Fish Camp","Crater Lake",null,null,null,null,"Camping HQ","Camping HQ",null,"Phillips Junction","Phillips Junction",null,null,null,null,null,"Ride Out","Ride In",null,{"$f":"AC16 & \":\" & AD16","v":":"},null,null,null,null,null,null,null,null,null,6696,7977,9330,8564,8564,8398,"","","","",1281,1353,766,0,166,"","","","",{"$f":"IF(INDEX(campsByItinerary,$B16,BE$3-1)=\"\",\"\",VLOOKUP(INDEX(campsByItinerary,$B16,BE$3-1),campInfo,8))","v":"Y"},{"$f":"IF(INDEX(campsByItinerary,$B16,BF$3-1)=\"\",\"\",VLOOKUP(INDEX(campsByItinerary,$B16,BF$3-1),campInfo,8))","v":"Y"},{"$f":"IF(INDEX(campsByItinerary,$B16,BG$3-1)=\"\",\"\",VLOOKUP(INDEX(campsByItinerary,$B16,BG$3-1),campInfo,8))","v":"Y"},{"$f":"IF(INDEX(campsByItinerary,$B16,BH$3-1)=\"\",\"\",VLOOKUP(INDEX(campsByItinerary,$B16,BH$3-1),campInfo,8))","v":"Y"},{"$f":"IF(INDEX(campsByItinerary,$B16,BI$3-1)=\"\",\"\",VLOOKUP(INDEX(campsByItinerary,$B16,BI$3-1),campInfo,8))","v":"Y"},{"$f":"IF(INDEX(campsByItinerary,$B16,BJ$3-1)=\"\",\"\",VLOOKUP(INDEX(campsByItinerary,$B16,BJ$3-1),campInfo,8))","v":"Y"},{"$f":"IF(INDEX(campsByItinerary,$B16,BK$3-1)=\"\",\"\",VLOOKUP(INDEX(campsByItinerary,$B16,BK$3-1),campInfo,8))","v":""},{"$f":"IF(INDEX(campsByItinerary,$B16,BL$3-1)=\"\",\"\",VLOOKUP(INDEX(campsByItinerary,$B16,BL$3-1),campInfo,8))","v":""},{"$f":"IF(INDEX(campsByItinerary,$B16,BM$3-1)=\"\",\"\",VLOOKUP(INDEX(campsByItinerary,$B16,BM$3-1),campInfo,8))","v":""},{"$f":"IF(INDEX(campsByItinerary,$B16,BN$3-1)=\"\",\"\",VLOOKUP(INDEX(campsByItinerary,$B16,BN$3-1),campInfo,8))","v":""},"","","","","","",null,null,null,null,{"$f":"IF(INDEX(campsByItinerary,$B16,BE$3-1)=\"\",\"\",VLOOKUP(INDEX(campsByItinerary,$B16,BE$3-1),campInfo,10))","v":""},{"$f":"IF(INDEX(campsByItinerary,$B16,BF$3-1)=\"\",\"\",VLOOKUP(INDEX(campsByItinerary,$B16,BF$3-1),campInfo,10))","v":""},{"$f":"IF(INDEX(campsByItinerary,$B16,BG$3-1)=\"\",\"\",VLOOKUP(INDEX(campsByItinerary,$B16,BG$3-1),campInfo,10))","v":""},{"$f":"IF(INDEX(campsByItinerary,$B16,BH$3-1)=\"\",\"\",VLOOKUP(INDEX(campsByItinerary,$B16,BH$3-1),campInfo,10))","v":""},{"$f":"IF(INDEX(campsByItinerary,$B16,BI$3-1)=\"\",\"\",VLOOKUP(INDEX(campsByItinerary,$B16,BI$3-1),campInfo,10))","v":""},{"$f":"IF(INDEX(campsByItinerary,$B16,BJ$3-1)=\"\",\"\",VLOOKUP(INDEX(campsByItinerary,$B16,BJ$3-1),campInfo,10))","v":""},{"$f":"IF(INDEX(campsByItinerary,$B16,BK$3-1)=\"\",\"\",VLOOKUP(INDEX(campsByItinerary,$B16,BK$3-1),campInfo,10))","v":""},{"$f":"IF(INDEX(campsByItinerary,$B16,BL$3-1)=\"\",\"\",VLOOKUP(INDEX(campsByItinerary,$B16,BL$3-1),campInfo,10))","v":""},{"$f":"IF(INDEX(campsByItinerary,$B16,BM$3-1)=\"\",\"\",VLOOKUP(INDEX(campsByItinerary,$B16,BM$3-1),campInfo,10))","v":""},{"$f":"IF(INDEX(campsByItinerary,$B16,BN$3-1)=\"\",\"\",VLOOKUP(INDEX(campsByItinerary,$B16,BN$3-1),campInfo,10))","v":""},null,"","","","Y","","",null,null,null,{"$f":"IF(INDEX(campsByItinerary,$B16,CS$3-1)=\"\",\"\",VLOOKUP(INDEX(campsByItinerary,$B16,CS$3-1),campInfo,11))","v":""},{"$f":"IF(INDEX(campsByItinerary,$B16,CT$3-1)=\"\",\"\",VLOOKUP(INDEX(campsByItinerary,$B16,CT$3-1),campInfo,11))","v":"Y"},{"$f":"IF(INDEX(campsByItinerary,$B16,CU$3-1)=\"\",\"\",VLOOKUP(INDEX(campsByItinerary,$B16,CU$3-1),campInfo,11))","v":"Y"},{"$f":"IF(INDEX(campsByItinerary,$B16,CV$3-1)=\"\",\"\",VLOOKUP(INDEX(campsByItinerary,$B16,CV$3-1),campInfo,11))","v":""},{"$f":"IF(INDEX(campsByItinerary,$B16,CW$3-1)=\"\",\"\",VLOOKUP(INDEX(campsByItinerary,$B16,CW$3-1),campInfo,11))","v":""},{"$f":"IF(INDEX(campsByItinerary,$B16,CX$3-1)=\"\",\"\",VLOOKUP(INDEX(campsByItinerary,$B16,CX$3-1),campInfo,11))","v":""},{"$f":"IF(INDEX(campsByItinerary,$B16,CY$3-1)=\"\",\"\",VLOOKUP(INDEX(campsByItinerary,$B16,CY$3-1),campInfo,11))","v":""},{"$f":"IF(INDEX(campsByItinerary,$B16,CZ$3-1)=\"\",\"\",VLOOKUP(INDEX(campsByItinerary,$B16,CZ$3-1),campInfo,11))","v":""},{"$f":"IF(INDEX(campsByItinerary,$B16,DA$3-1)=\"\",\"\",VLOOKUP(INDEX(campsByItinerary,$B16,DA$3-1),campInfo,11))","v":""},{"$f":"IF(INDEX(campsByItinerary,$B16,DB$3-1)=\"\",\"\",VLOOKUP(INDEX(campsByItinerary,$B16,DB$3-1),campInfo,11))","v":""},{"$f":"IF(INDEX(campsByItinerary,$B16,BE$3-1)=\"\",\"\",VLOOKUP(INDEX(campsByItinerary,$B16,BE$3-1),campInfo,2))","v":"Central"},{"$f":"IF(INDEX(campsByItinerary,$B16,BF$3-1)=\"\",\"\",VLOOKUP(INDEX(campsByItinerary,$B16,BF$3-1),campInfo,2))","v":"South"},{"$f":"IF(INDEX(campsByItinerary,$B16,BG$3-1)=\"\",\"\",VLOOKUP(INDEX(campsByItinerary,$B16,BG$3-1),campInfo,2))","v":"South"},{"$f":"IF(INDEX(campsByItinerary,$B16,BH$3-1)=\"\",\"\",VLOOKUP(INDEX(campsByItinerary,$B16,BH$3-1),campInfo,2))","v":"South"},{"$f":"IF(INDEX(campsByItinerary,$B16,BI$3-1)=\"\",\"\",VLOOKUP(INDEX(campsByItinerary,$B16,BI$3-1),campInfo,2))","v":"South"},{"$f":"IF(INDEX(campsByItinerary,$B16,BJ$3-1)=\"\",\"\",VLOOKUP(INDEX(campsByItinerary,$B16,BJ$3-1),campInfo,2))","v":"South"},{"$f":"IF(INDEX(campsByItinerary,$B16,BK$3-1)=\"\",\"\",VLOOKUP(INDEX(campsByItinerary,$B16,BK$3-1),campInfo,2))","v":""},{"$f":"IF(INDEX(campsByItinerary,$B16,BL$3-1)=\"\",\"\",VLOOKUP(INDEX(campsByItinerary,$B16,BL$3-1),campInfo,2))","v":""},{"$f":"IF(INDEX(campsByItinerary,$B16,BM$3-1)=\"\",\"\",VLOOKUP(INDEX(campsByItinerary,$B16,BM$3-1),campInfo,2))","v":""},{"$f":"IF(INDEX(campsByItinerary,$B16,BN$3-1)=\"\",\"\",VLOOKUP(INDEX(campsByItinerary,$B16,BN$3-1),campInfo,2))","v":""},{"$f":"IF(INDEX(campsByItinerary,$B16,BO$3-1)=\"\",\"\",VLOOKUP(INDEX(campsByItinerary,$B16,BO$3-1),campInfo,12))","v":"South"},{"$f":"IF(INDEX(campsByItinerary,$B16,BP$3-1)=\"\",\"\",VLOOKUP(INDEX(campsByItinerary,$B16,BP$3-1),campInfo,12))","v":"South"},{"$f":"IF(INDEX(campsByItinerary,$B16,BQ$3-1)=\"\",\"\",VLOOKUP(INDEX(campsByItinerary,$B16,BQ$3-1),campInfo,12))","v":"South"},{"$f":"IF(INDEX(campsByItinerary,$B16,BR$3-1)=\"\",\"\",VLOOKUP(INDEX(campsByItinerary,$B16,BR$3-1),campInfo,12))","v":"South"},{"$f":"IF(INDEX(campsByItinerary,$B16,BS$3-1)=\"\",\"\",VLOOKUP(INDEX(campsByItinerary,$B16,BS$3-1),campInfo,12))","v":"South"},{"$f":"IF(INDEX(campsByItinerary,$B16,BT$3-1)=\"\",\"\",VLOOKUP(INDEX(campsByItinerary,$B16,BT$3-1),campInfo,12))","v":"South"},{"$f":"IF(INDEX(campsByItinerary,$B16,BU$3-1)=\"\",\"\",VLOOKUP(INDEX(campsByItinerary,$B16,BU$3-1),campInfo,12))","v":""},{"$f":"IF(INDEX(campsByItinerary,$B16,BV$3-1)=\"\",\"\",VLOOKUP(INDEX(campsByItinerary,$B16,BV$3-1),campInfo,12))","v":""},{"$f":"IF(INDEX(campsByItinerary,$B16,BW$3-1)=\"\",\"\",VLOOKUP(INDEX(campsByItinerary,$B16,BW$3-1),campInfo,12))","v":""},{"$f":"IF(INDEX(campsByItinerary,$B16,BX$3-1)=\"\",\"\",VLOOKUP(INDEX(campsByItinerary,$B16,BX$3-1),campInfo,12))","v":""},{"$f":"getfoodPU(\"First\",$B16)","v":1},{"$f":"getfoodPU(\"Max\",$B16)","v":2}]
["4A-S",14,"C",52,"Camping HQ","Crater Lake","Fish Camp","Fish Camp","Beaubien","Clarks Fork",null,null,null,null,"Camping HQ","Camping HQ",null,"Phillips Junction",null,null,null,null,null,null,"Ride Out","Ride In",null,{"$f":"AC17 & \":\" & AD17","v":":"},null,null,null,null,null,null,null,null,null,{"$f":"IF(E17<>\"\",INDEX(Elevations,MATCH(E17,camps,0)),\"\")","v":6696},{"$f":"IF(F17<>\"\",INDEX(Elevations,MATCH(F17,camps,0)),\"\")","v":8398},{"$f":"IF(G17<>\"\",INDEX(Elevations,MATCH(G17,camps,0)),\"\")","v":8564},{"$f":"IF(H17<>\"\",INDEX(Elevations,MATCH(H17,camps,0)),\"\")","v":8564},{"$f":"IF(I17<>\"\",INDEX(Elevations,MATCH(I17,camps,0)),\"\")","v":9330},{"$f":"IF(J17<>\"\",INDEX(Elevations,MATCH(J17,camps,0)),\"\")","v":7515},{"$f":"IF(K17<>\"\",INDEX(Elevations,MATCH(K17,camps,0)),\"\")","v":""},{"$f":"IF(L17<>\"\",INDEX(Elevations,MATCH(L17,camps,0)),\"\")","v":""},{"$f":"IF(M17<>\"\",INDEX(Elevations,MATCH(M17,camps,0)),\"\")","v":""},{"$f":"IF(N17<>\"\",INDEX(Elevations,MATCH(N17,camps,0)),\"\")","v":""},{"$f":"IF(AM17<>\"\",ABS(AL17-AM17),\"\")","v":1702},{"$f":"IF(AN17<>\"\",ABS(AM17-AN17),\"\")","v":166},{"$f":"IF(AO17<>\"\",ABS(AN17-AO17),\"\")","v":0},{"$f":"IF(AP17<>\"\",ABS(AO17-AP17),\"\")","v":766},{"$f":"IF(AQ17<>\"\",ABS(AP17-AQ17),\"\")","v":1815},{"$f":"IF(AR17<>\"\",ABS(AQ17-AR17),\"\")","v":""},{"$f":"IF(AS17<>\"\",ABS(AR17-AS17),\"\")","v":""},{"$f":"IF(AT17<>\"\",ABS(AS17-AT17),\"\")","v":""},{"$f":"IF(AU17<>\"\",ABS(AT17-AU17),\"\")","v":""},{"$f":"IF(INDEX(campsByItinerary,$B17,BE$3-1)=\"\",\"\",VLOOKUP(INDEX(campsByItinerary,$B17,BE$3-1),campInfo,8))","v":"Y"},{"$f":"IF(INDEX(campsByItinerary,$B17,BF$3-1)=\"\",\"\",VLOOKUP(INDEX(campsByItinerary,$B17,BF$3-1),campInfo,8))","v":"Y"},{"$f":"IF(INDEX(campsByItinerary,$B17,BG$3-1)=\"\",\"\",VLOOKUP(INDEX(campsByItinerary,$B17,BG$3-1),campInfo,8))","v":"Y"},{"$f":"IF(INDEX(campsByItinerary,$B17,BH$3-1)=\"\",\"\",VLOOKUP(INDEX(campsByItinerary,$B17,BH$3-1),campInfo,8))","v":"Y"},{"$f":"IF(INDEX(campsByItinerary,$B17,BI$3-1)=\"\",\"\",VLOOKUP(INDEX(campsByItinerary,$B17,BI$3-1),campInfo,8))","v":"Y"},{"$f":"IF(INDEX(campsByItinerary,$B17,BJ$3-1)=\"\",\"\",VLOOKUP(INDEX(campsByItinerary,$B17,BJ$3-1),campInfo,8))","v":"Y"},{"$f":"IF(INDEX(campsByItinerary,$B17,BK$3-1)=\"\",\"\",VLOOKUP(INDEX(campsByItinerary,$B17,BK$3-1),campInfo,8))","v":""},{"$f":"IF(INDEX(campsByItinerary,$B17,BL$3-1)=\"\",\"\",VLOOKUP(INDEX(campsByItinerary,$B17,BL$3-1),campInfo,8))","v":""},{"$f":"IF(INDEX(campsByItinerary,$B17,BM$3-1)=\"\",\"\",VLOOKUP(INDEX(campsByItinerary,$B17,BM$3-1),campInfo,8))","v":""},{"$f":"IF(INDEX(campsByItinerary,$B17,BN$3-1)=\"\",\"\",VLOOKUP(INDEX(campsByItinerary,$B17,BN$3-1),campInfo,8))","v":""},{"$f":"IF(BE17=\"Y\",\"\",\"Y\")","v":""},{"$f":"IF(BF17=\"Y\",\"\",\"Y\")","v":""},{"$f":"IF(BG17=\"Y\",\"\",\"Y\")","v":""},{"$f":"IF(BH17=\"Y\",\"\",\"Y\")","v":""},{"$f":"IF(BI17=\"Y\",\"\",\"Y\")","v":""},{"$f":"IF(BJ17=\"Y\",\"\",\"Y\")","v":""},null,null,null,null,{"$f":"IF(INDEX(campsByItinerary,$B17,BE$3-1)=\"\",\"\",VLOOKUP(INDEX(campsByItinerary,$B17,BE$3-1),campInfo,10))","v":""},{"$f":"IF(INDEX(campsByItinerary,$B17,BF$3-1)=\"\",\"\",VLOOKUP(INDEX(campsByItinerary,$B17,BF$3-1),campInfo,10))","v":""},{"$f":"IF(INDEX(campsByItinerary,$B17,BG$3-1)=\"\",\"\",VLOOKUP(INDEX(campsByItinerary,$B17,BG$3-1),campInfo,10))","v":""},{"$f":"IF(INDEX(campsByItinerary,$B17,BH$3-1)=\"\",\"\",VLOOKUP(INDEX(campsByItinerary,$B17,BH$3-1),campInfo,10))","v":""},{"$f":"IF(INDEX(campsByItinerary,$B17,BI$3-1)=\"\",\"\",VLOOKUP(INDEX(campsByItinerary,$B17,BI$3-1),campInfo,10))","v":""},{"$f":"IF(INDEX(campsByItinerary,$B17,BJ$3-1)=\"\",\"\",VLOOKUP(INDEX(campsByItinerary,$B17,BJ$3-1),campInfo,10))","v":""},{"$f":"IF(INDEX(campsByItinerary,$B17,BK$3-1)=\"\",\"\",VLOOKUP(INDEX(campsByItinerary,$B17,BK$3-1),campInfo,10))","v":""},{"$f":"IF(INDEX(campsByItinerary,$B17,BL$3-1)=\"\",\"\",VLOOKUP(INDEX(campsByItinerary,$B17,BL$3-1),campInfo,10))","v":""},{"$f":"IF(INDEX(campsByItinerary,$B17,BM$3-1)=\"\",\"\",VLOOKUP(INDEX(campsByItinerary,$B17,BM$3-1),campInfo,10))","v":""},{"$f":"IF(INDEX(campsByItinerary,$B17,BN$3-1)=\"\",\"\",VLOOKUP(INDEX(campsByItinerary,$B17,BN$3-1),campInfo,10))","v":""},null,{"$f":"IF(E17=F17,\"Y\",\"\")","v":""},{"$f":"IF(F17=G17,\"Y\",\"\")","v":""},{"$f":"IF(G17=H17,\"Y\",\"\")","v":"Y"},{"$f":"IF(H17=I17,\"Y\",\"\")","v":""},{"$f":"IF(I17=J17,\"Y\",\"\")","v":""},{"$f":"IF(J17=K17,\"Y\",\"\")","v":""},null,null,null,{"$f":"IF(INDEX(campsByItinerary,$B17,CS$3-1)=\"\",\"\",VLOOKUP(INDEX(campsByItinerary,$B17,CS$3-1),campInfo,11))","v":""},{"$f":"IF(INDEX(campsByItinerary,$B17,CT$3-1)=\"\",\"\",VLOOKUP(INDEX(campsByItinerary,$B17,CT$3-1),campInfo,11))","v":""},{"$f":"IF(INDEX(campsByItinerary,$B17,CU$3-1)=\"\",\"\",VLOOKUP(INDEX(campsByItinerary,$B17,CU$3-1),campInfo,11))","v":""},{"$f":"IF(INDEX(campsByItinerary,$B17,CV$3-1)=\"\",\"\",VLOOKUP(INDEX(campsByItinerary,$B17,CV$3-1),campInfo,11))","v":""},{"$f":"IF(INDEX(campsByItinerary,$B17,CW$3-1)=\"\",\"\",VLOOKUP(INDEX(campsByItinerary,$B17,CW$3-1),campInfo,11))","v":"Y"},{"$f":"IF(INDEX(campsByItinerary,$B17,CX$3-1)=\"\",\"\",VLOOKUP(INDEX(campsByItinerary,$B17,CX$3-1),campInfo,11))","v":"Y"},{"$f":"IF(INDEX(campsByItinerary,$B17,CY$3-1)=\"\",\"\",VLOOKUP(INDEX(campsByItinerary,$B17,CY$3-1),campInfo,11))","v":""},{"$f":"IF(INDEX(campsByItinerary,$B17,CZ$3-1)=\"\",\"\",VLOOKUP(INDEX(campsByItinerary,$B17,CZ$3-1),campInfo,11))","v":""},{"$f":"IF(INDEX(campsByItinerary,$B17,DA$3-1)=\"\",\"\",VLOOKUP(INDEX(campsByItinerary,$B17,DA$3-1),campInfo,11))","v":""},{"$f":"IF(INDEX(campsByItinerary,$B17,DB$3-1)=\"\",\"\",VLOOKUP(INDEX(campsByItinerary,$B17,DB$3-1),campInfo,11))","v":""},{"$f":"IF(INDEX(campsByItinerary,$B17,BE$3-1)=\"\",\"\",VLOOKUP(INDEX(campsByItinerary,$B17,BE$3-1),campInfo,2))","v":"Central"},{"$f":"IF(INDEX(campsByItinerary,$B17,BF$3-1)=\"\",\"\",VLOOKUP(INDEX(campsByItinerary,$B17,BF$3-1),campInfo,2))","v":"South"},{"$f":"IF(INDEX(campsByItinerary,$B17,BG$3-1)=\"\",\"\",VLOOKUP(INDEX(campsByItinerary,$B17,BG$3-1),campInfo,2))","v":"South"},{"$f":"IF(INDEX(campsByItinerary,$B17,BH$3-1)=\"\",\"\",VLOOKUP(INDEX(campsByItinerary,$B17,BH$3-1),campInfo,2))","v":"South"},{"$f":"IF(INDEX(campsByItinerary,$B17,BI$3-1)=\"\",\"\",VLOOKUP(INDEX(campsByItinerary,$B17,BI$3-1),campInfo,2))","v":"South"},{"$f":"IF(INDEX(campsByItinerary,$B17,BJ$3-1)=\"\",\"\",VLOOKUP(INDEX(campsByItinerary,$B17,BJ$3-1),campInfo,2))","v":"Central"},{"$f":"IF(INDEX(campsByItinerary,$B17,BK$3-1)=\"\",\"\",VLOOKUP(INDEX(campsByItinerary,$B17,BK$3-1),campInfo,2))","v":""},{"$f":"IF(INDEX(campsByItinerary,$B17,BL$3-1)=\"\",\"\",VLOOKUP(INDEX(campsByItinerary,$B17,BL$3-1),campInfo,2))","v":""},{"$f":"IF(INDEX(campsByItinerary,$B17,BM$3-1)=\"\",\"\",VLOOKUP(INDEX(campsByItinerary,$B17,BM$3-1),campInfo,2))","v":""},{"$f":"IF(INDEX(campsByItinerary,$B17,BN$3-1)=\"\",\"\",VLOOKUP(INDEX(campsByItinerary,$B17,BN$3-1),campInfo,2))","v":""},{"$f":"IF(INDEX(campsByItinerary,$B17,BO$3-1)=\"\",\"\",VLOOKUP(INDEX(campsByItinerary,$B17,BO$3-1),campInfo,12))","v":"South"},{"$f":"IF(INDEX(campsByItinerary,$B17,BP$3-1)=\"\",\"\",VLOOKUP(INDEX(campsByItinerary,$B17,BP$3-1),campInfo,12))","v":"South"},{"$f":"IF(INDEX(campsByItinerary,$B17,BQ$3-1)=\"\",\"\",VLOOKUP(INDEX(campsByItinerary,$B17,BQ$3-1),campInfo,12))","v":"South"},{"$f":"IF(INDEX(campsByItinerary,$B17,BR$3-1)=\"\",\"\",VLOOKUP(INDEX(campsByItinerary,$B17,BR$3-1),campInfo,12))","v":"South"},{"$f":"IF(INDEX(campsByItinerary,$B17,BS$3-1)=\"\",\"\",VLOOKUP(INDEX(campsByItinerary,$B17,BS$3-1),campInfo,12))","v":"South"},{"$f":"IF(INDEX(campsByItinerary,$B17,BT$3-1)=\"\",\"\",VLOOKUP(INDEX(campsByItinerary,$B17,BT$3-1),campInfo,12))","v":"South"},{"$f":"IF(INDEX(campsByItinerary,$B17,BU$3-1)=\"\",\"\",VLOOKUP(INDEX(campsByItinerary,$B17,BU$3-1),campInfo,12))","v":""},{"$f":"IF(INDEX(campsByItinerary,$B17,BV$3-1)=\"\",\"\",VLOOKUP(INDEX(campsByItinerary,$B17,BV$3-1),campInfo,12))","v":""},{"$f":"IF(INDEX(campsByItinerary,$B17,BW$3-1)=\"\",\"\",VLOOKUP(INDEX(campsByItinerary,$B17,BW$3-1),campInfo,12))","v":""},{"$f":"IF(INDEX(campsByItinerary,$B17,BX$3-1)=\"\",\"\",VLOOKUP(INDEX(campsByItinerary,$B17,BX$3-1),campInfo,12))","v":""},{"$f":"getfoodPU(\"First\",$B17)","v":1},{"$f":"getfoodPU(\"Max\",$B17)","v":2}]
["5A-S",15,"C",56,"Camping HQ","Miners Park","Bonita Cow","Beaubien","Beaubien","Clarks Fork",null,null,null,null,"Camping HQ","Camping HQ",null,"Phillips Junction",null,null,null,null,null,null,"Ride Out","Ride In",null,":",null,null,null,null,null,null,null,"y","y",6696,7977,9120,9330,9330,7515,"","","","",1281,1143,210,0,1815,"","","","",{"$f":"IF(INDEX(campsByItinerary,$B18,BE$3-1)=\"\",\"\",VLOOKUP(INDEX(campsByItinerary,$B18,BE$3-1),campInfo,8))","v":"Y"},{"$f":"IF(INDEX(campsByItinerary,$B18,BF$3-1)=\"\",\"\",VLOOKUP(INDEX(campsByItinerary,$B18,BF$3-1),campInfo,8))","v":"Y"},{"$f":"IF(INDEX(campsByItinerary,$B18,BG$3-1)=\"\",\"\",VLOOKUP(INDEX(campsByItinerary,$B18,BG$3-1),campInfo,8))","v":""},{"$f":"IF(INDEX(campsByItinerary,$B18,BH$3-1)=\"\",\"\",VLOOKUP(INDEX(campsByItinerary,$B18,BH$3-1),campInfo,8))","v":"Y"},{"$f":"IF(INDEX(campsByItinerary,$B18,BI$3-1)=\"\",\"\",VLOOKUP(INDEX(campsByItinerary,$B18,BI$3-1),campInfo,8))","v":"Y"},{"$f":"IF(INDEX(campsByItinerary,$B18,BJ$3-1)=\"\",\"\",VLOOKUP(INDEX(campsByItinerary,$B18,BJ$3-1),campInfo,8))","v":"Y"},{"$f":"IF(INDEX(campsByItinerary,$B18,BK$3-1)=\"\",\"\",VLOOKUP(INDEX(campsByItinerary,$B18,BK$3-1),campInfo,8))","v":""},{"$f":"IF(INDEX(campsByItinerary,$B18,BL$3-1)=\"\",\"\",VLOOKUP(INDEX(campsByItinerary,$B18,BL$3-1),campInfo,8))","v":""},{"$f":"IF(INDEX(campsByItinerary,$B18,BM$3-1)=\"\",\"\",VLOOKUP(INDEX(campsByItinerary,$B18,BM$3-1),campInfo,8))","v":""},{"$f":"IF(INDEX(campsByItinerary,$B18,BN$3-1)=\"\",\"\",VLOOKUP(INDEX(campsByItinerary,$B18,BN$3-1),campInfo,8))","v":""},"","","Y","","","",null,null,null,null,{"$f":"IF(INDEX(campsByItinerary,$B18,BE$3-1)=\"\",\"\",VLOOKUP(INDEX(campsByItinerary,$B18,BE$3-1),campInfo,10))","v":""},{"$f":"IF(INDEX(campsByItinerary,$B18,BF$3-1)=\"\",\"\",VLOOKUP(INDEX(campsByItinerary,$B18,BF$3-1),campInfo,10))","v":""},{"$f":"IF(INDEX(campsByItinerary,$B18,BG$3-1)=\"\",\"\",VLOOKUP(INDEX(campsByItinerary,$B18,BG$3-1),campInfo,10))","v":""},{"$f":"IF(INDEX(campsByItinerary,$B18,BH$3-1)=\"\",\"\",VLOOKUP(INDEX(campsByItinerary,$B18,BH$3-1),campInfo,10))","v":""},{"$f":"IF(INDEX(campsByItinerary,$B18,BI$3-1)=\"\",\"\",VLOOKUP(INDEX(campsByItinerary,$B18,BI$3-1),campInfo,10))","v":""},{"$f":"IF(INDEX(campsByItinerary,$B18,BJ$3-1)=\"\",\"\",VLOOKUP(INDEX(campsByItinerary,$B18,BJ$3-1),campInfo,10))","v":""},{"$f":"IF(INDEX(campsByItinerary,$B18,BK$3-1)=\"\",\"\",VLOOKUP(INDEX(campsByItinerary,$B18,BK$3-1),campInfo,10))","v":""},{"$f":"IF(INDEX(campsByItinerary,$B18,BL$3-1)=\"\",\"\",VLOOKUP(INDEX(campsByItinerary,$B18,BL$3-1),campInfo,10))","v":""},{"$f":"IF(INDEX(campsByItinerary,$B18,BM$3-1)=\"\",\"\",VLOOKUP(INDEX(campsByItinerary,$B18,BM$3-1),campInfo,10))","v":""},{"$f":"IF(INDEX(campsByItinerary,$B18,BN$3-1)=\"\",\"\",VLOOKUP(INDEX(campsByItinerary,$B18,BN$3-1),campInfo,10))","v":""},null,"","","","Y","","",null,null,null,{"$f":"IF(INDEX(campsByItinerary,$B18,CS$3-1)=\"\",\"\",VLOOKUP(INDEX(campsByItinerary,$B18,CS$3-1),campInfo,11))","v":""},{"$f":"IF(INDEX(campsByItinerary,$B18,CT$3-1)=\"\",\"\",VLOOKUP(INDEX(campsByItinerary,$B18,CT$3-1),campInfo,11))","v":"Y"},{"$f":"IF(INDEX(campsByItinerary,$B18,CU$3-1)=\"\",\"\",VLOOKUP(INDEX(campsByItinerary,$B18,CU$3-1),campInfo,11))","v":""},{"$f":"IF(INDEX(campsByItinerary,$B18,CV$3-1)=\"\",\"\",VLOOKUP(INDEX(campsByItinerary,$B18,CV$3-1),campInfo,11))","v":"Y"},{"$f":"IF(INDEX(campsByItinerary,$B18,CW$3-1)=\"\",\"\",VLOOKUP(INDEX(campsByItinerary,$B18,CW$3-1),campInfo,11))","v":"Y"},{"$f":"IF(INDEX(campsByItinerary,$B18,CX$3-1)=\"\",\"\",VLOOKUP(INDEX(campsByItinerary,$B18,CX$3-1),campInfo,11))","v":"Y"},{"$f":"IF(INDEX(campsByItinerary,$B18,CY$3-1)=\"\",\"\",VLOOKUP(INDEX(campsByItinerary,$B18,CY$3-1),campInfo,11))","v":""},{"$f":"IF(INDEX(campsByItinerary,$B18,CZ$3-1)=\"\",\"\",VLOOKUP(INDEX(campsByItinerary,$B18,CZ$3-1),campInfo,11))","v":""},{"$f":"IF(INDEX(campsByItinerary,$B18,DA$3-1)=\"\",\"\",VLOOKUP(INDEX(campsByItinerary,$B18,DA$3-1),campInfo,11))","v":""},{"$f":"IF(INDEX(campsByItinerary,$B18,DB$3-1)=\"\",\"\",VLOOKUP(INDEX(campsByItinerary,$B18,DB$3-1),campInfo,11))","v":""},{"$f":"IF(INDEX(campsByItinerary,$B18,BE$3-1)=\"\",\"\",VLOOKUP(INDEX(campsByItinerary,$B18,BE$3-1),campInfo,2))","v":"Central"},{"$f":"IF(INDEX(campsByItinerary,$B18,BF$3-1)=\"\",\"\",VLOOKUP(INDEX(campsByItinerary,$B18,BF$3-1),campInfo,2))","v":"South"},{"$f":"IF(INDEX(campsByItinerary,$B18,BG$3-1)=\"\",\"\",VLOOKUP(INDEX(campsByItinerary,$B18,BG$3-1),campInfo,2))","v":"South"},{"$f":"IF(INDEX(campsByItinerary,$B18,BH$3-1)=\"\",\"\",VLOOKUP(INDEX(campsByItinerary,$B18,BH$3-1),campInfo,2))","v":"South"},{"$f":"IF(INDEX(campsByItinerary,$B18,BI$3-1)=\"\",\"\",VLOOKUP(INDEX(campsByItinerary,$B18,BI$3-1),campInfo,2))","v":"South"},{"$f":"IF(INDEX(campsByItinerary,$B18,BJ$3-1)=\"\",\"\",VLOOKUP(INDEX(campsByItinerary,$B18,BJ$3-1),campInfo,2))","v":"Central"},{"$f":"IF(INDEX(campsByItinerary,$B18,BK$3-1)=\"\",\"\",VLOOKUP(INDEX(campsByItinerary,$B18,BK$3-1),campInfo,2))","v":""},{"$f":"IF(INDEX(campsByItinerary,$B18,BL$3-1)=\"\",\"\",VLOOKUP(INDEX(campsByItinerary,$B18,BL$3-1),campInfo,2))","v":""},{"$f":"IF(INDEX(campsByItinerary,$B18,BM$3-1)=\"\",\"\",VLOOKUP(INDEX(campsByItinerary,$B18,BM$3-1),campInfo,2))","v":""},{"$f":"IF(INDEX(campsByItinerary,$B18,BN$3-1)=\"\",\"\",VLOOKUP(INDEX(campsByItinerary,$B18,BN$3-1),campInfo,2))","v":""},{"$f":"IF(INDEX(campsByItinerary,$B18,BO$3-1)=\"\",\"\",VLOOKUP(INDEX(campsByItinerary,$B18,BO$3-1),campInfo,12))","v":"South"},{"$f":"IF(INDEX(campsByItinerary,$B18,BP$3-1)=\"\",\"\",VLOOKUP(INDEX(campsByItinerary,$B18,BP$3-1),campInfo,12))","v":"South"},{"$f":"IF(INDEX(campsByItinerary,$B18,BQ$3-1)=\"\",\"\",VLOOKUP(INDEX(campsByItinerary,$B18,BQ$3-1),campInfo,12))","v":"South"},{"$f":"IF(INDEX(campsByItinerary,$B18,BR$3-1)=\"\",\"\",VLOOKUP(INDEX(campsByItinerary,$B18,BR$3-1),campInfo,12))","v":"South"},{"$f":"IF(INDEX(campsByItinerary,$B18,BS$3-1)=\"\",\"\",VLOOKUP(INDEX(campsByItinerary,$B18,BS$3-1),campInfo,12))","v":"South"},{"$f":"IF(INDEX(campsByItinerary,$B18,BT$3-1)=\"\",\"\",VLOOKUP(INDEX(campsByItinerary,$B18,BT$3-1),campInfo,12))","v":"South"},{"$f":"IF(INDEX(campsByItinerary,$B18,BU$3-1)=\"\",\"\",VLOOKUP(INDEX(campsByItinerary,$B18,BU$3-1),campInfo,12))","v":""},{"$f":"IF(INDEX(campsByItinerary,$B18,BV$3-1)=\"\",\"\",VLOOKUP(INDEX(campsByItinerary,$B18,BV$3-1),campInfo,12))","v":""},{"$f":"IF(INDEX(campsByItinerary,$B18,BW$3-1)=\"\",\"\",VLOOKUP(INDEX(campsByItinerary,$B18,BW$3-1),campInfo,12))","v":""},{"$f":"IF(INDEX(campsByItinerary,$B18,BX$3-1)=\"\",\"\",VLOOKUP(INDEX(campsByItinerary,$B18,BX$3-1),campInfo,12))","v":""},{"$f":"getfoodPU(\"First\",$B18)","v":1},{"$f":"getfoodPU(\"Max\",$B18)","v":2}]
["6A-S",16,"C",46,"Camping HQ","Clarks Fork","Miners Park","Beaubien","Beaubien","Crater Lake",null,null,null,null,"Camping HQ",null,null,null,"Phillips Junction",null,null,null,null,null,"Ride Out","Ride In",null,":",null,null,null,null,null,null,null,"y","y",6696,7515,7977,9330,9330,8398,"","","","",819,462,1353,0,932,"","","","",{"$f":"IF(INDEX(campsByItinerary,$B19,BE$3-1)=\"\",\"\",VLOOKUP(INDEX(campsByItinerary,$B19,BE$3-1),campInfo,8))","v":"Y"},{"$f":"IF(INDEX(campsByItinerary,$B19,BF$3-1)=\"\",\"\",VLOOKUP(INDEX(campsByItinerary,$B19,BF$3-1),campInfo,8))","v":"Y"},{"$f":"IF(INDEX(campsByItinerary,$B19,BG$3-1)=\"\",\"\",VLOOKUP(INDEX(campsByItinerary,$B19,BG$3-1),campInfo,8))","v":"Y"},{"$f":"IF(INDEX(campsByItinerary,$B19,BH$3-1)=\"\",\"\",VLOOKUP(INDEX(campsByItinerary,$B19,BH$3-1),campInfo,8))","v":"Y"},{"$f":"IF(INDEX(campsByItinerary,$B19,BI$3-1)=\"\",\"\",VLOOKUP(INDEX(campsByItinerary,$B19,BI$3-1),campInfo,8))","v":"Y"},{"$f":"IF(INDEX(campsByItinerary,$B19,BJ$3-1)=\"\",\"\",VLOOKUP(INDEX(campsByItinerary,$B19,BJ$3-1),campInfo,8))","v":"Y"},{"$f":"IF(INDEX(campsByItinerary,$B19,BK$3-1)=\"\",\"\",VLOOKUP(INDEX(campsByItinerary,$B19,BK$3-1),campInfo,8))","v":""},{"$f":"IF(INDEX(campsByItinerary,$B19,BL$3-1)=\"\",\"\",VLOOKUP(INDEX(campsByItinerary,$B19,BL$3-1),campInfo,8))","v":""},{"$f":"IF(INDEX(campsByItinerary,$B19,BM$3-1)=\"\",\"\",VLOOKUP(INDEX(campsByItinerary,$B19,BM$3-1),campInfo,8))","v":""},{"$f":"IF(INDEX(campsByItinerary,$B19,BN$3-1)=\"\",\"\",VLOOKUP(INDEX(campsByItinerary,$B19,BN$3-1),campInfo,8))","v":""},"","","","","","",null,null,null,null,{"$f":"IF(INDEX(campsByItinerary,$B19,BE$3-1)=\"\",\"\",VLOOKUP(INDEX(campsByItinerary,$B19,BE$3-1),campInfo,10))","v":""},{"$f":"IF(INDEX(campsByItinerary,$B19,BF$3-1)=\"\",\"\",VLOOKUP(INDEX(campsByItinerary,$B19,BF$3-1),campInfo,10))","v":""},{"$f":"IF(INDEX(campsByItinerary,$B19,BG$3-1)=\"\",\"\",VLOOKUP(INDEX(campsByItinerary,$B19,BG$3-1),campInfo,10))","v":""},{"$f":"IF(INDEX(campsByItinerary,$B19,BH$3-1)=\"\",\"\",VLOOKUP(INDEX(campsByItinerary,$B19,BH$3-1),campInfo,10))","v":""},{"$f":"IF(INDEX(campsByItinerary,$B19,BI$3-1)=\"\",\"\",VLOOKUP(INDEX(campsByItinerary,$B19,BI$3-1),campInfo,10))","v":""},{"$f":"IF(INDEX(campsByItinerary,$B19,BJ$3-1)=\"\",\"\",VLOOKUP(INDEX(campsByItinerary,$B19,BJ$3-1),campInfo,10))","v":""},{"$f":"IF(INDEX(campsByItinerary,$B19,BK$3-1)=\"\",\"\",VLOOKUP(INDEX(campsByItinerary,$B19,BK$3-1),campInfo,10))","v":""},{"$f":"IF(INDEX(campsByItinerary,$B19,BL$3-1)=\"\",\"\",VLOOKUP(INDEX(campsByItinerary,$B19,BL$3-1),campInfo,10))","v":""},{"$f":"IF(INDEX(campsByItinerary,$B19,BM$3-1)=\"\",\"\",VLOOKUP(INDEX(campsByItinerary,$B19,BM$3-1),campInfo,10))","v":""},{"$f":"IF(INDEX(campsByItinerary,$B19,BN$3-1)=\"\",\"\",VLOOKUP(INDEX(campsByItinerary,$B19,BN$3-1),campInfo,10))","v":""},null,"","","","Y","","",null,null,null,{"$f":"IF(INDEX(campsByItinerary,$B19,CS$3-1)=\"\",\"\",VLOOKUP(INDEX(campsByItinerary,$B19,CS$3-1),campInfo,11))","v":""},{"$f":"IF(INDEX(campsByItinerary,$B19,CT$3-1)=\"\",\"\",VLOOKUP(INDEX(campsByItinerary,$B19,CT$3-1),campInfo,11))","v":"Y"},{"$f":"IF(INDEX(campsByItinerary,$B19,CU$3-1)=\"\",\"\",VLOOKUP(INDEX(campsByItinerary,$B19,CU$3-1),campInfo,11))","v":"Y"},{"$f":"IF(INDEX(campsByItinerary,$B19,CV$3-1)=\"\",\"\",VLOOKUP(INDEX(campsByItinerary,$B19,CV$3-1),campInfo,11))","v":"Y"},{"$f":"IF(INDEX(campsByItinerary,$B19,CW$3-1)=\"\",\"\",VLOOKUP(INDEX(campsByItinerary,$B19,CW$3-1),campInfo,11))","v":"Y"},{"$f":"IF(INDEX(campsByItinerary,$B19,CX$3-1)=\"\",\"\",VLOOKUP(INDEX(campsByItinerary,$B19,CX$3-1),campInfo,11))","v":""},{"$f":"IF(INDEX(campsByItinerary,$B19,CY$3-1)=\"\",\"\",VLOOKUP(INDEX(campsByItinerary,$B19,CY$3-1),campInfo,11))","v":""},{"$f":"IF(INDEX(campsByItinerary,$B19,CZ$3-1)=\"\",\"\",VLOOKUP(INDEX(campsByItinerary,$B19,CZ$3-1),campInfo,11))","v":""},{"$f":"IF(INDEX(campsByItinerary,$B19,DA$3-1)=\"\",\"\",VLOOKUP(INDEX(campsByItinerary,$B19,DA$3-1),campInfo,11))","v":""},{"$f":"IF(INDEX(campsByItinerary,$B19,DB$3-1)=\"\",\"\",VLOOKUP(INDEX(campsByItinerary,$B19,DB$3-1),campInfo,11))","v":""},{"$f":"IF(INDEX(campsByItinerary,$B19,BE$3-1)=\"\",\"\",VLOOKUP(INDEX(campsByItinerary,$B19,BE$3-1),campInfo,2))","v":"Central"},{"$f":"IF(INDEX(campsByItinerary,$B19,BF$3-1)=\"\",\"\",VLOOKUP(INDEX(campsByItinerary,$B19,BF$3-1),campInfo,2))","v":"Central"},{"$f":"IF(INDEX(campsByItinerary,$B19,BG$3-1)=\"\",\"\",VLOOKUP(INDEX(campsByItinerary,$B19,BG$3-1),campInfo,2))","v":"South"},{"$f":"IF(INDEX(campsByItinerary,$B19,BH$3-1)=\"\",\"\",VLOOKUP(INDEX(campsByItinerary,$B19,BH$3-1),campInfo,2))","v":"South"},{"$f":"IF(INDEX(campsByItinerary,$B19,BI$3-1)=\"\",\"\",VLOOKUP(INDEX(campsByItinerary,$B19,BI$3-1),campInfo,2))","v":"South"},{"$f":"IF(INDEX(campsByItinerary,$B19,BJ$3-1)=\"\",\"\",VLOOKUP(INDEX(campsByItinerary,$B19,BJ$3-1),campInfo,2))","v":"South"},{"$f":"IF(INDEX(campsByItinerary,$B19,BK$3-1)=\"\",\"\",VLOOKUP(INDEX(campsByItinerary,$B19,BK$3-1),campInfo,2))","v":""},{"$f":"IF(INDEX(campsByItinerary,$B19,BL$3-1)=\"\",\"\",VLOOKUP(INDEX(campsByItinerary,$B19,BL$3-1),campInfo,2))","v":""},{"$f":"IF(INDEX(campsByItinerary,$B19,BM$3-1)=\"\",\"\",VLOOKUP(INDEX(campsByItinerary,$B19,BM$3-1),campInfo,2))","v":""},{"$f":"IF(INDEX(campsByItinerary,$B19,BN$3-1)=\"\",\"\",VLOOKUP(INDEX(campsByItinerary,$B19,BN$3-1),campInfo,2))","v":""},{"$f":"IF(INDEX(campsByItinerary,$B19,BO$3-1)=\"\",\"\",VLOOKUP(INDEX(campsByItinerary,$B19,BO$3-1),campInfo,12))","v":"South"},{"$f":"IF(INDEX(campsByItinerary,$B19,BP$3-1)=\"\",\"\",VLOOKUP(INDEX(campsByItinerary,$B19,BP$3-1),campInfo,12))","v":"South"},{"$f":"IF(INDEX(campsByItinerary,$B19,BQ$3-1)=\"\",\"\",VLOOKUP(INDEX(campsByItinerary,$B19,BQ$3-1),campInfo,12))","v":"South"},{"$f":"IF(INDEX(campsByItinerary,$B19,BR$3-1)=\"\",\"\",VLOOKUP(INDEX(campsByItinerary,$B19,BR$3-1),campInfo,12))","v":"South"},{"$f":"IF(INDEX(campsByItinerary,$B19,BS$3-1)=\"\",\"\",VLOOKUP(INDEX(campsByItinerary,$B19,BS$3-1),campInfo,12))","v":"South"},{"$f":"IF(INDEX(campsByItinerary,$B19,BT$3-1)=\"\",\"\",VLOOKUP(INDEX(campsByItinerary,$B19,BT$3-1),campInfo,12))","v":"South"},{"$f":"IF(INDEX(campsByItinerary,$B19,BU$3-1)=\"\",\"\",VLOOKUP(INDEX(campsByItinerary,$B19,BU$3-1),campInfo,12))","v":""},{"$f":"IF(INDEX(campsByItinerary,$B19,BV$3-1)=\"\",\"\",VLOOKUP(INDEX(campsByItinerary,$B19,BV$3-1),campInfo,12))","v":""},{"$f":"IF(INDEX(campsByItinerary,$B19,BW$3-1)=\"\",\"\",VLOOKUP(INDEX(campsByItinerary,$B19,BW$3-1),campInfo,12))","v":""},{"$f":"IF(INDEX(campsByItinerary,$B19,BX$3-1)=\"\",\"\",VLOOKUP(INDEX(campsByItinerary,$B19,BX$3-1),campInfo,12))","v":""},{"$f":"getfoodPU(\"First\",$B19)","v":4},{"$f":"getfoodPU(\"Max\",$B19)","v":4}]
["6B-S",17,"C",48,"Camping HQ","Crater Lake","Beaubien","Beaubien","Miners Park","Clarks Fork",null,null,null,null,"Camping HQ","Camping HQ",null,"Phillips Junction",null,null,null,null,null,null,"Ride Out","Ride In",null,":",null,null,null,null,null,null,null,"y","y",6696,8398,9330,9330,7977,7515,"","","","",1702,932,0,1353,462,"","","","",{"$f":"IF(INDEX(campsByItinerary,$B20,BE$3-1)=\"\",\"\",VLOOKUP(INDEX(campsByItinerary,$B20,BE$3-1),campInfo,8))","v":"Y"},{"$f":"IF(INDEX(campsByItinerary,$B20,BF$3-1)=\"\",\"\",VLOOKUP(INDEX(campsByItinerary,$B20,BF$3-1),campInfo,8))","v":"Y"},{"$f":"IF(INDEX(campsByItinerary,$B20,BG$3-1)=\"\",\"\",VLOOKUP(INDEX(campsByItinerary,$B20,BG$3-1),campInfo,8))","v":"Y"},{"$f":"IF(INDEX(campsByItinerary,$B20,BH$3-1)=\"\",\"\",VLOOKUP(INDEX(campsByItinerary,$B20,BH$3-1),campInfo,8))","v":"Y"},{"$f":"IF(INDEX(campsByItinerary,$B20,BI$3-1)=\"\",\"\",VLOOKUP(INDEX(campsByItinerary,$B20,BI$3-1),campInfo,8))","v":"Y"},{"$f":"IF(INDEX(campsByItinerary,$B20,BJ$3-1)=\"\",\"\",VLOOKUP(INDEX(campsByItinerary,$B20,BJ$3-1),campInfo,8))","v":"Y"},{"$f":"IF(INDEX(campsByItinerary,$B20,BK$3-1)=\"\",\"\",VLOOKUP(INDEX(campsByItinerary,$B20,BK$3-1),campInfo,8))","v":""},{"$f":"IF(INDEX(campsByItinerary,$B20,BL$3-1)=\"\",\"\",VLOOKUP(INDEX(campsByItinerary,$B20,BL$3-1),campInfo,8))","v":""},{"$f":"IF(INDEX(campsByItinerary,$B20,BM$3-1)=\"\",\"\",VLOOKUP(INDEX(campsByItinerary,$B20,BM$3-1),campInfo,8))","v":""},{"$f":"IF(INDEX(campsByItinerary,$B20,BN$3-1)=\"\",\"\",VLOOKUP(INDEX(campsByItinerary,$B20,BN$3-1),campInfo,8))","v":""},"","","","","","",null,null,null,null,{"$f":"IF(INDEX(campsByItinerary,$B20,BE$3-1)=\"\",\"\",VLOOKUP(INDEX(campsByItinerary,$B20,BE$3-1),campInfo,10))","v":""},{"$f":"IF(INDEX(campsByItinerary,$B20,BF$3-1)=\"\",\"\",VLOOKUP(INDEX(campsByItinerary,$B20,BF$3-1),campInfo,10))","v":""},{"$f":"IF(INDEX(campsByItinerary,$B20,BG$3-1)=\"\",\"\",VLOOKUP(INDEX(campsByItinerary,$B20,BG$3-1),campInfo,10))","v":""},{"$f":"IF(INDEX(campsByItinerary,$B20,BH$3-1)=\"\",\"\",VLOOKUP(INDEX(campsByItinerary,$B20,BH$3-1),campInfo,10))","v":""},{"$f":"IF(INDEX(campsByItinerary,$B20,BI$3-1)=\"\",\"\",VLOOKUP(INDEX(campsByItinerary,$B20,BI$3-1),campInfo,10))","v":""},{"$f":"IF(INDEX(campsByItinerary,$B20,BJ$3-1)=\"\",\"\",VLOOKUP(INDEX(campsByItinerary,$B20,BJ$3-1),campInfo,10))","v":""},{"$f":"IF(INDEX(campsByItinerary,$B20,BK$3-1)=\"\",\"\",VLOOKUP(INDEX(campsByItinerary,$B20,BK$3-1),campInfo,10))","v":""},{"$f":"IF(INDEX(campsByItinerary,$B20,BL$3-1)=\"\",\"\",VLOOKUP(INDEX(campsByItinerary,$B20,BL$3-1),campInfo,10))","v":""},{"$f":"IF(INDEX(campsByItinerary,$B20,BM$3-1)=\"\",\"\",VLOOKUP(INDEX(campsByItinerary,$B20,BM$3-1),campInfo,10))","v":""},{"$f":"IF(INDEX(campsByItinerary,$B20,BN$3-1)=\"\",\"\",VLOOKUP(INDEX(campsByItinerary,$B20,BN$3-1),campInfo,10))","v":""},null,"","","Y","","","",null,null,null,{"$f":"IF(INDEX(campsByItinerary,$B20,CS$3-1)=\"\",\"\",VLOOKUP(INDEX(campsByItinerary,$B20,CS$3-1),campInfo,11))","v":""},{"$f":"IF(INDEX(campsByItinerary,$B20,CT$3-1)=\"\",\"\",VLOOKUP(INDEX(campsByItinerary,$B20,CT$3-1),campInfo,11))","v":""},{"$f":"IF(INDEX(campsByItinerary,$B20,CU$3-1)=\"\",\"\",VLOOKUP(INDEX(campsByItinerary,$B20,CU$3-1),campInfo,11))","v":"Y"},{"$f":"IF(INDEX(campsByItinerary,$B20,CV$3-1)=\"\",\"\",VLOOKUP(INDEX(campsByItinerary,$B20,CV$3-1),campInfo,11))","v":"Y"},{"$f":"IF(INDEX(campsByItinerary,$B20,CW$3-1)=\"\",\"\",VLOOKUP(INDEX(campsByItinerary,$B20,CW$3-1),campInfo,11))","v":"Y"},{"$f":"IF(INDEX(campsByItinerary,$B20,CX$3-1)=\"\",\"\",VLOOKUP(INDEX(campsByItinerary,$B20,CX$3-1),campInfo,11))","v":"Y"},{"$f":"IF(INDEX(campsByItinerary,$B20,CY$3-1)=\"\",\"\",VLOOKUP(INDEX(campsByItinerary,$B20,CY$3-1),campInfo,11))","v":""},{"$f":"IF(INDEX(campsByItinerary,$B20,CZ$3-1)=\"\",\"\",VLOOKUP(INDEX(campsByItinerary,$B20,CZ$3-1),campInfo,11))","v":""},{"$f":"IF(INDEX(campsByItinerary,$B20,DA$3-1)=\"\",\"\",VLOOKUP(INDEX(campsByItinerary,$B20,DA$3-1),campInfo,11))","v":""},{"$f":"IF(INDEX(campsByItinerary,$B20,DB$3-1)=\"\",\"\",VLOOKUP(INDEX(campsByItinerary,$B20,DB$3-1),campInfo,11))","v":""},{"$f":"IF(INDEX(campsByItinerary,$B20,BE$3-1)=\"\",\"\",VLOOKUP(INDEX(campsByItinerary,$B20,BE$3-1),campInfo,2))","v":"Central"},{"$f":"IF(INDEX(campsByItinerary,$B20,BF$3-1)=\"\",\"\",VLOOKUP(INDEX(campsByItinerary,$B20,BF$3-1),campInfo,2))","v":"South"},{"$f":"IF(INDEX(campsByItinerary,$B20,BG$3-1)=\"\",\"\",VLOOKUP(INDEX(campsByItinerary,$B20,BG$3-1),campInfo,2))","v":"South"},{"$f":"IF(INDEX(campsByItinerary,$B20,BH$3-1)=\"\",\"\",VLOOKUP(INDEX(campsByItinerary,$B20,BH$3-1),campInfo,2))","v":"South"},{"$f":"IF(INDEX(campsByItinerary,$B20,BI$3-1)=\"\",\"\",VLOOKUP(INDEX(campsByItinerary,$B20,BI$3-1),campInfo,2))","v":"South"},{"$f":"IF(INDEX(campsByItinerary,$B20,BJ$3-1)=\"\",\"\",VLOOKUP(INDEX(campsByItinerary,$B20,BJ$3-1),campInfo,2))","v":"Central"},{"$f":"IF(INDEX(campsByItinerary,$B20,BK$3-1)=\"\",\"\",VLOOKUP(INDEX(campsByItinerary,$B20,BK$3-1),campInfo,2))","v":""},{"$f":"IF(INDEX(campsByItinerary,$B20,BL$3-1)=\"\",\"\",VLOOKUP(INDEX(campsByItinerary,$B20,BL$3-1),campInfo,2))","v":""},{"$f":"IF(INDEX(campsByItinerary,$B20,BM$3-1)=\"\",\"\",VLOOKUP(INDEX(campsByItinerary,$B20,BM$3-1),campInfo,2))","v":""},{"$f":"IF(INDEX(campsByItinerary,$B20,BN$3-1)=\"\",\"\",VLOOKUP(INDEX(campsByItinerary,$B20,BN$3-1),campInfo,2))","v":""},{"$f":"IF(INDEX(campsByItinerary,$B20,BO$3-1)=\"\",\"\",VLOOKUP(INDEX(campsByItinerary,$B20,BO$3-1),campInfo,12))","v":"South"},{"$f":"IF(INDEX(campsByItinerary,$B20,BP$3-1)=\"\",\"\",VLOOKUP(INDEX(campsByItinerary,$B20,BP$3-1),campInfo,12))","v":"South"},{"$f":"IF(INDEX(campsByItinerary,$B20,BQ$3-1)=\"\",\"\",VLOOKUP(INDEX(campsByItinerary,$B20,BQ$3-1),campInfo,12))","v":"South"},{"$f":"IF(INDEX(campsByItinerary,$B20,BR$3-1)=\"\",\"\",VLOOKUP(INDEX(campsByItinerary,$B20,BR$3-1),campInfo,12))","v":"South"},{"$f":"IF(INDEX(campsByItinerary,$B20,BS$3-1)=\"\",\"\",VLOOKUP(INDEX(campsByItinerary,$B20,BS$3-1),campInfo,12))","v":"South"},{"$f":"IF(INDEX(campsByItinerary,$B20,BT$3-1)=\"\",\"\",VLOOKUP(INDEX(campsByItinerary,$B20,BT$3-1),campInfo,12))","v":"South"},{"$f":"IF(INDEX(campsByItinerary,$B20,BU$3-1)=\"\",\"\",VLOOKUP(INDEX(campsByItinerary,$B20,BU$3-1),campInfo,12))","v":""},{"$f":"IF(INDEX(campsByItinerary,$B20,BV$3-1)=\"\",\"\",VLOOKUP(INDEX(campsByItinerary,$B20,BV$3-1),campInfo,12))","v":""},{"$f":"IF(INDEX(campsByItinerary,$B20,BW$3-1)=\"\",\"\",VLOOKUP(INDEX(campsByItinerary,$B20,BW$3-1),campInfo,12))","v":""},{"$f":"IF(INDEX(campsByItinerary,$B20,BX$3-1)=\"\",\"\",VLOOKUP(INDEX(campsByItinerary,$B20,BX$3-1),campInfo,12))","v":""},{"$f":"getfoodPU(\"First\",$B20)","v":1},{"$f":"getfoodPU(\"Max\",$B20)","v":2}]
["7A-S",18,"C",36,"Camping HQ","Harlan","Clarks Fork","Clarks Fork","Miners Park","Crater Lake",null,null,null,null,"Camping HQ",null,null,null,"Miners Park",null,null,null,null,null,"Ride Out","Ride In",null,":",null,null,null,null,null,null,null,null,null,6696,7550,7515,7515,7977,8398,"","","","",854,35,0,462,421,"","","","",{"$f":"IF(INDEX(campsByItinerary,$B21,BE$3-1)=\"\",\"\",VLOOKUP(INDEX(campsByItinerary,$B21,BE$3-1),campInfo,8))","v":"Y"},{"$f":"IF(INDEX(campsByItinerary,$B21,BF$3-1)=\"\",\"\",VLOOKUP(INDEX(campsByItinerary,$B21,BF$3-1),campInfo,8))","v":"Y"},{"$f":"IF(INDEX(campsByItinerary,$B21,BG$3-1)=\"\",\"\",VLOOKUP(INDEX(campsByItinerary,$B21,BG$3-1),campInfo,8))","v":"Y"},{"$f":"IF(INDEX(campsByItinerary,$B21,BH$3-1)=\"\",\"\",VLOOKUP(INDEX(campsByItinerary,$B21,BH$3-1),campInfo,8))","v":"Y"},{"$f":"IF(INDEX(campsByItinerary,$B21,BI$3-1)=\"\",\"\",VLOOKUP(INDEX(campsByItinerary,$B21,BI$3-1),campInfo,8))","v":"Y"},{"$f":"IF(INDEX(campsByItinerary,$B21,BJ$3-1)=\"\",\"\",VLOOKUP(INDEX(campsByItinerary,$B21,BJ$3-1),campInfo,8))","v":"Y"},{"$f":"IF(INDEX(campsByItinerary,$B21,BK$3-1)=\"\",\"\",VLOOKUP(INDEX(campsByItinerary,$B21,BK$3-1),campInfo,8))","v":""},{"$f":"IF(INDEX(campsByItinerary,$B21,BL$3-1)=\"\",\"\",VLOOKUP(INDEX(campsByItinerary,$B21,BL$3-1),campInfo,8))","v":""},{"$f":"IF(INDEX(campsByItinerary,$B21,BM$3-1)=\"\",\"\",VLOOKUP(INDEX(campsByItinerary,$B21,BM$3-1),campInfo,8))","v":""},{"$f":"IF(INDEX(campsByItinerary,$B21,BN$3-1)=\"\",\"\",VLOOKUP(INDEX(campsByItinerary,$B21,BN$3-1),campInfo,8))","v":""},"","","","","","",null,null,null,null,{"$f":"IF(INDEX(campsByItinerary,$B21,BE$3-1)=\"\",\"\",VLOOKUP(INDEX(campsByItinerary,$B21,BE$3-1),campInfo,10))","v":""},{"$f":"IF(INDEX(campsByItinerary,$B21,BF$3-1)=\"\",\"\",VLOOKUP(INDEX(campsByItinerary,$B21,BF$3-1),campInfo,10))","v":""},{"$f":"IF(INDEX(campsByItinerary,$B21,BG$3-1)=\"\",\"\",VLOOKUP(INDEX(campsByItinerary,$B21,BG$3-1),campInfo,10))","v":""},{"$f":"IF(INDEX(campsByItinerary,$B21,BH$3-1)=\"\",\"\",VLOOKUP(INDEX(campsByItinerary,$B21,BH$3-1),campInfo,10))","v":""},{"$f":"IF(INDEX(campsByItinerary,$B21,BI$3-1)=\"\",\"\",VLOOKUP(INDEX(campsByItinerary,$B21,BI$3-1),campInfo,10))","v":""},{"$f":"IF(INDEX(campsByItinerary,$B21,BJ$3-1)=\"\",\"\",VLOOKUP(INDEX(campsByItinerary,$B21,BJ$3-1),campInfo,10))","v":""},{"$f":"IF(INDEX(campsByItinerary,$B21,BK$3-1)=\"\",\"\",VLOOKUP(INDEX(campsByItinerary,$B21,BK$3-1),campInfo,10))","v":""},{"$f":"IF(INDEX(campsByItinerary,$B21,BL$3-1)=\"\",\"\",VLOOKUP(INDEX(campsByItinerary,$B21,BL$3-1),campInfo,10))","v":""},{"$f":"IF(INDEX(campsByItinerary,$B21,BM$3-1)=\"\",\"\",VLOOKUP(INDEX(campsByItinerary,$B21,BM$3-1),campInfo,10))","v":""},{"$f":"IF(INDEX(campsByItinerary,$B21,BN$3-1)=\"\",\"\",VLOOKUP(INDEX(campsByItinerary,$B21,BN$3-1),campInfo,10))","v":""},null,"","","Y","","","",null,null,null,{"$f":"IF(INDEX(campsByItinerary,$B21,CS$3-1)=\"\",\"\",VLOOKUP(INDEX(campsByItinerary,$B21,CS$3-1),campInfo,11))","v":""},{"$f":"IF(INDEX(campsByItinerary,$B21,CT$3-1)=\"\",\"\",VLOOKUP(INDEX(campsByItinerary,$B21,CT$3-1),campInfo,11))","v":""},{"$f":"IF(INDEX(campsByItinerary,$B21,CU$3-1)=\"\",\"\",VLOOKUP(INDEX(campsByItinerary,$B21,CU$3-1),campInfo,11))","v":"Y"},{"$f":"IF(INDEX(campsByItinerary,$B21,CV$3-1)=\"\",\"\",VLOOKUP(INDEX(campsByItinerary,$B21,CV$3-1),campInfo,11))","v":"Y"},{"$f":"IF(INDEX(campsByItinerary,$B21,CW$3-1)=\"\",\"\",VLOOKUP(INDEX(campsByItinerary,$B21,CW$3-1),campInfo,11))","v":"Y"},{"$f":"IF(INDEX(campsByItinerary,$B21,CX$3-1)=\"\",\"\",VLOOKUP(INDEX(campsByItinerary,$B21,CX$3-1),campInfo,11))","v":""},{"$f":"IF(INDEX(campsByItinerary,$B21,CY$3-1)=\"\",\"\",VLOOKUP(INDEX(campsByItinerary,$B21,CY$3-1),campInfo,11))","v":""},{"$f":"IF(INDEX(campsByItinerary,$B21,CZ$3-1)=\"\",\"\",VLOOKUP(INDEX(campsByItinerary,$B21,CZ$3-1),campInfo,11))","v":""},{"$f":"IF(INDEX(campsByItinerary,$B21,DA$3-1)=\"\",\"\",VLOOKUP(INDEX(campsByItinerary,$B21,DA$3-1),campInfo,11))","v":""},{"$f":"IF(INDEX(campsByItinerary,$B21,DB$3-1)=\"\",\"\",VLOOKUP(INDEX(campsByItinerary,$B21,DB$3-1),campInfo,11))","v":""},{"$f":"IF(INDEX(campsByItinerary,$B21,BE$3-1)=\"\",\"\",VLOOKUP(INDEX(campsByItinerary,$B21,BE$3-1),campInfo,2))","v":"Central"},{"$f":"IF(INDEX(campsByItinerary,$B21,BF$3-1)=\"\",\"\",VLOOKUP(INDEX(campsByItinerary,$B21,BF$3-1),campInfo,2))","v":"Central"},{"$f":"IF(INDEX(campsByItinerary,$B21,BG$3-1)=\"\",\"\",VLOOKUP(INDEX(campsByItinerary,$B21,BG$3-1),campInfo,2))","v":"Central"},{"$f":"IF(INDEX(campsByItinerary,$B21,BH$3-1)=\"\",\"\",VLOOKUP(INDEX(campsByItinerary,$B21,BH$3-1),campInfo,2))","v":"Central"},{"$f":"IF(INDEX(campsByItinerary,$B21,BI$3-1)=\"\",\"\",VLOOKUP(INDEX(campsByItinerary,$B21,BI$3-1),campInfo,2))","v":"South"},{"$f":"IF(INDEX(campsByItinerary,$B21,BJ$3-1)=\"\",\"\",VLOOKUP(INDEX(campsByItinerary,$B21,BJ$3-1),campInfo,2))","v":"South"},{"$f":"IF(INDEX(campsByItinerary,$B21,BK$3-1)=\"\",\"\",VLOOKUP(INDEX(campsByItinerary,$B21,BK$3-1),campInfo,2))","v":""},{"$f":"IF(INDEX(campsByItinerary,$B21,BL$3-1)=\"\",\"\",VLOOKUP(INDEX(campsByItinerary,$B21,BL$3-1),campInfo,2))","v":""},{"$f":"IF(INDEX(campsByItinerary,$B21,BM$3-1)=\"\",\"\",VLOOKUP(INDEX(campsByItinerary,$B21,BM$3-1),campInfo,2))","v":""},{"$f":"IF(INDEX(campsByItinerary,$B21,BN$3-1)=\"\",\"\",VLOOKUP(INDEX(campsByItinerary,$B21,BN$3-1),campInfo,2))","v":""},{"$f":"IF(INDEX(campsByItinerary,$B21,BO$3-1)=\"\",\"\",VLOOKUP(INDEX(campsByItinerary,$B21,BO$3-1),campInfo,12))","v":"South"},{"$f":"IF(INDEX(campsByItinerary,$B21,BP$3-1)=\"\",\"\",VLOOKUP(INDEX(campsByItinerary,$B21,BP$3-1),campInfo,12))","v":"South"},{"$f":"IF(INDEX(campsByItinerary,$B21,BQ$3-1)=\"\",\"\",VLOOKUP(INDEX(campsByItinerary,$B21,BQ$3-1),campInfo,12))","v":"South"},{"$f":"IF(INDEX(campsByItinerary,$B21,BR$3-1)=\"\",\"\",VLOOKUP(INDEX(campsByItinerary,$B21,BR$3-1),campInfo,12))","v":"South"},{"$f":"IF(INDEX(campsByItinerary,$B21,BS$3-1)=\"\",\"\",VLOOKUP(INDEX(campsByItinerary,$B21,BS$3-1),campInfo,12))","v":"South"},{"$f":"IF(INDEX(campsByItinerary,$B21,BT$3-1)=\"\",\"\",VLOOKUP(INDEX(campsByItinerary,$B21,BT$3-1),campInfo,12))","v":"South"},{"$f":"IF(INDEX(campsByItinerary,$B21,BU$3-1)=\"\",\"\",VLOOKUP(INDEX(campsByItinerary,$B21,BU$3-1),campInfo,12))","v":""},{"$f":"IF(INDEX(campsByItinerary,$B21,BV$3-1)=\"\",\"\",VLOOKUP(INDEX(campsByItinerary,$B21,BV$3-1),campInfo,12))","v":""},{"$f":"IF(INDEX(campsByItinerary,$B21,BW$3-1)=\"\",\"\",VLOOKUP(INDEX(campsByItinerary,$B21,BW$3-1),campInfo,12))","v":""},{"$f":"IF(INDEX(campsByItinerary,$B21,BX$3-1)=\"\",\"\",VLOOKUP(INDEX(campsByItinerary,$B21,BX$3-1),campInfo,12))","v":""},{"$f":"getfoodPU(\"First\",$B21)","v":4},{"$f":"getfoodPU(\"Max\",$B21)","v":4}]
["7B-S",19,"C",50,"Camping HQ","Crater Lake","Miners Park","Clarks Fork","Clarks Fork","Harlan",null,null,null,null,"Camping HQ",null,"Miners Park",null,null,null,null,null,null,null,"Ride Out","Ride In",null,":",null,null,null,null,null,null,null,null,null,6696,8398,7977,7515,7515,7550,"","","","",1702,421,462,0,35,"","","","",{"$f":"IF(INDEX(campsByItinerary,$B22,BE$3-1)=\"\",\"\",VLOOKUP(INDEX(campsByItinerary,$B22,BE$3-1),campInfo,8))","v":"Y"},{"$f":"IF(INDEX(campsByItinerary,$B22,BF$3-1)=\"\",\"\",VLOOKUP(INDEX(campsByItinerary,$B22,BF$3-1),campInfo,8))","v":"Y"},{"$f":"IF(INDEX(campsByItinerary,$B22,BG$3-1)=\"\",\"\",VLOOKUP(INDEX(campsByItinerary,$B22,BG$3-1),campInfo,8))","v":"Y"},{"$f":"IF(INDEX(campsByItinerary,$B22,BH$3-1)=\"\",\"\",VLOOKUP(INDEX(campsByItinerary,$B22,BH$3-1),campInfo,8))","v":"Y"},{"$f":"IF(INDEX(campsByItinerary,$B22,BI$3-1)=\"\",\"\",VLOOKUP(INDEX(campsByItinerary,$B22,BI$3-1),campInfo,8))","v":"Y"},{"$f":"IF(INDEX(campsByItinerary,$B22,BJ$3-1)=\"\",\"\",VLOOKUP(INDEX(campsByItinerary,$B22,BJ$3-1),campInfo,8))","v":"Y"},{"$f":"IF(INDEX(campsByItinerary,$B22,BK$3-1)=\"\",\"\",VLOOKUP(INDEX(campsByItinerary,$B22,BK$3-1),campInfo,8))","v":""},{"$f":"IF(INDEX(campsByItinerary,$B22,BL$3-1)=\"\",\"\",VLOOKUP(INDEX(campsByItinerary,$B22,BL$3-1),campInfo,8))","v":""},{"$f":"IF(INDEX(campsByItinerary,$B22,BM$3-1)=\"\",\"\",VLOOKUP(INDEX(campsByItinerary,$B22,BM$3-1),campInfo,8))","v":""},{"$f":"IF(INDEX(campsByItinerary,$B22,BN$3-1)=\"\",\"\",VLOOKUP(INDEX(campsByItinerary,$B22,BN$3-1),campInfo,8))","v":""},"","","","","","",null,null,null,null,{"$f":"IF(INDEX(campsByItinerary,$B22,BE$3-1)=\"\",\"\",VLOOKUP(INDEX(campsByItinerary,$B22,BE$3-1),campInfo,10))","v":""},{"$f":"IF(INDEX(campsByItinerary,$B22,BF$3-1)=\"\",\"\",VLOOKUP(INDEX(campsByItinerary,$B22,BF$3-1),campInfo,10))","v":""},{"$f":"IF(INDEX(campsByItinerary,$B22,BG$3-1)=\"\",\"\",VLOOKUP(INDEX(campsByItinerary,$B22,BG$3-1),campInfo,10))","v":""},{"$f":"IF(INDEX(campsByItinerary,$B22,BH$3-1)=\"\",\"\",VLOOKUP(INDEX(campsByItinerary,$B22,BH$3-1),campInfo,10))","v":""},{"$f":"IF(INDEX(campsByItinerary,$B22,BI$3-1)=\"\",\"\",VLOOKUP(INDEX(campsByItinerary,$B22,BI$3-1),campInfo,10))","v":""},{"$f":"IF(INDEX(campsByItinerary,$B22,BJ$3-1)=\"\",\"\",VLOOKUP(INDEX(campsByItinerary,$B22,BJ$3-1),campInfo,10))","v":""},{"$f":"IF(INDEX(campsByItinerary,$B22,BK$3-1)=\"\",\"\",VLOOKUP(INDEX(campsByItinerary,$B22,BK$3-1),campInfo,10))","v":""},{"$f":"IF(INDEX(campsByItinerary,$B22,BL$3-1)=\"\",\"\",VLOOKUP(INDEX(campsByItinerary,$B22,BL$3-1),campInfo,10))","v":""},{"$f":"IF(INDEX(campsByItinerary,$B22,BM$3-1)=\"\",\"\",VLOOKUP(INDEX(campsByItinerary,$B22,BM$3-1),campInfo,10))","v":""},{"$f":"IF(INDEX(campsByItinerary,$B22,BN$3-1)=\"\",\"\",VLOOKUP(INDEX(campsByItinerary,$B22,BN$3-1),campInfo,10))","v":""},null,"","","","Y","","",null,null,null,{"$f":"IF(INDEX(campsByItinerary,$B22,CS$3-1)=\"\",\"\",VLOOKUP(INDEX(campsByItinerary,$B22,CS$3-1),campInfo,11))","v":""},{"$f":"IF(INDEX(campsByItinerary,$B22,CT$3-1)=\"\",\"\",VLOOKUP(INDEX(campsByItinerary,$B22,CT$3-1),campInfo,11))","v":""},{"$f":"IF(INDEX(campsByItinerary,$B22,CU$3-1)=\"\",\"\",VLOOKUP(INDEX(campsByItinerary,$B22,CU$3-1),campInfo,11))","v":"Y"},{"$f":"IF(INDEX(campsByItinerary,$B22,CV$3-1)=\"\",\"\",VLOOKUP(INDEX(campsByItinerary,$B22,CV$3-1),campInfo,11))","v":"Y"},{"$f":"IF(INDEX(campsByItinerary,$B22,CW$3-1)=\"\",\"\",VLOOKUP(INDEX(campsByItinerary,$B22,CW$3-1),campInfo,11))","v":"Y"},{"$f":"IF(INDEX(campsByItinerary,$B22,CX$3-1)=\"\",\"\",VLOOKUP(INDEX(campsByItinerary,$B22,CX$3-1),campInfo,11))","v":""},{"$f":"IF(INDEX(campsByItinerary,$B22,CY$3-1)=\"\",\"\",VLOOKUP(INDEX(campsByItinerary,$B22,CY$3-1),campInfo,11))","v":""},{"$f":"IF(INDEX(campsByItinerary,$B22,CZ$3-1)=\"\",\"\",VLOOKUP(INDEX(campsByItinerary,$B22,CZ$3-1),campInfo,11))","v":""},{"$f":"IF(INDEX(campsByItinerary,$B22,DA$3-1)=\"\",\"\",VLOOKUP(INDEX(campsByItinerary,$B22,DA$3-1),campInfo,11))","v":""},{"$f":"IF(INDEX(campsByItinerary,$B22,DB$3-1)=\"\",\"\",VLOOKUP(INDEX(campsByItinerary,$B22,DB$3-1),campInfo,11))","v":""},{"$f":"IF(INDEX(campsByItinerary,$B22,BE$3-1)=\"\",\"\",VLOOKUP(INDEX(campsByItinerary,$B22,BE$3-1),campInfo,2))","v":"Central"},{"$f":"IF(INDEX(campsByItinerary,$B22,BF$3-1)=\"\",\"\",VLOOKUP(INDEX(campsByItinerary,$B22,BF$3-1),campInfo,2))","v":"South"},{"$f":"IF(INDEX(campsByItinerary,$B22,BG$3-1)=\"\",\"\",VLOOKUP(INDEX(campsByItinerary,$B22,BG$3-1),campInfo,2))","v":"South"},{"$f":"IF(INDEX(campsByItinerary,$B22,BH$3-1)=\"\",\"\",VLOOKUP(INDEX(campsByItinerary,$B22,BH$3-1),campInfo,2))","v":"Central"},{"$f":"IF(INDEX(campsByItinerary,$B22,BI$3-1)=\"\",\"\",VLOOKUP(INDEX(campsByItinerary,$B22,BI$3-1),campInfo,2))","v":"Central"},{"$f":"IF(INDEX(campsByItinerary,$B22,BJ$3-1)=\"\",\"\",VLOOKUP(INDEX(campsByItinerary,$B22,BJ$3-1),campInfo,2))","v":"Central"},{"$f":"IF(INDEX(campsByItinerary,$B22,BK$3-1)=\"\",\"\",VLOOKUP(INDEX(campsByItinerary,$B22,BK$3-1),campInfo,2))","v":""},{"$f":"IF(INDEX(campsByItinerary,$B22,BL$3-1)=\"\",\"\",VLOOKUP(INDEX(campsByItinerary,$B22,BL$3-1),campInfo,2))","v":""},{"$f":"IF(INDEX(campsByItinerary,$B22,BM$3-1)=\"\",\"\",VLOOKUP(INDEX(campsByItinerary,$B22,BM$3-1),campInfo,2))","v":""},{"$f":"IF(INDEX(campsByItinerary,$B22,BN$3-1)=\"\",\"\",VLOOKUP(INDEX(campsByItinerary,$B22,BN$3-1),campInfo,2))","v":""},{"$f":"IF(INDEX(campsByItinerary,$B22,BO$3-1)=\"\",\"\",VLOOKUP(INDEX(campsByItinerary,$B22,BO$3-1),campInfo,12))","v":"South"},{"$f":"IF(INDEX(campsByItinerary,$B22,BP$3-1)=\"\",\"\",VLOOKUP(INDEX(campsByItinerary,$B22,BP$3-1),campInfo,12))","v":"South"},{"$f":"IF(INDEX(campsByItinerary,$B22,BQ$3-1)=\"\",\"\",VLOOKUP(INDEX(campsByItinerary,$B22,BQ$3-1),campInfo,12))","v":"South"},{"$f":"IF(INDEX(campsByItinerary,$B22,BR$3-1)=\"\",\"\",VLOOKUP(INDEX(campsByItinerary,$B22,BR$3-1),campInfo,12))","v":"South"},{"$f":"IF(INDEX(campsByItinerary,$B22,BS$3-1)=\"\",\"\",VLOOKUP(INDEX(campsByItinerary,$B22,BS$3-1),campInfo,12))","v":"South"},{"$f":"IF(INDEX(campsByItinerary,$B22,BT$3-1)=\"\",\"\",VLOOKUP(INDEX(campsByItinerary,$B22,BT$3-1),campInfo,12))","v":"South"},{"$f":"IF(INDEX(campsByItinerary,$B22,BU$3-1)=\"\",\"\",VLOOKUP(INDEX(campsByItinerary,$B22,BU$3-1),campInfo,12))","v":""},{"$f":"IF(INDEX(campsByItinerary,$B22,BV$3-1)=\"\",\"\",VLOOKUP(INDEX(campsByItinerary,$B22,BV$3-1),campInfo,12))","v":""},{"$f":"IF(INDEX(campsByItinerary,$B22,BW$3-1)=\"\",\"\",VLOOKUP(INDEX(campsByItinerary,$B22,BW$3-1),campInfo,12))","v":""},{"$f":"IF(INDEX(campsByItinerary,$B22,BX$3-1)=\"\",\"\",VLOOKUP(INDEX(campsByItinerary,$B22,BX$3-1),campInfo,12))","v":""},{"$f":"getfoodPU(\"First\",$B22)","v":2},{"$f":"getfoodPU(\"Max\",$B22)","v":2}]
[null,null,null,null,null,null,null,null,null,null,null,null,null,null,null,null,null,null,null,null,null,null,null,null,null,null,null,null,null,null,null,null,{"$f":"COUNTIF(AG4:AG22,\"y\")","v":6},{"$f":"COUNTIF(AH4:AH22,\"y\")","v":0},{"$f":"COUNTIF(AI4:AI22,\"y\")","v":0},{"$f":"COUNTIF(AJ4:AJ22,\"y\")","v":4},{"$f":"COUNTIF(AK4:AK22,\"y\")","v":3}]
[null,null,null,null,null,null,null,null,null,null,null,null,null,null,null,null,null,null,null,null,null,null,null,null,null,null,null,null,null,null,null,null,"Mountaineering includes itineraries that climb Big Red, Black Mountain, Bonito Peak, Comanche Peak, Hart Mountain, Little Costilla Peak, Lookout Peak, or Shaefers Peak.",null,null,null,null," ",null,null,null,null,null,null,null,null,null,null,null,null,null,null,null,null,null,null,null,null,null,null,null,null,null,null,null,null,null,null,null,null,null,null,null,null,null,null,null,null,null,null,null,null,null,null,null,null,null,null,null,null,null,null,null,null,null,null,null,null,null,null,null,null,null,null,null,null,null,null,null,null,null,null,null,null,null,null,null,null,null,null,null,null,null,null,null,"Min",{"$f":"MIN(foodPUfirst)","v":1},{"$f":"MIN(foodPUdays)","v":2}]
[null,null,null,null,null,null,null,null,null,null,null,null,null,null,null,null,null,null,null,null,null,null,null,null,null,null,null,null,null,null,null,null,null,null,null,null,null," ",null,null,null,null,null,null,null,null,null,null,null,null,null,null,null,null,null,null,null,null,null,null,null,null,null,null,null,null,null,null,null,null,null,null,null,null,null,null,null,null,null,null,null,null,null,null,null,null,null,null,null,null,null,null,null,null,null,null,null,null,null,null,null,null,null,null,null,null,null,null,null,null,null,null,null,null,null,null,null,null,null,null,null,null,null,null,null,"Max",{"$f":"MAX(DW5:DW22)","v":5},{"$f":"MAX(foodPUdays)","v":5}]

{"sheet":"Itinerary Programs","index":11,"n_rows":23,"n_cols":32,"rows_kept":23,"cut":false,"hidden":true,"merged":[[0,0,1,0]]}
["Itinerary",1,2,{"$f":"C1+1","v":3},4,5,6,7,{"$f":"H1+1","v":8},9,10,11,12,13,14,{"$f":"O1+1","v":15},{"$f":"P1+1","v":16},{"$f":"Q1+1","v":17},{"$f":"R1+1","v":18},{"$f":"S1+1","v":19},{"$f":"T1+1","v":20},{"$f":"U1+1","v":21},{"$f":"V1+1","v":22},{"$f":"W1+1","v":23},{"$f":"X1+1","v":24},{"$f":"Y1+1","v":25},{"$f":"Z1+1","v":26},{"$f":"AA1+1","v":27},{"$f":"AB1+1","v":28},{"$f":"AC1+1","v":29}]
[null,{"$f":"INDEX(program_table,B1,1)","v":"Archaeology"},"Baldy Mountain","Blacksmithing","Campfire (evening)","Cantina","Challenge Events","Chuckwagon Dinner","Demonstration Forest","Fishing","Fly Tying","Fur Trapper Rendezvous","Gold Mining & Panning","Homesteading","Lodge/Cabin Tours","Low Impact Camping","Mexican Dinner","Mountaineering","Muzzle Loading Rifle","New Mexico Homestead","Petroglyph Tour","Post Civil War Encampment","Railroading","Rock Climbing & Rappelling","Shotgun Shooting/Reloading - 12 Gauge",{"$f":"INDEX(program_table,Z1,1)","v":"Spar Pole Climbing"},{"$f":"INDEX(program_table,AA1,1)","v":"Tie Making & Crosscut Saws"},"Tomahawk Throwing","Trail Peak","Western Lore/Branding"]
[{"$f":"itineraryCamps!A4","v":"1A-N"},null,{"$f":"IF(INDEX(peaks,ROW()-2,1)=\"y\",\"y\",\"\")","v":"y"},"y","y","y","y","n",null,null,"n","y","y",null,null,null,null,{"$f":"IF(INDEX(peaks,ROW()-2,5)=\"y\",\"y\",\"\")","v":""},null,null,null,null,null,null,null,"y","y",null,{"$f":"IF(INDEX(peaks,ROW()-2,4)=\"y\",\"y\",\"\")","v":""},"y",{"$f":"COUNTIF(B3:AD3,\"y\")","v":10}]
[{"$f":"itineraryCamps!A5","v":"1B-N"},null,{"$f":"IF(INDEX(peaks,ROW()-2,1)=\"y\",\"y\",\"\")","v":"y"},"y","y","y","y","n",null,null,"n",null,"y",null,null,null,null,{"$f":"IF(INDEX(peaks,ROW()-2,5)=\"y\",\"y\",\"\")","v":""},null,null,null,null,null,null,null,"y","y",null,{"$f":"IF(INDEX(peaks,ROW()-2,4)=\"y\",\"y\",\"\")","v":""},"y",9]
[{"$f":"itineraryCamps!A6","v":"2A-N"},null,{"$f":"IF(INDEX(peaks,ROW()-2,1)=\"y\",\"y\",\"\")","v":"y"},"y","y","y","y","n",null,null,"n","y","y",null,null,null,null,{"$f":"IF(INDEX(peaks,ROW()-2,5)=\"y\",\"y\",\"\")","v":""},"y",null,null,null,"n",null,null,"y","y","y",{"$f":"IF(INDEX(peaks,ROW()-2,4)=\"y\",\"y\",\"\")","v":""},"y",12]
[{"$f":"itineraryCamps!A7","v":"2B-N"},null,{"$f":"IF(INDEX(peaks,ROW()-2,1)=\"y\",\"y\",\"\")","v":"y"},"y","y","y","y","n",null,null,"n","y","y",null,null,null,null,{"$f":"IF(INDEX(peaks,ROW()-2,5)=\"y\",\"y\",\"\")","v":""},"y",null,null,null,"n",null,null,"y","y","y",{"$f":"IF(INDEX(peaks,ROW()-2,4)=\"y\",\"y\",\"\")","v":""},"y",12]
[{"$f":"itineraryCamps!A8","v":"3A-N"},null,{"$f":"IF(INDEX(peaks,ROW()-2,1)=\"y\",\"y\",\"\")","v":"y"},"y","y","y","y","n",null,null,"n","y","y",null,null,null,null,{"$f":"IF(INDEX(peaks,ROW()-2,5)=\"y\",\"y\",\"\")","v":""},"y",null,null,null,"n",null,null,"y","y","y",{"$f":"IF(INDEX(peaks,ROW()-2,4)=\"y\",\"y\",\"\")","v":""},"y",12]
[{"$f":"itineraryCamps!A9","v":"3B-N"},null,{"$f":"IF(INDEX(peaks,ROW()-2,1)=\"y\",\"y\",\"\")","v":"y"},"y","y","y","y","n",null,null,"n","y","y",null,null,null,null,{"$f":"IF(INDEX(peaks,ROW()-2,5)=\"y\",\"y\",\"\")","v":""},"y",null,null,null,"n",null,null,"y","n","y",{"$f":"IF(INDEX(peaks,ROW()-2,4)=\"y\",\"y\",\"\")","v":""},"y",11]
[{"$f":"itineraryCamps!A10","v":"4A-N"},"y",{"$f":"IF(INDEX(peaks,ROW()-2,1)=\"y\",\"y\",\"\")","v":""},"y","y","n","y","n",null,null,null,null,null,null,"y",null,null,{"$f":"IF(INDEX(peaks,ROW()-2,5)=\"y\",\"y\",\"\")","v":""},null,null,"y","N","y","n",null,"y","y",null,{"$f":"IF(INDEX(peaks,ROW()-2,4)=\"y\",\"y\",\"\")","v":""},"y",10]
[{"$f":"itineraryCamps!A11","v":"1A-S"},null,{"$f":"IF(INDEX(peaks,ROW()-2,1)=\"y\",\"y\",\"\")","v":""},null,"y","y",null,"y",null,"y",null,null,null,null,"y","y","y",{"$f":"IF(INDEX(peaks,ROW()-2,5)=\"y\",\"y\",\"\")","v":""},"y","y",null,"y",null,"y",null,null,null,null,{"$f":"IF(INDEX(peaks,ROW()-2,4)=\"y\",\"y\",\"\")","v":""},"y",12]
[{"$f":"itineraryCamps!A12","v":"1B-S"},null,{"$f":"IF(INDEX(peaks,ROW()-2,1)=\"y\",\"y\",\"\")","v":""},null,"y","y",null,"y",null,null,null,null,null,null,"y","y","y",{"$f":"IF(INDEX(peaks,ROW()-2,5)=\"y\",\"y\",\"\")","v":""},"y","y",null,"y",null,"y",null,null,null,null,{"$f":"IF(INDEX(peaks,ROW()-2,4)=\"y\",\"y\",\"\")","v":""},"y",11]
[{"$f":"itineraryCamps!A13","v":"2A-S"},null,{"$f":"IF(INDEX(peaks,ROW()-2,1)=\"y\",\"y\",\"\")","v":""},null,"y","y",null,"y",null,null,null,null,null,null,"y",null,"y",{"$f":"IF(INDEX(peaks,ROW()-2,5)=\"y\",\"y\",\"\")","v":""},"y","y",null,"y",null,"y",null,"y","y",null,{"$f":"IF(INDEX(peaks,ROW()-2,4)=\"y\",\"y\",\"\")","v":""},"y",12]
[{"$f":"itineraryCamps!A14","v":"2B-S"},null,{"$f":"IF(INDEX(peaks,ROW()-2,1)=\"y\",\"y\",\"\")","v":""},"y","y","y",null,"y",null,null,null,null,null,null,"N",null,"y",{"$f":"IF(INDEX(peaks,ROW()-2,5)=\"y\",\"y\",\"\")","v":""},"y","y",null,"y",null,"y",null,"y","y",null,{"$f":"IF(INDEX(peaks,ROW()-2,4)=\"y\",\"y\",\"\")","v":"y"},"y",13]
[{"$f":"itineraryCamps!A15","v":"3A-S"},null,{"$f":"IF(INDEX(peaks,ROW()-2,1)=\"y\",\"y\",\"\")","v":""},null,"y",null,null,"y","N","y","y",null,null,"n","y",null,null,{"$f":"IF(INDEX(peaks,ROW()-2,5)=\"y\",\"y\",\"\")","v":""},null,null,null,null,null,"y",null,"y","y",null,{"$f":"IF(INDEX(peaks,ROW()-2,4)=\"y\",\"y\",\"\")","v":""},"y",9]
[{"$f":"itineraryCamps!A16","v":"3B-S"},null,{"$f":"IF(INDEX(peaks,ROW()-2,1)=\"y\",\"y\",\"\")","v":""},null,"y",null,null,"y","N","y","y",null,null,"n","y",null,null,{"$f":"IF(INDEX(peaks,ROW()-2,5)=\"y\",\"y\",\"\")","v":""},null,null,null,null,null,"y",null,"y","y",null,{"$f":"IF(INDEX(peaks,ROW()-2,4)=\"y\",\"y\",\"\")","v":""},"y",9]
[{"$f":"itineraryCamps!A17","v":"4A-S"},null,{"$f":"IF(INDEX(peaks,ROW()-2,1)=\"y\",\"y\",\"\")","v":""},null,"y",null,null,"y","N","y","y",null,"y","y","y",null,null,{"$f":"IF(INDEX(peaks,ROW()-2,5)=\"y\",\"y\",\"\")","v":""},null,null,null,null,null,"y",null,"y","y",null,{"$f":"IF(INDEX(peaks,ROW()-2,4)=\"y\",\"y\",\"\")","v":""},"y",11]
[{"$f":"itineraryCamps!A18","v":"5A-S"},null,{"$f":"IF(INDEX(peaks,ROW()-2,1)=\"y\",\"y\",\"\")","v":""},null,"y",null,null,"y",null,"y","y",null,"y",null,"y","y",null,{"$f":"IF(INDEX(peaks,ROW()-2,5)=\"y\",\"y\",\"\")","v":"y"},null,null,null,"y",null,"y",null,"y","y",null,{"$f":"IF(INDEX(peaks,ROW()-2,4)=\"y\",\"y\",\"\")","v":"y"},"y",14]
[{"$f":"itineraryCamps!A19","v":"6A-S"},null,{"$f":"IF(INDEX(peaks,ROW()-2,1)=\"y\",\"y\",\"\")","v":""},"y","y",null,null,"y",null,null,null,null,null,null,null,null,null,{"$f":"IF(INDEX(peaks,ROW()-2,5)=\"y\",\"y\",\"\")","v":"y"},"y",null,null,"y",null,"y",null,"y","y",null,{"$f":"IF(INDEX(peaks,ROW()-2,4)=\"y\",\"y\",\"\")","v":"y"},"y",11]
[{"$f":"itineraryCamps!A20","v":"6B-S"},null,{"$f":"IF(INDEX(peaks,ROW()-2,1)=\"y\",\"y\",\"\")","v":""},"y","y",null,null,"y",null,null,null,null,null,null,null,null,null,{"$f":"IF(INDEX(peaks,ROW()-2,5)=\"y\",\"y\",\"\")","v":"y"},"y",null,null,"y",null,"y",null,"y","y",null,{"$f":"IF(INDEX(peaks,ROW()-2,4)=\"y\",\"y\",\"\")","v":"y"},"y",11]
[{"$f":"itineraryCamps!A21","v":"7A-S"},null,{"$f":"IF(INDEX(peaks,ROW()-2,1)=\"y\",\"y\",\"\")","v":""},null,"y",null,null,"y","y",null,null,null,null,null,null,null,null,{"$f":"IF(INDEX(peaks,ROW()-2,5)=\"y\",\"y\",\"\")","v":""},null,null,null,null,null,"y","y","y","y",null,{"$f":"IF(INDEX(peaks,ROW()-2,4)=\"y\",\"y\",\"\")","v":""},"y",8]
[{"$f":"itineraryCamps!A22","v":"7B-S"},null,{"$f":"IF(INDEX(peaks,ROW()-2,1)=\"y\",\"y\",\"\")","v":""},null,"y",null,null,"y","y",null,null,null,null,null,null,null,null,{"$f":"IF(INDEX(peaks,ROW()-2,5)=\"y\",\"y\",\"\")","v":""},null,null,null,null,null,"y","y","y","y",null,{"$f":"IF(INDEX(peaks,ROW()-2,4)=\"y\",\"y\",\"\")","v":""},"y",8]
[null,{"$f":"COUNTIF(B3:B21,\"y\")","v":1},6,10,19,10,7,12,2,5,4,5,8,1,8,3,4,{"$f":"COUNTIF(R3:R21,\"y\")","v":3},10,4,1,7,1,12,2,17,{"$f":"COUNTIF(AA3:AA21,\"y\")","v":16},4,{"$f":"COUNTIF(AC3:AC21,\"y\")","v":4},19,0,0]
[null,{"$f":"B2","v":"Archaeology"},"Baldy Mountain","Blacksmithing","Campfire (evening)","Cantina","Challenge Events","Chuckwagon Dinner","Demonstration Forest","Fishing","Fly Tying","Fur Trapper Rendezvous","Gold Mining & Panning","Homesteading","Lodge/Cabin Tours","Low Impact Camping",null,{"$f":"R2","v":"Mountaineering"},"Muzzle Loading Rifle","New Mexico Homestead","Petroglyph Tour","Post Civil War Encampment","Railroading","Rock Climbing & Rappelling","Shotgun Shooting/Reloading - 12 Gauge","Spar Pole Climbing",{"$f":"AA2","v":"Tie Making & Crosscut Saws"},"Tomahawk Throwing",{"$f":"AC2","v":"Trail Peak"},"Western Lore/Branding"]

{"sheet":"Descriptions","index":12,"n_rows":20,"n_cols":4,"rows_kept":20,"cut":false,"hidden":true,"merged":[]}
["Length","Itinerary","Description"," "]
[{"$f":"LEN(C2)","v":1165},{"$f":"Itineraries!A3","v":"1A-N"},"On the morning of day 3, your crew will leave Ponil and ride 5.6 miles to Dan Beard. This is a medium long ride up Horse Canyon and along Ridge Trail. Dan Beard borders the Valle Vidal Unit of the Carson National Forest and offers challenge course a Leave No Trace camping. Day 4, you will ride 7.4 miles from Dan Beard to Pueblano through the Elliot Barker Wildlife area. This ride traverses Wilson Mesa, a beautiful and removed area bordering Philmont. Once at Pueblano there is spar pole climbing, lumberjack skills, and a celebrated evening campfire. Day 5 takes you 5.4 miles from Pueblano to Baldy Town through more wooded areas. At Baldy Town, the crew will get commissary items for the second half of the trek, learn about mining history in the Sangre De Cristos, and will have a layover day with the option to summit Baldy Mountain. Day 7 takes you 7.7 miles from Baldy Town to Head of Dean, with the option to pass through Miranda and stop for Fur Trapper rendezvous. You can also participate in the Challenge Course at Head of Dean. On Day 8, the trek finishes with a ride from Head of Dean back to Ponil in time to participate in the afternoon Gymkhana."," "]
[{"$f":"LEN(C3)","v":1092},{"$f":"Itineraries!A4","v":"1B-N"},"On the morning of day 3, your crew will leave Ponil and ride 7 miles to Head of Dean. This ride passes through Pueblano and proceeds up the wooded ridge to Head of Dean where challenge course programming is offered. Day 4 brings a 7.7 mile ride from Head of Dean to Baldy town where the crew will get commissary items for the second half of the trek, learn about mining history in the Sangre De Cristos, and will have a layover day with the option to summit Baldy Mountain. On the morning of day 6, the crew will saddle up and head down to Pueblano where they have the option of spar pole climbing, lumberjack programming, and viewing a legendary evening campfire show. Day 7 departs from mountains and woods over Wilson Mesa and heads into Philmont’s northern canyon country through the Elliot Barker Wildlife Area. After a 7.4 mile ride, the crew camps at Dan Beard, where challenge course and leave no trace camping programming is available. Finally, the morning of Day 8 will bring you down the ridge trail and Horse Canyon back to Ponil in time to compete in the Gymkhana that afternoon."," "]
[897,{"$f":"Itineraries!A5","v":"2A-N"},"On the morning of day 3, your crew will depart Ponil and ride 5 miles to Pueblano. This ride parallels the south Ponil creek and is cool and mostly shaded. At Pueblano there is spar pole climbing, lumberjack programming, and a celebrated evening campfire program. Day 4 will take you from Pueblano, 5.4 miles to Baldy town. At Baldy town, the crew will get commissary items for the second half of the trek, learn about mining history in the Sangre De Cristos, and will have a layover day with the option to summit Baldy Mountain. Day 6 is a short ride pf 2.4 miles down to Miranda where there is Mountain Man programming and black powder rifle shooting, plus a lovely meadow for gymkhana practice. On day 7, the crew rides 4.3 miles to Head of Dean and can enjoy the challenge course programming there before heading back to Ponil on day 8 and finishing the trek off with the Gymkhana competition."," "]
[857,{"$f":"Itineraries!A6","v":"2B-N"},"On the morning of day 3, your crew will depart Ponil and ride to Head of Dean, where challenge course programming is the order of the day. The following morning, the trail takes you 4.3 miles to Miranda where you can enjoy the fur trapping interpretive programming and black powder rifle shooting. Day 5 is a short 2.4 mile ride through aspen forests up to Baldy town where the crew will get commissary items for the second half of the trek, learn about mining history in the Sangre De Cristos, and will have a layover day with the option to summit Baldy Mountain. Day 7 goes 5.4 miles from Baldy Town to Pueblano where your crew can enjoy logging program including spar pole climbing, lumberjack activities, and a legendary campfire in the evening. Finally, day 8 returns to Ponil, 5 miles down the South Ponil creek time for afternoon Gymkhana activities."," "]
[874,{"$f":"Itineraries!A7","v":"3A-N"},"On the morning of day 3, your crew will depart Ponil and ride to Head of Dean, where challenge course programming is the order of the day. The following morning, the trail takes you 4.3 miles to Miranda where you can enjoy fur trapping interpretive programming and black powder rifle shooting. You will lay over at Miranda for day 5 and have the option of summiting Baldy Mountain. Day 6 is a short 2.4 mile ride through aspen forests up to Baldy town where the crew will get commissary items for the remainder of the trek and learn about mining history in the Sangre De Cristos. Day 7 goes 5.4 miles from Baldy Town to Pueblano where the crew can enjoy logging program including spar pole climbing, lumberjack activities, and a legendary campfire in the evening. Finally, day 8 returns to Ponil, 5 miles down the South Ponil creek in time for afternoon Gymkhana activities."," "]
[970,{"$f":"Itineraries!A8","v":"3B-N"},"On the morning of day 3, your crew will depart Ponil and ride 5 miles to Pueblano. This ride parallels the south Ponil creek and is cool and mostly shaded. At Pueblano there is spar pole climbing, lumberjack programming, and a celebrated evening campfire program. Day 4 will take you from Pueblano, 5.4 miles to Baldy town. At Baldy town, the crew will get commissary items for the second half of the trek, learn about mining history in the Sangre De Cristos. From Baldy Town, day 5 to Miranda is a short 2.4 mile ride down through aspen forests. The crew will lay over at Miranda and have the option to summit Baldy Town on the layover day. Miranda also boasts a Fur Trapper historical interpretive programming and black powder rifle shooting. Day 7 is a lovely 4.3 mile ride to Head of Dean where your crew can experience challenge course programming before returning down the South Ponil canyon through Pueblano on day 8 to participate in afternoon Gymkhana at Ponil."," "]
[1670,{"$f":"Itineraries!A9","v":"4A-N"},"This itinerary explores Philmont’s lovely northern canyon country. You'll start off at Ponil for your circle ride and other preparations and then on the morning of Day 3 be transported to the historic Chase Ranch. While there, crews have the option to tour the house at headquarters and learn about ranching in Northern New Mexico starting in the frontier days. Your first ride is a 6.3 mile ride up beautiful Chase Canyon to Chase Cow Camp where the program is rock climbing. There are also historic structures there from the days when cowboys drove cattle through this country. From there, the ride up to Metcalf Station over the canyon tops is a vista-filled ride on Day 4. At Metcalf Station, crews lay over and participate in a conservation project at Indian Writings, where the programming includes a petroglyph tour and archaeology. Programming at Metcalf includes blacksmithing, historic railroading and an evening campfire. Food resupply will be dropped off at Metcalf and then on Day 6, the crew will ride over more scenic canyon tops to Dan Beard on Philmont’s northern border. Dan Beard camp offers challenge course programming. Day 7 brings a ride into more wooded and mountainous country as the crew rides across the Elliot Barker Wildlife Area and Wilson Mesa to Pueblano camp back on Philmont. Pueblano offers programming with the interpretive Continental Tie and Lumber Company including spar pole climbing and lumberjack programming, with a renowned evening campfire show. Day 8 brings the crew 5 miles down the South Ponil canyon along the South Ponil creek to Ponil camp where they participate in the Gymkhana competition at the end of the cavalcade."," "]
[1577,{"$f":"Itineraries!A10","v":"1A-S"},"The morning of day 3, the crew will depart Cattle HQ and ride west into the mountains. You will pass under Lover’s Leap and ride up Stonewall pass and over to Abreu camp. At Abreu you can enjoy homesteading interpretive camp life, historic cabin tours, and a Mexican dinner. Day 4 brings you back over Stonewall pass and across the Bear Caves meadows through Crater Lake. This day is long, and you likely will not be able to stop for full program at Crater Lake in order to make it to Beaubien before sunset for cooking training with your horseman and wrangler. However there are some lovely views of the Tooth of Time from the campfire bowl at Crater Lake and it’s a scenic place for lunch! From Crater Lake you will proceed up Fowler Pass into the verdant Bonito Canyon and then up the long meadow of the canyon bottom to Beaubien Camp for the night. At Beaubien you will stay two nights, allowing for a day of rest, a conservation project , and side hikes. Programming at Beaubien includes a chuckwagon dinner, western lore, and evening campfires. You will also have a commissary pick up at Phillips Junction nearby to receive your food for the second half of the trek. On day 6, the crew can enjoy another short ride and leisurely day directly down to Bonita Cow Camp or can take the long (10.8 miles) way around through Fish Camp for programming and up over Webster Pass. Day 7 is a down-hill 6.5 mile ride to Miner’s Park where the program is rock climbing. On day 8, your crew will ride 5.9 miles from Miner’s Park back to Cattle HQ in time for the gymkhana competition."," "]
[1001,{"$f":"Itineraries!A11","v":"1B-S"},"The morning of day 3, your crew will ride 5.9 miles from base to Miner’s Park where the programming is rock climbing. Day 4 is an up-hill 6.5 miles over Fowler Pass to Bonita Cow Camp in the high-country mountain meadows. From Bonita Cow, the crew can choose a short easy day straight up the meadow to Beaubien, or ride 10.8 miles around over Webster Pass and down through Fish Camp to where there is fly fishing programming before coming up to Beaubien. At Beaubien the crew will lay over for 2 days and have the opportunity for their conservation project and side hikes. There is also a commissary pick up at Phillip’s Junction of the food for the second half of the trek. On day 7, the ride is a long one, down Fowler Pass, through Crater Lake and Bear Caves, over Stonewall Pass, and down to Abreu camp where the program is historical interpretive homesteading, a cantina, and Mexican dinner. Day 8 will be an early ride from Abreu down to Cattle HQ in time for the afternoon Gymkhana competition."," "]
[1299,{"$f":"Itineraries!A12","v":"2A-S"},"The morning of day 3, the crew will depart Cattle HQ and ride west into the mountains. You will pass under Lover’s Leap and ride up Stonewall pass and over to Abreu camp. At Abreu you can enjoy homesteading interpretive camp life, historic cabin tours, and a Mexican dinner. From Abreu on the morning of day 4, you will ride back over Stonewall Pass to Crater Lake to stay the night. At Crater Lake you can enjoy interpretive programming with the Continental Tie and Lumber Company. These programs include spar pole climbing, lumberjacking, and a legendary evening campfire. Departing Crater Lake on the morning of day 5, the crew will ride up over Fowler Pass and through the beautiful high mountain meadows of Bonita Canyon to Beaubien camp. Beaubien’s programming includes western lore, chuckwagon dinner, and evening campfires. The crew will lay over at Beaubien with the opportunity for a conservation project and possible side hikes. During this time, food for the remainder of the trek will be picked up from nearby Phillip’s Junction. The morning of day 7 brings a ride from Beaubien over to Miner’s Park. At Miner’s Park the crew can enjoy rock climbing activities. The morning of day 8, the crew will ride from Miner’s Park down to Cattle HQ in time for the afternoon gymkhana competition."," "]
[1196,{"$f":"Itineraries!A13","v":"2B-S"},"The morning of day 3, your crew will ride west into the mountains, pass under Lover’s Leap, and continue on to Miner’s Park camp for the night. At Miner’s Park, the program offered is rock climbing. Day 4 will take you up Fowler Pass and along Bonita Canyon meadow to Beaubien camp. At Beaubien you can enjoy western lore, chuckwagon dinner, and evening campfires. The crew will lay over at Beaubien with the opportunity for a conservation project and possible side hikes to Black Mountain Camp, the summit of Black Mountain, or the summit of Trail Peak. During this time, food for the remainder of the trek will also be picked up from nearby Phillip’s Junction. After leaving Beaubien, day 6 will be a ride down to Crater Lake. At Crater Lake you can enjoy interpretive programming with the Continental Tie and Lumber Company. These programs include spar pole climbing, lumberjacking, and a legendary evening campfire. Day 7, the crew will ride across Bear Caves and over Stonewall pass to Abreu camp where the program is historical interpretive homesteading, a cantina, and Mexican dinner. Day 8 will be an early ride from Abreu down to Cattle HQ in time for the afternoon Gymkhana competition."," "]
[1426,{"$f":"Itineraries!A14","v":"3A-S"},"This itinerary has shorter mileage for the south country. It offers a little less time in the saddle and a little more time for programming or slightly later mornings on most days. The morning of day 3, your crew will pack up your horses and ride to Crater Lake. At Crater Lake you can enjoy interpretive programming with the Continental Tie and Lumber Company. These programs include spar pole climbing, lumberjacking, and a legendary evening campfire. The next morning, you will have your longest day up over Fowler Pass, down to Bonita canyon, and up again over Webster Pass to Fish Camp. At Fish Camp, the program offered includes historical interpretation of one of Waite Phillip’s favorite places on Philmont, fly tying, and fly fishing instruction on the Rayado Creek. This itinerary lays over at Fish Camp, and during this time you can take full advantage of programming there as weather allows, or side hike. This is also the time to pick up crew food from nearby Phillip’s Junction for the remainder of the trek. Day 6 is a short ride up to Beaubien where the crew can complete their conservation project, and enjoy western lore programming, chuckwagon dinner, and a great western campfire in the evening. Day 7, the crew will ride form Beaubien back down over Fowler Pass to Miner’s Park where the program is rock climbing. Then day 8 is a ride back down to Cattle HQ in time for the afternoon gymkhana competition."," "]
[1533,{"$f":"Itineraries!A15","v":"3B-S"},"This itinerary has shorter mileage for the south country. It offers a little less time in the saddle and a little more time for programming or slightly later mornings on most days. The morning of day 3, the crew will ride west into the mountains, passing under Lover’s Leap to Miner’s Park where the program is rock climbing. Day 4 is a ride up Fowler Pass and Bonita Meadow to Beaubien camp. At Beaubien the crew can complete their conservation project and enjoy western lore programming, chuckwagon dinner, and a great western campfire in the evening. The morning of day 5 brings a short ride down through Phillip’s Junction to Fish Camp. At Fish Camp, the program offered includes historical interpretation of one of Waite Phillip’s favorite places on Philmont, fly tying, and fly-fishing instruction on the Rayado Creek. This itinerary lays over at Fish Camp, and during this time you can take full advantage of programming there as weather allows, or side hike. This is also the time to pick up crew food from nearby Phillip’s Junction for the remainder of the trek. Day 7 will be the longest riding day of this trek, riding up over Webster Pass, through Bonita Canyon, and back over Fowler Pass down to Crater Lake where the crew can enjoy interpretive programming with the Continental Tie and Lumber Company. These programs include spar pole climbing, lumberjacking, and a legendary evening campfire. The final morning, the crew will mount up early to make the ride to Cattle HQ in time for the afternoon Gymkhana competition."," "]
[1605,{"$f":"Itineraries!A16","v":"4A-S"},"The morning of day 3, your crew will pack up your horses and ride to Crater Lake. At Crater Lake you can enjoy interpretive programming with the Continental Tie and Lumber Company. These programs include spar pole climbing, lumberjacking, and a legendary evening campfire. The next morning, the crew will ride up over Fowler Pass, down to Bonita canyon, and up again over Webster Pass to Fish Camp. At Fish Camp, the program offered includes historical interpretation of one of Waite Phillip’s favorite places on Philmont, fly tying, and fly-fishing instruction on the Rayado Creek. This itinerary lays over at Fish Camp, and during this time you can take full advantage of programming there as weather allows, or side hike. This is also the time to pick up crew food from nearby Phillip’s Junction for the remainder of the trek. Day 6 is an easy ride up to Beaubien where the crew can complete their conservation project and enjoy western lore programming, chuckwagon dinner, and a great western campfire in the evening. This itinerary saves the best and most difficult for last, with the longest ride available on any cavalcade- the ride between Beaubien and Clark’s Fork. The morning of day 7 will be an early one as you have an 18 mile ride ahead of you to get across the contour road, down through Cypher’s Mine, and all the way to Clark’s Fork. Clark’s Fork also has western lore programming and is well known for its evening campfire program. Day 8 is a comparatively shorter ride through Philmont’s low country at the base of Tooth Ridge down into Cattle HQ for the afternoon gymkhana competition."," "]
[1491,{"$f":"Itineraries!A17","v":"5A-S"},"The morning of day 3, the crew will ride west into the mountains, passing under Lover’s Leap to Miner’s Park where the program is rock climbing. Day 4 is a ride up Fowler Pass and Bonita Meadow to Bonita Cow Camp. This is a trail camp with no staff or additional program but has a very neat historic cabin where cowboys used to stay while tending the cow herd up in the high country. The crew can then choose to take a longer way around to Beaubien on day 5 that goes down over Webster Pass into Fish camp with the opportunity for fly tying and fishing program. Otherwise, the ride from Bonita Cow Camp to Beaubien is a very short hour or so up the scenic and green Bonita meadow. At Beaubien you can enjoy western lore, chuckwagon dinner, and evening campfires. The crew will lay over at Beaubien with the opportunity for a conservation project and possible side hikes to Black Mountain Camp, the summit of Black Mountain, or the summit of Trail Peak. During this time, food for the remainder of the trek will also be picked up from nearby Phillip’s Junction. The morning of day 7 will be an early one as you have an 18 mile ride ahead of you to get across the contour road, down through Cypher’s Mine, and all the way to Clark’s Fork. Clark’s Fork also has western lore programming and is well known for its evening campfire program. Day 8 is a comparatively shorter ride through Philmont’s low country at the base of Tooth Ridge down into Cattle HQ for the afternoon gymkhana competition."," "]
[1345,{"$f":"Itineraries!A18","v":"6A-S"},"This itinerary has shorter mileage for the south country. It offers a little less time in the saddle and a little more time for programming or slightly later mornings on most days. Day 3 is a ride through Philmont’s low country at the base of Tooth Ridge to Clark’s Fork. Clark’s Fork has western lore programming and is well known for its evening campfire program. Day 4 will be a lot of elevation change with beautiful scenery as the crew rides up and over Schaffer’s Pass, down through the North Fork Urraca, and back up again to Miner’s Park. At Miner’s Park the program is rock climbing. Day 5 is another elevation gaining ride up Fowler Pass to Beaubien Camp. At Beaubien you can enjoy western lore, chuckwagon dinner, and evening campfires. The crew will lay over at Beaubien with the opportunity for a conservation project and possible side hikes to Black Mountain Camp, the summit of Black Mountain, or the summit of Trail Peak. During this time, food for the remainder of the trek will also be picked up from nearby Phillip’s Junction. After leaving Beaubien the morning of day 7, the crew will ride back down Fowler Pass to Crater Lake where you can enjoy interpretive programming with the Continental Tie and Lumber Company. These programs include spar pole climbing, lumberjacking, and a legendary evening campfire. Finally, day 8 i"," "]
[1551,{"$f":"Itineraries!A19","v":"6B-S"},"This itinerary has shorter mileage for the south country. It offers a little less time in the saddle and a little more time for programming or slightly later mornings on most days. The morning of day 3, your crew will pack up your horses and ride to Crater Lake. At Crater Lake you can enjoy interpretive programming with the Continental Tie and Lumber Company. These programs include spar pole climbing, lumberjacking, and a legendary evening campfire. Day 4, the crew will ride up Fowler Pass and along the beautiful, green Bonita Meadow to Beaubien. At Beaubien you can enjoy western lore, chuckwagon dinner, and evening campfires. The crew will lay over at Beaubien with the opportunity for a conservation project and possible side hikes to Black Mountain Camp, the summit of Black Mountain, or the summit of Trail Peak. During this time, food for the remainder of the trek will also be picked up from nearby Phillip’s Junction. Day 6 will bring your crew back down Fowler Pass to Miner’s Park where the program is rock climbing. Day 7 is full of elevation change and beautiful views as your crew will ride from Miner’s Park down to the North Fork Urraca, back up to cross Schaffer’s Pass, and down from Schaffer’s to Clark’s Fork. While there is a lot of elevation change, this is still a relatively short ride. Clark’s Fork has western lore programming and is well known for its evening campfire program. Day 8 is a smooth ride through Philmont’s low country at the base of Tooth Ridge down into Cattle HQ for the afternoon gymkhana competition."," "]
[1442,{"$f":"Itineraries!A20","v":"7A-S"},"This South Country Cavalcade itinerary is a little shorter on the mileage but not on the adventure! On the morning of Day 3 you will saddle up and ride from basecamp on the north side of Tooth Ridge to Webster Lake and then up to Harlen. There you will get to enjoy the 12-gauge shotgun shooting and reloading programs. Day 4 takes you back towards Webster and then up the trail to Clarks Fork. This is your layover where you will get to enjoy the Western Lore and Branding programs, a chuckwagon dinner, and their cowboy campfire. On day 5 you will get the chance to side hike to the beautiful Cito Reservoir and Cathedral Rock. While there, be sure to chat with the visiting forester at the Demonstration Forest, too. Day 6 takes you up and over Schaefers Pass and down to the North Fork Urraca creek where you’ll then venture up to Miners Park for their rock-climbing and rappelling programs. On Day 7 you will proceed to Crater Lake where you can climb spar poles, hew some logs, and try your hands at the crosscut saw for the Continental Tie & Lumber Co. Their evening “Company Meeting” campfire program is not to be missed and offers one of the best campfire views on the ranch. Day 8 is a smooth ride through Philmont’s low country along the south side of Tooth Ridge all the way to Base Camp and Cattle Headquarters. Wrap up your Cavalcade with the ever-exciting Gymkhana and then close the day out with the Philmont Closing Campfire."," "]
[1350,{"$f":"Itineraries!A21","v":"7B-S"},"This South Country Cavalcade is shorter on mileage but packed with plenty of adventure. On Day 3 saddle up and ride through Philmont’s low country along the south side of Tooth Ridge, under Lover’s Leap and up to Crater Lake for spar pole climbing, tie making, and crosscut saw training with the loggers of the Continental Tie & Lumber Co. Enjoy their exciting company meeting campfire program and their spectacular view of the Tooth of Time. On Day 4 you will hit the trail to Miners Park for their exciting rock-climbing and rappelling programs before saddling up on Day 5 for the ride down to the North Fork trail and then up and over Shaefers Pass. Ride down to Clarks Fork for your layover and enjoy their Western Lore & Branding programs, a chuckwagon dinner, and their evening cowboy campfire program. Your layover day will allow you to side hike to the scenic Cito Reservoir and Cathedral Rock. While there, take some time to learn from the visiting forester that will be at the Demonstration Forest. Day 7 has you riding up to Harlan for their 12-gauge shotgun shooting and reloading programs. On the morning of Day 8 you will ride down to Webster Lake and make your way to Base Camp along the plains on the north side of Tooth Ridge. Once back to basecamp, get ready for your Gymkhana and Philmont’s Closing Campfire program to end the day."," "]

{"sheet":"Calculator","index":13,"n_rows":30,"n_cols":52,"rows_kept":30,"cut":false,"hidden":true,"merged":[[24,0,24,1]]}
["Calculate Individual Values Based on Tables & Scores",null,null,null,null,null,null,null,null,null,null,null,null,null,null,null,null,null,null,null,null,null,null,1,{"$f":"X1+1","v":2},{"$f":"Y1+1","v":3},4,5,6,7,8,9,10,11,12,13,14,15,16,17,18,19,20,21,22,23,24,25,26,27,28,29]
[{"$f":"Itineraries!A2","v":"Itinerary"},"Ranking","Difficulty","Distance","Food from HQ","Days Food","Trail Camps","Dry Camps","Total Camps","Max Altitude","Total Gain","Daily Change","Hike Out","Hike In","Baldy Mountain","Mount Phillips","Tooth of Time","Trail Peak","Mountaineering","South","Central","North","Valle Vidal",{"$f":"INDEX(program_table,X$1)","v":"Archaeology"},{"$f":"INDEX(program_table,Y$1)","v":"Baldy Mountain"},{"$f":"INDEX(program_table,Z$1)","v":"Blacksmithing"},{"$f":"INDEX(program_table,AA$1)","v":"Campfire (evening)"},{"$f":"INDEX(program_table,AB$1)","v":"Cantina"},{"$f":"INDEX(program_table,AC$1)","v":"Challenge Events"},{"$f":"INDEX(program_table,AD$1)","v":"Chuckwagon Dinner"},{"$f":"INDEX(program_table,AE$1)","v":"Demonstration Forest"},{"$f":"INDEX(program_table,AF$1)","v":"Fishing"},{"$f":"INDEX(program_table,AG$1)","v":"Fly Tying"},{"$f":"INDEX(program_table,AH$1)","v":"Fur Trapper Rendezvous"},{"$f":"INDEX(program_table,AI$1)","v":"Gold Mining & Panning"},{"$f":"INDEX(program_table,AJ$1)","v":"Homesteading"},{"$f":"INDEX(program_table,AK$1)","v":"Lodge/Cabin Tours"},{"$f":"INDEX(program_table,AL$1)","v":"Low Impact Camping"},{"$f":"INDEX(program_table,AM$1)","v":"Mexican Dinner"},{"$f":"INDEX(program_table,AN$1)","v":"Mountaineering"},{"$f":"INDEX(program_table,AO$1)","v":"Muzzle Loading Rifle"},{"$f":"INDEX(program_table,AP$1)","v":"New Mexico Homestead"},{"$f":"INDEX(program_table,AQ$1)","v":"Petroglyph Tour"},{"$f":"INDEX(program_table,AR$1)","v":"Post Civil War Encampment"},{"$f":"INDEX(program_table,AS$1)","v":"Railroading"},{"$f":"INDEX(program_table,AT$1)","v":"Rock Climbing & Rappelling"},{"$f":"INDEX(program_table,AU$1)","v":"Shotgun Shooting/Reloading - 12 Gauge"},{"$f":"INDEX(program_table,AV$1)","v":"Spar Pole Climbing"},{"$f":"INDEX(program_table,AW$1)","v":"Tie Making & Crosscut Saws"},{"$f":"INDEX(program_table,AX$1)","v":"Tomahawk Throwing"},{"$f":"INDEX(program_table,AY$1)","v":"Trail Peak"},{"$f":"INDEX(program_table,AZ$1)","v":"Western Lore/Branding"}]
[{"$f":"Itineraries!A3","v":"1A-N"},{"$f":"SUM(C3:AZ3)","v":7399},{"$f":"getScoreFactor(C$2,itineraryCamps!C4)","v":"Challenging"},{"$f":"getScoreFactor(D$2,\"Miles\") *itineraryCamps!D4","v":3800},{"$f":"getScoreFactor(E$2,Itineraries!B3)","v":50},{"$f":"getScoreFactor(F$2,Itineraries!C3)","v":70},{"$f":"getScoreFactor(G$2,Itineraries!E3)","v":250},{"$f":"getScoreFactor(H$2,Itineraries!I3)","v":200},{"$f":"getScoreFactor(I$2,Itineraries!G3)","v":80},{"$f":"getScoreFactor(J$2,Itineraries!K3)","v":0},{"$f":"getScoreFactor(K$2,Itineraries!L3)","v":0},{"$f":"getScoreFactor(L$2,Itineraries!M3)","v":0},null,null,{"$f":"IF(INDEX(baldyMountainHike,ROW()-2)=\"\",\"\",getPeakScore(O$2))","v":840},{"$f":"IF(INDEX(mountPhillipsHike,ROW()-2)=\"\",\"\",getPeakScore(P$2))","v":""},{"$f":"IF(INDEX(toothOfTimeHike,ROW()-2)=\"\",\"\",getPeakScore(Q$2))","v":""},{"$f":"IF(INDEX(trailPeakHike,ROW()-2)=\"\",\"\",getPeakScore(R$2))","v":""},{"$f":"IF(INDEX(mountaineeringHike,ROW()-2)=\"\",\"\",getPeakScore(S$2))","v":""},{"$f":"IF(areaImportant<>\"y\",\"\",IF(Itineraries!Q3<>\"Y\",\"\",getareascore(T$2)))","v":""},{"$f":"IF(areaImportant<>\"y\",\"\",IF(Itineraries!R3<>\"Y\",\"\",getareascore(U$2)))","v":""},{"$f":"IF(areaImportant<>\"y\",\"\",IF(Itineraries!S3<>\"Y\",\"\",getareascore(V$2)))","v":""},{"$f":"IF(areaImportant<>\"y\",\"\",IF(Itineraries!T3<>\"Y\",\"\",getareascore(W$2)))","v":""},{"$f":"IF('Itinerary Programs'!B3=\"y\",getScoreFactor(\"Program\",X$2),\"\")","v":""},{"$f":"IF('Itinerary Programs'!C3=\"y\",getScoreFactor(\"Program\",Y$2),\"\")","v":420},{"$f":"IF('Itinerary Programs'!D3=\"y\",getScoreFactor(\"Program\",Z$2),\"\")","v":159},{"$f":"IF('Itinerary Programs'!E3=\"y\",getScoreFactor(\"Program\",AA$2),\"\")","v":343.5},{"$f":"IF('Itinerary Programs'!F3=\"y\",getScoreFactor(\"Program\",AB$2),\"\")","v":214.5},{"$f":"IF('Itinerary Programs'!G3=\"y\",getScoreFactor(\"Program\",AC$2),\"\")","v":211.5},{"$f":"IF('Itinerary Programs'!H3=\"y\",getScoreFactor(\"Program\",AD$2),\"\")","v":""},{"$f":"IF('Itinerary Programs'!I3=\"y\",getScoreFactor(\"Program\",AE$2),\"\")","v":""},{"$f":"IF('Itinerary Programs'!J3=\"y\",getScoreFactor(\"Program\",AF$2),\"\")","v":""},{"$f":"IF('Itinerary Programs'!K3=\"y\",getScoreFactor(\"Program\",AG$2),\"\")","v":""},{"$f":"IF('Itinerary Programs'!L3=\"y\",getScoreFactor(\"Program\",AH$2),\"\")","v":126},{"$f":"IF('Itinerary Programs'!M3=\"y\",getScoreFactor(\"Program\",AI$2),\"\")","v":159},{"$f":"IF('Itinerary Programs'!N3=\"y\",getScoreFactor(\"Program\",AJ$2),\"\")","v":""},{"$f":"IF('Itinerary Programs'!O3=\"y\",getScoreFactor(\"Program\",AK$2),\"\")","v":""},{"$f":"IF('Itinerary Programs'!P3=\"y\",getScoreFactor(\"Program\",AL$2),\"\")","v":""},{"$f":"IF('Itinerary Programs'!Q3=\"y\",getScoreFactor(\"Program\",AM$2),\"\")","v":""},{"$f":"IF('Itinerary Programs'!R3=\"y\",getScoreFactor(\"Program\",AN$2),\"\")","v":""},{"$f":"IF('Itinerary Programs'!S3=\"y\",getScoreFactor(\"Program\",AO$2),\"\")","v":""},{"$f":"IF('Itinerary Programs'!T3=\"y\",getScoreFactor(\"Program\",AP$2),\"\")","v":""},{"$f":"IF('Itinerary Programs'!U3=\"y\",getScoreFactor(\"Program\",AQ$2),\"\")","v":""},{"$f":"IF('Itinerary Programs'!V3=\"y\",getScoreFactor(\"Program\",AR$2),\"\")","v":""},{"$f":"IF('Itinerary Programs'!W3=\"y\",getScoreFactor(\"Program\",AS$2),\"\")","v":""},{"$f":"IF('Itinerary Programs'!X3=\"y\",getScoreFactor(\"Program\",AT$2),\"\")","v":""},{"$f":"IF('Itinerary Programs'!Y3=\"y\",getScoreFactor(\"Program\",AU$2),\"\")","v":""},{"$f":"IF('Itinerary Programs'!Z3=\"y\",getScoreFactor(\"Program\",AV$2),\"\")","v":154.5},{"$f":"IF('Itinerary Programs'!AA3=\"y\",getScoreFactor(\"Program\",AW$2),\"\")","v":159},{"$f":"IF('Itinerary Programs'!AB3=\"y\",getScoreFactor(\"Program\",AX$2),\"\")","v":""},{"$f":"IF('Itinerary Programs'!AC3=\"y\",getScoreFactor(\"Program\",AY$2),\"\")","v":""},{"$f":"IF('Itinerary Programs'!AD3=\"y\",getScoreFactor(\"Program\",AZ$2),\"\")","v":162}]
[{"$f":"Itineraries!A4","v":"1B-N"},7873,{"$f":"getScoreFactor(C$2,itineraryCamps!C5)","v":"Challenging"},{"$f":"getScoreFactor(D$2,\"Miles\") *itineraryCamps!D5","v":4400},{"$f":"getScoreFactor(E$2,Itineraries!B4)","v":40},{"$f":"getScoreFactor(F$2,Itineraries!C4)","v":80},{"$f":"getScoreFactor(G$2,Itineraries!E4)","v":250},{"$f":"getScoreFactor(H$2,Itineraries!I4)","v":200},{"$f":"getScoreFactor(I$2,Itineraries!G4)","v":80},{"$f":"getScoreFactor(J$2,Itineraries!K4)","v":0},{"$f":"getScoreFactor(K$2,Itineraries!L4)","v":0},{"$f":"getScoreFactor(L$2,Itineraries!M4)","v":0},null,null,{"$f":"IF(INDEX(baldyMountainHike,ROW()-2)=\"\",\"\",getPeakScore(O$2))","v":840},{"$f":"IF(INDEX(mountPhillipsHike,ROW()-2)=\"\",\"\",getPeakScore(P$2))","v":""},{"$f":"IF(INDEX(toothOfTimeHike,ROW()-2)=\"\",\"\",getPeakScore(Q$2))","v":""},{"$f":"IF(INDEX(trailPeakHike,ROW()-2)=\"\",\"\",getPeakScore(R$2))","v":""},{"$f":"IF(INDEX(mountaineeringHike,ROW()-2)=\"\",\"\",getPeakScore(S$2))","v":""},{"$f":"IF(areaImportant<>\"y\",\"\",IF(Itineraries!Q4<>\"Y\",\"\",getareascore(T$2)))","v":""},{"$f":"IF(areaImportant<>\"y\",\"\",IF(Itineraries!R4<>\"Y\",\"\",getareascore(U$2)))","v":""},{"$f":"IF(areaImportant<>\"y\",\"\",IF(Itineraries!S4<>\"Y\",\"\",getareascore(V$2)))","v":""},{"$f":"IF(areaImportant<>\"y\",\"\",IF(Itineraries!T4<>\"Y\",\"\",getareascore(W$2)))","v":""},{"$f":"IF('Itinerary Programs'!B4=\"y\",getScoreFactor(\"Program\",X$2),\"\")","v":""},{"$f":"IF('Itinerary Programs'!C4=\"y\",getScoreFactor(\"Program\",Y$2),\"\")","v":420},{"$f":"IF('Itinerary Programs'!D4=\"y\",getScoreFactor(\"Program\",Z$2),\"\")","v":159},{"$f":"IF('Itinerary Programs'!E4=\"y\",getScoreFactor(\"Program\",AA$2),\"\")","v":343.5},{"$f":"IF('Itinerary Programs'!F4=\"y\",getScoreFactor(\"Program\",AB$2),\"\")","v":214.5},{"$f":"IF('Itinerary Programs'!G4=\"y\",getScoreFactor(\"Program\",AC$2),\"\")","v":211.5},{"$f":"IF('Itinerary Programs'!H4=\"y\",getScoreFactor(\"Program\",AD$2),\"\")","v":""},{"$f":"IF('Itinerary Programs'!I4=\"y\",getScoreFactor(\"Program\",AE$2),\"\")","v":""},{"$f":"IF('Itinerary Programs'!J4=\"y\",getScoreFactor(\"Program\",AF$2),\"\")","v":""},{"$f":"IF('Itinerary Programs'!K4=\"y\",getScoreFactor(\"Program\",AG$2),\"\")","v":""},{"$f":"IF('Itinerary Programs'!L4=\"y\",getScoreFactor(\"Program\",AH$2),\"\")","v":""},{"$f":"IF('Itinerary Programs'!M4=\"y\",getScoreFactor(\"Program\",AI$2),\"\")","v":159},{"$f":"IF('Itinerary Programs'!N4=\"y\",getScoreFactor(\"Program\",AJ$2),\"\")","v":""},{"$f":"IF('Itinerary Programs'!O4=\"y\",getScoreFactor(\"Program\",AK$2),\"\")","v":""},{"$f":"IF('Itinerary Programs'!P4=\"y\",getScoreFactor(\"Program\",AL$2),\"\")","v":""},{"$f":"IF('Itinerary Programs'!Q4=\"y\",getScoreFactor(\"Program\",AM$2),\"\")","v":""},{"$f":"IF('Itinerary Programs'!R4=\"y\",getScoreFactor(\"Program\",AN$2),\"\")","v":""},{"$f":"IF('Itinerary Programs'!S4=\"y\",getScoreFactor(\"Program\",AO$2),\"\")","v":""},{"$f":"IF('Itinerary Programs'!T4=\"y\",getScoreFactor(\"Program\",AP$2),\"\")","v":""},{"$f":"IF('Itinerary Programs'!U4=\"y\",getScoreFactor(\"Program\",AQ$2),\"\")","v":""},{"$f":"IF('Itinerary Programs'!V4=\"y\",getScoreFactor(\"Program\",AR$2),\"\")","v":""},{"$f":"IF('Itinerary Programs'!W4=\"y\",getScoreFactor(\"Program\",AS$2),\"\")","v":""},{"$f":"IF('Itinerary Programs'!X4=\"y\",getScoreFactor(\"Program\",AT$2),\"\")","v":""},{"$f":"IF('Itinerary Programs'!Y4=\"y\",getScoreFactor(\"Program\",AU$2),\"\")","v":""},{"$f":"IF('Itinerary Programs'!Z4=\"y\",getScoreFactor(\"Program\",AV$2),\"\")","v":154.5},{"$f":"IF('Itinerary Programs'!AA4=\"y\",getScoreFactor(\"Program\",AW$2),\"\")","v":159},{"$f":"IF('Itinerary Programs'!AB4=\"y\",getScoreFactor(\"Program\",AX$2),\"\")","v":""},{"$f":"IF('Itinerary Programs'!AC4=\"y\",getScoreFactor(\"Program\",AY$2),\"\")","v":""},{"$f":"IF('Itinerary Programs'!AD4=\"y\",getScoreFactor(\"Program\",AZ$2),\"\")","v":162}]
[{"$f":"Itineraries!A5","v":"2A-N"},7592,{"$f":"getScoreFactor(C$2,itineraryCamps!C6)","v":"Challenging"},{"$f":"getScoreFactor(D$2,\"Miles\") *itineraryCamps!D6","v":3600},{"$f":"getScoreFactor(E$2,Itineraries!B5)","v":40},{"$f":"getScoreFactor(F$2,Itineraries!C5)","v":80},{"$f":"getScoreFactor(G$2,Itineraries!E5)","v":250},{"$f":"getScoreFactor(H$2,Itineraries!I5)","v":200},{"$f":"getScoreFactor(I$2,Itineraries!G5)","v":80},{"$f":"getScoreFactor(J$2,Itineraries!K5)","v":0},{"$f":"getScoreFactor(K$2,Itineraries!L5)","v":0},{"$f":"getScoreFactor(L$2,Itineraries!M5)","v":0},null,null,{"$f":"IF(INDEX(baldyMountainHike,ROW()-2)=\"\",\"\",getPeakScore(O$2))","v":840},{"$f":"IF(INDEX(mountPhillipsHike,ROW()-2)=\"\",\"\",getPeakScore(P$2))","v":""},{"$f":"IF(INDEX(toothOfTimeHike,ROW()-2)=\"\",\"\",getPeakScore(Q$2))","v":""},{"$f":"IF(INDEX(trailPeakHike,ROW()-2)=\"\",\"\",getPeakScore(R$2))","v":""},{"$f":"IF(INDEX(mountaineeringHike,ROW()-2)=\"\",\"\",getPeakScore(S$2))","v":""},{"$f":"IF(areaImportant<>\"y\",\"\",IF(Itineraries!Q5<>\"Y\",\"\",getareascore(T$2)))","v":""},{"$f":"IF(areaImportant<>\"y\",\"\",IF(Itineraries!R5<>\"Y\",\"\",getareascore(U$2)))","v":""},{"$f":"IF(areaImportant<>\"y\",\"\",IF(Itineraries!S5<>\"Y\",\"\",getareascore(V$2)))","v":""},{"$f":"IF(areaImportant<>\"y\",\"\",IF(Itineraries!T5<>\"Y\",\"\",getareascore(W$2)))","v":""},{"$f":"IF('Itinerary Programs'!B5=\"y\",getScoreFactor(\"Program\",X$2),\"\")","v":""},{"$f":"IF('Itinerary Programs'!C5=\"y\",getScoreFactor(\"Program\",Y$2),\"\")","v":420},{"$f":"IF('Itinerary Programs'!D5=\"y\",getScoreFactor(\"Program\",Z$2),\"\")","v":159},{"$f":"IF('Itinerary Programs'!E5=\"y\",getScoreFactor(\"Program\",AA$2),\"\")","v":343.5},{"$f":"IF('Itinerary Programs'!F5=\"y\",getScoreFactor(\"Program\",AB$2),\"\")","v":214.5},{"$f":"IF('Itinerary Programs'!G5=\"y\",getScoreFactor(\"Program\",AC$2),\"\")","v":211.5},{"$f":"IF('Itinerary Programs'!H5=\"y\",getScoreFactor(\"Program\",AD$2),\"\")","v":""},{"$f":"IF('Itinerary Programs'!I5=\"y\",getScoreFactor(\"Program\",AE$2),\"\")","v":""},{"$f":"IF('Itinerary Programs'!J5=\"y\",getScoreFactor(\"Program\",AF$2),\"\")","v":""},{"$f":"IF('Itinerary Programs'!K5=\"y\",getScoreFactor(\"Program\",AG$2),\"\")","v":""},{"$f":"IF('Itinerary Programs'!L5=\"y\",getScoreFactor(\"Program\",AH$2),\"\")","v":126},{"$f":"IF('Itinerary Programs'!M5=\"y\",getScoreFactor(\"Program\",AI$2),\"\")","v":159},{"$f":"IF('Itinerary Programs'!N5=\"y\",getScoreFactor(\"Program\",AJ$2),\"\")","v":""},{"$f":"IF('Itinerary Programs'!O5=\"y\",getScoreFactor(\"Program\",AK$2),\"\")","v":""},{"$f":"IF('Itinerary Programs'!P5=\"y\",getScoreFactor(\"Program\",AL$2),\"\")","v":""},{"$f":"IF('Itinerary Programs'!Q5=\"y\",getScoreFactor(\"Program\",AM$2),\"\")","v":""},{"$f":"IF('Itinerary Programs'!R5=\"y\",getScoreFactor(\"Program\",AN$2),\"\")","v":""},{"$f":"IF('Itinerary Programs'!S5=\"y\",getScoreFactor(\"Program\",AO$2),\"\")","v":196.5},{"$f":"IF('Itinerary Programs'!T5=\"y\",getScoreFactor(\"Program\",AP$2),\"\")","v":""},{"$f":"IF('Itinerary Programs'!U5=\"y\",getScoreFactor(\"Program\",AQ$2),\"\")","v":""},{"$f":"IF('Itinerary Programs'!V5=\"y\",getScoreFactor(\"Program\",AR$2),\"\")","v":""},{"$f":"IF('Itinerary Programs'!W5=\"y\",getScoreFactor(\"Program\",AS$2),\"\")","v":""},{"$f":"IF('Itinerary Programs'!X5=\"y\",getScoreFactor(\"Program\",AT$2),\"\")","v":""},{"$f":"IF('Itinerary Programs'!Y5=\"y\",getScoreFactor(\"Program\",AU$2),\"\")","v":""},{"$f":"IF('Itinerary Programs'!Z5=\"y\",getScoreFactor(\"Program\",AV$2),\"\")","v":154.5},{"$f":"IF('Itinerary Programs'!AA5=\"y\",getScoreFactor(\"Program\",AW$2),\"\")","v":159},{"$f":"IF('Itinerary Programs'!AB5=\"y\",getScoreFactor(\"Program\",AX$2),\"\")","v":196.5},{"$f":"IF('Itinerary Programs'!AC5=\"y\",getScoreFactor(\"Program\",AY$2),\"\")","v":""},{"$f":"IF('Itinerary Programs'!AD5=\"y\",getScoreFactor(\"Program\",AZ$2),\"\")","v":162}]
[{"$f":"Itineraries!A6","v":"2B-N"},7592,{"$f":"getScoreFactor(C$2,itineraryCamps!C7)","v":"Challenging"},{"$f":"getScoreFactor(D$2,\"Miles\") *itineraryCamps!D7","v":3600},{"$f":"getScoreFactor(E$2,Itineraries!B6)","v":50},{"$f":"getScoreFactor(F$2,Itineraries!C6)","v":70},{"$f":"getScoreFactor(G$2,Itineraries!E6)","v":250},{"$f":"getScoreFactor(H$2,Itineraries!I6)","v":200},{"$f":"getScoreFactor(I$2,Itineraries!G6)","v":80},{"$f":"getScoreFactor(J$2,Itineraries!K6)","v":0},{"$f":"getScoreFactor(K$2,Itineraries!L6)","v":0},{"$f":"getScoreFactor(L$2,Itineraries!M6)","v":0},null,null,{"$f":"IF(INDEX(baldyMountainHike,ROW()-2)=\"\",\"\",getPeakScore(O$2))","v":840},{"$f":"IF(INDEX(mountPhillipsHike,ROW()-2)=\"\",\"\",getPeakScore(P$2))","v":""},{"$f":"IF(INDEX(toothOfTimeHike,ROW()-2)=\"\",\"\",getPeakScore(Q$2))","v":""},{"$f":"IF(INDEX(trailPeakHike,ROW()-2)=\"\",\"\",getPeakScore(R$2))","v":""},{"$f":"IF(INDEX(mountaineeringHike,ROW()-2)=\"\",\"\",getPeakScore(S$2))","v":""},{"$f":"IF(areaImportant<>\"y\",\"\",IF(Itineraries!Q6<>\"Y\",\"\",getareascore(T$2)))","v":""},{"$f":"IF(areaImportant<>\"y\",\"\",IF(Itineraries!R6<>\"Y\",\"\",getareascore(U$2)))","v":""},{"$f":"IF(areaImportant<>\"y\",\"\",IF(Itineraries!S6<>\"Y\",\"\",getareascore(V$2)))","v":""},{"$f":"IF(areaImportant<>\"y\",\"\",IF(Itineraries!T6<>\"Y\",\"\",getareascore(W$2)))","v":""},{"$f":"IF('Itinerary Programs'!B6=\"y\",getScoreFactor(\"Program\",X$2),\"\")","v":""},{"$f":"IF('Itinerary Programs'!C6=\"y\",getScoreFactor(\"Program\",Y$2),\"\")","v":420},{"$f":"IF('Itinerary Programs'!D6=\"y\",getScoreFactor(\"Program\",Z$2),\"\")","v":159},{"$f":"IF('Itinerary Programs'!E6=\"y\",getScoreFactor(\"Program\",AA$2),\"\")","v":343.5},{"$f":"IF('Itinerary Programs'!F6=\"y\",getScoreFactor(\"Program\",AB$2),\"\")","v":214.5},{"$f":"IF('Itinerary Programs'!G6=\"y\",getScoreFactor(\"Program\",AC$2),\"\")","v":211.5},{"$f":"IF('Itinerary Programs'!H6=\"y\",getScoreFactor(\"Program\",AD$2),\"\")","v":""},{"$f":"IF('Itinerary Programs'!I6=\"y\",getScoreFactor(\"Program\",AE$2),\"\")","v":""},{"$f":"IF('Itinerary Programs'!J6=\"y\",getScoreFactor(\"Program\",AF$2),\"\")","v":""},{"$f":"IF('Itinerary Programs'!K6=\"y\",getScoreFactor(\"Program\",AG$2),\"\")","v":""},{"$f":"IF('Itinerary Programs'!L6=\"y\",getScoreFactor(\"Program\",AH$2),\"\")","v":126},{"$f":"IF('Itinerary Programs'!M6=\"y\",getScoreFactor(\"Program\",AI$2),\"\")","v":159},{"$f":"IF('Itinerary Programs'!N6=\"y\",getScoreFactor(\"Program\",AJ$2),\"\")","v":""},{"$f":"IF('Itinerary Programs'!O6=\"y\",getScoreFactor(\"Program\",AK$2),\"\")","v":""},{"$f":"IF('Itinerary Programs'!P6=\"y\",getScoreFactor(\"Program\",AL$2),\"\")","v":""},{"$f":"IF('Itinerary Programs'!Q6=\"y\",getScoreFactor(\"Program\",AM$2),\"\")","v":""},{"$f":"IF('Itinerary Programs'!R6=\"y\",getScoreFactor(\"Program\",AN$2),\"\")","v":""},{"$f":"IF('Itinerary Programs'!S6=\"y\",getScoreFactor(\"Program\",AO$2),\"\")","v":196.5},{"$f":"IF('Itinerary Programs'!T6=\"y\",getScoreFactor(\"Program\",AP$2),\"\")","v":""},{"$f":"IF('Itinerary Programs'!U6=\"y\",getScoreFactor(\"Program\",AQ$2),\"\")","v":""},{"$f":"IF('Itinerary Programs'!V6=\"y\",getScoreFactor(\"Program\",AR$2),\"\")","v":""},{"$f":"IF('Itinerary Programs'!W6=\"y\",getScoreFactor(\"Program\",AS$2),\"\")","v":""},{"$f":"IF('Itinerary Programs'!X6=\"y\",getScoreFactor(\"Program\",AT$2),\"\")","v":""},{"$f":"IF('Itinerary Programs'!Y6=\"y\",getScoreFactor(\"Program\",AU$2),\"\")","v":""},{"$f":"IF('Itinerary Programs'!Z6=\"y\",getScoreFactor(\"Program\",AV$2),\"\")","v":154.5},{"$f":"IF('Itinerary Programs'!AA6=\"y\",getScoreFactor(\"Program\",AW$2),\"\")","v":159},{"$f":"IF('Itinerary Programs'!AB6=\"y\",getScoreFactor(\"Program\",AX$2),\"\")","v":196.5},{"$f":"IF('Itinerary Programs'!AC6=\"y\",getScoreFactor(\"Program\",AY$2),\"\")","v":""},{"$f":"IF('Itinerary Programs'!AD6=\"y\",getScoreFactor(\"Program\",AZ$2),\"\")","v":162}]
[{"$f":"Itineraries!A7","v":"3A-N"},8117,{"$f":"getScoreFactor(C$2,itineraryCamps!C8)","v":"Challenging"},{"$f":"getScoreFactor(D$2,\"Miles\") *itineraryCamps!D8","v":4100},{"$f":"getScoreFactor(E$2,Itineraries!B7)","v":40},{"$f":"getScoreFactor(F$2,Itineraries!C7)","v":80},{"$f":"getScoreFactor(G$2,Itineraries!E7)","v":250},{"$f":"getScoreFactor(H$2,Itineraries!I7)","v":225},{"$f":"getScoreFactor(I$2,Itineraries!G7)","v":80},{"$f":"getScoreFactor(J$2,Itineraries!K7)","v":0},{"$f":"getScoreFactor(K$2,Itineraries!L7)","v":0},{"$f":"getScoreFactor(L$2,Itineraries!M7)","v":0},null,null,{"$f":"IF(INDEX(baldyMountainHike,ROW()-2)=\"\",\"\",getPeakScore(O$2))","v":840},{"$f":"IF(INDEX(mountPhillipsHike,ROW()-2)=\"\",\"\",getPeakScore(P$2))","v":""},{"$f":"IF(INDEX(toothOfTimeHike,ROW()-2)=\"\",\"\",getPeakScore(Q$2))","v":""},{"$f":"IF(INDEX(trailPeakHike,ROW()-2)=\"\",\"\",getPeakScore(R$2))","v":""},{"$f":"IF(INDEX(mountaineeringHike,ROW()-2)=\"\",\"\",getPeakScore(S$2))","v":""},{"$f":"IF(areaImportant<>\"y\",\"\",IF(Itineraries!Q7<>\"Y\",\"\",getareascore(T$2)))","v":""},{"$f":"IF(areaImportant<>\"y\",\"\",IF(Itineraries!R7<>\"Y\",\"\",getareascore(U$2)))","v":""},{"$f":"IF(areaImportant<>\"y\",\"\",IF(Itineraries!S7<>\"Y\",\"\",getareascore(V$2)))","v":""},{"$f":"IF(areaImportant<>\"y\",\"\",IF(Itineraries!T7<>\"Y\",\"\",getareascore(W$2)))","v":""},{"$f":"IF('Itinerary Programs'!B7=\"y\",getScoreFactor(\"Program\",X$2),\"\")","v":""},{"$f":"IF('Itinerary Programs'!C7=\"y\",getScoreFactor(\"Program\",Y$2),\"\")","v":420},{"$f":"IF('Itinerary Programs'!D7=\"y\",getScoreFactor(\"Program\",Z$2),\"\")","v":159},{"$f":"IF('Itinerary Programs'!E7=\"y\",getScoreFactor(\"Program\",AA$2),\"\")","v":343.5},{"$f":"IF('Itinerary Programs'!F7=\"y\",getScoreFactor(\"Program\",AB$2),\"\")","v":214.5},{"$f":"IF('Itinerary Programs'!G7=\"y\",getScoreFactor(\"Program\",AC$2),\"\")","v":211.5},{"$f":"IF('Itinerary Programs'!H7=\"y\",getScoreFactor(\"Program\",AD$2),\"\")","v":""},{"$f":"IF('Itinerary Programs'!I7=\"y\",getScoreFactor(\"Program\",AE$2),\"\")","v":""},{"$f":"IF('Itinerary Programs'!J7=\"y\",getScoreFactor(\"Program\",AF$2),\"\")","v":""},{"$f":"IF('Itinerary Programs'!K7=\"y\",getScoreFactor(\"Program\",AG$2),\"\")","v":""},{"$f":"IF('Itinerary Programs'!L7=\"y\",getScoreFactor(\"Program\",AH$2),\"\")","v":126},{"$f":"IF('Itinerary Programs'!M7=\"y\",getScoreFactor(\"Program\",AI$2),\"\")","v":159},{"$f":"IF('Itinerary Programs'!N7=\"y\",getScoreFactor(\"Program\",AJ$2),\"\")","v":""},{"$f":"IF('Itinerary Programs'!O7=\"y\",getScoreFactor(\"Program\",AK$2),\"\")","v":""},{"$f":"IF('Itinerary Programs'!P7=\"y\",getScoreFactor(\"Program\",AL$2),\"\")","v":""},{"$f":"IF('Itinerary Programs'!Q7=\"y\",getScoreFactor(\"Program\",AM$2),\"\")","v":""},{"$f":"IF('Itinerary Programs'!R7=\"y\",getScoreFactor(\"Program\",AN$2),\"\")","v":""},{"$f":"IF('Itinerary Programs'!S7=\"y\",getScoreFactor(\"Program\",AO$2),\"\")","v":196.5},{"$f":"IF('Itinerary Programs'!T7=\"y\",getScoreFactor(\"Program\",AP$2),\"\")","v":""},{"$f":"IF('Itinerary Programs'!U7=\"y\",getScoreFactor(\"Program\",AQ$2),\"\")","v":""},{"$f":"IF('Itinerary Programs'!V7=\"y\",getScoreFactor(\"Program\",AR$2),\"\")","v":""},{"$f":"IF('Itinerary Programs'!W7=\"y\",getScoreFactor(\"Program\",AS$2),\"\")","v":""},{"$f":"IF('Itinerary Programs'!X7=\"y\",getScoreFactor(\"Program\",AT$2),\"\")","v":""},{"$f":"IF('Itinerary Programs'!Y7=\"y\",getScoreFactor(\"Program\",AU$2),\"\")","v":""},{"$f":"IF('Itinerary Programs'!Z7=\"y\",getScoreFactor(\"Program\",AV$2),\"\")","v":154.5},{"$f":"IF('Itinerary Programs'!AA7=\"y\",getScoreFactor(\"Program\",AW$2),\"\")","v":159},{"$f":"IF('Itinerary Programs'!AB7=\"y\",getScoreFactor(\"Program\",AX$2),\"\")","v":196.5},{"$f":"IF('Itinerary Programs'!AC7=\"y\",getScoreFactor(\"Program\",AY$2),\"\")","v":""},{"$f":"IF('Itinerary Programs'!AD7=\"y\",getScoreFactor(\"Program\",AZ$2),\"\")","v":162}]
[{"$f":"Itineraries!A8","v":"3B-N"},7758,{"$f":"getScoreFactor(C$2,itineraryCamps!C9)","v":"Challenging"},{"$f":"getScoreFactor(D$2,\"Miles\") *itineraryCamps!D9","v":3900},{"$f":"getScoreFactor(E$2,Itineraries!B8)","v":30},{"$f":"getScoreFactor(F$2,Itineraries!C8)","v":90},{"$f":"getScoreFactor(G$2,Itineraries!E8)","v":250},{"$f":"getScoreFactor(H$2,Itineraries!I8)","v":225},{"$f":"getScoreFactor(I$2,Itineraries!G8)","v":80},{"$f":"getScoreFactor(J$2,Itineraries!K8)","v":0},{"$f":"getScoreFactor(K$2,Itineraries!L8)","v":0},{"$f":"getScoreFactor(L$2,Itineraries!M8)","v":0},null,null,{"$f":"IF(INDEX(baldyMountainHike,ROW()-2)=\"\",\"\",getPeakScore(O$2))","v":840},{"$f":"IF(INDEX(mountPhillipsHike,ROW()-2)=\"\",\"\",getPeakScore(P$2))","v":""},{"$f":"IF(INDEX(toothOfTimeHike,ROW()-2)=\"\",\"\",getPeakScore(Q$2))","v":""},{"$f":"IF(INDEX(trailPeakHike,ROW()-2)=\"\",\"\",getPeakScore(R$2))","v":""},{"$f":"IF(INDEX(mountaineeringHike,ROW()-2)=\"\",\"\",getPeakScore(S$2))","v":""},{"$f":"IF(areaImportant<>\"y\",\"\",IF(Itineraries!Q8<>\"Y\",\"\",getareascore(T$2)))","v":""},{"$f":"IF(areaImportant<>\"y\",\"\",IF(Itineraries!R8<>\"Y\",\"\",getareascore(U$2)))","v":""},{"$f":"IF(areaImportant<>\"y\",\"\",IF(Itineraries!S8<>\"Y\",\"\",getareascore(V$2)))","v":""},{"$f":"IF(areaImportant<>\"y\",\"\",IF(Itineraries!T8<>\"Y\",\"\",getareascore(W$2)))","v":""},{"$f":"IF('Itinerary Programs'!B8=\"y\",getScoreFactor(\"Program\",X$2),\"\")","v":""},{"$f":"IF('Itinerary Programs'!C8=\"y\",getScoreFactor(\"Program\",Y$2),\"\")","v":420},{"$f":"IF('Itinerary Programs'!D8=\"y\",getScoreFactor(\"Program\",Z$2),\"\")","v":159},{"$f":"IF('Itinerary Programs'!E8=\"y\",getScoreFactor(\"Program\",AA$2),\"\")","v":343.5},{"$f":"IF('Itinerary Programs'!F8=\"y\",getScoreFactor(\"Program\",AB$2),\"\")","v":214.5},{"$f":"IF('Itinerary Programs'!G8=\"y\",getScoreFactor(\"Program\",AC$2),\"\")","v":211.5},{"$f":"IF('Itinerary Programs'!H8=\"y\",getScoreFactor(\"Program\",AD$2),\"\")","v":""},{"$f":"IF('Itinerary Programs'!I8=\"y\",getScoreFactor(\"Program\",AE$2),\"\")","v":""},{"$f":"IF('Itinerary Programs'!J8=\"y\",getScoreFactor(\"Program\",AF$2),\"\")","v":""},{"$f":"IF('Itinerary Programs'!K8=\"y\",getScoreFactor(\"Program\",AG$2),\"\")","v":""},{"$f":"IF('Itinerary Programs'!L8=\"y\",getScoreFactor(\"Program\",AH$2),\"\")","v":126},{"$f":"IF('Itinerary Programs'!M8=\"y\",getScoreFactor(\"Program\",AI$2),\"\")","v":159},{"$f":"IF('Itinerary Programs'!N8=\"y\",getScoreFactor(\"Program\",AJ$2),\"\")","v":""},{"$f":"IF('Itinerary Programs'!O8=\"y\",getScoreFactor(\"Program\",AK$2),\"\")","v":""},{"$f":"IF('Itinerary Programs'!P8=\"y\",getScoreFactor(\"Program\",AL$2),\"\")","v":""},{"$f":"IF('Itinerary Programs'!Q8=\"y\",getScoreFactor(\"Program\",AM$2),\"\")","v":""},{"$f":"IF('Itinerary Programs'!R8=\"y\",getScoreFactor(\"Program\",AN$2),\"\")","v":""},{"$f":"IF('Itinerary Programs'!S8=\"y\",getScoreFactor(\"Program\",AO$2),\"\")","v":196.5},{"$f":"IF('Itinerary Programs'!T8=\"y\",getScoreFactor(\"Program\",AP$2),\"\")","v":""},{"$f":"IF('Itinerary Programs'!U8=\"y\",getScoreFactor(\"Program\",AQ$2),\"\")","v":""},{"$f":"IF('Itinerary Programs'!V8=\"y\",getScoreFactor(\"Program\",AR$2),\"\")","v":""},{"$f":"IF('Itinerary Programs'!W8=\"y\",getScoreFactor(\"Program\",AS$2),\"\")","v":""},{"$f":"IF('Itinerary Programs'!X8=\"y\",getScoreFactor(\"Program\",AT$2),\"\")","v":""},{"$f":"IF('Itinerary Programs'!Y8=\"y\",getScoreFactor(\"Program\",AU$2),\"\")","v":""},{"$f":"IF('Itinerary Programs'!Z8=\"y\",getScoreFactor(\"Program\",AV$2),\"\")","v":154.5},{"$f":"IF('Itinerary Programs'!AA8=\"y\",getScoreFactor(\"Program\",AW$2),\"\")","v":""},{"$f":"IF('Itinerary Programs'!AB8=\"y\",getScoreFactor(\"Program\",AX$2),\"\")","v":196.5},{"$f":"IF('Itinerary Programs'!AC8=\"y\",getScoreFactor(\"Program\",AY$2),\"\")","v":""},{"$f":"IF('Itinerary Programs'!AD8=\"y\",getScoreFactor(\"Program\",AZ$2),\"\")","v":162}]
[{"$f":"Itineraries!A9","v":"4A-N"},7571,{"$f":"getScoreFactor(C$2,itineraryCamps!C10)","v":"Challenging"},{"$f":"getScoreFactor(D$2,\"Miles\") *itineraryCamps!D10","v":4900},{"$f":"getScoreFactor(E$2,Itineraries!B9)","v":60},{"$f":"getScoreFactor(F$2,Itineraries!C9)","v":60},{"$f":"getScoreFactor(G$2,Itineraries!E9)","v":250},{"$f":"getScoreFactor(H$2,Itineraries!I9)","v":250},{"$f":"getScoreFactor(I$2,Itineraries!G9)","v":80},{"$f":"getScoreFactor(J$2,Itineraries!K9)","v":0},{"$f":"getScoreFactor(K$2,Itineraries!L9)","v":0},{"$f":"getScoreFactor(L$2,Itineraries!M9)","v":0},null,null,{"$f":"IF(INDEX(baldyMountainHike,ROW()-2)=\"\",\"\",getPeakScore(O$2))","v":""},{"$f":"IF(INDEX(mountPhillipsHike,ROW()-2)=\"\",\"\",getPeakScore(P$2))","v":""},{"$f":"IF(INDEX(toothOfTimeHike,ROW()-2)=\"\",\"\",getPeakScore(Q$2))","v":""},{"$f":"IF(INDEX(trailPeakHike,ROW()-2)=\"\",\"\",getPeakScore(R$2))","v":""},{"$f":"IF(INDEX(mountaineeringHike,ROW()-2)=\"\",\"\",getPeakScore(S$2))","v":""},{"$f":"IF(areaImportant<>\"y\",\"\",IF(Itineraries!Q9<>\"Y\",\"\",getareascore(T$2)))","v":""},{"$f":"IF(areaImportant<>\"y\",\"\",IF(Itineraries!R9<>\"Y\",\"\",getareascore(U$2)))","v":""},{"$f":"IF(areaImportant<>\"y\",\"\",IF(Itineraries!S9<>\"Y\",\"\",getareascore(V$2)))","v":""},{"$f":"IF(areaImportant<>\"y\",\"\",IF(Itineraries!T9<>\"Y\",\"\",getareascore(W$2)))","v":""},{"$f":"IF('Itinerary Programs'!B9=\"y\",getScoreFactor(\"Program\",X$2),\"\")","v":276},{"$f":"IF('Itinerary Programs'!C9=\"y\",getScoreFactor(\"Program\",Y$2),\"\")","v":""},{"$f":"IF('Itinerary Programs'!D9=\"y\",getScoreFactor(\"Program\",Z$2),\"\")","v":159},{"$f":"IF('Itinerary Programs'!E9=\"y\",getScoreFactor(\"Program\",AA$2),\"\")","v":343.5},{"$f":"IF('Itinerary Programs'!F9=\"y\",getScoreFactor(\"Program\",AB$2),\"\")","v":""},{"$f":"IF('Itinerary Programs'!G9=\"y\",getScoreFactor(\"Program\",AC$2),\"\")","v":211.5},{"$f":"IF('Itinerary Programs'!H9=\"y\",getScoreFactor(\"Program\",AD$2),\"\")","v":""},{"$f":"IF('Itinerary Programs'!I9=\"y\",getScoreFactor(\"Program\",AE$2),\"\")","v":""},{"$f":"IF('Itinerary Programs'!J9=\"y\",getScoreFactor(\"Program\",AF$2),\"\")","v":""},{"$f":"IF('Itinerary Programs'!K9=\"y\",getScoreFactor(\"Program\",AG$2),\"\")","v":""},{"$f":"IF('Itinerary Programs'!L9=\"y\",getScoreFactor(\"Program\",AH$2),\"\")","v":""},{"$f":"IF('Itinerary Programs'!M9=\"y\",getScoreFactor(\"Program\",AI$2),\"\")","v":""},{"$f":"IF('Itinerary Programs'!N9=\"y\",getScoreFactor(\"Program\",AJ$2),\"\")","v":""},{"$f":"IF('Itinerary Programs'!O9=\"y\",getScoreFactor(\"Program\",AK$2),\"\")","v":154.5},{"$f":"IF('Itinerary Programs'!P9=\"y\",getScoreFactor(\"Program\",AL$2),\"\")","v":""},{"$f":"IF('Itinerary Programs'!Q9=\"y\",getScoreFactor(\"Program\",AM$2),\"\")","v":""},{"$f":"IF('Itinerary Programs'!R9=\"y\",getScoreFactor(\"Program\",AN$2),\"\")","v":""},{"$f":"IF('Itinerary Programs'!S9=\"y\",getScoreFactor(\"Program\",AO$2),\"\")","v":""},{"$f":"IF('Itinerary Programs'!T9=\"y\",getScoreFactor(\"Program\",AP$2),\"\")","v":""},{"$f":"IF('Itinerary Programs'!U9=\"y\",getScoreFactor(\"Program\",AQ$2),\"\")","v":81},{"$f":"IF('Itinerary Programs'!V9=\"y\",getScoreFactor(\"Program\",AR$2),\"\")","v":""},{"$f":"IF('Itinerary Programs'!W9=\"y\",getScoreFactor(\"Program\",AS$2),\"\")","v":270},{"$f":"IF('Itinerary Programs'!X9=\"y\",getScoreFactor(\"Program\",AT$2),\"\")","v":""},{"$f":"IF('Itinerary Programs'!Y9=\"y\",getScoreFactor(\"Program\",AU$2),\"\")","v":""},{"$f":"IF('Itinerary Programs'!Z9=\"y\",getScoreFactor(\"Program\",AV$2),\"\")","v":154.5},{"$f":"IF('Itinerary Programs'!AA9=\"y\",getScoreFactor(\"Program\",AW$2),\"\")","v":159},{"$f":"IF('Itinerary Programs'!AB9=\"y\",getScoreFactor(\"Program\",AX$2),\"\")","v":""},{"$f":"IF('Itinerary Programs'!AC9=\"y\",getScoreFactor(\"Program\",AY$2),\"\")","v":""},{"$f":"IF('Itinerary Programs'!AD9=\"y\",getScoreFactor(\"Program\",AZ$2),\"\")","v":162}]
[{"$f":"Itineraries!A10","v":"1A-S"},7082.5,{"$f":"getScoreFactor(C$2,itineraryCamps!C11)","v":"Challenging"},{"$f":"getScoreFactor(D$2,\"Miles\") *itineraryCamps!D11","v":4300},{"$f":"getScoreFactor(E$2,Itineraries!B10)","v":20},{"$f":"getScoreFactor(F$2,Itineraries!C10)","v":90},{"$f":"getScoreFactor(G$2,Itineraries!E10)","v":200},{"$f":"getScoreFactor(H$2,Itineraries!I10)","v":150},{"$f":"getScoreFactor(I$2,Itineraries!G10)","v":80},{"$f":"getScoreFactor(J$2,Itineraries!K10)","v":0},{"$f":"getScoreFactor(K$2,Itineraries!L10)","v":0},{"$f":"getScoreFactor(L$2,Itineraries!M10)","v":0},null,null,{"$f":"IF(INDEX(baldyMountainHike,ROW()-2)=\"\",\"\",getPeakScore(O$2))","v":""},{"$f":"IF(INDEX(mountPhillipsHike,ROW()-2)=\"\",\"\",getPeakScore(P$2))","v":""},{"$f":"IF(INDEX(toothOfTimeHike,ROW()-2)=\"\",\"\",getPeakScore(Q$2))","v":""},{"$f":"IF(INDEX(trailPeakHike,ROW()-2)=\"\",\"\",getPeakScore(R$2))","v":""},{"$f":"IF(INDEX(mountaineeringHike,ROW()-2)=\"\",\"\",getPeakScore(S$2))","v":""},{"$f":"IF(areaImportant<>\"y\",\"\",IF(Itineraries!Q10<>\"Y\",\"\",getareascore(T$2)))","v":""},{"$f":"IF(areaImportant<>\"y\",\"\",IF(Itineraries!R10<>\"Y\",\"\",getareascore(U$2)))","v":""},{"$f":"IF(areaImportant<>\"y\",\"\",IF(Itineraries!S10<>\"Y\",\"\",getareascore(V$2)))","v":""},{"$f":"IF(areaImportant<>\"y\",\"\",IF(Itineraries!T10<>\"Y\",\"\",getareascore(W$2)))","v":""},{"$f":"IF('Itinerary Programs'!B10=\"y\",getScoreFactor(\"Program\",X$2),\"\")","v":""},{"$f":"IF('Itinerary Programs'!C10=\"y\",getScoreFactor(\"Program\",Y$2),\"\")","v":""},{"$f":"IF('Itinerary Programs'!D10=\"y\",getScoreFactor(\"Program\",Z$2),\"\")","v":""},{"$f":"IF('Itinerary Programs'!E10=\"y\",getScoreFactor(\"Program\",AA$2),\"\")","v":343.5},{"$f":"IF('Itinerary Programs'!F10=\"y\",getScoreFactor(\"Program\",AB$2),\"\")","v":214.5},{"$f":"IF('Itinerary Programs'!G10=\"y\",getScoreFactor(\"Program\",AC$2),\"\")","v":""},{"$f":"IF('Itinerary Programs'!H10=\"y\",getScoreFactor(\"Program\",AD$2),\"\")","v":211.5},{"$f":"IF('Itinerary Programs'!I10=\"y\",getScoreFactor(\"Program\",AE$2),\"\")","v":""},{"$f":"IF('Itinerary Programs'!J10=\"y\",getScoreFactor(\"Program\",AF$2),\"\")","v":124.5},{"$f":"IF('Itinerary Programs'!K10=\"y\",getScoreFactor(\"Program\",AG$2),\"\")","v":""},{"$f":"IF('Itinerary Programs'!L10=\"y\",getScoreFactor(\"Program\",AH$2),\"\")","v":""},{"$f":"IF('Itinerary Programs'!M10=\"y\",getScoreFactor(\"Program\",AI$2),\"\")","v":""},{"$f":"IF('Itinerary Programs'!N10=\"y\",getScoreFactor(\"Program\",AJ$2),\"\")","v":""},{"$f":"IF('Itinerary Programs'!O10=\"y\",getScoreFactor(\"Program\",AK$2),\"\")","v":154.5},{"$f":"IF('Itinerary Programs'!P10=\"y\",getScoreFactor(\"Program\",AL$2),\"\")","v":115.5},{"$f":"IF('Itinerary Programs'!Q10=\"y\",getScoreFactor(\"Program\",AM$2),\"\")","v":190.5},{"$f":"IF('Itinerary Programs'!R10=\"y\",getScoreFactor(\"Program\",AN$2),\"\")","v":""},{"$f":"IF('Itinerary Programs'!S10=\"y\",getScoreFactor(\"Program\",AO$2),\"\")","v":196.5},{"$f":"IF('Itinerary Programs'!T10=\"y\",getScoreFactor(\"Program\",AP$2),\"\")","v":160.5},{"$f":"IF('Itinerary Programs'!U10=\"y\",getScoreFactor(\"Program\",AQ$2),\"\")","v":""},{"$f":"IF('Itinerary Programs'!V10=\"y\",getScoreFactor(\"Program\",AR$2),\"\")","v":214.5},{"$f":"IF('Itinerary Programs'!W10=\"y\",getScoreFactor(\"Program\",AS$2),\"\")","v":""},{"$f":"IF('Itinerary Programs'!X10=\"y\",getScoreFactor(\"Program\",AT$2),\"\")","v":154.5},{"$f":"IF('Itinerary Programs'!Y10=\"y\",getScoreFactor(\"Program\",AU$2),\"\")","v":""},{"$f":"IF('Itinerary Programs'!Z10=\"y\",getScoreFactor(\"Program\",AV$2),\"\")","v":""},{"$f":"IF('Itinerary Programs'!AA10=\"y\",getScoreFactor(\"Program\",AW$2),\"\")","v":""},{"$f":"IF('Itinerary Programs'!AB10=\"y\",getScoreFactor(\"Program\",AX$2),\"\")","v":""},{"$f":"IF('Itinerary Programs'!AC10=\"y\",getScoreFactor(\"Program\",AY$2),\"\")","v":""},{"$f":"IF('Itinerary Programs'!AD10=\"y\",getScoreFactor(\"Program\",AZ$2),\"\")","v":162}]
[{"$f":"Itineraries!A11","v":"1B-S"},6948,{"$f":"getScoreFactor(C$2,itineraryCamps!C12)","v":"Challenging"},{"$f":"getScoreFactor(D$2,\"Miles\") *itineraryCamps!D12","v":4300},{"$f":"getScoreFactor(E$2,Itineraries!B11)","v":20},{"$f":"getScoreFactor(F$2,Itineraries!C11)","v":80},{"$f":"getScoreFactor(G$2,Itineraries!E11)","v":200},{"$f":"getScoreFactor(H$2,Itineraries!I11)","v":150},{"$f":"getScoreFactor(I$2,Itineraries!G11)","v":80},{"$f":"getScoreFactor(J$2,Itineraries!K11)","v":0},{"$f":"getScoreFactor(K$2,Itineraries!L11)","v":0},{"$f":"getScoreFactor(L$2,Itineraries!M11)","v":0},null,null,{"$f":"IF(INDEX(baldyMountainHike,ROW()-2)=\"\",\"\",getPeakScore(O$2))","v":""},{"$f":"IF(INDEX(mountPhillipsHike,ROW()-2)=\"\",\"\",getPeakScore(P$2))","v":""},{"$f":"IF(INDEX(toothOfTimeHike,ROW()-2)=\"\",\"\",getPeakScore(Q$2))","v":""},{"$f":"IF(INDEX(trailPeakHike,ROW()-2)=\"\",\"\",getPeakScore(R$2))","v":""},{"$f":"IF(INDEX(mountaineeringHike,ROW()-2)=\"\",\"\",getPeakScore(S$2))","v":""},{"$f":"IF(areaImportant<>\"y\",\"\",IF(Itineraries!Q11<>\"Y\",\"\",getareascore(T$2)))","v":""},{"$f":"IF(areaImportant<>\"y\",\"\",IF(Itineraries!R11<>\"Y\",\"\",getareascore(U$2)))","v":""},{"$f":"IF(areaImportant<>\"y\",\"\",IF(Itineraries!S11<>\"Y\",\"\",getareascore(V$2)))","v":""},{"$f":"IF(areaImportant<>\"y\",\"\",IF(Itineraries!T11<>\"Y\",\"\",getareascore(W$2)))","v":""},{"$f":"IF('Itinerary Programs'!B11=\"y\",getScoreFactor(\"Program\",X$2),\"\")","v":""},{"$f":"IF('Itinerary Programs'!C11=\"y\",getScoreFactor(\"Program\",Y$2),\"\")","v":""},{"$f":"IF('Itinerary Programs'!D11=\"y\",getScoreFactor(\"Program\",Z$2),\"\")","v":""},{"$f":"IF('Itinerary Programs'!E11=\"y\",getScoreFactor(\"Program\",AA$2),\"\")","v":343.5},{"$f":"IF('Itinerary Programs'!F11=\"y\",getScoreFactor(\"Program\",AB$2),\"\")","v":214.5},{"$f":"IF('Itinerary Programs'!G11=\"y\",getScoreFactor(\"Program\",AC$2),\"\")","v":""},{"$f":"IF('Itinerary Programs'!H11=\"y\",getScoreFactor(\"Program\",AD$2),\"\")","v":211.5},{"$f":"IF('Itinerary Programs'!I11=\"y\",getScoreFactor(\"Program\",AE$2),\"\")","v":""},{"$f":"IF('Itinerary Programs'!J11=\"y\",getScoreFactor(\"Program\",AF$2),\"\")","v":""},{"$f":"IF('Itinerary Programs'!K11=\"y\",getScoreFactor(\"Program\",AG$2),\"\")","v":""},{"$f":"IF('Itinerary Programs'!L11=\"y\",getScoreFactor(\"Program\",AH$2),\"\")","v":""},{"$f":"IF('Itinerary Programs'!M11=\"y\",getScoreFactor(\"Program\",AI$2),\"\")","v":""},{"$f":"IF('Itinerary Programs'!N11=\"y\",getScoreFactor(\"Program\",AJ$2),\"\")","v":""},{"$f":"IF('Itinerary Programs'!O11=\"y\",getScoreFactor(\"Program\",AK$2),\"\")","v":154.5},{"$f":"IF('Itinerary Programs'!P11=\"y\",getScoreFactor(\"Program\",AL$2),\"\")","v":115.5},{"$f":"IF('Itinerary Programs'!Q11=\"y\",getScoreFactor(\"Program\",AM$2),\"\")","v":190.5},{"$f":"IF('Itinerary Programs'!R11=\"y\",getScoreFactor(\"Program\",AN$2),\"\")","v":""},{"$f":"IF('Itinerary Programs'!S11=\"y\",getScoreFactor(\"Program\",AO$2),\"\")","v":196.5},{"$f":"IF('Itinerary Programs'!T11=\"y\",getScoreFactor(\"Program\",AP$2),\"\")","v":160.5},{"$f":"IF('Itinerary Programs'!U11=\"y\",getScoreFactor(\"Program\",AQ$2),\"\")","v":""},{"$f":"IF('Itinerary Programs'!V11=\"y\",getScoreFactor(\"Program\",AR$2),\"\")","v":214.5},{"$f":"IF('Itinerary Programs'!W11=\"y\",getScoreFactor(\"Program\",AS$2),\"\")","v":""},{"$f":"IF('Itinerary Programs'!X11=\"y\",getScoreFactor(\"Program\",AT$2),\"\")","v":154.5},{"$f":"IF('Itinerary Programs'!Y11=\"y\",getScoreFactor(\"Program\",AU$2),\"\")","v":""},{"$f":"IF('Itinerary Programs'!Z11=\"y\",getScoreFactor(\"Program\",AV$2),\"\")","v":""},{"$f":"IF('Itinerary Programs'!AA11=\"y\",getScoreFactor(\"Program\",AW$2),\"\")","v":""},{"$f":"IF('Itinerary Programs'!AB11=\"y\",getScoreFactor(\"Program\",AX$2),\"\")","v":""},{"$f":"IF('Itinerary Programs'!AC11=\"y\",getScoreFactor(\"Program\",AY$2),\"\")","v":""},{"$f":"IF('Itinerary Programs'!AD11=\"y\",getScoreFactor(\"Program\",AZ$2),\"\")","v":162}]
[{"$f":"Itineraries!A12","v":"2A-S"},6896,{"$f":"getScoreFactor(C$2,itineraryCamps!C13)","v":"Challenging"},{"$f":"getScoreFactor(D$2,\"Miles\") *itineraryCamps!D13","v":4000},{"$f":"getScoreFactor(E$2,Itineraries!B12)","v":20},{"$f":"getScoreFactor(F$2,Itineraries!C12)","v":80},{"$f":"getScoreFactor(G$2,Itineraries!E12)","v":250},{"$f":"getScoreFactor(H$2,Itineraries!I12)","v":150},{"$f":"getScoreFactor(I$2,Itineraries!G12)","v":80},{"$f":"getScoreFactor(J$2,Itineraries!K12)","v":0},{"$f":"getScoreFactor(K$2,Itineraries!L12)","v":0},{"$f":"getScoreFactor(L$2,Itineraries!M12)","v":0},null,null,{"$f":"IF(INDEX(baldyMountainHike,ROW()-2)=\"\",\"\",getPeakScore(O$2))","v":""},{"$f":"IF(INDEX(mountPhillipsHike,ROW()-2)=\"\",\"\",getPeakScore(P$2))","v":""},{"$f":"IF(INDEX(toothOfTimeHike,ROW()-2)=\"\",\"\",getPeakScore(Q$2))","v":""},{"$f":"IF(INDEX(trailPeakHike,ROW()-2)=\"\",\"\",getPeakScore(R$2))","v":""},{"$f":"IF(INDEX(mountaineeringHike,ROW()-2)=\"\",\"\",getPeakScore(S$2))","v":""},{"$f":"IF(areaImportant<>\"y\",\"\",IF(Itineraries!Q12<>\"Y\",\"\",getareascore(T$2)))","v":""},{"$f":"IF(areaImportant<>\"y\",\"\",IF(Itineraries!R12<>\"Y\",\"\",getareascore(U$2)))","v":""},{"$f":"IF(areaImportant<>\"y\",\"\",IF(Itineraries!S12<>\"Y\",\"\",getareascore(V$2)))","v":""},{"$f":"IF(areaImportant<>\"y\",\"\",IF(Itineraries!T12<>\"Y\",\"\",getareascore(W$2)))","v":""},{"$f":"IF('Itinerary Programs'!B12=\"y\",getScoreFactor(\"Program\",X$2),\"\")","v":""},{"$f":"IF('Itinerary Programs'!C12=\"y\",getScoreFactor(\"Program\",Y$2),\"\")","v":""},{"$f":"IF('Itinerary Programs'!D12=\"y\",getScoreFactor(\"Program\",Z$2),\"\")","v":""},{"$f":"IF('Itinerary Programs'!E12=\"y\",getScoreFactor(\"Program\",AA$2),\"\")","v":343.5},{"$f":"IF('Itinerary Programs'!F12=\"y\",getScoreFactor(\"Program\",AB$2),\"\")","v":214.5},{"$f":"IF('Itinerary Programs'!G12=\"y\",getScoreFactor(\"Program\",AC$2),\"\")","v":""},{"$f":"IF('Itinerary Programs'!H12=\"y\",getScoreFactor(\"Program\",AD$2),\"\")","v":211.5},{"$f":"IF('Itinerary Programs'!I12=\"y\",getScoreFactor(\"Program\",AE$2),\"\")","v":""},{"$f":"IF('Itinerary Programs'!J12=\"y\",getScoreFactor(\"Program\",AF$2),\"\")","v":""},{"$f":"IF('Itinerary Programs'!K12=\"y\",getScoreFactor(\"Program\",AG$2),\"\")","v":""},{"$f":"IF('Itinerary Programs'!L12=\"y\",getScoreFactor(\"Program\",AH$2),\"\")","v":""},{"$f":"IF('Itinerary Programs'!M12=\"y\",getScoreFactor(\"Program\",AI$2),\"\")","v":""},{"$f":"IF('Itinerary Programs'!N12=\"y\",getScoreFactor(\"Program\",AJ$2),\"\")","v":""},{"$f":"IF('Itinerary Programs'!O12=\"y\",getScoreFactor(\"Program\",AK$2),\"\")","v":154.5},{"$f":"IF('Itinerary Programs'!P12=\"y\",getScoreFactor(\"Program\",AL$2),\"\")","v":""},{"$f":"IF('Itinerary Programs'!Q12=\"y\",getScoreFactor(\"Program\",AM$2),\"\")","v":190.5},{"$f":"IF('Itinerary Programs'!R12=\"y\",getScoreFactor(\"Program\",AN$2),\"\")","v":""},{"$f":"IF('Itinerary Programs'!S12=\"y\",getScoreFactor(\"Program\",AO$2),\"\")","v":196.5},{"$f":"IF('Itinerary Programs'!T12=\"y\",getScoreFactor(\"Program\",AP$2),\"\")","v":160.5},{"$f":"IF('Itinerary Programs'!U12=\"y\",getScoreFactor(\"Program\",AQ$2),\"\")","v":""},{"$f":"IF('Itinerary Programs'!V12=\"y\",getScoreFactor(\"Program\",AR$2),\"\")","v":214.5},{"$f":"IF('Itinerary Programs'!W12=\"y\",getScoreFactor(\"Program\",AS$2),\"\")","v":""},{"$f":"IF('Itinerary Programs'!X12=\"y\",getScoreFactor(\"Program\",AT$2),\"\")","v":154.5},{"$f":"IF('Itinerary Programs'!Y12=\"y\",getScoreFactor(\"Program\",AU$2),\"\")","v":""},{"$f":"IF('Itinerary Programs'!Z12=\"y\",getScoreFactor(\"Program\",AV$2),\"\")","v":154.5},{"$f":"IF('Itinerary Programs'!AA12=\"y\",getScoreFactor(\"Program\",AW$2),\"\")","v":159},{"$f":"IF('Itinerary Programs'!AB12=\"y\",getScoreFactor(\"Program\",AX$2),\"\")","v":""},{"$f":"IF('Itinerary Programs'!AC12=\"y\",getScoreFactor(\"Program\",AY$2),\"\")","v":""},{"$f":"IF('Itinerary Programs'!AD12=\"y\",getScoreFactor(\"Program\",AZ$2),\"\")","v":162}]
[{"$f":"Itineraries!A13","v":"2B-S"},7867.5,{"$f":"getScoreFactor(C$2,itineraryCamps!C14)","v":"Challenging"},{"$f":"getScoreFactor(D$2,\"Miles\") *itineraryCamps!D14","v":4600},{"$f":"getScoreFactor(E$2,Itineraries!B13)","v":20},{"$f":"getScoreFactor(F$2,Itineraries!C13)","v":90},{"$f":"getScoreFactor(G$2,Itineraries!E13)","v":250},{"$f":"getScoreFactor(H$2,Itineraries!I13)","v":150},{"$f":"getScoreFactor(I$2,Itineraries!G13)","v":80},{"$f":"getScoreFactor(J$2,Itineraries!K13)","v":0},{"$f":"getScoreFactor(K$2,Itineraries!L13)","v":0},{"$f":"getScoreFactor(L$2,Itineraries!M13)","v":0},null,null,{"$f":"IF(INDEX(baldyMountainHike,ROW()-2)=\"\",\"\",getPeakScore(O$2))","v":""},{"$f":"IF(INDEX(mountPhillipsHike,ROW()-2)=\"\",\"\",getPeakScore(P$2))","v":""},{"$f":"IF(INDEX(toothOfTimeHike,ROW()-2)=\"\",\"\",getPeakScore(Q$2))","v":""},{"$f":"IF(INDEX(trailPeakHike,ROW()-2)=\"\",\"\",getPeakScore(R$2))","v":178.5},{"$f":"IF(INDEX(mountaineeringHike,ROW()-2)=\"\",\"\",getPeakScore(S$2))","v":""},{"$f":"IF(areaImportant<>\"y\",\"\",IF(Itineraries!Q13<>\"Y\",\"\",getareascore(T$2)))","v":""},{"$f":"IF(areaImportant<>\"y\",\"\",IF(Itineraries!R13<>\"Y\",\"\",getareascore(U$2)))","v":""},{"$f":"IF(areaImportant<>\"y\",\"\",IF(Itineraries!S13<>\"Y\",\"\",getareascore(V$2)))","v":""},{"$f":"IF(areaImportant<>\"y\",\"\",IF(Itineraries!T13<>\"Y\",\"\",getareascore(W$2)))","v":""},{"$f":"IF('Itinerary Programs'!B13=\"y\",getScoreFactor(\"Program\",X$2),\"\")","v":""},{"$f":"IF('Itinerary Programs'!C13=\"y\",getScoreFactor(\"Program\",Y$2),\"\")","v":""},{"$f":"IF('Itinerary Programs'!D13=\"y\",getScoreFactor(\"Program\",Z$2),\"\")","v":159},{"$f":"IF('Itinerary Programs'!E13=\"y\",getScoreFactor(\"Program\",AA$2),\"\")","v":343.5},{"$f":"IF('Itinerary Programs'!F13=\"y\",getScoreFactor(\"Program\",AB$2),\"\")","v":214.5},{"$f":"IF('Itinerary Programs'!G13=\"y\",getScoreFactor(\"Program\",AC$2),\"\")","v":""},{"$f":"IF('Itinerary Programs'!H13=\"y\",getScoreFactor(\"Program\",AD$2),\"\")","v":211.5},{"$f":"IF('Itinerary Programs'!I13=\"y\",getScoreFactor(\"Program\",AE$2),\"\")","v":""},{"$f":"IF('Itinerary Programs'!J13=\"y\",getScoreFactor(\"Program\",AF$2),\"\")","v":""},{"$f":"IF('Itinerary Programs'!K13=\"y\",getScoreFactor(\"Program\",AG$2),\"\")","v":""},{"$f":"IF('Itinerary Programs'!L13=\"y\",getScoreFactor(\"Program\",AH$2),\"\")","v":""},{"$f":"IF('Itinerary Programs'!M13=\"y\",getScoreFactor(\"Program\",AI$2),\"\")","v":""},{"$f":"IF('Itinerary Programs'!N13=\"y\",getScoreFactor(\"Program\",AJ$2),\"\")","v":""},{"$f":"IF('Itinerary Programs'!O13=\"y\",getScoreFactor(\"Program\",AK$2),\"\")","v":""},{"$f":"IF('Itinerary Programs'!P13=\"y\",getScoreFactor(\"Program\",AL$2),\"\")","v":""},{"$f":"IF('Itinerary Programs'!Q13=\"y\",getScoreFactor(\"Program\",AM$2),\"\")","v":190.5},{"$f":"IF('Itinerary Programs'!R13=\"y\",getScoreFactor(\"Program\",AN$2),\"\")","v":""},{"$f":"IF('Itinerary Programs'!S13=\"y\",getScoreFactor(\"Program\",AO$2),\"\")","v":196.5},{"$f":"IF('Itinerary Programs'!T13=\"y\",getScoreFactor(\"Program\",AP$2),\"\")","v":160.5},{"$f":"IF('Itinerary Programs'!U13=\"y\",getScoreFactor(\"Program\",AQ$2),\"\")","v":""},{"$f":"IF('Itinerary Programs'!V13=\"y\",getScoreFactor(\"Program\",AR$2),\"\")","v":214.5},{"$f":"IF('Itinerary Programs'!W13=\"y\",getScoreFactor(\"Program\",AS$2),\"\")","v":""},{"$f":"IF('Itinerary Programs'!X13=\"y\",getScoreFactor(\"Program\",AT$2),\"\")","v":154.5},{"$f":"IF('Itinerary Programs'!Y13=\"y\",getScoreFactor(\"Program\",AU$2),\"\")","v":""},{"$f":"IF('Itinerary Programs'!Z13=\"y\",getScoreFactor(\"Program\",AV$2),\"\")","v":154.5},{"$f":"IF('Itinerary Programs'!AA13=\"y\",getScoreFactor(\"Program\",AW$2),\"\")","v":159},{"$f":"IF('Itinerary Programs'!AB13=\"y\",getScoreFactor(\"Program\",AX$2),\"\")","v":""},{"$f":"IF('Itinerary Programs'!AC13=\"y\",getScoreFactor(\"Program\",AY$2),\"\")","v":178.5},{"$f":"IF('Itinerary Programs'!AD13=\"y\",getScoreFactor(\"Program\",AZ$2),\"\")","v":162}]
[{"$f":"Itineraries!A14","v":"3A-S"},5473.5,{"$f":"getScoreFactor(C$2,itineraryCamps!C15)","v":"Challenging"},{"$f":"getScoreFactor(D$2,\"Miles\") *itineraryCamps!D15","v":3200},{"$f":"getScoreFactor(E$2,Itineraries!B14)","v":20},{"$f":"getScoreFactor(F$2,Itineraries!C14)","v":80},{"$f":"getScoreFactor(G$2,Itineraries!E14)","v":250},{"$f":"getScoreFactor(H$2,Itineraries!I14)","v":225},{"$f":"getScoreFactor(I$2,Itineraries!G14)","v":80},{"$f":"getScoreFactor(J$2,Itineraries!K14)","v":0},{"$f":"getScoreFactor(K$2,Itineraries!L14)","v":0},{"$f":"getScoreFactor(L$2,Itineraries!M14)","v":0},null,null,{"$f":"IF(INDEX(baldyMountainHike,ROW()-2)=\"\",\"\",getPeakScore(O$2))","v":""},{"$f":"IF(INDEX(mountPhillipsHike,ROW()-2)=\"\",\"\",getPeakScore(P$2))","v":""},{"$f":"IF(INDEX(toothOfTimeHike,ROW()-2)=\"\",\"\",getPeakScore(Q$2))","v":""},{"$f":"IF(INDEX(trailPeakHike,ROW()-2)=\"\",\"\",getPeakScore(R$2))","v":""},{"$f":"IF(INDEX(mountaineeringHike,ROW()-2)=\"\",\"\",getPeakScore(S$2))","v":""},{"$f":"IF(areaImportant<>\"y\",\"\",IF(Itineraries!Q14<>\"Y\",\"\",getareascore(T$2)))","v":""},{"$f":"IF(areaImportant<>\"y\",\"\",IF(Itineraries!R14<>\"Y\",\"\",getareascore(U$2)))","v":""},{"$f":"IF(areaImportant<>\"y\",\"\",IF(Itineraries!S14<>\"Y\",\"\",getareascore(V$2)))","v":""},{"$f":"IF(areaImportant<>\"y\",\"\",IF(Itineraries!T14<>\"Y\",\"\",getareascore(W$2)))","v":""},{"$f":"IF('Itinerary Programs'!B14=\"y\",getScoreFactor(\"Program\",X$2),\"\")","v":""},{"$f":"IF('Itinerary Programs'!C14=\"y\",getScoreFactor(\"Program\",Y$2),\"\")","v":""},{"$f":"IF('Itinerary Programs'!D14=\"y\",getScoreFactor(\"Program\",Z$2),\"\")","v":""},{"$f":"IF('Itinerary Programs'!E14=\"y\",getScoreFactor(\"Program\",AA$2),\"\")","v":343.5},{"$f":"IF('Itinerary Programs'!F14=\"y\",getScoreFactor(\"Program\",AB$2),\"\")","v":""},{"$f":"IF('Itinerary Programs'!G14=\"y\",getScoreFactor(\"Program\",AC$2),\"\")","v":""},{"$f":"IF('Itinerary Programs'!H14=\"y\",getScoreFactor(\"Program\",AD$2),\"\")","v":211.5},{"$f":"IF('Itinerary Programs'!I14=\"y\",getScoreFactor(\"Program\",AE$2),\"\")","v":""},{"$f":"IF('Itinerary Programs'!J14=\"y\",getScoreFactor(\"Program\",AF$2),\"\")","v":124.5},{"$f":"IF('Itinerary Programs'!K14=\"y\",getScoreFactor(\"Program\",AG$2),\"\")","v":154.5},{"$f":"IF('Itinerary Programs'!L14=\"y\",getScoreFactor(\"Program\",AH$2),\"\")","v":""},{"$f":"IF('Itinerary Programs'!M14=\"y\",getScoreFactor(\"Program\",AI$2),\"\")","v":""},{"$f":"IF('Itinerary Programs'!N14=\"y\",getScoreFactor(\"Program\",AJ$2),\"\")","v":""},{"$f":"IF('Itinerary Programs'!O14=\"y\",getScoreFactor(\"Program\",AK$2),\"\")","v":154.5},{"$f":"IF('Itinerary Programs'!P14=\"y\",getScoreFactor(\"Program\",AL$2),\"\")","v":""},{"$f":"IF('Itinerary Programs'!Q14=\"y\",getScoreFactor(\"Program\",AM$2),\"\")","v":""},{"$f":"IF('Itinerary Programs'!R14=\"y\",getScoreFactor(\"Program\",AN$2),\"\")","v":""},{"$f":"IF('Itinerary Programs'!S14=\"y\",getScoreFactor(\"Program\",AO$2),\"\")","v":""},{"$f":"IF('Itinerary Programs'!T14=\"y\",getScoreFactor(\"Program\",AP$2),\"\")","v":""},{"$f":"IF('Itinerary Programs'!U14=\"y\",getScoreFactor(\"Program\",AQ$2),\"\")","v":""},{"$f":"IF('Itinerary Programs'!V14=\"y\",getScoreFactor(\"Program\",AR$2),\"\")","v":""},{"$f":"IF('Itinerary Programs'!W14=\"y\",getScoreFactor(\"Program\",AS$2),\"\")","v":""},{"$f":"IF('Itinerary Programs'!X14=\"y\",getScoreFactor(\"Program\",AT$2),\"\")","v":154.5},{"$f":"IF('Itinerary Programs'!Y14=\"y\",getScoreFactor(\"Program\",AU$2),\"\")","v":""},{"$f":"IF('Itinerary Programs'!Z14=\"y\",getScoreFactor(\"Program\",AV$2),\"\")","v":154.5},{"$f":"IF('Itinerary Programs'!AA14=\"y\",getScoreFactor(\"Program\",AW$2),\"\")","v":159},{"$f":"IF('Itinerary Programs'!AB14=\"y\",getScoreFactor(\"Program\",AX$2),\"\")","v":""},{"$f":"IF('Itinerary Programs'!AC14=\"y\",getScoreFactor(\"Program\",AY$2),\"\")","v":""},{"$f":"IF('Itinerary Programs'!AD14=\"y\",getScoreFactor(\"Program\",AZ$2),\"\")","v":162}]
[{"$f":"Itineraries!A15","v":"3B-S"},5883.5,{"$f":"getScoreFactor(C$2,itineraryCamps!C16)","v":"Challenging"},{"$f":"getScoreFactor(D$2,\"Miles\") *itineraryCamps!D16","v":3600},{"$f":"getScoreFactor(E$2,Itineraries!B15)","v":20},{"$f":"getScoreFactor(F$2,Itineraries!C15)","v":90},{"$f":"getScoreFactor(G$2,Itineraries!E15)","v":250},{"$f":"getScoreFactor(H$2,Itineraries!I15)","v":225},{"$f":"getScoreFactor(I$2,Itineraries!G15)","v":80},{"$f":"getScoreFactor(J$2,Itineraries!K15)","v":0},{"$f":"getScoreFactor(K$2,Itineraries!L15)","v":0},{"$f":"getScoreFactor(L$2,Itineraries!M15)","v":0},null,null,{"$f":"IF(INDEX(baldyMountainHike,ROW()-2)=\"\",\"\",getPeakScore(O$2))","v":""},{"$f":"IF(INDEX(mountPhillipsHike,ROW()-2)=\"\",\"\",getPeakScore(P$2))","v":""},{"$f":"IF(INDEX(toothOfTimeHike,ROW()-2)=\"\",\"\",getPeakScore(Q$2))","v":""},{"$f":"IF(INDEX(trailPeakHike,ROW()-2)=\"\",\"\",getPeakScore(R$2))","v":""},{"$f":"IF(INDEX(mountaineeringHike,ROW()-2)=\"\",\"\",getPeakScore(S$2))","v":""},{"$f":"IF(areaImportant<>\"y\",\"\",IF(Itineraries!Q15<>\"Y\",\"\",getareascore(T$2)))","v":""},{"$f":"IF(areaImportant<>\"y\",\"\",IF(Itineraries!R15<>\"Y\",\"\",getareascore(U$2)))","v":""},{"$f":"IF(areaImportant<>\"y\",\"\",IF(Itineraries!S15<>\"Y\",\"\",getareascore(V$2)))","v":""},{"$f":"IF(areaImportant<>\"y\",\"\",IF(Itineraries!T15<>\"Y\",\"\",getareascore(W$2)))","v":""},{"$f":"IF('Itinerary Programs'!B15=\"y\",getScoreFactor(\"Program\",X$2),\"\")","v":""},{"$f":"IF('Itinerary Programs'!C15=\"y\",getScoreFactor(\"Program\",Y$2),\"\")","v":""},{"$f":"IF('Itinerary Programs'!D15=\"y\",getScoreFactor(\"Program\",Z$2),\"\")","v":""},{"$f":"IF('Itinerary Programs'!E15=\"y\",getScoreFactor(\"Program\",AA$2),\"\")","v":343.5},{"$f":"IF('Itinerary Programs'!F15=\"y\",getScoreFactor(\"Program\",AB$2),\"\")","v":""},{"$f":"IF('Itinerary Programs'!G15=\"y\",getScoreFactor(\"Program\",AC$2),\"\")","v":""},{"$f":"IF('Itinerary Programs'!H15=\"y\",getScoreFactor(\"Program\",AD$2),\"\")","v":211.5},{"$f":"IF('Itinerary Programs'!I15=\"y\",getScoreFactor(\"Program\",AE$2),\"\")","v":""},{"$f":"IF('Itinerary Programs'!J15=\"y\",getScoreFactor(\"Program\",AF$2),\"\")","v":124.5},{"$f":"IF('Itinerary Programs'!K15=\"y\",getScoreFactor(\"Program\",AG$2),\"\")","v":154.5},{"$f":"IF('Itinerary Programs'!L15=\"y\",getScoreFactor(\"Program\",AH$2),\"\")","v":""},{"$f":"IF('Itinerary Programs'!M15=\"y\",getScoreFactor(\"Program\",AI$2),\"\")","v":""},{"$f":"IF('Itinerary Programs'!N15=\"y\",getScoreFactor(\"Program\",AJ$2),\"\")","v":""},{"$f":"IF('Itinerary Programs'!O15=\"y\",getScoreFactor(\"Program\",AK$2),\"\")","v":154.5},{"$f":"IF('Itinerary Programs'!P15=\"y\",getScoreFactor(\"Program\",AL$2),\"\")","v":""},{"$f":"IF('Itinerary Programs'!Q15=\"y\",getScoreFactor(\"Program\",AM$2),\"\")","v":""},{"$f":"IF('Itinerary Programs'!R15=\"y\",getScoreFactor(\"Program\",AN$2),\"\")","v":""},{"$f":"IF('Itinerary Programs'!S15=\"y\",getScoreFactor(\"Program\",AO$2),\"\")","v":""},{"$f":"IF('Itinerary Programs'!T15=\"y\",getScoreFactor(\"Program\",AP$2),\"\")","v":""},{"$f":"IF('Itinerary Programs'!U15=\"y\",getScoreFactor(\"Program\",AQ$2),\"\")","v":""},{"$f":"IF('Itinerary Programs'!V15=\"y\",getScoreFactor(\"Program\",AR$2),\"\")","v":""},{"$f":"IF('Itinerary Programs'!W15=\"y\",getScoreFactor(\"Program\",AS$2),\"\")","v":""},{"$f":"IF('Itinerary Programs'!X15=\"y\",getScoreFactor(\"Program\",AT$2),\"\")","v":154.5},{"$f":"IF('Itinerary Programs'!Y15=\"y\",getScoreFactor(\"Program\",AU$2),\"\")","v":""},{"$f":"IF('Itinerary Programs'!Z15=\"y\",getScoreFactor(\"Program\",AV$2),\"\")","v":154.5},{"$f":"IF('Itinerary Programs'!AA15=\"y\",getScoreFactor(\"Program\",AW$2),\"\")","v":159},{"$f":"IF('Itinerary Programs'!AB15=\"y\",getScoreFactor(\"Program\",AX$2),\"\")","v":""},{"$f":"IF('Itinerary Programs'!AC15=\"y\",getScoreFactor(\"Program\",AY$2),\"\")","v":""},{"$f":"IF('Itinerary Programs'!AD15=\"y\",getScoreFactor(\"Program\",AZ$2),\"\")","v":162}]
[{"$f":"Itineraries!A16","v":"4A-S"},7806,{"$f":"getScoreFactor(C$2,itineraryCamps!C17)","v":"Challenging"},{"$f":"getScoreFactor(D$2,\"Miles\") *itineraryCamps!D17","v":5200},{"$f":"getScoreFactor(E$2,Itineraries!B16)","v":20},{"$f":"getScoreFactor(F$2,Itineraries!C16)","v":90},{"$f":"getScoreFactor(G$2,Itineraries!E16)","v":250},{"$f":"getScoreFactor(H$2,Itineraries!I16)","v":225},{"$f":"getScoreFactor(I$2,Itineraries!G16)","v":80},{"$f":"getScoreFactor(J$2,Itineraries!K16)","v":0},{"$f":"getScoreFactor(K$2,Itineraries!L16)","v":0},{"$f":"getScoreFactor(L$2,Itineraries!M16)","v":0},null,null,{"$f":"IF(INDEX(baldyMountainHike,ROW()-2)=\"\",\"\",getPeakScore(O$2))","v":""},{"$f":"IF(INDEX(mountPhillipsHike,ROW()-2)=\"\",\"\",getPeakScore(P$2))","v":""},{"$f":"IF(INDEX(toothOfTimeHike,ROW()-2)=\"\",\"\",getPeakScore(Q$2))","v":""},{"$f":"IF(INDEX(trailPeakHike,ROW()-2)=\"\",\"\",getPeakScore(R$2))","v":""},{"$f":"IF(INDEX(mountaineeringHike,ROW()-2)=\"\",\"\",getPeakScore(S$2))","v":""},{"$f":"IF(areaImportant<>\"y\",\"\",IF(Itineraries!Q16<>\"Y\",\"\",getareascore(T$2)))","v":""},{"$f":"IF(areaImportant<>\"y\",\"\",IF(Itineraries!R16<>\"Y\",\"\",getareascore(U$2)))","v":""},{"$f":"IF(areaImportant<>\"y\",\"\",IF(Itineraries!S16<>\"Y\",\"\",getareascore(V$2)))","v":""},{"$f":"IF(areaImportant<>\"y\",\"\",IF(Itineraries!T16<>\"Y\",\"\",getareascore(W$2)))","v":""},{"$f":"IF('Itinerary Programs'!B16=\"y\",getScoreFactor(\"Program\",X$2),\"\")","v":""},{"$f":"IF('Itinerary Programs'!C16=\"y\",getScoreFactor(\"Program\",Y$2),\"\")","v":""},{"$f":"IF('Itinerary Programs'!D16=\"y\",getScoreFactor(\"Program\",Z$2),\"\")","v":""},{"$f":"IF('Itinerary Programs'!E16=\"y\",getScoreFactor(\"Program\",AA$2),\"\")","v":343.5},{"$f":"IF('Itinerary Programs'!F16=\"y\",getScoreFactor(\"Program\",AB$2),\"\")","v":""},{"$f":"IF('Itinerary Programs'!G16=\"y\",getScoreFactor(\"Program\",AC$2),\"\")","v":""},{"$f":"IF('Itinerary Programs'!H16=\"y\",getScoreFactor(\"Program\",AD$2),\"\")","v":211.5},{"$f":"IF('Itinerary Programs'!I16=\"y\",getScoreFactor(\"Program\",AE$2),\"\")","v":""},{"$f":"IF('Itinerary Programs'!J16=\"y\",getScoreFactor(\"Program\",AF$2),\"\")","v":124.5},{"$f":"IF('Itinerary Programs'!K16=\"y\",getScoreFactor(\"Program\",AG$2),\"\")","v":154.5},{"$f":"IF('Itinerary Programs'!L16=\"y\",getScoreFactor(\"Program\",AH$2),\"\")","v":""},{"$f":"IF('Itinerary Programs'!M16=\"y\",getScoreFactor(\"Program\",AI$2),\"\")","v":159},{"$f":"IF('Itinerary Programs'!N16=\"y\",getScoreFactor(\"Program\",AJ$2),\"\")","v":163.5},{"$f":"IF('Itinerary Programs'!O16=\"y\",getScoreFactor(\"Program\",AK$2),\"\")","v":154.5},{"$f":"IF('Itinerary Programs'!P16=\"y\",getScoreFactor(\"Program\",AL$2),\"\")","v":""},{"$f":"IF('Itinerary Programs'!Q16=\"y\",getScoreFactor(\"Program\",AM$2),\"\")","v":""},{"$f":"IF('Itinerary Programs'!R16=\"y\",getScoreFactor(\"Program\",AN$2),\"\")","v":""},{"$f":"IF('Itinerary Programs'!S16=\"y\",getScoreFactor(\"Program\",AO$2),\"\")","v":""},{"$f":"IF('Itinerary Programs'!T16=\"y\",getScoreFactor(\"Program\",AP$2),\"\")","v":""},{"$f":"IF('Itinerary Programs'!U16=\"y\",getScoreFactor(\"Program\",AQ$2),\"\")","v":""},{"$f":"IF('Itinerary Programs'!V16=\"y\",getScoreFactor(\"Program\",AR$2),\"\")","v":""},{"$f":"IF('Itinerary Programs'!W16=\"y\",getScoreFactor(\"Program\",AS$2),\"\")","v":""},{"$f":"IF('Itinerary Programs'!X16=\"y\",getScoreFactor(\"Program\",AT$2),\"\")","v":154.5},{"$f":"IF('Itinerary Programs'!Y16=\"y\",getScoreFactor(\"Program\",AU$2),\"\")","v":""},{"$f":"IF('Itinerary Programs'!Z16=\"y\",getScoreFactor(\"Program\",AV$2),\"\")","v":154.5},{"$f":"IF('Itinerary Programs'!AA16=\"y\",getScoreFactor(\"Program\",AW$2),\"\")","v":159},{"$f":"IF('Itinerary Programs'!AB16=\"y\",getScoreFactor(\"Program\",AX$2),\"\")","v":""},{"$f":"IF('Itinerary Programs'!AC16=\"y\",getScoreFactor(\"Program\",AY$2),\"\")","v":""},{"$f":"IF('Itinerary Programs'!AD16=\"y\",getScoreFactor(\"Program\",AZ$2),\"\")","v":162}]
[{"$f":"Itineraries!A17","v":"5A-S"},8835.5,{"$f":"getScoreFactor(C$2,itineraryCamps!C18)","v":"Challenging"},{"$f":"getScoreFactor(D$2,\"Miles\") *itineraryCamps!D18","v":5600},{"$f":"getScoreFactor(E$2,Itineraries!B17)","v":20},{"$f":"getScoreFactor(F$2,Itineraries!C17)","v":90},{"$f":"getScoreFactor(G$2,Itineraries!E17)","v":200},{"$f":"getScoreFactor(H$2,Itineraries!I17)","v":150},{"$f":"getScoreFactor(I$2,Itineraries!G17)","v":80},{"$f":"getScoreFactor(J$2,Itineraries!K17)","v":0},{"$f":"getScoreFactor(K$2,Itineraries!L17)","v":0},{"$f":"getScoreFactor(L$2,Itineraries!M17)","v":0},null,null,{"$f":"IF(INDEX(baldyMountainHike,ROW()-2)=\"\",\"\",getPeakScore(O$2))","v":""},{"$f":"IF(INDEX(mountPhillipsHike,ROW()-2)=\"\",\"\",getPeakScore(P$2))","v":""},{"$f":"IF(INDEX(toothOfTimeHike,ROW()-2)=\"\",\"\",getPeakScore(Q$2))","v":""},{"$f":"IF(INDEX(trailPeakHike,ROW()-2)=\"\",\"\",getPeakScore(R$2))","v":178.5},{"$f":"IF(INDEX(mountaineeringHike,ROW()-2)=\"\",\"\",getPeakScore(S$2))","v":115.5},{"$f":"IF(areaImportant<>\"y\",\"\",IF(Itineraries!Q17<>\"Y\",\"\",getareascore(T$2)))","v":""},{"$f":"IF(areaImportant<>\"y\",\"\",IF(Itineraries!R17<>\"Y\",\"\",getareascore(U$2)))","v":""},{"$f":"IF(areaImportant<>\"y\",\"\",IF(Itineraries!S17<>\"Y\",\"\",getareascore(V$2)))","v":""},{"$f":"IF(areaImportant<>\"y\",\"\",IF(Itineraries!T17<>\"Y\",\"\",getareascore(W$2)))","v":""},{"$f":"IF('Itinerary Programs'!B17=\"y\",getScoreFactor(\"Program\",X$2),\"\")","v":""},{"$f":"IF('Itinerary Programs'!C17=\"y\",getScoreFactor(\"Program\",Y$2),\"\")","v":""},{"$f":"IF('Itinerary Programs'!D17=\"y\",getScoreFactor(\"Program\",Z$2),\"\")","v":""},{"$f":"IF('Itinerary Programs'!E17=\"y\",getScoreFactor(\"Program\",AA$2),\"\")","v":343.5},{"$f":"IF('Itinerary Programs'!F17=\"y\",getScoreFactor(\"Program\",AB$2),\"\")","v":""},{"$f":"IF('Itinerary Programs'!G17=\"y\",getScoreFactor(\"Program\",AC$2),\"\")","v":""},{"$f":"IF('Itinerary Programs'!H17=\"y\",getScoreFactor(\"Program\",AD$2),\"\")","v":211.5},{"$f":"IF('Itinerary Programs'!I17=\"y\",getScoreFactor(\"Program\",AE$2),\"\")","v":""},{"$f":"IF('Itinerary Programs'!J17=\"y\",getScoreFactor(\"Program\",AF$2),\"\")","v":124.5},{"$f":"IF('Itinerary Programs'!K17=\"y\",getScoreFactor(\"Program\",AG$2),\"\")","v":154.5},{"$f":"IF('Itinerary Programs'!L17=\"y\",getScoreFactor(\"Program\",AH$2),\"\")","v":""},{"$f":"IF('Itinerary Programs'!M17=\"y\",getScoreFactor(\"Program\",AI$2),\"\")","v":159},{"$f":"IF('Itinerary Programs'!N17=\"y\",getScoreFactor(\"Program\",AJ$2),\"\")","v":""},{"$f":"IF('Itinerary Programs'!O17=\"y\",getScoreFactor(\"Program\",AK$2),\"\")","v":154.5},{"$f":"IF('Itinerary Programs'!P17=\"y\",getScoreFactor(\"Program\",AL$2),\"\")","v":115.5},{"$f":"IF('Itinerary Programs'!Q17=\"y\",getScoreFactor(\"Program\",AM$2),\"\")","v":""},{"$f":"IF('Itinerary Programs'!R17=\"y\",getScoreFactor(\"Program\",AN$2),\"\")","v":115.5},{"$f":"IF('Itinerary Programs'!S17=\"y\",getScoreFactor(\"Program\",AO$2),\"\")","v":""},{"$f":"IF('Itinerary Programs'!T17=\"y\",getScoreFactor(\"Program\",AP$2),\"\")","v":""},{"$f":"IF('Itinerary Programs'!U17=\"y\",getScoreFactor(\"Program\",AQ$2),\"\")","v":""},{"$f":"IF('Itinerary Programs'!V17=\"y\",getScoreFactor(\"Program\",AR$2),\"\")","v":214.5},{"$f":"IF('Itinerary Programs'!W17=\"y\",getScoreFactor(\"Program\",AS$2),\"\")","v":""},{"$f":"IF('Itinerary Programs'!X17=\"y\",getScoreFactor(\"Program\",AT$2),\"\")","v":154.5},{"$f":"IF('Itinerary Programs'!Y17=\"y\",getScoreFactor(\"Program\",AU$2),\"\")","v":""},{"$f":"IF('Itinerary Programs'!Z17=\"y\",getScoreFactor(\"Program\",AV$2),\"\")","v":154.5},{"$f":"IF('Itinerary Programs'!AA17=\"y\",getScoreFactor(\"Program\",AW$2),\"\")","v":159},{"$f":"IF('Itinerary Programs'!AB17=\"y\",getScoreFactor(\"Program\",AX$2),\"\")","v":""},{"$f":"IF('Itinerary Programs'!AC17=\"y\",getScoreFactor(\"Program\",AY$2),\"\")","v":178.5},{"$f":"IF('Itinerary Programs'!AD17=\"y\",getScoreFactor(\"Program\",AZ$2),\"\")","v":162}]
[{"$f":"Itineraries!A18","v":"6A-S"},7543,{"$f":"getScoreFactor(C$2,itineraryCamps!C19)","v":"Challenging"},{"$f":"getScoreFactor(D$2,\"Miles\") *itineraryCamps!D19","v":4600},{"$f":"getScoreFactor(E$2,Itineraries!B18)","v":50},{"$f":"getScoreFactor(F$2,Itineraries!C18)","v":70},{"$f":"getScoreFactor(G$2,Itineraries!E18)","v":250},{"$f":"getScoreFactor(H$2,Itineraries!I18)","v":150},{"$f":"getScoreFactor(I$2,Itineraries!G18)","v":80},{"$f":"getScoreFactor(J$2,Itineraries!K18)","v":0},{"$f":"getScoreFactor(K$2,Itineraries!L18)","v":0},{"$f":"getScoreFactor(L$2,Itineraries!M18)","v":0},null,null,{"$f":"IF(INDEX(baldyMountainHike,ROW()-2)=\"\",\"\",getPeakScore(O$2))","v":""},{"$f":"IF(INDEX(mountPhillipsHike,ROW()-2)=\"\",\"\",getPeakScore(P$2))","v":""},{"$f":"IF(INDEX(toothOfTimeHike,ROW()-2)=\"\",\"\",getPeakScore(Q$2))","v":""},{"$f":"IF(INDEX(trailPeakHike,ROW()-2)=\"\",\"\",getPeakScore(R$2))","v":178.5},{"$f":"IF(INDEX(mountaineeringHike,ROW()-2)=\"\",\"\",getPeakScore(S$2))","v":115.5},{"$f":"IF(areaImportant<>\"y\",\"\",IF(Itineraries!Q18<>\"Y\",\"\",getareascore(T$2)))","v":""},{"$f":"IF(areaImportant<>\"y\",\"\",IF(Itineraries!R18<>\"Y\",\"\",getareascore(U$2)))","v":""},{"$f":"IF(areaImportant<>\"y\",\"\",IF(Itineraries!S18<>\"Y\",\"\",getareascore(V$2)))","v":""},{"$f":"IF(areaImportant<>\"y\",\"\",IF(Itineraries!T18<>\"Y\",\"\",getareascore(W$2)))","v":""},{"$f":"IF('Itinerary Programs'!B18=\"y\",getScoreFactor(\"Program\",X$2),\"\")","v":""},{"$f":"IF('Itinerary Programs'!C18=\"y\",getScoreFactor(\"Program\",Y$2),\"\")","v":""},{"$f":"IF('Itinerary Programs'!D18=\"y\",getScoreFactor(\"Program\",Z$2),\"\")","v":159},{"$f":"IF('Itinerary Programs'!E18=\"y\",getScoreFactor(\"Program\",AA$2),\"\")","v":343.5},{"$f":"IF('Itinerary Programs'!F18=\"y\",getScoreFactor(\"Program\",AB$2),\"\")","v":""},{"$f":"IF('Itinerary Programs'!G18=\"y\",getScoreFactor(\"Program\",AC$2),\"\")","v":""},{"$f":"IF('Itinerary Programs'!H18=\"y\",getScoreFactor(\"Program\",AD$2),\"\")","v":211.5},{"$f":"IF('Itinerary Programs'!I18=\"y\",getScoreFactor(\"Program\",AE$2),\"\")","v":""},{"$f":"IF('Itinerary Programs'!J18=\"y\",getScoreFactor(\"Program\",AF$2),\"\")","v":""},{"$f":"IF('Itinerary Programs'!K18=\"y\",getScoreFactor(\"Program\",AG$2),\"\")","v":""},{"$f":"IF('Itinerary Programs'!L18=\"y\",getScoreFactor(\"Program\",AH$2),\"\")","v":""},{"$f":"IF('Itinerary Programs'!M18=\"y\",getScoreFactor(\"Program\",AI$2),\"\")","v":""},{"$f":"IF('Itinerary Programs'!N18=\"y\",getScoreFactor(\"Program\",AJ$2),\"\")","v":""},{"$f":"IF('Itinerary Programs'!O18=\"y\",getScoreFactor(\"Program\",AK$2),\"\")","v":""},{"$f":"IF('Itinerary Programs'!P18=\"y\",getScoreFactor(\"Program\",AL$2),\"\")","v":""},{"$f":"IF('Itinerary Programs'!Q18=\"y\",getScoreFactor(\"Program\",AM$2),\"\")","v":""},{"$f":"IF('Itinerary Programs'!R18=\"y\",getScoreFactor(\"Program\",AN$2),\"\")","v":115.5},{"$f":"IF('Itinerary Programs'!S18=\"y\",getScoreFactor(\"Program\",AO$2),\"\")","v":196.5},{"$f":"IF('Itinerary Programs'!T18=\"y\",getScoreFactor(\"Program\",AP$2),\"\")","v":""},{"$f":"IF('Itinerary Programs'!U18=\"y\",getScoreFactor(\"Program\",AQ$2),\"\")","v":""},{"$f":"IF('Itinerary Programs'!V18=\"y\",getScoreFactor(\"Program\",AR$2),\"\")","v":214.5},{"$f":"IF('Itinerary Programs'!W18=\"y\",getScoreFactor(\"Program\",AS$2),\"\")","v":""},{"$f":"IF('Itinerary Programs'!X18=\"y\",getScoreFactor(\"Program\",AT$2),\"\")","v":154.5},{"$f":"IF('Itinerary Programs'!Y18=\"y\",getScoreFactor(\"Program\",AU$2),\"\")","v":""},{"$f":"IF('Itinerary Programs'!Z18=\"y\",getScoreFactor(\"Program\",AV$2),\"\")","v":154.5},{"$f":"IF('Itinerary Programs'!AA18=\"y\",getScoreFactor(\"Program\",AW$2),\"\")","v":159},{"$f":"IF('Itinerary Programs'!AB18=\"y\",getScoreFactor(\"Program\",AX$2),\"\")","v":""},{"$f":"IF('Itinerary Programs'!AC18=\"y\",getScoreFactor(\"Program\",AY$2),\"\")","v":178.5},{"$f":"IF('Itinerary Programs'!AD18=\"y\",getScoreFactor(\"Program\",AZ$2),\"\")","v":162}]
[{"$f":"Itineraries!A19","v":"6B-S"},7733,{"$f":"getScoreFactor(C$2,itineraryCamps!C20)","v":"Challenging"},{"$f":"getScoreFactor(D$2,\"Miles\") *itineraryCamps!D20","v":4800},{"$f":"getScoreFactor(E$2,Itineraries!B19)","v":20},{"$f":"getScoreFactor(F$2,Itineraries!C19)","v":90},{"$f":"getScoreFactor(G$2,Itineraries!E19)","v":250},{"$f":"getScoreFactor(H$2,Itineraries!I19)","v":150},{"$f":"getScoreFactor(I$2,Itineraries!G19)","v":80},{"$f":"getScoreFactor(J$2,Itineraries!K19)","v":0},{"$f":"getScoreFactor(K$2,Itineraries!L19)","v":0},{"$f":"getScoreFactor(L$2,Itineraries!M19)","v":0},null,null,{"$f":"IF(INDEX(baldyMountainHike,ROW()-2)=\"\",\"\",getPeakScore(O$2))","v":""},{"$f":"IF(INDEX(mountPhillipsHike,ROW()-2)=\"\",\"\",getPeakScore(P$2))","v":""},{"$f":"IF(INDEX(toothOfTimeHike,ROW()-2)=\"\",\"\",getPeakScore(Q$2))","v":""},{"$f":"IF(INDEX(trailPeakHike,ROW()-2)=\"\",\"\",getPeakScore(R$2))","v":178.5},{"$f":"IF(INDEX(mountaineeringHike,ROW()-2)=\"\",\"\",getPeakScore(S$2))","v":115.5},{"$f":"IF(areaImportant<>\"y\",\"\",IF(Itineraries!Q19<>\"Y\",\"\",getareascore(T$2)))","v":""},{"$f":"IF(areaImportant<>\"y\",\"\",IF(Itineraries!R19<>\"Y\",\"\",getareascore(U$2)))","v":""},{"$f":"IF(areaImportant<>\"y\",\"\",IF(Itineraries!S19<>\"Y\",\"\",getareascore(V$2)))","v":""},{"$f":"IF(areaImportant<>\"y\",\"\",IF(Itineraries!T19<>\"Y\",\"\",getareascore(W$2)))","v":""},{"$f":"IF('Itinerary Programs'!B19=\"y\",getScoreFactor(\"Program\",X$2),\"\")","v":""},{"$f":"IF('Itinerary Programs'!C19=\"y\",getScoreFactor(\"Program\",Y$2),\"\")","v":""},{"$f":"IF('Itinerary Programs'!D19=\"y\",getScoreFactor(\"Program\",Z$2),\"\")","v":159},{"$f":"IF('Itinerary Programs'!E19=\"y\",getScoreFactor(\"Program\",AA$2),\"\")","v":343.5},{"$f":"IF('Itinerary Programs'!F19=\"y\",getScoreFactor(\"Program\",AB$2),\"\")","v":""},{"$f":"IF('Itinerary Programs'!G19=\"y\",getScoreFactor(\"Program\",AC$2),\"\")","v":""},{"$f":"IF('Itinerary Programs'!H19=\"y\",getScoreFactor(\"Program\",AD$2),\"\")","v":211.5},{"$f":"IF('Itinerary Programs'!I19=\"y\",getScoreFactor(\"Program\",AE$2),\"\")","v":""},{"$f":"IF('Itinerary Programs'!J19=\"y\",getScoreFactor(\"Program\",AF$2),\"\")","v":""},{"$f":"IF('Itinerary Programs'!K19=\"y\",getScoreFactor(\"Program\",AG$2),\"\")","v":""},{"$f":"IF('Itinerary Programs'!L19=\"y\",getScoreFactor(\"Program\",AH$2),\"\")","v":""},{"$f":"IF('Itinerary Programs'!M19=\"y\",getScoreFactor(\"Program\",AI$2),\"\")","v":""},{"$f":"IF('Itinerary Programs'!N19=\"y\",getScoreFactor(\"Program\",AJ$2),\"\")","v":""},{"$f":"IF('Itinerary Programs'!O19=\"y\",getScoreFactor(\"Program\",AK$2),\"\")","v":""},{"$f":"IF('Itinerary Programs'!P19=\"y\",getScoreFactor(\"Program\",AL$2),\"\")","v":""},{"$f":"IF('Itinerary Programs'!Q19=\"y\",getScoreFactor(\"Program\",AM$2),\"\")","v":""},{"$f":"IF('Itinerary Programs'!R19=\"y\",getScoreFactor(\"Program\",AN$2),\"\")","v":115.5},{"$f":"IF('Itinerary Programs'!S19=\"y\",getScoreFactor(\"Program\",AO$2),\"\")","v":196.5},{"$f":"IF('Itinerary Programs'!T19=\"y\",getScoreFactor(\"Program\",AP$2),\"\")","v":""},{"$f":"IF('Itinerary Programs'!U19=\"y\",getScoreFactor(\"Program\",AQ$2),\"\")","v":""},{"$f":"IF('Itinerary Programs'!V19=\"y\",getScoreFactor(\"Program\",AR$2),\"\")","v":214.5},{"$f":"IF('Itinerary Programs'!W19=\"y\",getScoreFactor(\"Program\",AS$2),\"\")","v":""},{"$f":"IF('Itinerary Programs'!X19=\"y\",getScoreFactor(\"Program\",AT$2),\"\")","v":154.5},{"$f":"IF('Itinerary Programs'!Y19=\"y\",getScoreFactor(\"Program\",AU$2),\"\")","v":""},{"$f":"IF('Itinerary Programs'!Z19=\"y\",getScoreFactor(\"Program\",AV$2),\"\")","v":154.5},{"$f":"IF('Itinerary Programs'!AA19=\"y\",getScoreFactor(\"Program\",AW$2),\"\")","v":159},{"$f":"IF('Itinerary Programs'!AB19=\"y\",getScoreFactor(\"Program\",AX$2),\"\")","v":""},{"$f":"IF('Itinerary Programs'!AC19=\"y\",getScoreFactor(\"Program\",AY$2),\"\")","v":178.5},{"$f":"IF('Itinerary Programs'!AD19=\"y\",getScoreFactor(\"Program\",AZ$2),\"\")","v":162}]
[{"$f":"Itineraries!A20","v":"7A-S"},5723,{"$f":"getScoreFactor(C$2,itineraryCamps!C21)","v":"Challenging"},{"$f":"getScoreFactor(D$2,\"Miles\") *itineraryCamps!D21","v":3600},{"$f":"getScoreFactor(E$2,Itineraries!B20)","v":50},{"$f":"getScoreFactor(F$2,Itineraries!C20)","v":70},{"$f":"getScoreFactor(G$2,Itineraries!E20)","v":250},{"$f":"getScoreFactor(H$2,Itineraries!I20)","v":200},{"$f":"getScoreFactor(I$2,Itineraries!G20)","v":80},{"$f":"getScoreFactor(J$2,Itineraries!K20)","v":0},{"$f":"getScoreFactor(K$2,Itineraries!L20)","v":0},{"$f":"getScoreFactor(L$2,Itineraries!M20)","v":0},null,null,{"$f":"IF(INDEX(baldyMountainHike,ROW()-2)=\"\",\"\",getPeakScore(O$2))","v":""},{"$f":"IF(INDEX(mountPhillipsHike,ROW()-2)=\"\",\"\",getPeakScore(P$2))","v":""},{"$f":"IF(INDEX(toothOfTimeHike,ROW()-2)=\"\",\"\",getPeakScore(Q$2))","v":""},{"$f":"IF(INDEX(trailPeakHike,ROW()-2)=\"\",\"\",getPeakScore(R$2))","v":""},{"$f":"IF(INDEX(mountaineeringHike,ROW()-2)=\"\",\"\",getPeakScore(S$2))","v":""},{"$f":"IF(areaImportant<>\"y\",\"\",IF(Itineraries!Q20<>\"Y\",\"\",getareascore(T$2)))","v":""},{"$f":"IF(areaImportant<>\"y\",\"\",IF(Itineraries!R20<>\"Y\",\"\",getareascore(U$2)))","v":""},{"$f":"IF(areaImportant<>\"y\",\"\",IF(Itineraries!S20<>\"Y\",\"\",getareascore(V$2)))","v":""},{"$f":"IF(areaImportant<>\"y\",\"\",IF(Itineraries!T20<>\"Y\",\"\",getareascore(W$2)))","v":""},{"$f":"IF('Itinerary Programs'!B20=\"y\",getScoreFactor(\"Program\",X$2),\"\")","v":""},{"$f":"IF('Itinerary Programs'!C20=\"y\",getScoreFactor(\"Program\",Y$2),\"\")","v":""},{"$f":"IF('Itinerary Programs'!D20=\"y\",getScoreFactor(\"Program\",Z$2),\"\")","v":""},{"$f":"IF('Itinerary Programs'!E20=\"y\",getScoreFactor(\"Program\",AA$2),\"\")","v":343.5},{"$f":"IF('Itinerary Programs'!F20=\"y\",getScoreFactor(\"Program\",AB$2),\"\")","v":""},{"$f":"IF('Itinerary Programs'!G20=\"y\",getScoreFactor(\"Program\",AC$2),\"\")","v":""},{"$f":"IF('Itinerary Programs'!H20=\"y\",getScoreFactor(\"Program\",AD$2),\"\")","v":211.5},{"$f":"IF('Itinerary Programs'!I20=\"y\",getScoreFactor(\"Program\",AE$2),\"\")","v":172.5},{"$f":"IF('Itinerary Programs'!J20=\"y\",getScoreFactor(\"Program\",AF$2),\"\")","v":""},{"$f":"IF('Itinerary Programs'!K20=\"y\",getScoreFactor(\"Program\",AG$2),\"\")","v":""},{"$f":"IF('Itinerary Programs'!L20=\"y\",getScoreFactor(\"Program\",AH$2),\"\")","v":""},{"$f":"IF('Itinerary Programs'!M20=\"y\",getScoreFactor(\"Program\",AI$2),\"\")","v":""},{"$f":"IF('Itinerary Programs'!N20=\"y\",getScoreFactor(\"Program\",AJ$2),\"\")","v":""},{"$f":"IF('Itinerary Programs'!O20=\"y\",getScoreFactor(\"Program\",AK$2),\"\")","v":""},{"$f":"IF('Itinerary Programs'!P20=\"y\",getScoreFactor(\"Program\",AL$2),\"\")","v":""},{"$f":"IF('Itinerary Programs'!Q20=\"y\",getScoreFactor(\"Program\",AM$2),\"\")","v":""},{"$f":"IF('Itinerary Programs'!R20=\"y\",getScoreFactor(\"Program\",AN$2),\"\")","v":""},{"$f":"IF('Itinerary Programs'!S20=\"y\",getScoreFactor(\"Program\",AO$2),\"\")","v":""},{"$f":"IF('Itinerary Programs'!T20=\"y\",getScoreFactor(\"Program\",AP$2),\"\")","v":""},{"$f":"IF('Itinerary Programs'!U20=\"y\",getScoreFactor(\"Program\",AQ$2),\"\")","v":""},{"$f":"IF('Itinerary Programs'!V20=\"y\",getScoreFactor(\"Program\",AR$2),\"\")","v":""},{"$f":"IF('Itinerary Programs'!W20=\"y\",getScoreFactor(\"Program\",AS$2),\"\")","v":""},{"$f":"IF('Itinerary Programs'!X20=\"y\",getScoreFactor(\"Program\",AT$2),\"\")","v":154.5},{"$f":"IF('Itinerary Programs'!Y20=\"y\",getScoreFactor(\"Program\",AU$2),\"\")","v":115.5},{"$f":"IF('Itinerary Programs'!Z20=\"y\",getScoreFactor(\"Program\",AV$2),\"\")","v":154.5},{"$f":"IF('Itinerary Programs'!AA20=\"y\",getScoreFactor(\"Program\",AW$2),\"\")","v":159},{"$f":"IF('Itinerary Programs'!AB20=\"y\",getScoreFactor(\"Program\",AX$2),\"\")","v":""},{"$f":"IF('Itinerary Programs'!AC20=\"y\",getScoreFactor(\"Program\",AY$2),\"\")","v":""},{"$f":"IF('Itinerary Programs'!AD20=\"y\",getScoreFactor(\"Program\",AZ$2),\"\")","v":162}]
[{"$f":"Itineraries!A21","v":"7B-S"},7123,{"$f":"getScoreFactor(C$2,itineraryCamps!C22)","v":"Challenging"},{"$f":"getScoreFactor(D$2,\"Miles\") *itineraryCamps!D22","v":5000},{"$f":"getScoreFactor(E$2,Itineraries!B21)","v":30},{"$f":"getScoreFactor(F$2,Itineraries!C21)","v":90},{"$f":"getScoreFactor(G$2,Itineraries!E21)","v":250},{"$f":"getScoreFactor(H$2,Itineraries!I21)","v":200},{"$f":"getScoreFactor(I$2,Itineraries!G21)","v":80},{"$f":"getScoreFactor(J$2,Itineraries!K21)","v":0},{"$f":"getScoreFactor(K$2,Itineraries!L21)","v":0},{"$f":"getScoreFactor(L$2,Itineraries!M21)","v":0},null,null,{"$f":"IF(INDEX(baldyMountainHike,ROW()-2)=\"\",\"\",getPeakScore(O$2))","v":""},{"$f":"IF(INDEX(mountPhillipsHike,ROW()-2)=\"\",\"\",getPeakScore(P$2))","v":""},{"$f":"IF(INDEX(toothOfTimeHike,ROW()-2)=\"\",\"\",getPeakScore(Q$2))","v":""},{"$f":"IF(INDEX(trailPeakHike,ROW()-2)=\"\",\"\",getPeakScore(R$2))","v":""},{"$f":"IF(INDEX(mountaineeringHike,ROW()-2)=\"\",\"\",getPeakScore(S$2))","v":""},{"$f":"IF(areaImportant<>\"y\",\"\",IF(Itineraries!Q21<>\"Y\",\"\",getareascore(T$2)))","v":""},{"$f":"IF(areaImportant<>\"y\",\"\",IF(Itineraries!R21<>\"Y\",\"\",getareascore(U$2)))","v":""},{"$f":"IF(areaImportant<>\"y\",\"\",IF(Itineraries!S21<>\"Y\",\"\",getareascore(V$2)))","v":""},{"$f":"IF(areaImportant<>\"y\",\"\",IF(Itineraries!T21<>\"Y\",\"\",getareascore(W$2)))","v":""},{"$f":"IF('Itinerary Programs'!B21=\"y\",getScoreFactor(\"Program\",X$2),\"\")","v":""},{"$f":"IF('Itinerary Programs'!C21=\"y\",getScoreFactor(\"Program\",Y$2),\"\")","v":""},{"$f":"IF('Itinerary Programs'!D21=\"y\",getScoreFactor(\"Program\",Z$2),\"\")","v":""},{"$f":"IF('Itinerary Programs'!E21=\"y\",getScoreFactor(\"Program\",AA$2),\"\")","v":343.5},{"$f":"IF('Itinerary Programs'!F21=\"y\",getScoreFactor(\"Program\",AB$2),\"\")","v":""},{"$f":"IF('Itinerary Programs'!G21=\"y\",getScoreFactor(\"Program\",AC$2),\"\")","v":""},{"$f":"IF('Itinerary Programs'!H21=\"y\",getScoreFactor(\"Program\",AD$2),\"\")","v":211.5},{"$f":"IF('Itinerary Programs'!I21=\"y\",getScoreFactor(\"Program\",AE$2),\"\")","v":172.5},{"$f":"IF('Itinerary Programs'!J21=\"y\",getScoreFactor(\"Program\",AF$2),\"\")","v":""},{"$f":"IF('Itinerary Programs'!K21=\"y\",getScoreFactor(\"Program\",AG$2),\"\")","v":""},{"$f":"IF('Itinerary Programs'!L21=\"y\",getScoreFactor(\"Program\",AH$2),\"\")","v":""},{"$f":"IF('Itinerary Programs'!M21=\"y\",getScoreFactor(\"Program\",AI$2),\"\")","v":""},{"$f":"IF('Itinerary Programs'!N21=\"y\",getScoreFactor(\"Program\",AJ$2),\"\")","v":""},{"$f":"IF('Itinerary Programs'!O21=\"y\",getScoreFactor(\"Program\",AK$2),\"\")","v":""},{"$f":"IF('Itinerary Programs'!P21=\"y\",getScoreFactor(\"Program\",AL$2),\"\")","v":""},{"$f":"IF('Itinerary Programs'!Q21=\"y\",getScoreFactor(\"Program\",AM$2),\"\")","v":""},{"$f":"IF('Itinerary Programs'!R21=\"y\",getScoreFactor(\"Program\",AN$2),\"\")","v":""},{"$f":"IF('Itinerary Programs'!S21=\"y\",getScoreFactor(\"Program\",AO$2),\"\")","v":""},{"$f":"IF('Itinerary Programs'!T21=\"y\",getScoreFactor(\"Program\",AP$2),\"\")","v":""},{"$f":"IF('Itinerary Programs'!U21=\"y\",getScoreFactor(\"Program\",AQ$2),\"\")","v":""},{"$f":"IF('Itinerary Programs'!V21=\"y\",getScoreFactor(\"Program\",AR$2),\"\")","v":""},{"$f":"IF('Itinerary Programs'!W21=\"y\",getScoreFactor(\"Program\",AS$2),\"\")","v":""},{"$f":"IF('Itinerary Programs'!X21=\"y\",getScoreFactor(\"Program\",AT$2),\"\")","v":154.5},{"$f":"IF('Itinerary Programs'!Y21=\"y\",getScoreFactor(\"Program\",AU$2),\"\")","v":115.5},{"$f":"IF('Itinerary Programs'!Z21=\"y\",getScoreFactor(\"Program\",AV$2),\"\")","v":154.5},{"$f":"IF('Itinerary Programs'!AA21=\"y\",getScoreFactor(\"Program\",AW$2),\"\")","v":159},{"$f":"IF('Itinerary Programs'!AB21=\"y\",getScoreFactor(\"Program\",AX$2),\"\")","v":""},{"$f":"IF('Itinerary Programs'!AC21=\"y\",getScoreFactor(\"Program\",AY$2),\"\")","v":""},{"$f":"IF('Itinerary Programs'!AD21=\"y\",getScoreFactor(\"Program\",AZ$2),\"\")","v":162}]
[]
[null,null,{"$f":"\"Distances \"  & MAX(D3:D21)/mileageFactor & \" to \" & MIN(D3:D21)/mileageFactor& \" miles\"","v":"Distances 56 to 32 miles"}]
[]
["Custom Properties"]
["revision","2023_1-0"]
["trekYear","2023"]
["nDays",8]
["nItineraries",19]
["itineraryNoPrefix","Cavalcade"]

{"sheet":"Itineraries","index":14,"n_rows":24,"n_cols":20,"rows_kept":24,"cut":false,"hidden":true,"merged":[[22,2,23,2],[0,13,0,15],[0,16,0,19]]}
[null,null,null,null,null,null,null,null,null,null,null,null,null,"Maps",null,null,"Region"]
["Itinerary","Days Food from Base","Max Days Food","Staffed Camps","Trail Camps","Layovers","Total Camps","Dry Camps","Showers","Min Altitude","Max Altitude","Total Gain","Average Daily Change","South","North","Valle Vidal","South","Central","North","Valle Vidal"]
[{"$f":"itineraryCamps!A4","v":"1A-N"},{"$f":"itineraryCamps!DW4","v":4},{"$f":"itineraryCamps!DX4","v":4},{"$f":"countcamps(itineraryStaff,itineraryCamps!B4)","v":6},{"$f":"countcamps(itineraryTrail,itineraryCamps!$B4)","v":0},{"$f":"countcamps(itineraryLayover,itineraryCamps!$B4)","v":1},{"$f":"D3+E3-F3","v":5},{"$f":"countcamps(itineraryDry,itineraryCamps!$B4)","v":0},{"$f":"countcamps(itineraryShowers,itineraryCamps!$B4)","v":3},{"$f":"MIN(itineraryCamps!AL4:AU4)","v":7150},{"$f":"MAX(itineraryCamps!AL4:AU4)","v":9851},{"$f":"K3-J3","v":2701},{"$f":"AVERAGE(itineraryCamps!AV4:BD4)","v":759.6},{"$f":"contains(N$2,itineraryCamps!$B4,itineraryMaps)","v":""},{"$f":"contains(O$2,itineraryCamps!$B4,itineraryMaps)","v":"Y"},{"$f":"contains(P$2,itineraryCamps!$B4,itineraryMaps)","v":""},{"$f":"contains(Q$2,itineraryCamps!$B4,itineraryCountry)","v":""},{"$f":"contains(R$2,itineraryCamps!$B4,itineraryCountry)","v":""},{"$f":"contains(S$2,itineraryCamps!$B4,itineraryCountry)","v":"Y"},{"$f":"contains(T$2,itineraryCamps!$B4,itineraryCountry)","v":""}]
[{"$f":"itineraryCamps!A5","v":"1B-N"},{"$f":"itineraryCamps!DW5","v":3},{"$f":"itineraryCamps!DX5","v":3},{"$f":"countcamps(itineraryStaff,itineraryCamps!B5)","v":6},{"$f":"countcamps(itineraryTrail,itineraryCamps!$B5)","v":0},{"$f":"countcamps(itineraryLayover,itineraryCamps!$B5)","v":1},{"$f":"D4+E4-F4","v":5},{"$f":"countcamps(itineraryDry,itineraryCamps!$B5)","v":0},{"$f":"countcamps(itineraryShowers,itineraryCamps!$B5)","v":3},{"$f":"MIN(itineraryCamps!AL5:AU5)","v":7150},{"$f":"MAX(itineraryCamps!AL5:AU5)","v":9851},{"$f":"K4-J4","v":2701},{"$f":"AVERAGE(itineraryCamps!AV5:BD5)","v":931.2},{"$f":"contains(N$2,itineraryCamps!$B5,itineraryMaps)","v":""},{"$f":"contains(O$2,itineraryCamps!$B5,itineraryMaps)","v":"Y"},{"$f":"contains(P$2,itineraryCamps!$B5,itineraryMaps)","v":""},{"$f":"contains(Q$2,itineraryCamps!$B5,itineraryCountry)","v":""},{"$f":"contains(R$2,itineraryCamps!$B5,itineraryCountry)","v":""},{"$f":"contains(S$2,itineraryCamps!$B5,itineraryCountry)","v":"Y"},{"$f":"contains(T$2,itineraryCamps!$B5,itineraryCountry)","v":""}]
[{"$f":"itineraryCamps!A6","v":"2A-N"},{"$f":"itineraryCamps!DW6","v":3},{"$f":"itineraryCamps!DX6","v":3},{"$f":"countcamps(itineraryStaff,itineraryCamps!B6)","v":6},{"$f":"countcamps(itineraryTrail,itineraryCamps!$B6)","v":0},{"$f":"countcamps(itineraryLayover,itineraryCamps!$B6)","v":1},5,{"$f":"countcamps(itineraryDry,itineraryCamps!$B6)","v":0},{"$f":"countcamps(itineraryShowers,itineraryCamps!$B6)","v":3},{"$f":"MIN(itineraryCamps!AL6:AU6)","v":7150},{"$f":"MAX(itineraryCamps!AL6:AU6)","v":9851},2701,{"$f":"AVERAGE(itineraryCamps!AV6:BD6)","v":759.6},{"$f":"contains(N$2,itineraryCamps!$B6,itineraryMaps)","v":""},{"$f":"contains(O$2,itineraryCamps!$B6,itineraryMaps)","v":"Y"},{"$f":"contains(P$2,itineraryCamps!$B6,itineraryMaps)","v":""},{"$f":"contains(Q$2,itineraryCamps!$B6,itineraryCountry)","v":""},{"$f":"contains(R$2,itineraryCamps!$B6,itineraryCountry)","v":""},{"$f":"contains(S$2,itineraryCamps!$B6,itineraryCountry)","v":"Y"},{"$f":"contains(T$2,itineraryCamps!$B6,itineraryCountry)","v":""}]
[{"$f":"itineraryCamps!A7","v":"2B-N"},{"$f":"itineraryCamps!DW7","v":4},{"$f":"itineraryCamps!DX7","v":4},{"$f":"countcamps(itineraryStaff,itineraryCamps!B7)","v":6},{"$f":"countcamps(itineraryTrail,itineraryCamps!$B7)","v":0},{"$f":"countcamps(itineraryLayover,itineraryCamps!$B7)","v":1},5,{"$f":"countcamps(itineraryDry,itineraryCamps!$B7)","v":0},{"$f":"countcamps(itineraryShowers,itineraryCamps!$B7)","v":3},{"$f":"MIN(itineraryCamps!AL7:AU7)","v":7150},{"$f":"MAX(itineraryCamps!AL7:AU7)","v":9851},2701,{"$f":"AVERAGE(itineraryCamps!AV7:BD7)","v":896.6},{"$f":"contains(N$2,itineraryCamps!$B7,itineraryMaps)","v":""},{"$f":"contains(O$2,itineraryCamps!$B7,itineraryMaps)","v":"Y"},{"$f":"contains(P$2,itineraryCamps!$B7,itineraryMaps)","v":""},{"$f":"contains(Q$2,itineraryCamps!$B7,itineraryCountry)","v":""},{"$f":"contains(R$2,itineraryCamps!$B7,itineraryCountry)","v":""},{"$f":"contains(S$2,itineraryCamps!$B7,itineraryCountry)","v":"Y"},{"$f":"contains(T$2,itineraryCamps!$B7,itineraryCountry)","v":""}]
[{"$f":"itineraryCamps!A8","v":"3A-N"},{"$f":"itineraryCamps!DW8","v":3},{"$f":"itineraryCamps!DX8","v":3},{"$f":"countcamps(itineraryStaff,itineraryCamps!B8)","v":6},{"$f":"countcamps(itineraryTrail,itineraryCamps!$B8)","v":0},{"$f":"countcamps(itineraryLayover,itineraryCamps!$B8)","v":1},5,{"$f":"countcamps(itineraryDry,itineraryCamps!$B8)","v":0},{"$f":"countcamps(itineraryShowers,itineraryCamps!$B8)","v":2},{"$f":"MIN(itineraryCamps!AL8:AU8)","v":7150},{"$f":"MAX(itineraryCamps!AL8:AU8)","v":9851},2701,{"$f":"AVERAGE(itineraryCamps!AV8:BD8)","v":896.6},{"$f":"contains(N$2,itineraryCamps!$B8,itineraryMaps)","v":""},{"$f":"contains(O$2,itineraryCamps!$B8,itineraryMaps)","v":"Y"},{"$f":"contains(P$2,itineraryCamps!$B8,itineraryMaps)","v":""},{"$f":"contains(Q$2,itineraryCamps!$B8,itineraryCountry)","v":""},{"$f":"contains(R$2,itineraryCamps!$B8,itineraryCountry)","v":""},{"$f":"contains(S$2,itineraryCamps!$B8,itineraryCountry)","v":"Y"},{"$f":"contains(T$2,itineraryCamps!$B8,itineraryCountry)","v":""}]
[{"$f":"itineraryCamps!A9","v":"3B-N"},{"$f":"itineraryCamps!DW9","v":2},{"$f":"itineraryCamps!DX9","v":2},{"$f":"countcamps(itineraryStaff,itineraryCamps!B9)","v":6},{"$f":"countcamps(itineraryTrail,itineraryCamps!$B9)","v":0},{"$f":"countcamps(itineraryLayover,itineraryCamps!$B9)","v":1},5,{"$f":"countcamps(itineraryDry,itineraryCamps!$B9)","v":0},{"$f":"countcamps(itineraryShowers,itineraryCamps!$B9)","v":2},{"$f":"MIN(itineraryCamps!AL9:AU9)","v":7150},{"$f":"MAX(itineraryCamps!AL9:AU9)","v":9851},2701,{"$f":"AVERAGE(itineraryCamps!AV9:BD9)","v":759.6},{"$f":"contains(N$2,itineraryCamps!$B9,itineraryMaps)","v":""},{"$f":"contains(O$2,itineraryCamps!$B9,itineraryMaps)","v":"Y"},{"$f":"contains(P$2,itineraryCamps!$B9,itineraryMaps)","v":""},{"$f":"contains(Q$2,itineraryCamps!$B9,itineraryCountry)","v":""},{"$f":"contains(R$2,itineraryCamps!$B9,itineraryCountry)","v":""},{"$f":"contains(S$2,itineraryCamps!$B9,itineraryCountry)","v":"Y"},{"$f":"contains(T$2,itineraryCamps!$B9,itineraryCountry)","v":""}]
[{"$f":"itineraryCamps!A10","v":"4A-N"},{"$f":"itineraryCamps!DW10","v":5},{"$f":"itineraryCamps!DX10","v":5},{"$f":"countcamps(itineraryStaff,itineraryCamps!B10)","v":6},{"$f":"countcamps(itineraryTrail,itineraryCamps!$B10)","v":0},{"$f":"countcamps(itineraryLayover,itineraryCamps!$B10)","v":1},5,{"$f":"countcamps(itineraryDry,itineraryCamps!$B10)","v":0},{"$f":"countcamps(itineraryShowers,itineraryCamps!$B10)","v":1},{"$f":"MIN(itineraryCamps!AL10:AU10)","v":7150},{"$f":"MAX(itineraryCamps!AL10:AU10)","v":8069},919,{"$f":"AVERAGE(itineraryCamps!AV10:BD10)","v":183.8},{"$f":"contains(N$2,itineraryCamps!$B10,itineraryMaps)","v":""},{"$f":"contains(O$2,itineraryCamps!$B10,itineraryMaps)","v":"Y"},{"$f":"contains(P$2,itineraryCamps!$B10,itineraryMaps)","v":""},{"$f":"contains(Q$2,itineraryCamps!$B10,itineraryCountry)","v":""},{"$f":"contains(R$2,itineraryCamps!$B10,itineraryCountry)","v":""},{"$f":"contains(S$2,itineraryCamps!$B10,itineraryCountry)","v":"Y"},{"$f":"contains(T$2,itineraryCamps!$B10,itineraryCountry)","v":""}]
[{"$f":"itineraryCamps!A11","v":"1A-S"},{"$f":"itineraryCamps!DW11","v":1},{"$f":"itineraryCamps!DX11","v":2},{"$f":"countcamps(itineraryStaff,itineraryCamps!B11)","v":5},{"$f":"countcamps(itineraryTrail,itineraryCamps!$B11)","v":1},{"$f":"countcamps(itineraryLayover,itineraryCamps!$B11)","v":1},5,{"$f":"countcamps(itineraryDry,itineraryCamps!$B11)","v":0},{"$f":"countcamps(itineraryShowers,itineraryCamps!$B11)","v":4},{"$f":"MIN(itineraryCamps!AL11:AU11)","v":6696},{"$f":"MAX(itineraryCamps!AL11:AU11)","v":9330},2634,{"$f":"AVERAGE(itineraryCamps!AV11:BD11)","v":797.4},{"$f":"contains(N$2,itineraryCamps!$B11,itineraryMaps)","v":"Y"},{"$f":"contains(O$2,itineraryCamps!$B11,itineraryMaps)","v":""},{"$f":"contains(P$2,itineraryCamps!$B11,itineraryMaps)","v":""},{"$f":"contains(Q$2,itineraryCamps!$B11,itineraryCountry)","v":"Y"},{"$f":"contains(R$2,itineraryCamps!$B11,itineraryCountry)","v":"Y"},{"$f":"contains(S$2,itineraryCamps!$B11,itineraryCountry)","v":""},{"$f":"contains(T$2,itineraryCamps!$B11,itineraryCountry)","v":""}]
[{"$f":"itineraryCamps!A12","v":"1B-S"},{"$f":"itineraryCamps!DW12","v":1},{"$f":"itineraryCamps!DX12","v":3},{"$f":"countcamps(itineraryStaff,itineraryCamps!B12)","v":5},{"$f":"countcamps(itineraryTrail,itineraryCamps!$B12)","v":1},{"$f":"countcamps(itineraryLayover,itineraryCamps!$B12)","v":1},5,{"$f":"countcamps(itineraryDry,itineraryCamps!$B12)","v":0},{"$f":"countcamps(itineraryShowers,itineraryCamps!$B12)","v":4},{"$f":"MIN(itineraryCamps!AL12:AU12)","v":6696},{"$f":"MAX(itineraryCamps!AL12:AU12)","v":9330},2634,{"$f":"AVERAGE(itineraryCamps!AV12:BD12)","v":949.4},{"$f":"contains(N$2,itineraryCamps!$B12,itineraryMaps)","v":"Y"},{"$f":"contains(O$2,itineraryCamps!$B12,itineraryMaps)","v":""},{"$f":"contains(P$2,itineraryCamps!$B12,itineraryMaps)","v":""},{"$f":"contains(Q$2,itineraryCamps!$B12,itineraryCountry)","v":"Y"},{"$f":"contains(R$2,itineraryCamps!$B12,itineraryCountry)","v":"Y"},{"$f":"contains(S$2,itineraryCamps!$B12,itineraryCountry)","v":""},{"$f":"contains(T$2,itineraryCamps!$B12,itineraryCountry)","v":""}]
[{"$f":"itineraryCamps!A13","v":"2A-S"},{"$f":"itineraryCamps!DW13","v":1},{"$f":"itineraryCamps!DX13","v":3},{"$f":"countcamps(itineraryStaff,itineraryCamps!B13)","v":6},{"$f":"countcamps(itineraryTrail,itineraryCamps!$B13)","v":0},{"$f":"countcamps(itineraryLayover,itineraryCamps!$B13)","v":1},5,{"$f":"countcamps(itineraryDry,itineraryCamps!$B13)","v":0},{"$f":"countcamps(itineraryShowers,itineraryCamps!$B13)","v":4},{"$f":"MIN(itineraryCamps!AL13:AU13)","v":6696},{"$f":"MAX(itineraryCamps!AL13:AU13)","v":9330},2634,{"$f":"AVERAGE(itineraryCamps!AV13:BD13)","v":797.4},{"$f":"contains(N$2,itineraryCamps!$B13,itineraryMaps)","v":"Y"},{"$f":"contains(O$2,itineraryCamps!$B13,itineraryMaps)","v":""},{"$f":"contains(P$2,itineraryCamps!$B13,itineraryMaps)","v":""},{"$f":"contains(Q$2,itineraryCamps!$B13,itineraryCountry)","v":"Y"},{"$f":"contains(R$2,itineraryCamps!$B13,itineraryCountry)","v":"Y"},{"$f":"contains(S$2,itineraryCamps!$B13,itineraryCountry)","v":""},{"$f":"contains(T$2,itineraryCamps!$B13,itineraryCountry)","v":""}]
[{"$f":"itineraryCamps!A14","v":"2B-S"},{"$f":"itineraryCamps!DW14","v":1},{"$f":"itineraryCamps!DX14","v":2},{"$f":"countcamps(itineraryStaff,itineraryCamps!B14)","v":6},{"$f":"countcamps(itineraryTrail,itineraryCamps!$B14)","v":0},{"$f":"countcamps(itineraryLayover,itineraryCamps!$B14)","v":1},5,{"$f":"countcamps(itineraryDry,itineraryCamps!$B14)","v":0},{"$f":"countcamps(itineraryShowers,itineraryCamps!$B14)","v":4},{"$f":"MIN(itineraryCamps!AL14:AU14)","v":6696},{"$f":"MAX(itineraryCamps!AL14:AU14)","v":9330},2634,{"$f":"AVERAGE(itineraryCamps!AV14:BD14)","v":949.4},{"$f":"contains(N$2,itineraryCamps!$B14,itineraryMaps)","v":"Y"},{"$f":"contains(O$2,itineraryCamps!$B14,itineraryMaps)","v":""},{"$f":"contains(P$2,itineraryCamps!$B14,itineraryMaps)","v":""},{"$f":"contains(Q$2,itineraryCamps!$B14,itineraryCountry)","v":"Y"},{"$f":"contains(R$2,itineraryCamps!$B14,itineraryCountry)","v":"Y"},{"$f":"contains(S$2,itineraryCamps!$B14,itineraryCountry)","v":""},{"$f":"contains(T$2,itineraryCamps!$B14,itineraryCountry)","v":""}]
[{"$f":"itineraryCamps!A15","v":"3A-S"},{"$f":"itineraryCamps!DW15","v":1},{"$f":"itineraryCamps!DX15","v":3},{"$f":"countcamps(itineraryStaff,itineraryCamps!B15)","v":6},{"$f":"countcamps(itineraryTrail,itineraryCamps!$B15)","v":0},{"$f":"countcamps(itineraryLayover,itineraryCamps!$B15)","v":1},5,{"$f":"countcamps(itineraryDry,itineraryCamps!$B15)","v":0},{"$f":"countcamps(itineraryShowers,itineraryCamps!$B15)","v":2},{"$f":"MIN(itineraryCamps!AL15:AU15)","v":6696},{"$f":"MAX(itineraryCamps!AL15:AU15)","v":9330},2634,{"$f":"AVERAGE(itineraryCamps!AV15:BD15)","v":797.4},{"$f":"contains(N$2,itineraryCamps!$B15,itineraryMaps)","v":"Y"},{"$f":"contains(O$2,itineraryCamps!$B15,itineraryMaps)","v":""},{"$f":"contains(P$2,itineraryCamps!$B15,itineraryMaps)","v":""},{"$f":"contains(Q$2,itineraryCamps!$B15,itineraryCountry)","v":"Y"},{"$f":"contains(R$2,itineraryCamps!$B15,itineraryCountry)","v":"Y"},{"$f":"contains(S$2,itineraryCamps!$B15,itineraryCountry)","v":""},{"$f":"contains(T$2,itineraryCamps!$B15,itineraryCountry)","v":""}]
[{"$f":"itineraryCamps!A16","v":"3B-S"},{"$f":"itineraryCamps!DW16","v":1},{"$f":"itineraryCamps!DX16","v":2},{"$f":"countcamps(itineraryStaff,itineraryCamps!B16)","v":6},{"$f":"countcamps(itineraryTrail,itineraryCamps!$B16)","v":0},{"$f":"countcamps(itineraryLayover,itineraryCamps!$B16)","v":1},5,{"$f":"countcamps(itineraryDry,itineraryCamps!$B16)","v":0},{"$f":"countcamps(itineraryShowers,itineraryCamps!$B16)","v":2},{"$f":"MIN(itineraryCamps!AL16:AU16)","v":6696},{"$f":"MAX(itineraryCamps!AL16:AU16)","v":9330},2634,{"$f":"AVERAGE(itineraryCamps!AV16:BD16)","v":713.2},{"$f":"contains(N$2,itineraryCamps!$B16,itineraryMaps)","v":"Y"},{"$f":"contains(O$2,itineraryCamps!$B16,itineraryMaps)","v":""},{"$f":"contains(P$2,itineraryCamps!$B16,itineraryMaps)","v":""},{"$f":"contains(Q$2,itineraryCamps!$B16,itineraryCountry)","v":"Y"},{"$f":"contains(R$2,itineraryCamps!$B16,itineraryCountry)","v":"Y"},{"$f":"contains(S$2,itineraryCamps!$B16,itineraryCountry)","v":""},{"$f":"contains(T$2,itineraryCamps!$B16,itineraryCountry)","v":""}]
[{"$f":"itineraryCamps!A17","v":"4A-S"},{"$f":"itineraryCamps!DW17","v":1},{"$f":"itineraryCamps!DX17","v":2},{"$f":"countcamps(itineraryStaff,itineraryCamps!B17)","v":6},{"$f":"countcamps(itineraryTrail,itineraryCamps!$B17)","v":0},{"$f":"countcamps(itineraryLayover,itineraryCamps!$B17)","v":1},5,{"$f":"countcamps(itineraryDry,itineraryCamps!$B17)","v":0},{"$f":"countcamps(itineraryShowers,itineraryCamps!$B17)","v":2},{"$f":"MIN(itineraryCamps!AL17:AU17)","v":6696},{"$f":"MAX(itineraryCamps!AL17:AU17)","v":9330},2634,{"$f":"AVERAGE(itineraryCamps!AV17:BD17)","v":889.8},{"$f":"contains(N$2,itineraryCamps!$B17,itineraryMaps)","v":"Y"},{"$f":"contains(O$2,itineraryCamps!$B17,itineraryMaps)","v":""},{"$f":"contains(P$2,itineraryCamps!$B17,itineraryMaps)","v":""},{"$f":"contains(Q$2,itineraryCamps!$B17,itineraryCountry)","v":"Y"},{"$f":"contains(R$2,itineraryCamps!$B17,itineraryCountry)","v":"Y"},{"$f":"contains(S$2,itineraryCamps!$B17,itineraryCountry)","v":""},{"$f":"contains(T$2,itineraryCamps!$B17,itineraryCountry)","v":""}]
[{"$f":"itineraryCamps!A18","v":"5A-S"},{"$f":"itineraryCamps!DW18","v":1},{"$f":"itineraryCamps!DX18","v":2},{"$f":"countcamps(itineraryStaff,itineraryCamps!B18)","v":5},{"$f":"countcamps(itineraryTrail,itineraryCamps!$B18)","v":1},{"$f":"countcamps(itineraryLayover,itineraryCamps!$B18)","v":1},5,{"$f":"countcamps(itineraryDry,itineraryCamps!$B18)","v":0},{"$f":"countcamps(itineraryShowers,itineraryCamps!$B18)","v":4},{"$f":"MIN(itineraryCamps!AL18:AU18)","v":6696},{"$f":"MAX(itineraryCamps!AL18:AU18)","v":9330},2634,{"$f":"AVERAGE(itineraryCamps!AV18:BD18)","v":889.8},{"$f":"contains(N$2,itineraryCamps!$B18,itineraryMaps)","v":"Y"},{"$f":"contains(O$2,itineraryCamps!$B18,itineraryMaps)","v":""},{"$f":"contains(P$2,itineraryCamps!$B18,itineraryMaps)","v":""},{"$f":"contains(Q$2,itineraryCamps!$B18,itineraryCountry)","v":"Y"},{"$f":"contains(R$2,itineraryCamps!$B18,itineraryCountry)","v":"Y"},{"$f":"contains(S$2,itineraryCamps!$B18,itineraryCountry)","v":""},{"$f":"contains(T$2,itineraryCamps!$B18,itineraryCountry)","v":""}]
[{"$f":"itineraryCamps!A19","v":"6A-S"},{"$f":"itineraryCamps!DW19","v":4},{"$f":"itineraryCamps!DX19","v":4},{"$f":"countcamps(itineraryStaff,itineraryCamps!B19)","v":6},{"$f":"countcamps(itineraryTrail,itineraryCamps!$B19)","v":0},{"$f":"countcamps(itineraryLayover,itineraryCamps!$B19)","v":1},5,{"$f":"countcamps(itineraryDry,itineraryCamps!$B19)","v":0},{"$f":"countcamps(itineraryShowers,itineraryCamps!$B19)","v":4},{"$f":"MIN(itineraryCamps!AL19:AU19)","v":6696},{"$f":"MAX(itineraryCamps!AL19:AU19)","v":9330},2634,{"$f":"AVERAGE(itineraryCamps!AV19:BD19)","v":713.2},{"$f":"contains(N$2,itineraryCamps!$B19,itineraryMaps)","v":"Y"},{"$f":"contains(O$2,itineraryCamps!$B19,itineraryMaps)","v":""},{"$f":"contains(P$2,itineraryCamps!$B19,itineraryMaps)","v":""},{"$f":"contains(Q$2,itineraryCamps!$B19,itineraryCountry)","v":"Y"},{"$f":"contains(R$2,itineraryCamps!$B19,itineraryCountry)","v":"Y"},{"$f":"contains(S$2,itineraryCamps!$B19,itineraryCountry)","v":""},{"$f":"contains(T$2,itineraryCamps!$B19,itineraryCountry)","v":""}]
[{"$f":"itineraryCamps!A20","v":"6B-S"},{"$f":"itineraryCamps!DW20","v":1},{"$f":"itineraryCamps!DX20","v":2},{"$f":"countcamps(itineraryStaff,itineraryCamps!B20)","v":6},{"$f":"countcamps(itineraryTrail,itineraryCamps!$B20)","v":0},{"$f":"countcamps(itineraryLayover,itineraryCamps!$B20)","v":1},5,{"$f":"countcamps(itineraryDry,itineraryCamps!$B20)","v":0},{"$f":"countcamps(itineraryShowers,itineraryCamps!$B20)","v":4},{"$f":"MIN(itineraryCamps!AL20:AU20)","v":6696},{"$f":"MAX(itineraryCamps!AL20:AU20)","v":9330},2634,{"$f":"AVERAGE(itineraryCamps!AV20:BD20)","v":889.8},{"$f":"contains(N$2,itineraryCamps!$B20,itineraryMaps)","v":"Y"},{"$f":"contains(O$2,itineraryCamps!$B20,itineraryMaps)","v":""},{"$f":"contains(P$2,itineraryCamps!$B20,itineraryMaps)","v":""},{"$f":"contains(Q$2,itineraryCamps!$B20,itineraryCountry)","v":"Y"},{"$f":"contains(R$2,itineraryCamps!$B20,itineraryCountry)","v":"Y"},{"$f":"contains(S$2,itineraryCamps!$B20,itineraryCountry)","v":""},{"$f":"contains(T$2,itineraryCamps!$B20,itineraryCountry)","v":""}]
[{"$f":"itineraryCamps!A21","v":"7A-S"},{"$f":"itineraryCamps!DW21","v":4},{"$f":"itineraryCamps!DX21","v":4},{"$f":"countcamps(itineraryStaff,itineraryCamps!B21)","v":6},{"$f":"countcamps(itineraryTrail,itineraryCamps!$B21)","v":0},{"$f":"countcamps(itineraryLayover,itineraryCamps!$B21)","v":1},5,{"$f":"countcamps(itineraryDry,itineraryCamps!$B21)","v":0},{"$f":"countcamps(itineraryShowers,itineraryCamps!$B21)","v":3},{"$f":"MIN(itineraryCamps!AL21:AU21)","v":6696},{"$f":"MAX(itineraryCamps!AL21:AU21)","v":8398},1702,{"$f":"AVERAGE(itineraryCamps!AV21:BD21)","v":354.4},{"$f":"contains(N$2,itineraryCamps!$B21,itineraryMaps)","v":"Y"},{"$f":"contains(O$2,itineraryCamps!$B21,itineraryMaps)","v":""},{"$f":"contains(P$2,itineraryCamps!$B21,itineraryMaps)","v":""},{"$f":"contains(Q$2,itineraryCamps!$B21,itineraryCountry)","v":"Y"},{"$f":"contains(R$2,itineraryCamps!$B21,itineraryCountry)","v":"Y"},{"$f":"contains(S$2,itineraryCamps!$B21,itineraryCountry)","v":""},{"$f":"contains(T$2,itineraryCamps!$B21,itineraryCountry)","v":""}]
[{"$f":"itineraryCamps!A22","v":"7B-S"},{"$f":"itineraryCamps!DW22","v":2},{"$f":"itineraryCamps!DX22","v":2},{"$f":"countcamps(itineraryStaff,itineraryCamps!B22)","v":6},{"$f":"countcamps(itineraryTrail,itineraryCamps!$B22)","v":0},{"$f":"countcamps(itineraryLayover,itineraryCamps!$B22)","v":1},5,{"$f":"countcamps(itineraryDry,itineraryCamps!$B22)","v":0},{"$f":"countcamps(itineraryShowers,itineraryCamps!$B22)","v":3},{"$f":"MIN(itineraryCamps!AL22:AU22)","v":6696},{"$f":"MAX(itineraryCamps!AL22:AU22)","v":8398},1702,{"$f":"AVERAGE(itineraryCamps!AV22:BD22)","v":524},{"$f":"contains(N$2,itineraryCamps!$B22,itineraryMaps)","v":"Y"},{"$f":"contains(O$2,itineraryCamps!$B22,itineraryMaps)","v":""},{"$f":"contains(P$2,itineraryCamps!$B22,itineraryMaps)","v":""},{"$f":"contains(Q$2,itineraryCamps!$B22,itineraryCountry)","v":"Y"},{"$f":"contains(R$2,itineraryCamps!$B22,itineraryCountry)","v":"Y"},{"$f":"contains(S$2,itineraryCamps!$B22,itineraryCountry)","v":""},{"$f":"contains(T$2,itineraryCamps!$B22,itineraryCountry)","v":""}]
[]
[null,null,"Min/Max nCamps",{"$f":"MIN(D3:D21)","v":5},0,1,5,0,1]
[null,null,null,{"$f":"MAX(D3:D21)","v":6},1,1,5,0,4]

{"sheet":"Programs","index":15,"n_rows":30,"n_cols":5,"rows_kept":30,"cut":false,"hidden":true,"merged":[]}
["#","Programs",null,"nPrograms",{"$f":"MAX(A:A)","v":29}]
[{"$f":"ROW()-1","v":1},"Archaeology"]
[2,"Baldy Mountain"]
[3,"Blacksmithing"]
[4,"Campfire (evening)"]
[5,"Cantina"]
[6,"Challenge Events"]
[7,"Chuckwagon Dinner"]
[8,"Demonstration Forest"]
[9,"Fishing"]
[10,"Fly Tying"]
[11,"Fur Trapper Rendezvous"]
[12,"Gold Mining & Panning"]
[13,"Homesteading"]
[14,"Lodge/Cabin Tours"]
[15,"Low Impact Camping"]
[16,"Mexican Dinner"]
[17,"Mountaineering"]
[18,"Muzzle Loading Rifle"]
[19,"New Mexico Homestead"]
[20,"Petroglyph Tour"]
[21,"Post Civil War Encampment"]
[22,"Railroading"]
[23,"Rock Climbing & Rappelling"]
[24,"Shotgun Shooting/Reloading - 12 Gauge"]
[25,"Spar Pole Climbing"]
[26,"Tie Making & Crosscut Saws"]
[27,"Tomahawk Throwing"]
[28,"Trail Peak"]
[29,"Western Lore/Branding"]

{"sheet":"Camp Programs","index":16,"n_rows":52,"n_cols":32,"rows_kept":52,"cut":false,"hidden":true,"merged":[[0,0,1,0],[0,1,1,1]]}
["These are the programs available at camps.  Used to create the default programs for itineraries in itineraryPrograms worksheet.\n\n\nStaffed Camp","# Programs",1,{"$f":"C1+1","v":2},{"$f":"D1+1","v":3},4,5,6,7,8,9,10,11,12,13,14,15,16,17,18,19,20,21,22,23,24,25,26,27,28,29,30]
[null,null,{"$f":"INDEX(program_table,C1)","v":"Archaeology"},{"$f":"INDEX(program_table,D1)","v":"Baldy Mountain"},{"$f":"INDEX(program_table,E1)","v":"Blacksmithing"},{"$f":"INDEX(program_table,F1)","v":"Campfire (evening)"},{"$f":"INDEX(program_table,G1)","v":"Cantina"},{"$f":"INDEX(program_table,H1)","v":"Challenge Events"},{"$f":"INDEX(program_table,I1)","v":"Chuckwagon Dinner"},{"$f":"INDEX(program_table,J1)","v":"Demonstration Forest"},{"$f":"INDEX(program_table,K1)","v":"Fishing"},{"$f":"INDEX(program_table,L1)","v":"Fly Tying"},{"$f":"INDEX(program_table,M1)","v":"Fur Trapper Rendezvous"},{"$f":"INDEX(program_table,N1)","v":"Gold Mining & Panning"},{"$f":"INDEX(program_table,O1)","v":"Homesteading"},{"$f":"INDEX(program_table,P1)","v":"Lodge/Cabin Tours"},{"$f":"INDEX(program_table,Q1)","v":"Low Impact Camping"},{"$f":"INDEX(program_table,R1)","v":"Mexican Dinner"},{"$f":"INDEX(program_table,S1)","v":"Mountaineering"},{"$f":"INDEX(program_table,T1)","v":"Muzzle Loading Rifle"},{"$f":"INDEX(program_table,U1)","v":"New Mexico Homestead"},{"$f":"INDEX(program_table,V1)","v":"Petroglyph Tour"},{"$f":"INDEX(program_table,W1)","v":"Post Civil War Encampment"},{"$f":"INDEX(program_table,X1)","v":"Railroading"},{"$f":"INDEX(program_table,Y1)","v":"Rock Climbing & Rappelling"},{"$f":"INDEX(program_table,Z1)","v":"Shotgun Shooting/Reloading - 12 Gauge"},{"$f":"INDEX(program_table,AA1)","v":"Spar Pole Climbing"},{"$f":"INDEX(program_table,AB1)","v":"Tie Making & Crosscut Saws"},{"$f":"INDEX(program_table,AC1)","v":"Tomahawk Throwing"},{"$f":"INDEX(program_table,AD1)","v":"Trail Peak"},{"$f":"INDEX(program_table,AE1)","v":"Western Lore/Branding"},{"$f":"INDEX(program_table,AF1)","v":{"$error":"#REF!"}}]
["Abreu",{"$f":"COUNTIF(C3:AF3,\"y\")","v":3},null,null,null,null,"y",null,null,null,null,null,null,null,null,null,"y",null,null,null,"y"]
["Anasazi",0]
["Apache Springs",0]
["Baldy Town",1,null,null,null,null,null,null,null,null,null,"y"]
["Beaubien",3,null,null,null,"y",null,null,"y",null,null,null,null,null,null,null,null,null,null,null,null,null,null,null,null,null,null,null,null,null,null,"y"]
["Beatty Lakes",0]
["Black Mountain",3,null,null,"y",null,null,null,null,null,null,null,null,null,null,null,null,null,null,"y",null,"y"]
["Carson Meadows",0]
["Chase Cow",1,null,null,null,null,null,null,null,null,null,null,null,null,null,null,null,null,null,null,null,null,null,null,"y"]
["Chase Ranch",0]
["Cimarroncita",0]
["Cimarroncito",1,null,null,null,null,null,null,null,null,null,null,null,null,null,null,null,null,null,null,null,null,null,null,"y"]
["Clarks Fork",3,null,null,null,"y",null,null,"y",null,null,null,null,null,null,null,null,null,null,null,null,null,null,null,null,null,null,null,null,null,null,"y"]
["Clear Creek",0]
["Crater Lake",3,null,null,null,"y",null,null,null,null,null,null,null,null,null,null,null,null,null,null,null,null,null,null,null,null,"y","y"]
["Crooked Creek",0]
["Cyphers Mine",3,null,null,"y","y",null,null,null,null,null,"y"]
["Dan Beard",1,null,null,null,null,null,"y"]
["Dean Cow",0]
["Demonstration Forest",0]
["Fish Camp",3,null,null,null,null,null,null,null,"y","y",null,null,null,"y"]
["French Henry",2,null,null,"y",null,null,null,null,null,null,"y"]
["Garcia Cow",0]
["Greenwood Canyon",0]
["Harlan",0]
["Head of Dean",1,null,null,null,null,null,"y"]
["Hunting Lodge",2,null,null,null,null,null,null,null,"y",null,null,null,null,"y"]
["Indian Writings",1,"y"]
["Iris Park",0]
["Kit Carson",0]
["Little Costilla",0]
["Miners Park",1,null,null,null,null,null,null,null,null,null,null,null,null,null,null,null,null,null,null,null,null,null,null,"y"]
["Metcalf Station",{"$f":"COUNTIF(C35:AF35,\"y\")","v":3},null,null,"y","y",null,null,null,null,null,null,null,null,null,null,null,null,null,null,null,null,"y"]
["Middle Ponil",0]
["Miranda",3,null,null,null,null,null,null,null,null,null,null,null,null,null,null,null,null,null,"y",null,null,null,"y",null,null,null,null,"y"]
["Phillips Junction",0]
["Ponil",4,null,null,null,"y","y",null,"y",null,null,null,null,null,null,null,null,null,null,null,null,null,null,null,null,null,null,null,null,null,null,"y"]
["Pueblano",3,null,null,null,"y",null,null,null,null,null,null,null,null,null,null,null,null,null,null,null,null,null,null,null,null,"y","y"]
["Rayado",0]
["Rich Cabins",0]
["Ring Place",0]
["Santa Claus",1,null,null,null,null,null,null,null,null,null,null,null,null,null,null,null,null,null,null,null,null,null,null,null,"y"]
["Sawmill",0]
["Seally Canyon",0]
["Upper Greenwood",0]
["Urraca",0]
["Ute Gulch",0]
["Whiteman Vega",0]
["Zastrow",0]
[null,null,{"$f":"COUNTIF(C3:C51,\"y\")","v":1},0,4,7,2,{"$f":"COUNTIF(H3:H51,\"y\")","v":2},3,2,1,3,0,0,2,0,1,0,0,2,1,1,1,1,3,1,2,2,1,0,0,3]

{"sheet":"Camp Elevations","index":17,"n_rows":171,"n_cols":14,"rows_kept":171,"cut":false,"hidden":true,"merged":[[170,3,170,12],[103,13,104,13]]}
["Added","CAMP NAME","Country","Easting","Northing","ELEVATION ","Commissary","Trading Post","Staffed","Trail Camp","Dry Camp","Showers","campMap"]
[null,"Abreu","South",498586,4025999,7217,"","","Y","","","Y","South"]
[null,"Agua Fria","South",488935,4026589,8726,"","","","Y","","","South"]
[null,"Aguila","South",497862,4028279,8282,"","","","Y","","","South"]
[2019,"American Creek","South",481557.83,4035889.24,9815,null,null,"","Y","",null,"South"]
[null,"Anasazi","North",501736,4051171,6911,"","","","Y","","","North"]
[null,"Apache Springs","South",487072,4026937,9409,"Y","","Y","","","","South"]
[2019,"Arrowhead","South",496899.66,4035172.06,7644,null,null,"","Y","Y",null,"South"]
[null,"Aspen Springs","Central",494588,4039845,7912,"","","","Y","","","South"]
[2021,"Azurite","North",482386.37579999998,4054351.6874000002,10640,null,null,"","Y","Y",null,"North"]
[null,"Backache Springs","South",502047,4027556,7688,"","","","Y","","","South"]
[null,"Baldy Skyline","North",487283.46,4052136.12,9140,"","","","Y","","","North"]
[null,"Baldy Town","North",482894,4053456,9851,"Y","Y","Y","","","Y","North"]
[null,"Base","Central",503848,4034364,6696,"","","","Y","","","South"]
[null,"Bear Canyon","South",487881,4028169,9288,"","","","Y","","","South"]
[null,"Bear Caves","South",496976,4028855,8423,"","","","Y","","","South"]
[2021,"Bear Creek",{"$f":"C15","v":"South"},{"$f":"D15","v":487881},4028169,9288,"","","","Y","","","South","Renamed from Bear Canyon"]
[null,"Beatty Lakes","Valle Vidal",489314.61,4064668.2415999998,8178.6580000000004,"","","","Y","Y","","North"]
[null,"Beaubien","South",490738,4030941,9330,"","","Y","","","Y","South"]
[null,"Bent","North",494100,4054501,7319,"","","","Y","","","North"]
[null,"Black Horse","North",483104,4051686,9619,"","","","Y","","","North"]
[2021,"Black Horse Creek",{"$f":"C21","v":"North"},{"$f":"D21","v":483104},4051686,9619,"","","","Y","","","North","Renamed from Black Horse"]
[2021,"Black Horse Mine","North",482367.65720000002,4052309.574,10750,null,null,"","Y","Y",null,"North"]
[null,"Black Jacks","North",496177,4047265,8211,"","","","Y","","","North"]
[null,"Black Mountain","South",491634,4033045,8991,"","","Y","","","","South"]
[2022,"Bluestem","North",495101.6764,4051329.0962,7495,null,null,"","Y","Y",null,"North"]
[null,"Bonita Cow","South",492404,4028661,9120,"","","","Y","","","South"]
[null,"Buck Creek","South",488296,4029577,9131,"","","","Y","","","South"]
[null,"Camping HQ",{"$f":"C14","v":"Central"},{"$f":"D14","v":503848},4034364,6696,"","","Y","Y","","","South","Same as BASE"]
[null,"Campos Heck","North",502454,4047467,7081,"","","","Y","","","North"]
[null,"Carson Meadows","South",497851,4024826,7758,"","","Y","","","","South"]
[null,"Cathedral Rock","Central",495619,4037883,7550,"","","","Y","","","South"]
[null,"Chase Canyon","North",503643,4053267,7192,"","","","Y","","","North"]
[2019,"Chase Cow","North",504488.58,4052426.91,7177,null,null,"Y","","","","North"]
[null,"Chase Ranch","North",506771,4045397,6552,"","","Y","","Y","","North"]
[null,"Cimarron River","Central",494007,4046488,7282,"","","","Y","","","South"]
[2021,"Cimarroncita","Central",492337.15110000002,4045746.6666999999,7373,null,null,"Y","","",null,"North & South"]
[null,"Cimarroncito","Central",494139,4039271,8137,"","","Y","","","Y","South"]
[null,"Clarks Fork","Central",495699,4035985.55,7515,"","","Y","","","Y","South"]
[null,"Clear Creek","Central",483477,4036332,10240,"","","Y","","","","South"]
[null,"Comanche Creek","South",485656.75,4033365.26,9600,"","","","Y","","","South"]
[null,"Comanche Peak","Central",487608,4037237,11070,"","","","Y","Y","","South"]
[null,"Cook Canyon","North",494194,4058460,7731,"","","","Y","","","North"]
[null,"Copper Park","North",481903,4055101,10530,"","","","Y","","","North"]
[null,"Cottonwood","North",500105,4056884,7373,"","","","Y","","","North"]
[2023,"Coyote Howl","North",500561.82,4054185.0869999998,7560.52,null,null,null,"Y",null,null,"North"]
[null,"Crags","South",494334,4024631,8058,"","","","Y","","","South"]
[null,"Crater Lake","South",495609,4028935,8398,"","","Y","","","","South"]
[null,"Crooked Creek","South",486794,4031067,9360,"","","Y","","","","South"]
[null,"Cyphers Mine","Central",489568,4037662,9302,"","","Y","","","Y","South"]
[null,"Dan Beard","North",492056,4059215,7896,"","","Y","","","","North"]
[2019,"Daves Lake","South",491347.09,4025665.43,9453,null,null,"","Y","",null,"South"]
[null,"Dean Cow","North",500102,4046769,7232,"","","Y","","","Y","North"]
[null,"Dean Cutoff","North",495546.39,4052340.91,7320,"","","","Y","","","North"]
[null,"Dean Heck","North",504413,4044305,6758,"","","","Y","","","North"]
[2019,"Dean Skyline","North",495667.97,4051680.85,7967,null,null,"","Y","Y",null,"North"]
[null,"Deer Lake","Central",497685,4040333,8280,"","","","Y","","","South"]
[null,"Deer Lake Mesa","Central",495433,4042810,8324,"","","","Y","","","South"]
[null,"Demonstration Forest","South",494670,4037285,7720,"","","","Y","Y","","South"]
[null,"Devil's Wash Basin","Central",494932,4042281,8515,"","","","Y","Y","","South"]
[2020,"Divide","South",488258.43,4036088.88,10509,null,null,"","Y","Y",null,"South"]
[null,"Elkhorn","North",492424,4051874,8496,"","","","Y","","","North"]
[null,"Ewells Park","North",484643,4053169,9373,"","","","Y","","","North"]
[null,"Fish Camp","South",490787,4026964,8564,"","","Y","","","","South"]
[null,"Flume Canyon","North",492186,4053281,7715,"","","","Y","","","North"]
[null,"French Henry","North",483471,4054519,9635,"","","Y","","","","North"]
[2019,"Garcia Cow","South",483495.8,4027944.67,9855,null,null,"Y","","",null,"South"]
[null,"Greenwood Canyon","Valle Vidal",483891.64,4061375.92,8300,"","","","Y","","","North"]
[null,"Harlan","Central",498402,4041184,7550,"","","Y","","","","South"]
[null,"Hawkeye","Central",494791,4046280,7586,"","","","Y","Y","","South"]
[null,"Head of Dean","North",489268,4051641,8754,"","","Y","","","","North"]
[2021,"Heck Meadow","South",498379.26270000002,4035918.4079,7085,null,null,"","Y","Y",null,"South"]
[null,"Hells Fire Canyon","North",506048,4049722,6837,"","","","Y","","","North"]
[2020,"Herradura","South",498970.27,4030120,7465,"","","","Y","Y","","South"]
[null,"Horse Canyon","North",494604,4057016,8128,"","","","Y","","","North"]
[null,"House Canyon","North",502969,4051149,7157,"","","","Y","","","North"]
[null,"Hunting Lodge","Central",494338,4037841,7776,"","","N","Y","","","South","Trail Camp for 2024"]
[null,"Indian Writings","North",500421,4053139,6979,"","","Y","","","Y","North"]
[null,"Iris Park","Valle Vidal",486124,4064630,8571,"","","","Y","","","North"]
[null,"Kit Carson","South",506169.3798,4024627.3322999999,6466,"","","Y","","","","South"]
[null,"Lamberts Mine","Central",490260,4037034,8957,"","","","Y","","","South"]
[2021,"Line",{"$f":"C83","v":"South"},{"$f":"D83","v":498199.67},4023525.53,8125,"","","","Y","","","South","Renamed from Line Camp"]
[null,"Line Camp","South",498199.67,4023525.53,8125,"","","","Y","","","South"]
[null,"Little Costilla","Valle Vidal",480285.29,4072995.57,10200.69,"","","","Y","","","North"]
[2019,"Little Twin","North",505391.65330000001,4049985.7826999999,7258.9650430000002,null,null,"","Y","Y",null,"North"]
[null,"Lookout Meadow","South",493728,4026401,9419,"","","","Y","","","South"]
[null,"Lost Cabins","South",487827,4026491,9205,"","","","Y","","","South"]
[null,"Lost Gap","Central",496635,4040475,8413,"","","","Y","Y","","South"]
[2019,"Lovato","South",487595.97,4023654.22,9523,null,null,"","Y","",null,"South"]
[null,"Lovers Leap","South",498474,4030533,7469,"","","","Y","","","South"]
[null,"Lower Bonito","South",493583,4027520,8962,"","","","Y","","","South"]
[null,"Lower Sawmill","Central",493143,4041628,8308,"","","","Y","","","South"]
[2021,"Magpie","South",501032.30530000001,4031514.3975,7385,null,null,"","Y","Y",null,"South"]
[null,"Martinez Springs","Central",496880,4043340,7494,"","","","Y","","","South"]
[null,"Maxwell","North",486238,4050954,8498,"","","","Y","","","North"]
[null,"McBride Canyon","North",500499,4050410,7105,"","","","Y","Y","","North"]
[null,"McCrystal Creek","Valle Vidal",486857.99619999999,4073297.6935000001,8538,"","","","Y","","","North"]
[null,"Metcalf Station","North",497635,4057295,7220,"","","Y","","","","North"]
[null,"Middle Ponil","Valle Vidal",482410,4068284,9118,"","","","Y","","","North"]
[null,"Miners Park","South",496250,4030958,7977,"Y","","Y","","","Y","South"]
[null,"Minnette Meadows","Central",492417.2,4044351,7703,"","","","Y","Y","","South"]
[null,"Miranda","North",484666,4051561,8898,"","","Y","","","","North"]
[2021,"Mistletoe","Central",493459.07990000001,4048688.4183999998,8295,null,null,"","Y","Y",null,"North & South"]
[null,"Mount Phillips","Central",486031.29960000003,4036786.3292,11650,"","","","Y","Y","","South","2023 Different spellings for same camp"]
[null,"Mt Phillips","Central",486031.29960000003,4036786.3292,11650,"","","","Y","Y","","South"]
[null,"New Dean","North",495733,4049734,7724,"","","","Y","","","North"]
[null,"North Fork Urraca","South",496228,4032333,7961,"","","","Y","","","South"]
[2019,"North Ponil","North",495945.07,4058676.11,7706,null,null,"","Y","",null,"North"]
[null,"Old Abreu","South",497636,4025768,7375,"","","","Y","","","South"]
[null,"Old Camp","Valle Vidal",null,null,null,"","","","Y","","","North"]
[null,"Olympia","South",502788,4025183,6731,"","","","Y","","","South"]
[null,"Phillips Junction","South",489389,4030051,8921,"Y","Y","Y","","","Y","South"]
[null,"Pinyon Flats","South",501236,4024353,6924,"","","","Y","","","South"]
[2023,"Placer","North",4836526.0779999997,4052601.3470000001,9483.43,null,null,null,"Y",null,null,"North"]
[null,"Ponderosa Park","Central",495827,4034966,8004,"","","","Y","Y","","South"]
[null,"Ponil","North",496696.54700000002,4053001.2755,7150,"Y","Y","Y","","","Y","North"]
[null,"Porcupine","South",488353,4030881,9152,"","","","Y","","","South"]
[null,"Pueblano","North",489738,4053274,8069,"","","Y","","","","North"]
[null,"Pueblano Ruins","North",487758,4053694,8359,"","","","Y","","","North"]
[2020,"Rabbit Ear","North",492496.72,4059396.86,8115,null,null,"","Y","Y",null,"North"]
[null,"Rayado","South",506169.3798,4024627.3322999999,6518,"","","","Y","","","South"]
[null,"Rayado Ridge","South",505371,4024604,6655,"","","","Y","","Y","South"]
[null,"Rayado River","South",499286,4025697,7079,"","","","Y","","","South"]
[null,"Red Hills","South",487476,4035642,10280,"","","","Y","","","South"]
[null,"Rich Cabins","Valle Vidal",489694,4058261,7728,"Y","","Y","","","","North"]
[null,"Rimrock Park","South",498366,4025625,7359,"","","","Y","Y","","South"]
[null,"Ring Place","Valle Vidal",489152,4069608,8124,"Y","","Y","","","","North"]
[2021,"Ringtail","North",487012.16409999999,4051328.0446000001,8600,null,null,"","Y","Y",null,"North"]
[null,"RMSC","South",500770,4032043,7080,"","","","Y","","","South"]
[null,"Rock Springs","Central",496880,4043340,7491,"","","","Y","","","South"]
[2019,"Saladon","South",482203.13,4032785.4142999998,9874.788998,null,null,"","Y","",null,"South"]
[null,"Santa Claus","North",491849,4049566,8438,"","","Y","","","","North"]
[null,"Sawmill","Central",490259,4041146,9193,"","","Y","","","Y","South"]
[null,"Seally Canyon","Valle Vidal",490997,4067420,8037,"","","","Y","Y","","North"]
[null,"Shaefers Pass","Central",495940,4033735,8724,"","","","Y","Y","","South"]
[null,"Shuree Cabin","Valle Vidal",480498,4070514,9647,"","","","Y","","","North"]
[null,"Shuree Lodge","Valle Vidal",482669,4069480,9277,"","","","Y","","","North"]
[null,"Sioux","North",495001,4053225,7382,"","","","Y","","","North"]
[null,"Six Mile Gate","North",503191.76,4049062.91,6710,"","","","Y","","","North"]
[null,"Slate Hill Heck","North",502409,4043124,7722,"","","","Y","Y","","North"]
[null,"Stockade","South",500015,4032275,7254,"","","","Y","","","South"]
[null,"Stockade Ridge","South",499296,4032487,7519,"","","","Y","Y","","South"]
[null,"Thunder Ridge","Central",488492.89939999999,4038824.1444999999,10490,"","","","Y","Y","","South"]
[2019,"Tolby Headwaters","South",480146.81,4038306.99,9219,null,null,"","Y","",null,"South"]
[null,"Tooth Ridge","Central",500029.67,4033924.75,8240,"","","","Y","Y","","South"]
[null,"Toothache Springs","South",500750,4028216,7870,"","","","Y","","","South"]
[2021,"Touch-Me-Not Creek","North",484936.67660000001,4050860.9983999999,8855,null,null,"","Y","",null,"North"]
[null,"Trail Canyon","North",499226,4049865,7070,"","","","Y","","","North"]
[null,"Turkey Creek","North",498097,4046582,7569,"","","","Y","","","North"]
[null,"Upper Bench","Central",494832,4043955,8161,"","","","Y","Y","","South"]
[null,"Upper Clarks Fork","Central",495583,4034947,7902,"","","","Y","Y","","South"]
[null,"Upper Dean Cow","North",492036,4050785,8254,"","","","Y","","","North"]
[null,"Upper Greenwood","Valle Vidal",479874.12530000001,4056510.7667999999,10262.665999999999,"","","","Y","","","North"]
[null,"Upper Sawmill","Central",491866.71,4041590,8611,"","","","Y","","","South"]
[2022,"Upper Webster Park","Central",492935.53470000002,4039576.3048999999,8764,null,null,"","Y","",null,"South","2023 Combined Upper & Lower Webster Parks"]
[null,"Urraca","South",500851,4029314,7968,"","","Y","","","","South"]
[null,"Ute Gulch","Central",494653,4041249,7866,"Y","Y","Y","","","","South"]
[null,"Ute Meadows","North",483892,4052643,9164,"","","","Y","","","North"]
[null,"Ute Park Pass","Central",493784,4042291,8258,"","","","Y","","","South"]
[null,"Ute Springs","Central",495177,4040114,7689,"","","","Y","","","South"]
[null,"Vaca","Central",499148,4041252,7415,"","","","Y","","","South"]
[null,"Visto Grande","Central",493983,4045668,7782,"","","","Y","","","South"]
[null,"Webster Lake","Central",497835,4037406,7122,"","","","Y","","","South"]
[null,"Webster Parks","Central",492939.82,4039509.952,8611.1200000000008,"","","","Y","Y","","South","2023 Combined Upper & Lower Webster Parks"]
[null,"Whistle Punk","Central",489586.4,4039243.3,10052,"","","","Y","","","South"]
[null,"Whiteman Vega","Valle Vidal",490820,4072011,8061,"","","Y","","","","North"]
[null,"Wild Horse","South",484174,4032864,10420,"","","","Y","","","South"]
[2019,"Wild Horse Park","South",481273.93,4030849.05,9883,null,null,"","Y","",null,"North"]
[null,"Window Rock","Central",null,null,8312,"","","","Y","Y","","South"]
[null,"Zastrow","South",500378,4025857,6946,"Y","","Y","","","Y","South"]
[null,null,null,"NOTE:  Coordinates/elevations  from 2017 Philmont's 2017 UTM.xlsm file.  These do not agree with Philmont's .kmz Google Earth file."]